{"text_format":"1","workbook":"xlsx","n_sheets":32,"sheets":["Front Page","Disclaimer","Methodology","RAG","Significance Description","Summary","HA1","HA2","HA3","HA4","HA5","HA6","HA7","HA8","HA9","HA10","HA11","HA12","HA13","HA14","HA15","HA16","HA17","CC4","CC5","CC12","CC13","CC14","CC15","E5","E6","E7"],"not_rendered":{"charts":0,"images":1,"macros":0,"external_links":0,"defined_names":1,"comments":0,"pivot_tables":0},"unopened":[],"bounds":{"document_bytes":16777216,"sheet_cells":100000,"rows_first":2000,"rows_last":500,"rows_between":2000,"halvings":0,"cell_chars":16384,"cell_head_chars":4096},"cells_cut":0,"cells_raw":0,"read":"whole","date_system":"1900"}

{"sheet":"Front Page","index":0,"n_rows":30,"n_cols":11,"rows_kept":30,"cut":false,"hidden":false,"merged":[[7,2,8,10]]}
[]
[]
[]
[]
[]
[]
[]
[]
[]
[]
[]
[]
[null,null,null,null,null,null,"Derby City Council"]
[null,null,null,null,null,null,"Sustainability Appraisal"]
[null,null,null,null,null,null,"Interim SA Report: Appendix E"]
[null,null,null,null,null,null,"Site Assessments"]
[]
[]
[]
[]
[]
[]
[null,null,null,null,null,null,null,null,null,null,"Prepared by:"]
[null,null,null,null,null,null,null,null,null,null,"SLR Consulting Ltd "]
[]
[]
[]
[]
[]
[null,null,null,null,null,null,null,null,null,null,"Project Ref: "]

{"sheet":"Disclaimer","index":1,"n_rows":38,"n_cols":7,"rows_kept":38,"cut":false,"hidden":false,"merged":[[10,4,10,6],[19,2,32,6],[35,1,35,2],[35,6,35,7],[36,1,36,2],[36,6,36,7],[37,1,37,2],[37,6,37,7],[38,1,38,2],[38,6,38,7],[39,1,39,2],[39,6,39,7]]}
[]
[]
[]
[]
[null,null,null,"Contract  No:"]
[]
[]
[null,null,null,"Issue",2]
[]
[]
[null,null,null,"Authors        ","CT/ARK/KW"]
[]
[]
[null,null,null,"Project Director                     ","VP"]
[]
[]
[null,null,null,"Date:","2026-01-08"]
[]
[]
[null,null,"This document has been prepared by SLR Consulting Ltd with reasonable skill, care and diligence, and taking account of the timescales and resources devoted to it by agreement with Walsall Council (the Client) as part or all of the services it has been appointed by the Client to carry out. It is subject to the terms and conditions of that appointment.\nSLR shall not be liable for the use of or reliance on any information, advice, recommendations and opinions in this document for any purpose by any person other than the Client. Reliance may be granted to a third party only in the event that SLR and the third party have executed a reliance agreement or collateral warranty.\nInformation reported herein may be based on the interpretation of public domain data collected by SLR, and/or information supplied by the Client and/or its other advisors and associates. These data have been accepted in good faith as being accurate and valid.  \nThe copyright and intellectual property in all drawings, reports, specifications, bills of quantities, calculations and other information set out in this report remain vested in SLR unless the terms of appointment state otherwise.  \nThis document may contain information of a specialised and/or highly technical nature and the Client is advised to seek clarification on any elements which may be unclear to it. \nInformation, advice, recommendations and opinions in this document should only be relied upon in the context of the whole document and any documents referenced explicitly herein and should then only be used within the context of the appointment."]
[]
[]
[]
[]
[]
[]
[]
[]
[]
[]
[]
[]
[]
[]
[null,"VERSION CONTROL RECORD"]
[null,"Issue",null,"Description of Status","Date","Reviewer Initials","Authors Initials"]
[null,1,null,"Draft","2025-12-08","VP","CT/ARK/KW"]
[null,2,null,"Final for Reg 18","2026-01-08","VP","ARK/CT"]

{"sheet":"Methodology","index":2,"n_rows":14,"n_cols":16,"rows_kept":14,"cut":false,"hidden":false,"merged":[[13,2,13,5],[2,1,2,6],[3,1,3,6],[4,1,4,6],[9,1,9,6],[11,0,11,1],[11,6,11,15],[11,2,11,5],[13,6,13,10]]}
["The methodology used for the assessment of all sites is outlined below, with an explanation given under each header. The same assessment matrices has been used for the assessment of all sites, hence all follow the same format. "]
[]
["Site Name"]
["Site Address"]
["Town/Locality"]
["Est Housing Yield/Employment Space"]
["Site Area (ha)"]
["Site Description"]
["Greenfield/Brownfield"]
["Assumptions Made"]
[]
["SA Framework",null,"GIS Inputs",null,null,null,"SA Policy Assessment"]
["SA objective","SA sub-objective","GIS data available?","R","A","G","Direct/\nIndirect","Magnitude","Duration","Spatial Extent","Permanence/ Reversibility","Significance","Description of potential effects","Potential for cumulative effects? ","Mitigation","Enhancements"]
["SA objectives will be listed here","SA sub-objectives will be listed here.","This indicates whether the site could be spatially assessed, and if so, what the RAG rating on the site was for each SA objective",null,null,null,"Details on the nature of any potential effects will be listed here. For further details and definitions of each category, please see the 'Significance Scores' tab. \nFor cases where a neutral effect has been identified, N/A will be present across columns G-L. ",null,null,null,null,"A significance score will be selected here, which corresponds with the definitions detailed in the 'Significance Scores' tab. ","The potential effect identified in columns H-L will be detailed here, with justification for the significance score. \nAny information considered as a part of the assessments which has informed these potential effects will also be detailed here. ","Indicates whether the effect has a potential to contribute to cumulative effects that may arise, 'Yes/No'.","Yes or No will be inserted here. If yes, see summary box at the bottom of the matrices for further details of the potential cumulative effect. ","Any mitigation required for potential negative or uncertain effects will be detailed here. If the sole method of preventing a potential adverse effect is to not develop a site, \"No mitigation identified.\" will be written here. "]

{"sheet":"RAG","index":3,"n_rows":48,"n_cols":50,"rows_kept":48,"cut":false,"hidden":false,"merged":[[2,5,2,7],[2,8,2,12],[2,13,2,14],[2,15,2,17],[2,20,2,22],[2,43,2,45],[2,46,2,48],[2,23,2,24],[2,25,2,26],[2,27,2,33],[2,35,2,38],[2,39,2,42]]}
[]
[]
[null,"Acronym","Indicator",null,null,"SA1",null,null,"SA2",null,null,null,null,"SA3",null,"SA4",null,null,"SA5","SA6","SA7",null,null,"SA8",null,"SA9",null,"SA10",null,null,null,null,null,null,"SA11","SA12",null,null,null,"SA13",null,null,null,"SA15",null,null,"SA16",null,null,"SA17"]
[null,"SA1_IMD","IMD Overall Deprivation (LSOA)",null,"Option","SA1_IMD","SA1_PSch","SA1_SSch","SA2_IMD","SA2_HCP","SA2_ALT","SA2_CC","SA2_POS","SA3_PSA","SA3_TC","SA4_IMDE","SA4_IMDI","SA4_EEA","SA5_IMDC","SA6_IMDH","SA7_POS","SA7_CS","SA7_SF","SA8_LNR","SA8_SSSI","SA9_GB","SA9_GW","SA10_LB","SA10_RPG","SA10_SM","SA10_CA","SA10_AAA","SA10_HAR","SA10_WHS","SA11_AQMA","SA12_WB","SA12_FZ2","SA12_FZ3a","SA12_FZ3b","SA13_FD","SA13_FZ2","SA13_FZ3a","SA13_FZ3b","SA15_TS","SA15_BS","SA15_CN","SA16_ALC","SA16_SPZ","SA16_MS","SA17_WS"]
[null,"SA1_PSch","Primary Schools",null,"HA1: Rykneld Road, Littleover","Amber","Green","Green","Amber","Red","Red","Red","Green","Red","Green","Amber","Amber","Red","Amber","Amber","Green","Green","Red","Green","Green","Green","Green","Green","Green","Green","Green","Green","Green","Green","Green","Red","Red","Red","Green","Green","Red","Red","Green","Red","Green","Red","Amber","Green","Green","Green"]
[null,"SA1_SSch","Secondary Schools",null,"HA2: Brook Farm, Chaddesden","Amber","Green","Green","Red","Green","Green","Green","Green","Red","Green","Red","Red","Red","Red","Amber","Green","Green","Green","Amber","Green","Red","Red","Red","Green","Green","Green","Green","Green","Green","Green","Red","Red","Red","Green","Green","Red","Red","Green","Red","Amber","Red","Amber","Green","Green","Green"]
[null,"SA2_IMD","IMD Health Deprivation (LSOA)",null,"HA3: East of Moorway Lane, Littleover","Green","Green","Green","Red","Red","Red","Red","Green","Red","Green","Red","Red","Red","Amber","Amber","Green","Green","Green","Amber","Green","Green","Red","Green","Green","Green","Green","Green","Green","Green","Green","Red","Red","Red","Red","Green","Red","Red","Red","Red","Amber","Red","Amber","Green","Green","Green"]
[null,"SA2_HCP","Healthcare provision (GP, Dentists, Pharmacies)",null,"HA4: Royal Hill Road, Spondon","Green","Green","Green","Amber","Green","Green","Red","Green","Red","Green","Amber","Green","Red","Amber","Green","Green","Green","Green","Amber","Green","Green","Red","Amber","Green","Green","Green","Green","Green","Green","Green","Red","Red","Red","Green","Green","Red","Red","Green","Red","Amber","Red","Amber","Green","Green","Green"]
[null,"SA2_ALT","Allotments",null,"HA5: The Hollow, Mickleover","Green","Green","Green","Amber","Green","Red","Red","Green","Red","Green","Green","Amber","Red","Green","Amber","Green","Green","Red","Green","Green","Green","Red","Amber","Green","Green","Green","Green","Green","Green","Green","Red","Red","Red","Green","Green","Red","Red","Green","Red","Red","Red","Amber","Green","Green","Green"]
[null,"SA2_CC","Children's centres",null,"HA6: Former Manor/Kingsway Hospital","Amber","Green","Green","Red","Green","Green","Red","Green","Green","Green","Amber","Amber","Green","Amber","Green","Green","Green","Green","Amber","Green","Green","Green","Red","Green","Green","Green","Green","Green","Green","Red","Green","Green","Green","Green","Green","Green","Green","Green","Red","Green","Red","Green","Green","Green","Green"]
[null,"SA2_POS","Parks and open spaces (including formal and informal open space)",null,"HA7: Stoney Lane, Spondon","Green","Green","Amber","Red","Green","Green","Red","Green","Red","Green","Red","Red","Green","Amber","Amber","Green","Green","Green","Green","Green","Red","Green","Green","Green","Green","Green","Green","Green","Green","Green","Red","Red","Red","Green","Green","Red","Red","Green","Red","Green","Red","Amber","Green","Green","Green"]
[null,"SA3_PSA","Primary shopping areas",null,"HA8: Former Police Station, Cotton Lane","Red","Green","Amber","Red","Red","Red","Red","Green","Red","Green","Red","Red","Green","Red","Amber","Green","Green","Green","Green","Green","Green","Green","Green","Green","Green","Green","Green","Green","Green","Green","Red","Red","Red","Green","Green","Red","Red","Green","Green","Green","Red","Green","Green","Green","Green"]
[null,"SA3_TC","Town centres",null,"HA9: Bramblebrook House/Humbleton View, Littleover","Green","Green","Green","Green","Green","Green","Red","Green","Green","Red","Green","Green","Red","Green","Green","Green","Green","Green","Amber","Green","Green","Green","Amber","Green","Green","Green","Green","Green","Green","Green","Green","Green","Green","Green","Green","Green","Green","Green","Red","Green","Red","Amber","Green","Green","Green"]
[null,"SA4_IMDE","IMD Employment (LSOA)",null,"HA10: Elton Road Works, Osmaston","Red","Green","Amber","Red","Green","Green","Red","Green","Green","Green","Red","Red","Green","Red","Amber","Green","Green","Green","Green","Green","Green","Green","Green","Green","Green","Green","Green","Green","Green","Green","Green","Red","Green","Green","Green","Red","Green","Green","Green","Green","Red","Green","Green","Green","Green"]
[null,"SA4_IMDI","IMD Income (LSOA)",null,"HA11: Former Shaftesbury Leisure Centre","Red","Green","Green","Red","Green","Red","Red","Green","Red","Green","Red","Red","Green","Red","Red","Green","Green","Green","Green","Green","Green","Green","Red","Green","Green","Green","Green","Green","Green","Green","Green","Red","Green","Green","Green","Red","Green","Green","Green","Green","Red","Green","Green","Green","Green"]
[null,"SA4_EEA","Existing employment area",null,"HA12: North of Sinfin Moor Lane","Green","Green","Amber","Amber","Green","Red","Red","Green","Red","Green","Green","Green","Red","Green","Amber","Green","Green","Red","Green","Green","Green","Green","Green","Green","Green","Green","Green","Green","Green","Green","Red","Green","Green","Green","Green","Green","Green","Green","Red","Amber","Green","Amber","Green","Green","Green"]
[null,"SA5_IMDC","IMD Crime (LSOA)",null,"HA13: Bembridge Drive, Alvaston","Red","Green","Amber","Red","Green","Green","Red","Green","Red","Green","Red","Red","Red","Red","Amber","Green","Green","Red","Green","Green","Green","Green","Green","Green","Green","Green","Green","Green","Green","Green","Green","Green","Green","Green","Green","Green","Green","Green","Red","Green","Red","Red","Green","Green","Green"]
[null,"SA6_IMDH","IMD barriers to housing and services (LSOA)",null,"HA14: Former Beaufort Business Centre, Chaddesden","Red","Green","Amber","Red","Green","Red","Green","Green","Red","Green","Red","Red","Green","Red","Amber","Green","Green","Green","Green","Green","Green","Green","Green","Green","Green","Green","Green","Green","Green","Green","Green","Red","Red","Green","Green","Red","Red","Green","Red","Green","Red","Green","Green","Green","Green"]
[null,"SA7_POS","Parks and open spaces (including formal and informal open space)",null,"HA15: Kitchner Avenue/Browning Street","Red","Green","Amber","Red","Green","Green","Green","Green","Green","Green","Red","Red","Green","Red","Amber","Green","Green","Green","Amber","Green","Green","Green","Amber","Green","Green","Green","Green","Green","Green","Green","Green","Green","Green","Green","Green","Green","Green","Green","Red","Green","Red","Green","Green","Green","Green"]
[null,"SA7_CS","Community centres",null,"HA16: Former Ivy School House","Red","Green","Green","Red","Green","Red","Red","Green","Red","Green","Red","Red","Green","Red","Red","Green","Green","Green","Green","Green","Green","Green","Red","Green","Green","Green","Green","Green","Green","Red","Green","Red","Red","Green","Green","Red","Red","Green","Green","Green","Red","Green","Green","Green","Green"]
[null,"SA7_SF","Sports facilities (Public)",null,"HA17: Gypsy and Traveller Site Allocation","Amber","Green","Green","Red","Red","Green","Green","Green","Red","Green","Red","Red","Green","Red","Amber","Green","Green","Green","Amber","Green","Green","Green","Red","Green","Green","Green","Green","Green","Green","Green","Amber","Green","Green","Green","Green","Green","Green","Green","Red","Green","Amber","Green","Green","Green","Green"]
[null,"SA8_LNR","Local Nature Reserve",null,"CC4: Residential Led, Mixed Use Site Allocations","Red","Green","Amber","Red","Green","Red","Red","Green","Red","Green","Red","Red","Green","Red","Red","Green","Green","Green","Green","Green","Green","Green","Red","Green","Amber","Red","Red","Green","Red","Red","Red","Red","Red","Green","Red","Red","Red","Green","Red","Green","Red","Green","Green","Green","Green"]
[null,"SA8_SSSI","Site of Special Scientific Interest",null,"CC5: Non-Residential Regeneration Opportunities","Red","Green","Green","Red","Green","Red","Green","Green","Red","Green","Red","Red","Green","Red","Red","Green","Green","Green","Green","Green","Green","Green","Red","Green","Green","Red","Red","Green","Red","Red","Red","Red","Red","Green","Green","Red","Red","Green","Red","Green","Green","Green","Green","Green","Green"]
[null,"SA9_GB","Green Belt",null,"CC12: Derby Riverside","Red","Green","Green","Red","Green","Red","Green","Green","Red","Green","Red","Red","Green","Red","Red","Green","Green","Green","Green","Green","Green","Green","Red","Green","Red","Red","Red","Green","Red","Red","Red","Red","Red","Red","Red","Red","Red","Red","Green","Green","Green","Green","Green","Green","Green"]
[null,"SA9_GW","Green Wedge",null,"CC13: University of Derby, City Centre Hub","Amber","Green","Green","Red","Green","Green","Green","Green","Red","Green","Amber","Amber","Green","Red","Amber","Green","Green","Green","Green","Green","Green","Green","Red","Green","Green","Red","Red","Green","Amber","Red","Red","Red","Red","Green","Green","Red","Red","Green","Red","Green","Green","Green","Green","Green","Green"]
[null,"SA10_LB","Listed Buildings",null,"CC14: Railway Station Quarter","Red","Green","Green","Red","Green","Red","Red","Green","Red","Green","Red","Red","Green","Red","Red","Green","Green","Green","Green","Green","Green","Green","Red","Green","Green","Red","Green","Green","Green","Red","Amber","Red","Red","Green","Amber","Red","Red","Green","Green","Green","Green","Green","Red","Green","Green"]
[null,"SA10_RPG","Registered parks and gardens",null,"CC15: North Castleward","Red","Green","Green","Red","Green","Red","Red","Green","Red","Green","Red","Red","Green","Red","Amber","Green","Green","Green","Green","Green","Green","Green","Amber","Green","Green","Green","Green","Green","Green","Red","Red","Red","Red","Green","Green","Red","Red","Green","Green","Green","Green","Green","Green","Green","Green"]
[null,"SA10_SM","Scheduled Monuments",null,"E5: Land South of Wilmore Road (Infinity Park)","Red","Green","Green","Red","Red","Green","Red","Green","Red","Green","Red","Red","Green","Red","Amber","Green","Green","Green","Red","Green","Green","Red","Green","Green","Green","Green","Green","Green","Green","Green","Red","Red","Red","Red","Green","Red","Red","Red","Red","Green","Red","Amber","Green","Green","Green"]
[null,"SA10_CA","Conservation Areas",null,"E6: SpartParc, Spondon","Amber","Green","Amber","Red","Green","Green","Red","Green","Green","Green","Amber","Amber","Green","Amber","Green","Green","Green","Green","Amber","Green","Green","Green","Green","Green","Green","Green","Green","Green","Green","Green","Red","Red","Red","Red","Red","Red","Red","Red","Green","Green","Amber","Green","Green","Green","Green"]
[null,"SA10_AAA","Archaeological Alert Area",null,"E7: Indurent Park","Red","Green","Green","Red","Green","Green","Red","Green","Green","Green","Red","Red","Green","Amber","Green","Green","Green","Green","Amber","Green","Green","Green","Green","Green","Green","Green","Green","Green","Green","Green","Red","Red","Red","Green","Amber","Red","Red","Green","Red","Green","Green","Amber","Green","Green","Green"]
[null,"SA10_HAR","Heritage at risk"]
[null,"SA10_WHS","World Heritage Site Buffer Zone"]
[null,"SA11_AQMA","Air Quality Management Area"]
[null,"SA12_WB","Water body"]
[null,"SA12_FZ2","Flood Zone 2"]
[null,"SA12_FZ3a","Flood Zone 3a"]
[null,"SA12_FZ3b","Flood Zone 3b"]
[null,"SA13_FD","Flood defences"]
[null,"SA13_FZ2","Flood Zone 2"]
[null,"SA13_FZ3a","Flood Zone 3a"]
[null,"SA13_FZ3b","Flood Zone 3b"]
[null,"SA15_TS","Train station"]
[null,"SA15_BS","Bus stop"]
[null,"SA15_CN","Cycle network"]
[null,"SA16_ALC","Agricultural Land Classification"]
[null,"SA16_SPZ","Source Protection Zone"]
[null,"SA16_MS","Mineral Site"]
[null,"SA17_WS","Waste management sites"]

{"sheet":"Significance Description","index":4,"n_rows":30,"n_cols":10,"rows_kept":30,"cut":false,"hidden":false,"merged":[[2,1,2,2],[2,7,2,9],[4,7,12,7],[4,8,12,8],[4,9,12,9],[7,1,11,1],[12,1,15,1],[13,7,19,7],[13,8,19,8],[13,9,19,9],[16,1,19,1],[23,7,28,7],[23,8,28,8],[23,9,28,9],[29,7,38,7],[29,8,38,8],[29,9,38,9]]}
[]
[]
[null,"Nature of effects",null,null,null,null,null,"Significance Scores"]
[null,"Criterion","Description",null,null,null,null,"Symbol","Definitions of Significance of Effects Against the SA Objectives","Assumptions on the nature of effects"]
[null,"Significance ","An assessment of the significance of the potential effects identified. This could be a positive effect, negative effect, neutral effect, significant positive effect or significant negative effect. The definitions for these effects are detailed to the right.",null,null,null,null,"++","Significant Positive Effect: the policy option supports the achievement of this objective; it addresses all relevant assessment questions and could result in a potentially significant beneficial effect e.g. improved access by walking and cycling modes to a local or town centre","Permanent\nContinual\nMagnitude: High 80%+ receptor or environmental capacity affected; or Medium 40-80% of receptor or environmental capacity of affected\nThe effect could be to:\n•\tenhance and redefine the location in a positive manner, making a contribution at a national or international scale; \n•\trepair or restore receptors badly damaged or degraded through previous uses; and/or \n•\timprove one or more key elements/features/ characteristics of a receptor with recognised quality such as a specific regional or national designation."]
[null,"Permanent/temporary","An assessment of whether the predicted effects would be permanent (P), or temporary (T). "]
[null,"Reversible/Irreversible","An assessment of whether or not the identified effect can be reversed (R) e.g. the loss of greenfield land to development would be irreversible (I). "]
[null,"Spatial extent","How far the effect is predicted to be spread geographically: "]
[null,null,"Localised = A specific area within Derby"]
[null,null,"Borough-wide = Across the entire of Derby"]
[null,null,"Regional = Across the entire of Derby, possibly reaching to neighbouring boroughs/the region"]
[null,null,"National = Beyond the Derby, with national or international ramifications"]
[null,"Magnitude","An assessment of the proportion of the receptor affected by the identified effect. "]
[null,null,"Low (L) =20-40% of receptor or capacity affected ",null,null,null,null,"+","Minor Positive Effect: the policy option supports the achievement of this objective; it addresses some relevant assessment questions, although it may have only a minor beneficial effect","Reversible\nInfrequent or intermittent\nMagnitude: Low 20-40% of receptor or capacity affected.\nThe size, nature and location of a proposed scheme would: \n•\timprove undesignated yet recognised receptor qualities at the neighbourhood scale; \n•\tfit into or with the existing location and existing receptor qualities; and/or\n•\tenable the restoration of valued characteristic features partially lost through other land uses.  "]
[null,null,"Medium (M) = 40-80% of receptor affected"]
[null,null,"High (H) =80+% of the receptor affected"]
[null,"Duration ","An assessment of the time period the predicted effects are likely to last. This could be:"]
[null,null,"Short (S)= 0-5 years"]
[null,null,"Medium (M) = 5-10 years"]
[null,null,"Long (L)= 10 years or more, up to the end of the Local Plan period "]
[null,"Direct/Indirect","An assessment of whether the predicted effect will be directly (D) as a result of option implementation, or indirectly (I) caused by the policy option. ",null,null,null,null,0,"Neutral Effect: the policy option has no impact or effect and is neutral insofar as the benefits and drawbacks appear equal and neither is considered significant","N/A"]
[null,"Likelihood","An assessment of how likely it is that the implementation of the policy option will lead to the precited effect. This could be low (L), moderate (M) or high (H). ",null,null,null,null,"?","Uncertain Effect: Uncertain or insufficient information on which to determine the assessment this stage","N/A"]
[null,"Cumulative effect","An assessment of whether or not there is potential for a cumulative effect to occur on the IIA objective as a result of the policy option working in combination with other circumstances, policies or factors. Y= potential cumulative effect. No potential cumulative effect identified. ",null,null,null,null,"+/-'","Mixed Effects: Both positive and negative effects are anticipated to arise","The nature of both positive and negative effects applies"]
[null,null,null,null,null,null,null,"-","Minor Negative Effect: the policy option appears to conflict with the achievement of this objective; it does not address relevant assessment questions and may result in minor adverse effects","Reversible\nInfrequent or intermittent\nMagnitude: Low 20-40% of receptor or capacity affected.\nThe size, nature and location of a proposed scheme would: \n•\tbe out of scale with the location; or \n•\tleave an adverse impact on a receptor of recognised quality such as a specific district or county designation."]
[]
[]
[]
[]
[]
[null,null,null,null,null,null,null,"- -","Significant Negative Effect: the policy option works against the achievement of this objective; it could exacerbate a negative situation and may result in a potentially significant adverse effect e.g. loss of all or part of a designated ecological site of national importance.","Permanent \nIrreversible\nContinual\nMagnitude: High 80%+ receptor or environmental capacity affected; or Medium 40-80% of receptor or environmental capacity of affected\nThe effect could be to:\n•\tpermanently degrade, diminish or destroy the integrity of the receptor; \n•\tcause a very high quality receptor to be permanently changed and its quality diminished; \n•\tcannot be fully mitigated and may cumulatively amount to a severe adverse effect;  \n•\tbe at a considerable variance to the location, degrading the integrity of the receptor; and/or \n•\twill be substantially damaging to a high quality receptor such as a specific regional or national designation."]

{"sheet":"Summary","index":5,"n_rows":29,"n_cols":22,"rows_kept":29,"cut":false,"hidden":false,"merged":[[2,20,2,21]]}
[]
[]
[null,"Site","SA1","SA2","SA3","SA4","SA5","SA6","SA7","SA8","SA9","SA10","SA11","SA12","SA13","SA14","SA15","SA16","SA17",null,"Key"]
[null,"HA1",{"$f":"IFERROR(VLOOKUP('HA1'!$L$12, Summary!$U:$V, 2, FALSE), \"\")","v":"+ +"},{"$f":"IFERROR(VLOOKUP('HA1'!$L$13, Summary!$U:$V, 2, FALSE), \"\")","v":"+ +"},{"$f":"IFERROR(VLOOKUP('HA1'!$L$14, Summary!$U:$V, 2, FALSE), \"\")","v":"+ +"},{"$f":"IFERROR(VLOOKUP('HA1'!$L$15, Summary!$U:$V, 2, FALSE), \"\")","v":"+"},{"$f":"IFERROR(VLOOKUP('HA1'!$L$16, Summary!$U:$V, 2, FALSE), \"\")","v":"+"},{"$f":"IFERROR(VLOOKUP('HA1'!$L$17, Summary!$U:$V, 2, FALSE), \"\")","v":"+ +"},{"$f":"IFERROR(VLOOKUP('HA1'!$L$18, Summary!$U:$V, 2, FALSE), \"\")","v":"+"},{"$f":"IFERROR(VLOOKUP('HA1'!$L$19, Summary!$U:$V, 2, FALSE), \"\")","v":"+"},{"$f":"IFERROR(VLOOKUP('HA1'!$L$20, Summary!$U:$V, 2, FALSE), \"\")","v":"?"},{"$f":"IFERROR(VLOOKUP('HA1'!$L$21, Summary!$U:$V, 2, FALSE), \"\")","v":0},{"$f":"IFERROR(VLOOKUP('HA1'!$L$22, Summary!$U:$V, 2, FALSE), \"\")","v":0},{"$f":"IFERROR(VLOOKUP('HA1'!$L$23, Summary!$U:$V, 2, FALSE), \"\")","v":"-"},{"$f":"IFERROR(VLOOKUP('HA1'!$L$24, Summary!$U:$V, 2, FALSE), \"\")","v":"-"},{"$f":"IFERROR(VLOOKUP('HA1'!$L$25, Summary!$U:$V, 2, FALSE), \"\")","v":"-"},{"$f":"IFERROR(VLOOKUP('HA1'!$L$26, Summary!$U:$V, 2, FALSE), \"\")","v":"+"},{"$f":"IFERROR(VLOOKUP('HA1'!$L$27, Summary!$U:$V, 2, FALSE), \"\")","v":"- -"},{"$f":"IFERROR(VLOOKUP('HA1'!$L$28, Summary!$U:$V, 2, FALSE), \"\")","v":"-"},null,"Significant positive","+ +"]
[null,"HA2",{"$f":"IFERROR(VLOOKUP('HA2'!$L$12, Summary!$U:$V, 2, FALSE), \"\")","v":"+"},{"$f":"IFERROR(VLOOKUP('HA2'!$L$13, Summary!$U:$V, 2, FALSE), \"\")","v":"+"},{"$f":"IFERROR(VLOOKUP('HA2'!$L$14, Summary!$U:$V, 2, FALSE), \"\")","v":"+"},{"$f":"IFERROR(VLOOKUP('HA2'!$L$15, Summary!$U:$V, 2, FALSE), \"\")","v":"-"},{"$f":"IFERROR(VLOOKUP('HA2'!$L$16, Summary!$U:$V, 2, FALSE), \"\")","v":"?"},{"$f":"IFERROR(VLOOKUP('HA2'!$L$17, Summary!$U:$V, 2, FALSE), \"\")","v":"+ +"},{"$f":"IFERROR(VLOOKUP('HA2'!$L$18, Summary!$U:$V, 2, FALSE), \"\")","v":"+ +"},{"$f":"IFERROR(VLOOKUP('HA2'!$L$19, Summary!$U:$V, 2, FALSE), \"\")","v":"+"},{"$f":"IFERROR(VLOOKUP('HA2'!$L$20, Summary!$U:$V, 2, FALSE), \"\")","v":"-"},{"$f":"IFERROR(VLOOKUP('HA2'!$L$21, Summary!$U:$V, 2, FALSE), \"\")","v":0},{"$f":"IFERROR(VLOOKUP('HA2'!$L$22, Summary!$U:$V, 2, FALSE), \"\")","v":"-"},{"$f":"IFERROR(VLOOKUP('HA2'!$L$23, Summary!$U:$V, 2, FALSE), \"\")","v":"-"},{"$f":"IFERROR(VLOOKUP('HA2'!$L$24, Summary!$U:$V, 2, FALSE), \"\")","v":"-"},{"$f":"IFERROR(VLOOKUP('HA2'!$L$25, Summary!$U:$V, 2, FALSE), \"\")","v":"-"},{"$f":"IFERROR(VLOOKUP('HA2'!$L$26, Summary!$U:$V, 2, FALSE), \"\")","v":"- -"},{"$f":"IFERROR(VLOOKUP('HA2'!$L$27, Summary!$U:$V, 2, FALSE), \"\")","v":"- -"},{"$f":"IFERROR(VLOOKUP('HA2'!$L$28, Summary!$U:$V, 2, FALSE), \"\")","v":"-"},null,"Minor Positive","+"]
[null,"HA3",{"$f":"IFERROR(VLOOKUP('HA3'!$L$10, Summary!$U:$V, 2, FALSE), \"\")","v":"+ +"},{"$f":"IFERROR(VLOOKUP('HA3'!$L$11, Summary!$U:$V, 2, FALSE), \"\")","v":"+ +"},{"$f":"IFERROR(VLOOKUP('HA3'!$L$12, Summary!$U:$V, 2, FALSE), \"\")","v":"+"},{"$f":"IFERROR(VLOOKUP('HA3'!$L$13, Summary!$U:$V, 2, FALSE), \"\")","v":"+"},{"$f":"IFERROR(VLOOKUP('HA3'!$L$14, Summary!$U:$V, 2, FALSE), \"\")","v":"+"},{"$f":"IFERROR(VLOOKUP('HA3'!$L$15, Summary!$U:$V, 2, FALSE), \"\")","v":"+ +"},{"$f":"IFERROR(VLOOKUP('HA3'!$L$16, Summary!$U:$V, 2, FALSE), \"\")","v":"+ +"},{"$f":"IFERROR(VLOOKUP('HA3'!$L$17, Summary!$U:$V, 2, FALSE), \"\")","v":"+"},{"$f":"IFERROR(VLOOKUP('HA3'!$L$18, Summary!$U:$V, 2, FALSE), \"\")","v":"-"},{"$f":"IFERROR(VLOOKUP('HA3'!$L$19, Summary!$U:$V, 2, FALSE), \"\")","v":0},{"$f":"IFERROR(VLOOKUP('HA3'!$L$20, Summary!$U:$V, 2, FALSE), \"\")","v":0},{"$f":"IFERROR(VLOOKUP('HA3'!$L$21, Summary!$U:$V, 2, FALSE), \"\")","v":"-"},{"$f":"IFERROR(VLOOKUP('HA3'!$L$22, Summary!$U:$V, 2, FALSE), \"\")","v":"-"},{"$f":"IFERROR(VLOOKUP('HA3'!$L$23, Summary!$U:$V, 2, FALSE), \"\")","v":"-"},{"$f":"IFERROR(VLOOKUP('HA3'!$L$24, Summary!$U:$V, 2, FALSE), \"\")","v":"+"},{"$f":"IFERROR(VLOOKUP('HA3'!$L$25, Summary!$U:$V, 2, FALSE), \"\")","v":"- -"},{"$f":"IFERROR(VLOOKUP('HA3'!$L$26, Summary!$U:$V, 2, FALSE), \"\")","v":"-"},null,"Neutral",0]
[null,"HA4",{"$f":"IFERROR(VLOOKUP('HA4'!$L$12, Summary!$U:$V, 2, FALSE), \"\")","v":"+"},{"$f":"IFERROR(VLOOKUP('HA4'!$L$13, Summary!$U:$V, 2, FALSE), \"\")","v":"+"},{"$f":"IFERROR(VLOOKUP('HA4'!$L$14, Summary!$U:$V, 2, FALSE), \"\")","v":"+"},{"$f":"IFERROR(VLOOKUP('HA4'!$L$15, Summary!$U:$V, 2, FALSE), \"\")","v":"+"},{"$f":"IFERROR(VLOOKUP('HA4'!$L$16, Summary!$U:$V, 2, FALSE), \"\")","v":"+"},{"$f":"IFERROR(VLOOKUP('HA4'!$L$17, Summary!$U:$V, 2, FALSE), \"\")","v":"+"},{"$f":"IFERROR(VLOOKUP('HA4'!$L$18, Summary!$U:$V, 2, FALSE), \"\")","v":"+"},{"$f":"IFERROR(VLOOKUP('HA4'!$L$19, Summary!$U:$V, 2, FALSE), \"\")","v":"+"},{"$f":"IFERROR(VLOOKUP('HA4'!$L$20, Summary!$U:$V, 2, FALSE), \"\")","v":"-"},{"$f":"IFERROR(VLOOKUP('HA4'!$L$21, Summary!$U:$V, 2, FALSE), \"\")","v":0},{"$f":"IFERROR(VLOOKUP('HA4'!$L$22, Summary!$U:$V, 2, FALSE), \"\")","v":"+"},{"$f":"IFERROR(VLOOKUP('HA4'!$L$23, Summary!$U:$V, 2, FALSE), \"\")","v":"-"},{"$f":"IFERROR(VLOOKUP('HA4'!$L$24, Summary!$U:$V, 2, FALSE), \"\")","v":"-"},{"$f":"IFERROR(VLOOKUP('HA4'!$L$25, Summary!$U:$V, 2, FALSE), \"\")","v":"-"},{"$f":"IFERROR(VLOOKUP('HA4'!$L$26, Summary!$U:$V, 2, FALSE), \"\")","v":"+"},{"$f":"IFERROR(VLOOKUP('HA4'!$L$27, Summary!$U:$V, 2, FALSE), \"\")","v":"- -"},{"$f":"IFERROR(VLOOKUP('HA4'!$L$28, Summary!$U:$V, 2, FALSE), \"\")","v":"-"},null,"Minor Negative","-"]
[null,"HA5",{"$f":"IFERROR(VLOOKUP('HA5'!$L$12, Summary!$U:$V, 2, FALSE), \"\")","v":"+ +"},{"$f":"IFERROR(VLOOKUP('HA5'!$L$13, Summary!$U:$V, 2, FALSE), \"\")","v":"+"},{"$f":"IFERROR(VLOOKUP('HA5'!$L$14, Summary!$U:$V, 2, FALSE), \"\")","v":"+"},{"$f":"IFERROR(VLOOKUP('HA5'!$L$15, Summary!$U:$V, 2, FALSE), \"\")","v":"+"},{"$f":"IFERROR(VLOOKUP('HA5'!$L$16, Summary!$U:$V, 2, FALSE), \"\")","v":"+"},{"$f":"IFERROR(VLOOKUP('HA5'!$L$17, Summary!$U:$V, 2, FALSE), \"\")","v":"+ +"},{"$f":"IFERROR(VLOOKUP('HA5'!$L$18, Summary!$U:$V, 2, FALSE), \"\")","v":"+ +"},{"$f":"IFERROR(VLOOKUP('HA5'!$L$19, Summary!$U:$V, 2, FALSE), \"\")","v":"+"},{"$f":"IFERROR(VLOOKUP('HA5'!$L$20, Summary!$U:$V, 2, FALSE), \"\")","v":"-"},{"$f":"IFERROR(VLOOKUP('HA5'!$L$21, Summary!$U:$V, 2, FALSE), \"\")","v":"+"},{"$f":"IFERROR(VLOOKUP('HA5'!$L$22, Summary!$U:$V, 2, FALSE), \"\")","v":"-"},{"$f":"IFERROR(VLOOKUP('HA5'!$L$23, Summary!$U:$V, 2, FALSE), \"\")","v":"-"},{"$f":"IFERROR(VLOOKUP('HA5'!$L$24, Summary!$U:$V, 2, FALSE), \"\")","v":"-"},{"$f":"IFERROR(VLOOKUP('HA5'!$L$25, Summary!$U:$V, 2, FALSE), \"\")","v":"-"},{"$f":"IFERROR(VLOOKUP('HA5'!$L$26, Summary!$U:$V, 2, FALSE), \"\")","v":"?"},{"$f":"IFERROR(VLOOKUP('HA5'!$L$27, Summary!$U:$V, 2, FALSE), \"\")","v":"- -"},{"$f":"IFERROR(VLOOKUP('HA5'!$L$28, Summary!$U:$V, 2, FALSE), \"\")","v":"-"},null,"Significant Negative","- -"]
[null,"HA6",{"$f":"IFERROR(VLOOKUP('HA6'!$L$12, Summary!$U:$V, 2, FALSE), \"\")","v":"+ +"},{"$f":"IFERROR(VLOOKUP('HA6'!$L$13, Summary!$U:$V, 2, FALSE), \"\")","v":"?"},{"$f":"IFERROR(VLOOKUP('HA6'!$L$14, Summary!$U:$V, 2, FALSE), \"\")","v":"+"},{"$f":"IFERROR(VLOOKUP('HA6'!$L$15, Summary!$U:$V, 2, FALSE), \"\")","v":"+"},{"$f":"IFERROR(VLOOKUP('HA6'!$L$16, Summary!$U:$V, 2, FALSE), \"\")","v":"+"},{"$f":"IFERROR(VLOOKUP('HA6'!$L$17, Summary!$U:$V, 2, FALSE), \"\")","v":"+ +"},{"$f":"IFERROR(VLOOKUP('HA6'!$L$18, Summary!$U:$V, 2, FALSE), \"\")","v":"+"},{"$f":"IFERROR(VLOOKUP('HA6'!$L$19, Summary!$U:$V, 2, FALSE), \"\")","v":"+"},{"$f":"IFERROR(VLOOKUP('HA6'!$L$20, Summary!$U:$V, 2, FALSE), \"\")","v":"+ +"},{"$f":"IFERROR(VLOOKUP('HA6'!$L$21, Summary!$U:$V, 2, FALSE), \"\")","v":"+"},{"$f":"IFERROR(VLOOKUP('HA6'!$L$22, Summary!$U:$V, 2, FALSE), \"\")","v":"-"},{"$f":"IFERROR(VLOOKUP('HA6'!$L$23, Summary!$U:$V, 2, FALSE), \"\")","v":0},{"$f":"IFERROR(VLOOKUP('HA6'!$L$24, Summary!$U:$V, 2, FALSE), \"\")","v":"+"},{"$f":"IFERROR(VLOOKUP('HA6'!$L$25, Summary!$U:$V, 2, FALSE), \"\")","v":"-"},{"$f":"IFERROR(VLOOKUP('HA6'!$L$26, Summary!$U:$V, 2, FALSE), \"\")","v":"+"},{"$f":"IFERROR(VLOOKUP('HA6'!$L$27, Summary!$U:$V, 2, FALSE), \"\")","v":"+ +"},{"$f":"IFERROR(VLOOKUP('HA6'!$L$28, Summary!$U:$V, 2, FALSE), \"\")","v":"-"},null,"Uncertain","?"]
[null,"HA7",{"$f":"IFERROR(VLOOKUP('HA7'!$L$12, Summary!$U:$V, 2, FALSE), \"\")","v":"+ +"},{"$f":"IFERROR(VLOOKUP('HA7'!$L$13, Summary!$U:$V, 2, FALSE), \"\")","v":"+"},{"$f":"IFERROR(VLOOKUP('HA7'!$L$14, Summary!$U:$V, 2, FALSE), \"\")","v":"+"},{"$f":"IFERROR(VLOOKUP('HA7'!$L$15, Summary!$U:$V, 2, FALSE), \"\")","v":"+"},{"$f":"IFERROR(VLOOKUP('HA7'!$L$16, Summary!$U:$V, 2, FALSE), \"\")","v":"+"},{"$f":"IFERROR(VLOOKUP('HA7'!$L$17, Summary!$U:$V, 2, FALSE), \"\")","v":"+ +"},{"$f":"IFERROR(VLOOKUP('HA7'!$L$18, Summary!$U:$V, 2, FALSE), \"\")","v":"+"},{"$f":"IFERROR(VLOOKUP('HA7'!$L$19, Summary!$U:$V, 2, FALSE), \"\")","v":"+"},{"$f":"IFERROR(VLOOKUP('HA7'!$L$20, Summary!$U:$V, 2, FALSE), \"\")","v":"-"},{"$f":"IFERROR(VLOOKUP('HA7'!$L$21, Summary!$U:$V, 2, FALSE), \"\")","v":0},{"$f":"IFERROR(VLOOKUP('HA7'!$L$22, Summary!$U:$V, 2, FALSE), \"\")","v":"+"},{"$f":"IFERROR(VLOOKUP('HA7'!$L$23, Summary!$U:$V, 2, FALSE), \"\")","v":"-"},{"$f":"IFERROR(VLOOKUP('HA7'!$L$24, Summary!$U:$V, 2, FALSE), \"\")","v":"-"},{"$f":"IFERROR(VLOOKUP('HA7'!$L$25, Summary!$U:$V, 2, FALSE), \"\")","v":"-"},{"$f":"IFERROR(VLOOKUP('HA7'!$L$26, Summary!$U:$V, 2, FALSE), \"\")","v":"+"},{"$f":"IFERROR(VLOOKUP('HA7'!$L$27, Summary!$U:$V, 2, FALSE), \"\")","v":"- -"},{"$f":"IFERROR(VLOOKUP('HA7'!$L$28, Summary!$U:$V, 2, FALSE), \"\")","v":"-"}]
[null,"HA8",{"$f":"IFERROR(VLOOKUP('HA8'!$L$12, Summary!$U:$V, 2, FALSE), \"\")","v":"+"},{"$f":"IFERROR(VLOOKUP('HA8'!$L$13, Summary!$U:$V, 2, FALSE), \"\")","v":"+"},{"$f":"IFERROR(VLOOKUP('HA8'!$L$14, Summary!$U:$V, 2, FALSE), \"\")","v":"+"},{"$f":"IFERROR(VLOOKUP('HA8'!$L$15, Summary!$U:$V, 2, FALSE), \"\")","v":"+"},{"$f":"IFERROR(VLOOKUP('HA8'!$L$16, Summary!$U:$V, 2, FALSE), \"\")","v":"+"},{"$f":"IFERROR(VLOOKUP('HA8'!$L$17, Summary!$U:$V, 2, FALSE), \"\")","v":"+ +"},{"$f":"IFERROR(VLOOKUP('HA8'!$L$18, Summary!$U:$V, 2, FALSE), \"\")","v":"+ +"},{"$f":"IFERROR(VLOOKUP('HA8'!$L$19, Summary!$U:$V, 2, FALSE), \"\")","v":"+"},{"$f":"IFERROR(VLOOKUP('HA8'!$L$20, Summary!$U:$V, 2, FALSE), \"\")","v":"+ +"},{"$f":"IFERROR(VLOOKUP('HA8'!$L$21, Summary!$U:$V, 2, FALSE), \"\")","v":0},{"$f":"IFERROR(VLOOKUP('HA8'!$L$22, Summary!$U:$V, 2, FALSE), \"\")","v":"+"},{"$f":"IFERROR(VLOOKUP('HA8'!$L$23, Summary!$U:$V, 2, FALSE), \"\")","v":"- -"},{"$f":"IFERROR(VLOOKUP('HA8'!$L$24, Summary!$U:$V, 2, FALSE), \"\")","v":"-"},{"$f":"IFERROR(VLOOKUP('HA8'!$L$25, Summary!$U:$V, 2, FALSE), \"\")","v":"-"},{"$f":"IFERROR(VLOOKUP('HA8'!$L$26, Summary!$U:$V, 2, FALSE), \"\")","v":"+"},{"$f":"IFERROR(VLOOKUP('HA8'!$L$27, Summary!$U:$V, 2, FALSE), \"\")","v":"+ +"},{"$f":"IFERROR(VLOOKUP('HA8'!$L$28, Summary!$U:$V, 2, FALSE), \"\")","v":"-"}]
[null,"HA9",{"$f":"IFERROR(VLOOKUP('HA9'!$L$12, Summary!$U:$V, 2, FALSE), \"\")","v":"+"},{"$f":"IFERROR(VLOOKUP('HA9'!$L$13, Summary!$U:$V, 2, FALSE), \"\")","v":"+ +"},{"$f":"IFERROR(VLOOKUP('HA9'!$L$14, Summary!$U:$V, 2, FALSE), \"\")","v":"+"},{"$f":"IFERROR(VLOOKUP('HA9'!$L$15, Summary!$U:$V, 2, FALSE), \"\")","v":"+"},{"$f":"IFERROR(VLOOKUP('HA9'!$L$16, Summary!$U:$V, 2, FALSE), \"\")","v":"+"},{"$f":"IFERROR(VLOOKUP('HA9'!$L$17, Summary!$U:$V, 2, FALSE), \"\")","v":"+"},{"$f":"IFERROR(VLOOKUP('HA9'!$L$18, Summary!$U:$V, 2, FALSE), \"\")","v":"+ +"},{"$f":"IFERROR(VLOOKUP('HA9'!$L$19, Summary!$U:$V, 2, FALSE), \"\")","v":0},{"$f":"IFERROR(VLOOKUP('HA9'!$L$20, Summary!$U:$V, 2, FALSE), \"\")","v":0},{"$f":"IFERROR(VLOOKUP('HA9'!$L$21, Summary!$U:$V, 2, FALSE), \"\")","v":"+"},{"$f":"IFERROR(VLOOKUP('HA9'!$L$22, Summary!$U:$V, 2, FALSE), \"\")","v":"-"},{"$f":"IFERROR(VLOOKUP('HA9'!$L$23, Summary!$U:$V, 2, FALSE), \"\")","v":0},{"$f":"IFERROR(VLOOKUP('HA9'!$L$24, Summary!$U:$V, 2, FALSE), \"\")","v":"?"},{"$f":"IFERROR(VLOOKUP('HA9'!$L$25, Summary!$U:$V, 2, FALSE), \"\")","v":"-"},{"$f":"IFERROR(VLOOKUP('HA9'!$L$26, Summary!$U:$V, 2, FALSE), \"\")","v":"-"},{"$f":"IFERROR(VLOOKUP('HA9'!$L$27, Summary!$U:$V, 2, FALSE), \"\")","v":"+ +"},{"$f":"IFERROR(VLOOKUP('HA9'!$L$28, Summary!$U:$V, 2, FALSE), \"\")","v":"-"}]
[null,"HA10",{"$f":"IFERROR(VLOOKUP('HA10'!$L$12, Summary!$U:$V, 2, FALSE), \"\")","v":"+"},{"$f":"IFERROR(VLOOKUP('HA10'!$L$13, Summary!$U:$V, 2, FALSE), \"\")","v":"+"},{"$f":"IFERROR(VLOOKUP('HA10'!$L$14, Summary!$U:$V, 2, FALSE), \"\")","v":"+"},{"$f":"IFERROR(VLOOKUP('HA10'!$L$15, Summary!$U:$V, 2, FALSE), \"\")","v":"+"},{"$f":"IFERROR(VLOOKUP('HA10'!$L$16, Summary!$U:$V, 2, FALSE), \"\")","v":"?"},{"$f":"IFERROR(VLOOKUP('HA10'!$L$17, Summary!$U:$V, 2, FALSE), \"\")","v":"+"},{"$f":"IFERROR(VLOOKUP('HA10'!$L$18, Summary!$U:$V, 2, FALSE), \"\")","v":"+ +"},{"$f":"IFERROR(VLOOKUP('HA10'!$L$19, Summary!$U:$V, 2, FALSE), \"\")","v":"+"},{"$f":"IFERROR(VLOOKUP('HA10'!$L$20, Summary!$U:$V, 2, FALSE), \"\")","v":"+ +"},{"$f":"IFERROR(VLOOKUP('HA10'!$L$21, Summary!$U:$V, 2, FALSE), \"\")","v":0},{"$f":"IFERROR(VLOOKUP('HA10'!$L$22, Summary!$U:$V, 2, FALSE), \"\")","v":"+"},{"$f":"IFERROR(VLOOKUP('HA10'!$L$23, Summary!$U:$V, 2, FALSE), \"\")","v":"-"},{"$f":"IFERROR(VLOOKUP('HA10'!$L$24, Summary!$U:$V, 2, FALSE), \"\")","v":"?"},{"$f":"IFERROR(VLOOKUP('HA10'!$L$25, Summary!$U:$V, 2, FALSE), \"\")","v":"-"},{"$f":"IFERROR(VLOOKUP('HA10'!$L$26, Summary!$U:$V, 2, FALSE), \"\")","v":"+"},{"$f":"IFERROR(VLOOKUP('HA10'!$L$27, Summary!$U:$V, 2, FALSE), \"\")","v":"+ +"},{"$f":"IFERROR(VLOOKUP('HA10'!$L$28, Summary!$U:$V, 2, FALSE), \"\")","v":"-"}]
[null,"HA11",{"$f":"IFERROR(VLOOKUP('HA11'!$L$12, Summary!$U:$V, 2, FALSE), \"\")","v":"+"},{"$f":"IFERROR(VLOOKUP('HA11'!$L$13, Summary!$U:$V, 2, FALSE), \"\")","v":"+"},{"$f":"IFERROR(VLOOKUP('HA11'!$L$14, Summary!$U:$V, 2, FALSE), \"\")","v":"+"},{"$f":"IFERROR(VLOOKUP('HA11'!$L$15, Summary!$U:$V, 2, FALSE), \"\")","v":"+"},{"$f":"IFERROR(VLOOKUP('HA11'!$L$16, Summary!$U:$V, 2, FALSE), \"\")","v":"?"},{"$f":"IFERROR(VLOOKUP('HA11'!$L$17, Summary!$U:$V, 2, FALSE), \"\")","v":"+"},{"$f":"IFERROR(VLOOKUP('HA11'!$L$18, Summary!$U:$V, 2, FALSE), \"\")","v":"+ +"},{"$f":"IFERROR(VLOOKUP('HA11'!$L$19, Summary!$U:$V, 2, FALSE), \"\")","v":"+"},{"$f":"IFERROR(VLOOKUP('HA11'!$L$20, Summary!$U:$V, 2, FALSE), \"\")","v":"+ +"},{"$f":"IFERROR(VLOOKUP('HA11'!$L$21, Summary!$U:$V, 2, FALSE), \"\")","v":"+"},{"$f":"IFERROR(VLOOKUP('HA11'!$L$22, Summary!$U:$V, 2, FALSE), \"\")","v":"+"},{"$f":"IFERROR(VLOOKUP('HA11'!$L$23, Summary!$U:$V, 2, FALSE), \"\")","v":"-"},{"$f":"IFERROR(VLOOKUP('HA11'!$L$24, Summary!$U:$V, 2, FALSE), \"\")","v":"?"},{"$f":"IFERROR(VLOOKUP('HA11'!$L$25, Summary!$U:$V, 2, FALSE), \"\")","v":"-"},{"$f":"IFERROR(VLOOKUP('HA11'!$L$26, Summary!$U:$V, 2, FALSE), \"\")","v":"+"},{"$f":"IFERROR(VLOOKUP('HA11'!$L$27, Summary!$U:$V, 2, FALSE), \"\")","v":"-"},{"$f":"IFERROR(VLOOKUP('HA11'!$L$28, Summary!$U:$V, 2, FALSE), \"\")","v":"-"}]
[null,"HA12",{"$f":"IFERROR(VLOOKUP('HA12'!$L$12, Summary!$U:$V, 2, FALSE), \"\")","v":"+"},{"$f":"IFERROR(VLOOKUP('HA12'!$L$13, Summary!$U:$V, 2, FALSE), \"\")","v":"?"},{"$f":"IFERROR(VLOOKUP('HA12'!$L$14, Summary!$U:$V, 2, FALSE), \"\")","v":"+"},{"$f":"IFERROR(VLOOKUP('HA12'!$L$15, Summary!$U:$V, 2, FALSE), \"\")","v":0},{"$f":"IFERROR(VLOOKUP('HA12'!$L$16, Summary!$U:$V, 2, FALSE), \"\")","v":"+"},{"$f":"IFERROR(VLOOKUP('HA12'!$L$17, Summary!$U:$V, 2, FALSE), \"\")","v":"+"},{"$f":"IFERROR(VLOOKUP('HA12'!$L$18, Summary!$U:$V, 2, FALSE), \"\")","v":"+"},{"$f":"IFERROR(VLOOKUP('HA12'!$L$19, Summary!$U:$V, 2, FALSE), \"\")","v":"+"},{"$f":"IFERROR(VLOOKUP('HA12'!$L$20, Summary!$U:$V, 2, FALSE), \"\")","v":"+"},{"$f":"IFERROR(VLOOKUP('HA12'!$L$21, Summary!$U:$V, 2, FALSE), \"\")","v":0},{"$f":"IFERROR(VLOOKUP('HA12'!$L$22, Summary!$U:$V, 2, FALSE), \"\")","v":"-"},{"$f":"IFERROR(VLOOKUP('HA12'!$L$23, Summary!$U:$V, 2, FALSE), \"\")","v":"-"},{"$f":"IFERROR(VLOOKUP('HA12'!$L$24, Summary!$U:$V, 2, FALSE), \"\")","v":"?"},{"$f":"IFERROR(VLOOKUP('HA12'!$L$25, Summary!$U:$V, 2, FALSE), \"\")","v":"-"},{"$f":"IFERROR(VLOOKUP('HA12'!$L$26, Summary!$U:$V, 2, FALSE), \"\")","v":"-"},{"$f":"IFERROR(VLOOKUP('HA12'!$L$27, Summary!$U:$V, 2, FALSE), \"\")","v":"- -"},{"$f":"IFERROR(VLOOKUP('HA12'!$L$28, Summary!$U:$V, 2, FALSE), \"\")","v":"-"}]
[null,"HA13",{"$f":"IFERROR(VLOOKUP('HA13'!$L$12, Summary!$U:$V, 2, FALSE), \"\")","v":"+"},{"$f":"IFERROR(VLOOKUP('HA13'!$L$13, Summary!$U:$V, 2, FALSE), \"\")","v":"+"},{"$f":"IFERROR(VLOOKUP('HA13'!$L$14, Summary!$U:$V, 2, FALSE), \"\")","v":"+"},{"$f":"IFERROR(VLOOKUP('HA13'!$L$15, Summary!$U:$V, 2, FALSE), \"\")","v":"-"},{"$f":"IFERROR(VLOOKUP('HA13'!$L$16, Summary!$U:$V, 2, FALSE), \"\")","v":"?"},{"$f":"IFERROR(VLOOKUP('HA13'!$L$17, Summary!$U:$V, 2, FALSE), \"\")","v":"+"},{"$f":"IFERROR(VLOOKUP('HA13'!$L$18, Summary!$U:$V, 2, FALSE), \"\")","v":"-"},{"$f":"IFERROR(VLOOKUP('HA13'!$L$19, Summary!$U:$V, 2, FALSE), \"\")","v":"+"},{"$f":"IFERROR(VLOOKUP('HA13'!$L$20, Summary!$U:$V, 2, FALSE), \"\")","v":"+"},{"$f":"IFERROR(VLOOKUP('HA13'!$L$21, Summary!$U:$V, 2, FALSE), \"\")","v":0},{"$f":"IFERROR(VLOOKUP('HA13'!$L$22, Summary!$U:$V, 2, FALSE), \"\")","v":"+"},{"$f":"IFERROR(VLOOKUP('HA13'!$L$23, Summary!$U:$V, 2, FALSE), \"\")","v":0},{"$f":"IFERROR(VLOOKUP('HA13'!$L$24, Summary!$U:$V, 2, FALSE), \"\")","v":"?"},{"$f":"IFERROR(VLOOKUP('HA13'!$L$25, Summary!$U:$V, 2, FALSE), \"\")","v":"-"},{"$f":"IFERROR(VLOOKUP('HA13'!$L$26, Summary!$U:$V, 2, FALSE), \"\")","v":"+"},{"$f":"IFERROR(VLOOKUP('HA13'!$L$27, Summary!$U:$V, 2, FALSE), \"\")","v":"-"},{"$f":"IFERROR(VLOOKUP('HA13'!$L$28, Summary!$U:$V, 2, FALSE), \"\")","v":"-"}]
[null,"HA14",{"$f":"IFERROR(VLOOKUP('HA14'!$L$12, Summary!$U:$V, 2, FALSE), \"\")","v":"+"},{"$f":"IFERROR(VLOOKUP('HA14'!$L$13, Summary!$U:$V, 2, FALSE), \"\")","v":"+"},{"$f":"IFERROR(VLOOKUP('HA14'!$L$13, Summary!$U:$V, 2, FALSE), \"\")","v":"+"},{"$f":"IFERROR(VLOOKUP('HA14'!$L$15, Summary!$U:$V, 2, FALSE), \"\")","v":"+"},{"$f":"IFERROR(VLOOKUP('HA14'!$L$16, Summary!$U:$V, 2, FALSE), \"\")","v":"?"},{"$f":"IFERROR(VLOOKUP('HA14'!$L$17, Summary!$U:$V, 2, FALSE), \"\")","v":"+"},{"$f":"IFERROR(VLOOKUP('HA14'!$L$18, Summary!$U:$V, 2, FALSE), \"\")","v":"+ +"},{"$f":"IFERROR(VLOOKUP('HA14'!$L$19, Summary!$U:$V, 2, FALSE), \"\")","v":"+"},{"$f":"IFERROR(VLOOKUP('HA14'!$L$20, Summary!$U:$V, 2, FALSE), \"\")","v":"+ +"},{"$f":"IFERROR(VLOOKUP('HA14'!$L$21, Summary!$U:$V, 2, FALSE), \"\")","v":0},{"$f":"IFERROR(VLOOKUP('HA14'!$L$22, Summary!$U:$V, 2, FALSE), \"\")","v":"-"},{"$f":"IFERROR(VLOOKUP('HA14'!$L$23, Summary!$U:$V, 2, FALSE), \"\")","v":"?"},{"$f":"IFERROR(VLOOKUP('HA14'!$L$24, Summary!$U:$V, 2, FALSE), \"\")","v":"?"},{"$f":"IFERROR(VLOOKUP('HA14'!$L$25, Summary!$U:$V, 2, FALSE), \"\")","v":"-"},{"$f":"IFERROR(VLOOKUP('HA14'!$L$26, Summary!$U:$V, 2, FALSE), \"\")","v":"-"},{"$f":"IFERROR(VLOOKUP('HA14'!$L$27, Summary!$U:$V, 2, FALSE), \"\")","v":"+ +"},{"$f":"IFERROR(VLOOKUP('HA14'!$L$28, Summary!$U:$V, 2, FALSE), \"\")","v":"-"}]
[null,"HA15",{"$f":"IFERROR(VLOOKUP('HA15'!$L$12, Summary!$U:$V, 2, FALSE), \"\")","v":"+"},{"$f":"IFERROR(VLOOKUP('HA15'!$L$13, Summary!$U:$V, 2, FALSE), \"\")","v":"+"},{"$f":"IFERROR(VLOOKUP('HA15'!$L$13, Summary!$U:$V, 2, FALSE), \"\")","v":"+"},{"$f":"IFERROR(VLOOKUP('HA15'!$L$15, Summary!$U:$V, 2, FALSE), \"\")","v":"+"},{"$f":"IFERROR(VLOOKUP('HA15'!$L$16, Summary!$U:$V, 2, FALSE), \"\")","v":"?"},{"$f":"IFERROR(VLOOKUP('HA15'!$L$17, Summary!$U:$V, 2, FALSE), \"\")","v":"+"},{"$f":"IFERROR(VLOOKUP('HA15'!$L$18, Summary!$U:$V, 2, FALSE), \"\")","v":"+ +"},{"$f":"IFERROR(VLOOKUP('HA15'!$L$19, Summary!$U:$V, 2, FALSE), \"\")","v":"+"},{"$f":"IFERROR(VLOOKUP('HA15'!$L$20, Summary!$U:$V, 2, FALSE), \"\")","v":"+ +"},{"$f":"IFERROR(VLOOKUP('HA15'!$L$21, Summary!$U:$V, 2, FALSE), \"\")","v":"+"},{"$f":"IFERROR(VLOOKUP('HA15'!$L$22, Summary!$U:$V, 2, FALSE), \"\")","v":"-"},{"$f":"IFERROR(VLOOKUP('HA15'!$L$23, Summary!$U:$V, 2, FALSE), \"\")","v":0},{"$f":"IFERROR(VLOOKUP('HA15'!$L$24, Summary!$U:$V, 2, FALSE), \"\")","v":"?"},{"$f":"IFERROR(VLOOKUP('HA15'!$L$25, Summary!$U:$V, 2, FALSE), \"\")","v":"-"},{"$f":"IFERROR(VLOOKUP('HA15'!$L$26, Summary!$U:$V, 2, FALSE), \"\")","v":"-"},{"$f":"IFERROR(VLOOKUP('HA15'!$L$27, Summary!$U:$V, 2, FALSE), \"\")","v":"+ +"},{"$f":"IFERROR(VLOOKUP('HA15'!$L$28, Summary!$U:$V, 2, FALSE), \"\")","v":"-"}]
[null,"HA16",{"$f":"IFERROR(VLOOKUP('HA16'!$L$12, Summary!$U:$V, 2, FALSE), \"\")","v":"+"},{"$f":"IFERROR(VLOOKUP('HA16'!$L$13, Summary!$U:$V, 2, FALSE), \"\")","v":"+"},{"$f":"IFERROR(VLOOKUP('HA16'!$L$13, Summary!$U:$V, 2, FALSE), \"\")","v":"+"},{"$f":"IFERROR(VLOOKUP('HA16'!$L$15, Summary!$U:$V, 2, FALSE), \"\")","v":"+"},{"$f":"IFERROR(VLOOKUP('HA16'!$L$16, Summary!$U:$V, 2, FALSE), \"\")","v":"?"},{"$f":"IFERROR(VLOOKUP('HA16'!$L$17, Summary!$U:$V, 2, FALSE), \"\")","v":"+"},{"$f":"IFERROR(VLOOKUP('HA16'!$L$18, Summary!$U:$V, 2, FALSE), \"\")","v":"+ +"},{"$f":"IFERROR(VLOOKUP('HA16'!$L$19, Summary!$U:$V, 2, FALSE), \"\")","v":"+"},{"$f":"IFERROR(VLOOKUP('HA16'!$L$20, Summary!$U:$V, 2, FALSE), \"\")","v":"+ +"},{"$f":"IFERROR(VLOOKUP('HA16'!$L$21, Summary!$U:$V, 2, FALSE), \"\")","v":"+"},{"$f":"IFERROR(VLOOKUP('HA16'!$L$22, Summary!$U:$V, 2, FALSE), \"\")","v":"+"},{"$f":"IFERROR(VLOOKUP('HA16'!$L$23, Summary!$U:$V, 2, FALSE), \"\")","v":"-"},{"$f":"IFERROR(VLOOKUP('HA16'!$L$24, Summary!$U:$V, 2, FALSE), \"\")","v":"?"},{"$f":"IFERROR(VLOOKUP('HA16'!$L$25, Summary!$U:$V, 2, FALSE), \"\")","v":"-"},{"$f":"IFERROR(VLOOKUP('HA16'!$L$26, Summary!$U:$V, 2, FALSE), \"\")","v":"+"},{"$f":"IFERROR(VLOOKUP('HA16'!$L$27, Summary!$U:$V, 2, FALSE), \"\")","v":"+ +"},{"$f":"IFERROR(VLOOKUP('HA16'!$L$28, Summary!$U:$V, 2, FALSE), \"\")","v":"-"}]
[null,"HA17",{"$f":"IFERROR(VLOOKUP('HA17'!$L$12, Summary!$U:$V, 2, FALSE), \"\")","v":"+"},{"$f":"IFERROR(VLOOKUP('HA17'!$L$13, Summary!$U:$V, 2, FALSE), \"\")","v":"-"},{"$f":"IFERROR(VLOOKUP('HA17'!$L$13, Summary!$U:$V, 2, FALSE), \"\")","v":"-"},{"$f":"IFERROR(VLOOKUP('HA17'!$L$15, Summary!$U:$V, 2, FALSE), \"\")","v":"+"},{"$f":"IFERROR(VLOOKUP('HA17'!$L$16, Summary!$U:$V, 2, FALSE), \"\")","v":"?"},{"$f":"IFERROR(VLOOKUP('HA17'!$L$17, Summary!$U:$V, 2, FALSE), \"\")","v":"+ +"},{"$f":"IFERROR(VLOOKUP('HA17'!$L$18, Summary!$U:$V, 2, FALSE), \"\")","v":"-"},{"$f":"IFERROR(VLOOKUP('HA17'!$L$20, Summary!$U:$V, 2, FALSE), \"\")","v":"-"},{"$f":"IFERROR(VLOOKUP('HA17'!$L$20, Summary!$U:$V, 2, FALSE), \"\")","v":"-"},{"$f":"IFERROR(VLOOKUP('HA17'!$L$21, Summary!$U:$V, 2, FALSE), \"\")","v":"-"},{"$f":"IFERROR(VLOOKUP('HA17'!$L$22, Summary!$U:$V, 2, FALSE), \"\")","v":"-"},{"$f":"IFERROR(VLOOKUP('HA17'!$L$23, Summary!$U:$V, 2, FALSE), \"\")","v":0},{"$f":"IFERROR(VLOOKUP('HA17'!$L$24, Summary!$U:$V, 2, FALSE), \"\")","v":"?"},{"$f":"IFERROR(VLOOKUP('HA17'!$L$25, Summary!$U:$V, 2, FALSE), \"\")","v":"-"},{"$f":"IFERROR(VLOOKUP('HA17'!$L$26, Summary!$U:$V, 2, FALSE), \"\")","v":"-"},{"$f":"IFERROR(VLOOKUP('HA17'!$L$27, Summary!$U:$V, 2, FALSE), \"\")","v":"-"},{"$f":"IFERROR(VLOOKUP('HA17'!$L$28, Summary!$U:$V, 2, FALSE), \"\")","v":"-"}]
[null,"CC4",{"$f":"IFERROR(VLOOKUP('CC4'!$L$12, Summary!$U:$V, 2, FALSE), \"\")","v":"+ +"},{"$f":"IFERROR(VLOOKUP('CC4'!$L$13, Summary!$U:$V, 2, FALSE), \"\")","v":"+ +"},{"$f":"IFERROR(VLOOKUP('CC4'!$L$13, Summary!$U:$V, 2, FALSE), \"\")","v":"+ +"},{"$f":"IFERROR(VLOOKUP('CC4'!$L$15, Summary!$U:$V, 2, FALSE), \"\")","v":"+ +"},{"$f":"IFERROR(VLOOKUP('CC4'!$L$16, Summary!$U:$V, 2, FALSE), \"\")","v":"+"},{"$f":"IFERROR(VLOOKUP('CC4'!$L$17, Summary!$U:$V, 2, FALSE), \"\")","v":"+ +"},{"$f":"IFERROR(VLOOKUP('CC4'!$L$18, Summary!$U:$V, 2, FALSE), \"\")","v":"+ +"},{"$f":"IFERROR(VLOOKUP('CC4'!$L$19, Summary!$U:$V, 2, FALSE), \"\")","v":"+"},{"$f":"IFERROR(VLOOKUP('CC4'!$L$20, Summary!$U:$V, 2, FALSE), \"\")","v":"?"},{"$f":"IFERROR(VLOOKUP('CC14'!$L$21, Summary!$U:$V, 2, FALSE), \"\")","v":"+"},{"$f":"IFERROR(VLOOKUP('CC4'!$L$22, Summary!$U:$V, 2, FALSE), \"\")","v":"+"},{"$f":"IFERROR(VLOOKUP('CC4'!$L$23, Summary!$U:$V, 2, FALSE), \"\")","v":"-"},{"$f":"IFERROR(VLOOKUP('CC4'!$L$24, Summary!$U:$V, 2, FALSE), \"\")","v":"?"},{"$f":"IFERROR(VLOOKUP('CC4'!$L$25, Summary!$U:$V, 2, FALSE), \"\")","v":"-"},{"$f":"IFERROR(VLOOKUP('CC4'!$L$26, Summary!$U:$V, 2, FALSE), \"\")","v":"+"},{"$f":"IFERROR(VLOOKUP('CC4'!$L$27, Summary!$U:$V, 2, FALSE), \"\")","v":"+ +"},{"$f":"IFERROR(VLOOKUP('CC4'!$L$28, Summary!$U:$V, 2, FALSE), \"\")","v":"-"}]
[null,"CC5",{"$f":"IFERROR(VLOOKUP('CC5'!$L$12, Summary!$U:$V, 2, FALSE), \"\")","v":"+ +"},{"$f":"IFERROR(VLOOKUP('CC5'!$L$13, Summary!$U:$V, 2, FALSE), \"\")","v":"+ +"},{"$f":"IFERROR(VLOOKUP('CC5'!$L$13, Summary!$U:$V, 2, FALSE), \"\")","v":"+ +"},{"$f":"IFERROR(VLOOKUP('CC5'!$L$15, Summary!$U:$V, 2, FALSE), \"\")","v":"+ +"},{"$f":"IFERROR(VLOOKUP('CC5'!$L$16, Summary!$U:$V, 2, FALSE), \"\")","v":"+"},{"$f":"IFERROR(VLOOKUP('CC5'!$L$17, Summary!$U:$V, 2, FALSE), \"\")","v":0},{"$f":"IFERROR(VLOOKUP('CC5'!$L$18, Summary!$U:$V, 2, FALSE), \"\")","v":"+ +"},{"$f":"IFERROR(VLOOKUP('CC5'!$L$19, Summary!$U:$V, 2, FALSE), \"\")","v":0},{"$f":"IFERROR(VLOOKUP('CC5'!$L$20, Summary!$U:$V, 2, FALSE), \"\")","v":"+ +"},{"$f":"IFERROR(VLOOKUP('CC5'!$L$21, Summary!$U:$V, 2, FALSE), \"\")","v":"+"},{"$f":"IFERROR(VLOOKUP('CC5'!$L$22, Summary!$U:$V, 2, FALSE), \"\")","v":"-"},{"$f":"IFERROR(VLOOKUP('CC5'!$L$23, Summary!$U:$V, 2, FALSE), \"\")","v":"- -"},{"$f":"IFERROR(VLOOKUP('CC5'!$L$24, Summary!$U:$V, 2, FALSE), \"\")","v":"-"},{"$f":"IFERROR(VLOOKUP('CC5'!$L$25, Summary!$U:$V, 2, FALSE), \"\")","v":"-"},{"$f":"IFERROR(VLOOKUP('CC5'!$L$26, Summary!$U:$V, 2, FALSE), \"\")","v":"+"},{"$f":"IFERROR(VLOOKUP('CC5'!$L$27, Summary!$U:$V, 2, FALSE), \"\")","v":"+ +"},{"$f":"IFERROR(VLOOKUP('CC5'!$L$28, Summary!$U:$V, 2, FALSE), \"\")","v":"+"}]
[null,"CC12",{"$f":"IFERROR(VLOOKUP('CC12'!$L$12, Summary!$U:$V, 2, FALSE), \"\")","v":"+ +"},{"$f":"IFERROR(VLOOKUP('CC12'!$L$13, Summary!$U:$V, 2, FALSE), \"\")","v":"+ +"},{"$f":"IFERROR(VLOOKUP('CC12'!$L$13, Summary!$U:$V, 2, FALSE), \"\")","v":"+ +"},{"$f":"IFERROR(VLOOKUP('CC12'!$L$15, Summary!$U:$V, 2, FALSE), \"\")","v":"+ +"},{"$f":"IFERROR(VLOOKUP('CC12'!$L$16, Summary!$U:$V, 2, FALSE), \"\")","v":"+"},{"$f":"IFERROR(VLOOKUP('CC12'!$L$17, Summary!$U:$V, 2, FALSE), \"\")","v":"+ +"},{"$f":"IFERROR(VLOOKUP('CC12'!$L$18, Summary!$U:$V, 2, FALSE), \"\")","v":"+ +"},{"$f":"IFERROR(VLOOKUP('CC12'!$L$19, Summary!$U:$V, 2, FALSE), \"\")","v":"+ +"},{"$f":"IFERROR(VLOOKUP('CC12'!$L$20, Summary!$U:$V, 2, FALSE), \"\")","v":"+ +"},{"$f":"IFERROR(VLOOKUP('CC12'!$L$21, Summary!$U:$V, 2, FALSE), \"\")","v":"?"},{"$f":"IFERROR(VLOOKUP('CC12'!$L$22, Summary!$U:$V, 2, FALSE), \"\")","v":"-"},{"$f":"IFERROR(VLOOKUP('CC12'!$L$23, Summary!$U:$V, 2, FALSE), \"\")","v":"?"},{"$f":"IFERROR(VLOOKUP('CC12'!$L$24, Summary!$U:$V, 2, FALSE), \"\")","v":"?"},{"$f":"IFERROR(VLOOKUP('CC12'!$L$25, Summary!$U:$V, 2, FALSE), \"\")","v":"-"},{"$f":"IFERROR(VLOOKUP('CC12'!$L$26, Summary!$U:$V, 2, FALSE), \"\")","v":"+ +"},{"$f":"IFERROR(VLOOKUP('CC12'!$L$27, Summary!$U:$V, 2, FALSE), \"\")","v":"+ +"},{"$f":"IFERROR(VLOOKUP('CC12'!$L$28, Summary!$U:$V, 2, FALSE), \"\")","v":"-"}]
[null,"CC13",{"$f":"IFERROR(VLOOKUP('CC13'!$L$12, Summary!$U:$V, 2, FALSE), \"\")","v":"+ +"},{"$f":"IFERROR(VLOOKUP('CC13'!$L$13, Summary!$U:$V, 2, FALSE), \"\")","v":"+"},{"$f":"IFERROR(VLOOKUP('CC13'!$L$13, Summary!$U:$V, 2, FALSE), \"\")","v":"+"},{"$f":"IFERROR(VLOOKUP('CC13'!$L$15, Summary!$U:$V, 2, FALSE), \"\")","v":"+ +"},{"$f":"IFERROR(VLOOKUP('CC13'!$L$16, Summary!$U:$V, 2, FALSE), \"\")","v":"+"},{"$f":"IFERROR(VLOOKUP('CC13'!$L$17, Summary!$U:$V, 2, FALSE), \"\")","v":"?"},{"$f":"IFERROR(VLOOKUP('CC13'!$L$18, Summary!$U:$V, 2, FALSE), \"\")","v":"+"},{"$f":"IFERROR(VLOOKUP('CC13'!$L$19, Summary!$U:$V, 2, FALSE), \"\")","v":"+"},{"$f":"IFERROR(VLOOKUP('CC13'!$L$20, Summary!$U:$V, 2, FALSE), \"\")","v":"+ +"},{"$f":"IFERROR(VLOOKUP('CC13'!$L$21, Summary!$U:$V, 2, FALSE), \"\")","v":"?"},{"$f":"IFERROR(VLOOKUP('CC13'!$L$22, Summary!$U:$V, 2, FALSE), \"\")","v":"+"},{"$f":"IFERROR(VLOOKUP('CC13'!$L$23, Summary!$U:$V, 2, FALSE), \"\")","v":"- -"},{"$f":"IFERROR(VLOOKUP('CC13'!$L$24, Summary!$U:$V, 2, FALSE), \"\")","v":"-"},{"$f":"IFERROR(VLOOKUP('CC13'!$L$25, Summary!$U:$V, 2, FALSE), \"\")","v":"-"},{"$f":"IFERROR(VLOOKUP('CC13'!$L$26, Summary!$U:$V, 2, FALSE), \"\")","v":"+ +"},{"$f":"IFERROR(VLOOKUP('CC13'!$L$27, Summary!$U:$V, 2, FALSE), \"\")","v":"+ +"},{"$f":"IFERROR(VLOOKUP('CC13'!$L$28, Summary!$U:$V, 2, FALSE), \"\")","v":"+"}]
[null,"CC14",{"$f":"IFERROR(VLOOKUP('CC14'!$L$12, Summary!$U:$V, 2, FALSE), \"\")","v":"+"},{"$f":"IFERROR(VLOOKUP('CC14'!$L$13, Summary!$U:$V, 2, FALSE), \"\")","v":"+"},{"$f":"IFERROR(VLOOKUP('CC14'!$L$13, Summary!$U:$V, 2, FALSE), \"\")","v":"+"},{"$f":"IFERROR(VLOOKUP('CC14'!$L$15, Summary!$U:$V, 2, FALSE), \"\")","v":"+ +"},{"$f":"IFERROR(VLOOKUP('CC14'!$L$16, Summary!$U:$V, 2, FALSE), \"\")","v":"+"},{"$f":"IFERROR(VLOOKUP('CC14'!$L$17, Summary!$U:$V, 2, FALSE), \"\")","v":"+ +"},{"$f":"IFERROR(VLOOKUP('CC14'!$L$18, Summary!$U:$V, 2, FALSE), \"\")","v":"+ +"},{"$f":"IFERROR(VLOOKUP('CC14'!$L$19, Summary!$U:$V, 2, FALSE), \"\")","v":"+"},{"$f":"IFERROR(VLOOKUP('CC14'!$L$20, Summary!$U:$V, 2, FALSE), \"\")","v":"+ +"},{"$f":"IFERROR(VLOOKUP('CC14'!$L$21, Summary!$U:$V, 2, FALSE), \"\")","v":"+"},{"$f":"IFERROR(VLOOKUP('CC14'!$L$22, Summary!$U:$V, 2, FALSE), \"\")","v":"-"},{"$f":"IFERROR(VLOOKUP('CC14'!$L$23, Summary!$U:$V, 2, FALSE), \"\")","v":"- -"},{"$f":"IFERROR(VLOOKUP('CC14'!$L$24, Summary!$U:$V, 2, FALSE), \"\")","v":"-"},{"$f":"IFERROR(VLOOKUP('CC14'!$L$25, Summary!$U:$V, 2, FALSE), \"\")","v":"+"},{"$f":"IFERROR(VLOOKUP('CC14'!$L$26, Summary!$U:$V, 2, FALSE), \"\")","v":"+ +"},{"$f":"IFERROR(VLOOKUP('CC14'!$L$27, Summary!$U:$V, 2, FALSE), \"\")","v":"-"},{"$f":"IFERROR(VLOOKUP('CC14'!$L$28, Summary!$U:$V, 2, FALSE), \"\")","v":"-"}]
[null,"CC15",{"$f":"IFERROR(VLOOKUP('CC15'!$L$12, Summary!$U:$V, 2, FALSE), \"\")","v":"+"},{"$f":"IFERROR(VLOOKUP('CC15'!$L$13, Summary!$U:$V, 2, FALSE), \"\")","v":"+"},{"$f":"IFERROR(VLOOKUP('CC15'!$L$13, Summary!$U:$V, 2, FALSE), \"\")","v":"+"},{"$f":"IFERROR(VLOOKUP('CC15'!$L$15, Summary!$U:$V, 2, FALSE), \"\")","v":"+ +"},{"$f":"IFERROR(VLOOKUP('CC15'!$L$16, Summary!$U:$V, 2, FALSE), \"\")","v":"+"},{"$f":"IFERROR(VLOOKUP('CC15'!$L$17, Summary!$U:$V, 2, FALSE), \"\")","v":"+ +"},{"$f":"IFERROR(VLOOKUP('CC15'!$L$18, Summary!$U:$V, 2, FALSE), \"\")","v":"+ +"},{"$f":"IFERROR(VLOOKUP('CC15'!$L$19, Summary!$U:$V, 2, FALSE), \"\")","v":"+"},{"$f":"IFERROR(VLOOKUP('CC15'!$L$20, Summary!$U:$V, 2, FALSE), \"\")","v":"+ +"},{"$f":"IFERROR(VLOOKUP('CC15'!$L$21, Summary!$U:$V, 2, FALSE), \"\")","v":"?"},{"$f":"IFERROR(VLOOKUP('CC15'!$L$22, Summary!$U:$V, 2, FALSE), \"\")","v":"-"},{"$f":"IFERROR(VLOOKUP('CC15'!$L$23, Summary!$U:$V, 2, FALSE), \"\")","v":"- -"},{"$f":"IFERROR(VLOOKUP('CC15'!$L$24, Summary!$U:$V, 2, FALSE), \"\")","v":"-"},{"$f":"IFERROR(VLOOKUP('CC15'!$L$25, Summary!$U:$V, 2, FALSE), \"\")","v":"+"},{"$f":"IFERROR(VLOOKUP('CC15'!$L$26, Summary!$U:$V, 2, FALSE), \"\")","v":"+ +"},{"$f":"IFERROR(VLOOKUP('CC15'!$L$27, Summary!$U:$V, 2, FALSE), \"\")","v":"+ +"},{"$f":"IFERROR(VLOOKUP('CC15'!$L$28, Summary!$U:$V, 2, FALSE), \"\")","v":"-"}]
[null,"E5",{"$f":"IFERROR(VLOOKUP('E5'!$L$12, Summary!$U:$V, 2, FALSE), \"\")","v":"+"},{"$f":"IFERROR(VLOOKUP('E5'!$L$13, Summary!$U:$V, 2, FALSE), \"\")","v":"+ +"},{"$f":"IFERROR(VLOOKUP('E5'!$L$14, Summary!$U:$V, 2, FALSE), \"\")","v":"+ +"},{"$f":"IFERROR(VLOOKUP('E5'!$L$15, $U:$V, 2, FALSE), \"\")","v":"+ +"},{"$f":"IFERROR(VLOOKUP('E5'!$L$16, $U:$V, 2, FALSE), \"\")","v":"+"},{"$f":"IFERROR(VLOOKUP('E5'!$L$17, $U:$V, 2, FALSE), \"\")","v":0},{"$f":"IFERROR(VLOOKUP('E5'!$L$18, $U:$V, 2, FALSE), \"\")","v":0},{"$f":"IFERROR(VLOOKUP('E5'!$L$19, $U:$V, 2, FALSE), \"\")","v":"+"},{"$f":"IFERROR(VLOOKUP('E5'!$L$20, $U:$V, 2, FALSE), \"\")","v":"?"},{"$f":"IFERROR(VLOOKUP('E5'!$L$21, $U:$V, 2, FALSE), \"\")","v":0},{"$f":"IFERROR(VLOOKUP('E5'!$L$22, $U:$V, 2, FALSE), \"\")","v":0},{"$f":"IFERROR(VLOOKUP('E5'!$L$23, $U:$V, 2, FALSE), \"\")","v":"-"},{"$f":"IFERROR(VLOOKUP('E5'!$L$24, $U:$V, 2, FALSE), \"\")","v":"+"},{"$f":"IFERROR(VLOOKUP('E5'!$L$25, $U:$V, 2, FALSE), \"\")","v":"-"},{"$f":"IFERROR(VLOOKUP('E5'!$L$26, $U:$V, 2, FALSE), \"\")","v":"+"},{"$f":"IFERROR(VLOOKUP('E5'!$L$27, $U:$V, 2, FALSE), \"\")","v":"- -"},{"$f":"IFERROR(VLOOKUP('E5'!$L$28, Summary!$U:$V, 2, FALSE), \"\")","v":"-"}]
[null,"E6",{"$f":"IFERROR(VLOOKUP('E6'!$L$12, Summary!$U:$V, 2, FALSE), \"\")","v":"+"},{"$f":"IFERROR(VLOOKUP('E6'!$L$13, Summary!$U:$V, 2, FALSE), \"\")","v":"+"},{"$f":"IFERROR(VLOOKUP('E6'!$L$14, Summary!$U:$V, 2, FALSE), \"\")","v":"+ +"},{"$f":"IFERROR(VLOOKUP('E6'!$L$15, $U:$V, 2, FALSE), \"\")","v":"+ +"},{"$f":"IFERROR(VLOOKUP('E6'!$L$16, $U:$V, 2, FALSE), \"\")","v":"+"},{"$f":"IFERROR(VLOOKUP('E6'!$L$17, $U:$V, 2, FALSE), \"\")","v":0},{"$f":"IFERROR(VLOOKUP('E6'!$L$18, $U:$V, 2, FALSE), \"\")","v":0},{"$f":"IFERROR(VLOOKUP('E6'!$L$19, $U:$V, 2, FALSE), \"\")","v":"+"},{"$f":"IFERROR(VLOOKUP('E6'!$L$20, $U:$V, 2, FALSE), \"\")","v":"+"},{"$f":"IFERROR(VLOOKUP('E6'!$L$21, $U:$V, 2, FALSE), \"\")","v":0},{"$f":"IFERROR(VLOOKUP('E6'!$L$22, $U:$V, 2, FALSE), \"\")","v":0},{"$f":"IFERROR(VLOOKUP('E6'!$L$23, $U:$V, 2, FALSE), \"\")","v":"- -"},{"$f":"IFERROR(VLOOKUP('E6'!$L$24, $U:$V, 2, FALSE), \"\")","v":"?"},{"$f":"IFERROR(VLOOKUP('E6'!$L$25, $U:$V, 2, FALSE), \"\")","v":"-"},{"$f":"IFERROR(VLOOKUP('E6'!$L$26, $U:$V, 2, FALSE), \"\")","v":"+"},{"$f":"IFERROR(VLOOKUP('E6'!$L$27, $U:$V, 2, FALSE), \"\")","v":"+"},{"$f":"IFERROR(VLOOKUP('E6'!$L$28, Summary!$U:$V, 2, FALSE), \"\")","v":"-"}]
[null,"E7",{"$f":"IFERROR(VLOOKUP('E7'!$L$12, Summary!$U:$V, 2, FALSE), \"\")","v":"+"},{"$f":"IFERROR(VLOOKUP('E7'!$L$13, Summary!$U:$V, 2, FALSE), \"\")","v":"+"},{"$f":"IFERROR(VLOOKUP('E7'!$L$14, Summary!$U:$V, 2, FALSE), \"\")","v":"+ +"},{"$f":"IFERROR(VLOOKUP('E7'!$L$15, Summary!$U:$V, 2, FALSE), \"\")","v":"+"},{"$f":"IFERROR(VLOOKUP('E7'!$L$16, Summary!$U:$V, 2, FALSE), \"\")","v":"+"},{"$f":"IFERROR(VLOOKUP('E7'!$L$17, Summary!$U:$V, 2, FALSE), \"\")","v":0},{"$f":"IFERROR(VLOOKUP('E7'!$L$18, Summary!$U:$V, 2, FALSE), \"\")","v":0},{"$f":"IFERROR(VLOOKUP('E7'!$L$19, Summary!$U:$V, 2, FALSE), \"\")","v":"+"},{"$f":"IFERROR(VLOOKUP('E7'!$L$20, Summary!$U:$V, 2, FALSE), \"\")","v":"+"},{"$f":"IFERROR(VLOOKUP('E7'!$L$21, Summary!$U:$V, 2, FALSE), \"\")","v":0},{"$f":"IFERROR(VLOOKUP('E7'!$L$22, Summary!$U:$V, 2, FALSE), \"\")","v":0},{"$f":"IFERROR(VLOOKUP('E7'!$L$23, Summary!$U:$V, 2, FALSE), \"\")","v":"- -"},{"$f":"IFERROR(VLOOKUP('E7'!$L$24, Summary!$U:$V, 2, FALSE), \"\")","v":"?"},{"$f":"IFERROR(VLOOKUP('E7'!$L$25, Summary!$U:$V, 2, FALSE), \"\")","v":"-"},{"$f":"IFERROR(VLOOKUP('E7'!$L$26, Summary!$U:$V, 2, FALSE), \"\")","v":"+"},{"$f":"IFERROR(VLOOKUP('E7'!$L$27, Summary!$U:$V, 2, FALSE), \"\")","v":"+"},{"$f":"IFERROR(VLOOKUP('E7'!$L$28, Summary!$U:$V, 2, FALSE), \"\")","v":"-"}]

{"sheet":"HA1","index":6,"n_rows":28,"n_cols":16,"rows_kept":28,"cut":false,"hidden":false,"merged":[[9,0,9,1],[9,2,9,5],[9,6,9,15]]}
["Site Name","Rykneld Road, Littleover"]
["Site Address"]
["Town/Locality"]
["Est Housing Yield/Employment Space","800 homes"]
["Site Area (ha)"]
["Site Description"]
["Greenfield/Brownfield","Greenfield"]
["Assumptions Made"]
[]
["SA Framework",null,"GIS Inputs",null,null,null,"SA  Assessment"]
["SA objective","Supporting Questions","GIS Data Available?","R","A","G","Direct/\nIndirect","Magnitude","Duration","Spatial Extent","Permanence/ Reversibility","Significance","Description of potential effects","Potential for cumulative effects? ","Mitigation","Enhancements"]
["SA1: Population and Equalities\nTo build inclusive communities by reducing social exclusion, reducing deprivation, promoting equity, equality and respecting diversity, improving local accessibility to healthcare, education, employment, retail facilities and recreational resources (including open spaces and sports facilities).  ","Will the policy or proposal:\n•\tHelp to reduce deprivation and the inequality gap?\n•\tEnsure all residents have equitable access to health services?\n•\tConsider the needs of an aging population?\n•\tEnsure new housing is well related located, close to a range of services such as shops, schools and employment opportunities?\n•\tImprove opportunities for active travel including walking and cycling?\n•\tEnsure everyone has access to high quality open space and recreation facilities?\n•\tProtect community facilities and improve access to important local services for the most deprived?","Yes",0,1,2,"Direct","High","Long(20+yrs)","Regional","Permanent/Irreversible","Significant Positive","The site is anticipated to provide 800 new homes, however the provision of affordable and adaptable homes is currently uncertain. In addition, there is anticipated to be new education and retail and community facilities developed at the site. The site has good access to existing community facilities and will likely reduce levels of inequalities and provide new facilities, which will help support current and future populations.","Yes","N/A","N/A"]
["SA2: Human Health\nTo improve health and wellbeing and reduce health inequalities, improving quality of life for all.","Will the policy or proposal:\n•\tHelp to improve health and reduce health inequalities?\n•\tContribute to healthy lifestyles?\n•\tEncourage walking, cycling and a reduction in private car use?\n•\tHelp to ensure health services are provided alongside development?\n•\tProtect existing services?","Yes",3,1,1,"Direct","High","Long(20+yrs)","Regional","Permanent/Irreversible","Significant Positive","As well as housing, the site requirements includes new education, community and retail opportunities. The site is well located close to existing areas of open space and the development requirements will ensure active travel routes are provided within the development, linking to the wider network. Development of the site is anticipated to reduce health inequalities and produce new facilities which will improve physical and mental health and wellbeing, meeting the needs of all groups both now and in the future.","Yes","N/A","Further assessment as part of scheme design should be undertaken, to evaluate the provision of new education facilities and ensure that supply is sufficient to support new communities."]
["SA3: Economy\nTo deliver economic growth and support the creation of new and retention of existing businesses.","Will the policy or proposal:\n•\tSupport the growth of higher skilled economic sectors? \n•\tProvide new employment premises which meet identified local needs in the area? \n•\tImprove business infrastructure, such as broadband and provide attractive sites for modern businesses?\n•\tSupport the city’s retail sector, especially the city centre and other retail centres?","Yes",1,0,1,"Direct","Medium","Long(20+yrs)","Regional","Permanent/Irreversible","Significant Positive","The development is anticipated to provide an expansion of Heatherton Local Centre, providing expanded shopping facilities and community uses within the site. The development will improve connectivity between business clusters and the housing market.","Yes","N/A","N/A"]
["SA4: Employment\nTo create greater employment opportunities, higher value jobs and access to training.","Will the policy or proposal:\n•\tIncrease job availability?\n•\tIncrease the quality and choice of local employment?\n•\tImprove access to employment centres?\n•\tMeet the skills needs and future demand for labour?","Yes",1,2,0,"Direct","Medium","Long(20+yrs)","Localised","Permanent/Irreversible","Minor Positive","The expansion of the local centre and additional retail and community uses within the development is anticipated to result in additional employment opportunities within the local area.","Yes","N/A","N/A"]
["SA5: Crime and Safety\nTo reduce crime and the fear of crime for all residents inclusively, improving safety.","Will the policy or proposal:\n•\tHelp to create streets where people feel safe, particularly after dark?\n•\tMake a positive contribution to community cohesion?\n•\tSupport designing out crime principals? \n•\tReduce levels of crime derivation? \n•\tImprove road safety and reduce the number of people killed or seriously injured (KSI) on the roads, particularly children from deprived backgrounds? \n•\tCreate spaces where women and girls feel safe and included?","Yes",0,1,0,"Indirect","Low","Short/Medium","Localised","Permanent/Reversible","Minor Positive","The site is located within an area of medium crime deprivation (30-50% most deprived nationally). Developing the land from its existing agricultural use has potential for alterations to feelings of safety in the area. This is likely to be determined by individual scheme design. There is limited detail on whether designing out crime principles will be applied as part of the development. However, it is assumed that development should incorporate designing out crime principles in line with Policy GD5","Yes","N/A","N/A"]
["SA6: Housing\nTo provide everybody with access to an affordable home which is resilient to the effects of climate change.","Will the policy or proposal:\n•\tSupport a range of housing types and sizes, including affordable housing units??\n•\tEnsure that there is an adequate supply of housing development land to meet local needs?\n•\tBe sustainably designed and resilient to the effects of climate change and designed to meet all needs, for example “Lifetime Homes” standards?","Yes",0,1,0,"Direct","High","Long(20+yrs)","Regional","Permanent/Irreversible","Significant Positive","The provision of 800 new homes will help towards meeting Derby's housing target. The provision of affordable housing should be in line with requirements of Policy H4 and Policy H2 will ensure a mix of housing types and tenures is delivered. ","Yes","N/A","N/A"]
["SA7: Leisure and Recreation\nTo provide better opportunities for people to participate in cultural, leisure and recreational activities.","Will the policy or proposal:\n•\tHelp to improve access to formal and informal recreation facilities?\n•\tProvide opportunities for engagement in a range of cultural activities?\n•\tCreate new allotments where there is a demand?","Yes",1,0,2,"Direct","Medium","Medium/Long","Localised","Permanent/Reversible","Minor Positive","The development requirements include the provision of additional public open space on the site. The site is well located close to existing open space. Additionally, the provision of new community facilities is anticipated to provide leisure and recreation facilities for the local population. ","Yes","N/A","N/A"]
["SA8: Biodiversity and Natural Capital\nTo protect and improve biodiversity, geo-diversity, including protect and enhance favourable conditions on SSSI’s, SPAs, SACs and other wildlife sites and improve connectivity between, and access to, green spaces and functional habitats.","Will the policy or proposal:\n•\tConserve and enhance habitats in the LNRS?\n•\tConserve and enhance species diversity and in particular avoid harm and increase the ranges of protected species?\n•\tProvide opportunities for new habitat creation and lead to a net gain in biodiversity?\n•\tProtect geo-diversity?\n•\tImprove the ecological quality and character of open spaces?\n•\tMaintain and enhance woodland cover and management in appropriate areas (e.g. areas of ash dieback)?\n•\tMaintain or enhance tree cover?\n•\tProtect and promote effective management of SPAs and SACs in the LP area and its surroundings?\n•\tHelp to protect and enhance other designated sites e.g., SSSIs, Wildlife Sites, LNRs etc?\n•\tImprove climate change adaptation through provision of accessible green space or green and blue infrastructure?\n•\tPrevent the fragmentation of habitats, provide links between green spaces or help to deliver/support other ecological networks?\n•\tSupport the natural capital of the city?","Yes",0,0,2,"Direct","Low","Medium(10yrs)","Localised","Permenant/Reversible","Minor Positive","The site is located away from designated sites. There is potential for some adverse effects on habitats and species during construction. However, is anticipated that the site will result in improvements to green infrastructure and biodiversity, which may help to provide new small scale habitats. Biodiversity enhancement is anticipated to meet minimum standards of 10% for all developments, as set out in Policy EN10.","Yes","N/A","N/A"]
["SA9: Landscape and Townscape\nTo protect and enhance the character and appearance of the landscape and townscape, including landscape and townscape assets, as well as the area’s other natural assets and resources.","Will the policy or proposal:\n•\tProtect and enhance landscape and townscape quality, character and distinctiveness?\n•\tAvoid loss of, and damage to greenbelt / green wedge land?\n•\tMake use of previously used / brownfield land and buildings?\n•\tSafeguard individual landscape and townscape features such as hedgerows, ponds, public squares, etc?","Yes",0,0,2,"N/A","N/A","N/A","N/A","N/A","Uncertain","The site is not green belt or green wedge land. However, it is greenfield land. The development at the site has potential to result in alteration of the visual landscape. Development should be designed to be sensitive to existing landscape settings and aim to enhance the landscape and implement high quality design, in line with Policy GD1 and GD2. Therefore, there is potential for high quality design at the site, however this is likely to be determined by individual scheme design.","Yes","Sensitive design should be considered for any new developments to ensure positive effects on local assets and landscapes.\nCare must be taken to ensure that high density development and tall buildings do not have a significant visual impact.","N/A"]
["SA10: Historic Environment\nTo conserve and enhance the historic environment, heritage assets (including known and unknown archaeological sites) and their settings and maintain and enhance access to cultural heritage for enjoyment and educational purposes.   ","Will the policy or proposal:\n•\tPreserve and enhance the character or appearance of conservation areas and their settings?\n•\tPreserve or enhance heritage assets and their settings?\n•\tPreserve or enhance archaeological features and their settings?\n•\tImprove the condition of heritage at risk? \n•\tRe-use/retain historic buildings or fabric?\n•\tProtect and conserve the Outstanding Universal Value of the DVMWHS?","Yes",0,0,7,"N/A","N/A","N/A","N/A","N/A","Neutral","The development of the site is not anticipated to have any potential effect on this objective. ","No","N/A","N/A"]
["SA11: Air, Noise and Light Pollution\nTo maintain good local air quality and to minimise noise and light pollution","Will the policy or proposal:\n•\tMaintain or improve local air quality?\n•\tEncourage the installation of electric vehicle charging points?\n•\tAvoid adverse impacts from noise?\n•\tMinimise light pollution?","Yes",1,0,1,"N/A","N/A","N/A","N/A","N/A","Neutral","The site is located in an area of high light pollution. There will be temporary negative effects on air quality and noise due to dust generation and emissions from construction. There are a number of existing residential receptors (houses) surrounding the site which would be negatively impacted during construction. However, the plan includes appropriate mitigation of noise disruption such as buffering through Policy EN22.","No","N/A","N/A"]
["SA12: Water Environment\nTo ensure sustainable management of water resources and to minimise the risk of flooding.","Will the policy or proposal: \n•\tMinimise contamination of watercourses and improve water quality in watercourses?\n•\tAvoid exacerbating flood risk for any source and be designed to be resilient to flood risk for its lifetime?\n•\tSupport the use of Sustainable Drainage Systems?\n•\tEncourage water efficiency and demand management?\n•\tAvoid deterioration and enhance the ecological status of water bodies? \n•\tContribute toward achieving Water Framework Directive objectives?","Yes",3,0,1,"Direct","High","Long(20+yrs)","Localised","Permanent/Irreversible","Minor Negative","As outlined in the Local Plan, development at the site is required to include flood mitigation measures. However, the site is located in close proximity to a water body and also sits in an area of flood zone 3. Development at the site is anticipated to increase impermeable surfaces, increasing surface runoff and exacerbating flood risk. There is also potential for surface runoff during construction to result in pollution of the nearby water body. Development should accord with flood risk mitigation measures outlined in Policy CL1. The application of SuDS (in line with Policy CL1) should be demonstrated to reduce the risk of run-off and surface water flooding. ","Yes","Development should be in line with the NPPF and guidance from the Environment Agency. ","N/A"]
["SA13: Climate Change\nAdapt to the effects of climate change including flood risk, extreme weather and overheating, and strengthen climate resilience.","Will the policy or proposal:\n•\tMinimise flood risk and ensure new development provides sustainable urban drainage?\n•\tEnsure new development is designed to withstand future climate change (e.g. overheating and increased storm severity)?\n•\tIncrease and improve green and blue infrastructure to create a connected network across the city and within the wider area?\n•\tEnsure surface and groundwater water resources are used efficiently?\n•\tReduce energy consumption?\n•\tSupport the delivery of renewable and decentralised energy capacity (including small scale or community energy projects)?\n•\tSupport energy efficient design?","Yes",2,0,2,"Direct","Medium","Long(20+yrs)","Localised","Permanent/Irreversible","Minor Negative","There is potential for green infrastructure and open space in the development to provide a role in mitigating climate change impacts. Additionally, the implementation of flood mitigation measures is anticipated to reduce the risk of flooding at the site, improving climate change resilience. However, given the site is located in an area of flood zone 3, a minor negative effect is recorded.","Yes","Development should be encouraged to incorporate renewable energy generation methods such as solar panels, and should incorporate design measures that will reduce effects of climate change, such as zonal heating systems, water saving initiatives and energy monitoring devices.","N/A"]
["SA14: Greenhouse Gases\nTo reduce the contribution towards the emission of greenhouse gases.","Will the policy or proposal:\n•\tReduce GHG emissions?\n•\tSupport the shift towards low carbon technologies and the usage of electric and ultralow emissions vehicles and appropriate infrastructure to support these?\n•\tProvide opportunities to access local services and facilities by low carbon public transport, walking or wheeling?\n•\tPromote a low carbon local economy? \n•\tReduce levels of embodied carbon?","No",null,null,null,"Direct","Medium","Long(20+yrs)","Localised","Permanent/Irreversible","Minor Negative","There are likely to be significant GHG emissions associated with the construction  from embodied carbon within building materials, as well as carbon emissions from construction traffic and construction plant. Building efficiency measures are anticipated to reduce energy use in operation. The development will promote sustainable travel modes, reducing car reliance and GHG emissions from transport. The application of Policy CL5 should be applied to minimise embodied carbon. However, a minor negative effect is recorded due to construction emissions.","Yes","Any form of construction and operation should be undertaken as sustainably as possible, making use of tools and processes, such as circular economy, waste hierarchy and should consider BREEAM and BREEAM Infrastructure.","N/A"]
["SA15: Transport and Accessibility\nTo reduce the number of journeys made by car, within and to and from the area and improve access to jobs, services and facilities.","Will the policy or proposal:\n•\tUtilise and enhance existing infrastructure?\n•\tHelp to meet local needs locally through low carbon travel options?\n•\tFacilitate safe walking and cycling?\n•\tFacilitate the use of public transport?\n•\tDeliver opportunities to relieve traffic congestion?\n•\tEncourage travel planning for businesses?\n•\tHelp to reduce the distances people have to travel on a regular basis for education, employment and services?\n•\tHelp to improve access to services and facilities for those living in rural or remote settlements, or experiencing other access constraints?\n•\tHelp to support homeworking by residents?","Yes",2,0,1,"Direct","Medium","Long(20+yrs)","Localised","Permanent/Irreversible","Minor Positive","The site is accessible via the existing active travel and bus network. It is anticipated that the development will include the provision of an improved local bus service, and provide high quality active travel routes within the site and in the surrounding area. This is anticipated to encourage the use of sustainable transport modes, as well as improving accessibility to the surrounding area and services. ","Yes","N/A","N/A"]
["SA16: Geology and Soils\nTo minimise water and soil pollution and ensure protection of natural resources including greenfield land, soil, and minerals resources.","Will the policy or proposal:\n•\tUtilise previously developed land?\n•\tSeek to improve or remediate contaminated land or reuse previously developed land which has not been restored?\n•\tProtect soil quality and avoid soil pollution?\n•\tProtect Best and Most Versatile (BMV) Agricultural Land?\n•\tProtect Greenbelt/ Green Wedges land?\n•\tProtect sites safeguarded for mineral workings?","Yes",1,1,2,"Direct","High","Long(20+yrs)","Localised","Permanent/Irreversible","Significant Negative","The site is located on greenfield land that is currently utilised for agriculture. This land is of ALC grade 3 and 4. Development at the site will result in the loss of greenfield agricultural land.","Yes","Where possible, development should be located to avoid the loss of BMV agricultural land.","N/A"]
["SA17: Waste\nTo minimise the generation of waste and effectively manage waste that is created.","Will the policy or proposal:\n•\tEnhance opportunities for waste to be treated in line with circular economy principles (e.g. recycling, re-using, composting)?\n•\tProvide adequate waste separation facilities in new and existing developments in order to encourage more recycling?\n•\tEncourage the repurposing and refurbishing of buildings, instead of demolition?","Yes",0,0,1,"Indirect","High","Long(20+yrs)","Localised","Permanent/Irreversible","Minor Negative","Development should support the use of sustainably sourced/recycled materials in line with Policy GD1. This should help minimise waste from the development's construction phase. However, once in use, the development is likely to produce waste in operation which could have a greater impact than waste through construction. However, the Local Plan is unable to control the generation of waste beyond development of the site. It will only be able to ensure that developments are designed to ensure that users can separate waste facilitating them to follow the waste hierarchy. ","Yes","A Site Waste Management Plan should be prepared as part of the CEMP and OEMP. ","N/A"]

{"sheet":"HA2","index":7,"n_rows":28,"n_cols":16,"rows_kept":28,"cut":false,"hidden":false,"merged":[[9,0,9,1],[9,2,9,5],[9,6,9,15]]}
["Site Name","Brook Farm, Chaddesden"]
["Site Address","Land to the north of Oregon Way and Tennessee Road"]
["Town/Locality"]
["Est Housing Yield/Employment Space",214]
["Site Area (ha)"]
["Site Description"]
["Greenfield/Brownfield","Greenfield"]
["Assumptions Made"]
[]
["SA Framework",null,"GIS Inputs",null,null,null,"SA  Assessment"]
["SA objective","Supporting Questions","GIS Data Available?","R","A","G","Direct/\nIndirect","Magnitude","Duration","Spatial Extent","Permanence/ Reversibility","Significance","Description of potential effects","Potential for cumulative effects? ","Mitigation","Enhancements"]
["SA1: Population and Equalities\nTo build inclusive communities by reducing social exclusion, reducing deprivation, promoting equity, equality and respecting diversity, improving local accessibility to healthcare, education, employment, retail facilities and recreational resources (including open spaces and sports facilities).  ","Will the policy or proposal:\n•\tHelp to reduce deprivation and the inequality gap?\n•\tEnsure all residents have equitable access to health services?\n•\tConsider the needs of an aging population?\n•\tEnsure new housing is well related located, close to a range of services such as shops, schools and employment opportunities?\n•\tImprove opportunities for active travel including walking and cycling?\n•\tEnsure everyone has access to high quality open space and recreation facilities?\n•\tProtect community facilities and improve access to important local services for the most deprived?","Yes",0,1,2,"Direct","Low","Long(20+yrs)","Localised","Permanent/Irreversible","Minor Positive","The site is anticipated to provide a minimum of 214 new homes, however the provision of affordable and adaptable homes is currently uncertain. The site has good access to existing community facilities, and the plan includes policy GD9 which outlines that developer contributions towards infrastructure will be sought. The plan also outlines that walking and cycling links will be provided across the site improving connectivity with the open countryside and with the existing residential area of Chaddesden.","Yes","N/A","N/A"]
["SA2: Human Health\nTo improve health and wellbeing and reduce health inequalities, improving quality of life for all.","Will the policy or proposal:\n•\tHelp to improve health and reduce health inequalities?\n•\tContribute to healthy lifestyles?\n•\tEncourage walking, cycling and a reduction in private car use?\n•\tHelp to ensure health services are provided alongside development?\n•\tProtect existing services?","Yes",1,0,4,"Direct","Medium","Long(20+yrs)","Localised","Permanent/Irreversible","Minor Positive","As housing is a key determinant of health, its delivery is likely to provide health benefits. The site does have good access to healthcare and open space; however, the site is located in an area of medium health deprivation. It is not clear whether the current provision will meet the needs of the additional population. However, the plan does outline a requirement for infrastructure contributions in accordance with GD9, and therefore a minor positive is recorded.","Yes","N/A","N/A"]
["SA3: Economy\nTo deliver economic growth and support the creation of new and retention of existing businesses.","Will the policy or proposal:\n•\tSupport the growth of higher skilled economic sectors? \n•\tProvide new employment premises which meet identified local needs in the area? \n•\tImprove business infrastructure, such as broadband and provide attractive sites for modern businesses?\n•\tSupport the city’s retail sector, especially the city centre and other retail centres?","Yes",1,0,1,"Direct","Medium","Long(20+yrs)","Localised","Permenant/Irreversible","Minor Positive","The site is located close to town centres, but further from primary shopping areas. Given that there will be a minimum of 214 new dwellings developed, there is a likelihood for the nearby retail businesses in the nearby town centre to experience an increase in demand and footfall.","Yes","N/A","N/A"]
["SA4: Employment\nTo create greater employment opportunities, higher value jobs and access to training.","Will the policy or proposal:\n•\tIncrease job availability?\n•\tIncrease the quality and choice of local employment?\n•\tImprove access to employment centres?\n•\tMeet the skills needs and future demand for labour?","Yes",3,0,0,"Direct","High","Long(20+yrs)","Localised","Permanent/Reversible","Minor Negative","The site is located within an area of high employment and income deprivation, and is over 800m away from the nearest existing employment area. Given that there will be a significant number of new dwellings, a lack of employment opportunities nearby could worsen the income and employment deprivation in the site area. This problem could be exacerbated by the fact that public transport options are located far away from the site.","Yes","Scheme level design could consider the potential for improving public transport connections at the site.","N/A"]
["SA5: Crime and Safety\nTo reduce crime and the fear of crime for all residents inclusively, improving safety.","Will the policy or proposal:\n•\tHelp to create streets where people feel safe, particularly after dark?\n•\tMake a positive contribution to community cohesion?\n•\tSupport designing out crime principals? \n•\tReduce levels of crime derivation? \n•\tImprove road safety and reduce the number of people killed or seriously injured (KSI) on the roads, particularly children from deprived backgrounds? \n•\tCreate spaces where women and girls feel safe and included?","Yes",1,0,0,"N/A","N/A","N/A","N/A","N/A","Uncertain","The site is located within an area of high crime deprivation (10-20% most deprived nationally). Developing the land from its existing agricultural use has potential for alterations to feelings of safety in the area.  It is assumed that development should incorporate designing out crime principles in line with Policy GD5 and therefore a potential minor positive effect is identified.","Yes","N/A","N/A"]
["SA6: Housing\nTo provide everybody with access to an affordable home which is resilient to the effects of climate change.","Will the policy or proposal:\n•\tSupport a range of housing types and sizes, including affordable housing units??\n•\tEnsure that there is an adequate supply of housing development land to meet local needs?\n•\tBe sustainably designed and resilient to the effects of climate change and designed to meet all needs, for example “Lifetime Homes” standards?","Yes",0,1,0,"Direct","High","Long(20+yrs)","Regional","Permanent/Irreversible","Significant Positive","The provision of a minimum of 214 new homes will support meeting Derby's housing target. It is currently uncertain what proportion of homes will be affordable and adaptable. However, the provision of affordable housing should be in line with requirements of Policy H4. Policy H2 should be applied to ensure a mix of housing types and tenures. Therefore, a significant positive is recorded.","Yes","N/A","N/A"]
["SA7: Leisure and Recreation\nTo provide better opportunities for people to participate in cultural, leisure and recreational activities.","Will the policy or proposal:\n•\tHelp to improve access to formal and informal recreation facilities?\n•\tProvide opportunities for engagement in a range of cultural activities?\n•\tCreate new allotments where there is a demand?","Yes",0,0,3,"Direct","Medium","Medium/Long","Localised","Permanent/Reversible","Significant Positive","The development requirements include the provision of additional public open space on the site and it is close to existing open space. Additionally, the provision of a cycle route is anticipated to provide residents with access to facilities in Chaddesden as well as countryside spaces.","Yes","N/A","N/A"]
["SA8: Biodiversity and Natural Capital\nTo protect and improve biodiversity, geo-diversity, including protect and enhance favourable conditions on SSSI’s, SPAs, SACs and other wildlife sites and improve connectivity between, and access to, green spaces and functional habitats.","Will the policy or proposal:\n•\tConserve and enhance habitats in the LNRS?\n•\tConserve and enhance species diversity and in particular avoid harm and increase the ranges of protected species?\n•\tProvide opportunities for new habitat creation and lead to a net gain in biodiversity?\n•\tProtect geo-diversity?\n•\tImprove the ecological quality and character of open spaces?\n•\tMaintain and enhance woodland cover and management in appropriate areas (e.g. areas of ash dieback)?\n•\tMaintain or enhance tree cover?\n•\tProtect and promote effective management of SPAs and SACs in the LP area and its surroundings?\n•\tHelp to protect and enhance other designated sites e.g., SSSIs, Wildlife Sites, LNRs etc?\n•\tImprove climate change adaptation through provision of accessible green space or green and blue infrastructure?\n•\tPrevent the fragmentation of habitats, provide links between green spaces or help to deliver/support other ecological networks?\n•\tSupport the natural capital of the city?","Yes",0,1,1,"Direct","Medium","Long(20+yrs)","Localised","Permanent/Reversible","Minor Positive","The site is located within 800m of a local nature reserve. Whilst the impact on the LNR land itself may be unaffected, the development of the site could have a negative impact on the surrounding wildlife through noise pollution for instance. However, the site includes the development of a green corridor, alongside on site biodiversity net gain, which aids in protecting and enhancing biodiversity. Furthermore, biodiversity enhancement is anticipated to meet minimum standards of 10% for all developments, as set out in Policy EN10 and therefore  a potential minor positive effect is identified.","Yes","N/A","N/A"]
["SA9: Landscape and Townscape\nTo protect and enhance the character and appearance of the landscape and townscape, including landscape and townscape assets, as well as the area’s other natural assets and resources.","Will the policy or proposal:\n•\tProtect and enhance landscape and townscape quality, character and distinctiveness?\n•\tAvoid loss of, and damage to greenbelt / green wedge land?\n•\tMake use of previously used / brownfield land and buildings?\n•\tSafeguard individual landscape and townscape features such as hedgerows, ponds, public squares, etc?","Yes",2,0,0,"Direct","Medium","Long(20+yrs)","Localised","Permenant/Irreversible","Minor Negative","This site is located within Green Belt and within a Green Wedge. Therefore, development at this site may negatively alter the landscape character in this area. The proposed development should be designed to be sensitive to existing landscape settings and aim to enhance the landscape and implement high quality design, in line with Policy GD1 and GD2. However this is likely to be determined by individual scheme design. Therefore, a minor negative effect is recorded.","Yes","Sensitive design should be considered for any new developments to ensure positive effects on local assets and landscapes.\nCare must be taken to ensure that high density development and tall buildings do not have a significant visual impact.","N/A"]
["SA10: Historic Environment\nTo conserve and enhance the historic environment, heritage assets (including known and unknown archaeological sites) and their settings and maintain and enhance access to cultural heritage for enjoyment and educational purposes.   ","Will the policy or proposal:\n•\tPreserve and enhance the character or appearance of conservation areas and their settings?\n•\tPreserve or enhance heritage assets and their settings?\n•\tPreserve or enhance archaeological features and their settings?\n•\tImprove the condition of heritage at risk? \n•\tRe-use/retain historic buildings or fabric?\n•\tProtect and conserve the Outstanding Universal Value of the DVMWHS?","Yes",1,0,6,"N/A","N/A","N/A","N/A","N/A","Neutral","The site is located away from any registered parks or gardens, scheduled monuments, conservation areas, archaeological alert areas or heritage areas. However, it is within 100m of a listed building. Construction could disrupt the setting of the listed building if not given careful consideration in planning. However, the implementation of high quality design may enhance the setting of this asset. Development is anticipated to be undertaken in line with Policy EN11, ensuring efforts to preserve Derby's historic environment.","Yes","A lighting strategy should be prepared to minimise light spill onto heritage assets.","N/A"]
["SA11: Air, Noise and Light Pollution\nTo maintain good local air quality and to minimise noise and light pollution","Will the policy or proposal:\n•\tMaintain or improve local air quality?\n•\tEncourage the installation of electric vehicle charging points?\n•\tAvoid adverse impacts from noise?\n•\tMinimise light pollution?","Yes",1,0,1,"Indirect","Low","Short(<5yrs)","Localised","Temporary/Reversible","Minor Negative","The site is located in an area of high light pollution. There will be temporary negative effects on air quality and noise due to dust generation and emissions from construction. There are a number of existing residential receptors surrounding the site which would be negatively impacted during construction.","Yes","A Dust Management Plan should be prepared as part of the Construction Environmental Management Plan (CEMP).","N/A"]
["SA12: Water Environment\nTo ensure sustainable management of water resources and to minimise the risk of flooding.","Will the policy or proposal: \n•\tMinimise contamination of watercourses and improve water quality in watercourses?\n•\tAvoid exacerbating flood risk for any source and be designed to be resilient to flood risk for its lifetime?\n•\tSupport the use of Sustainable Drainage Systems?\n•\tEncourage water efficiency and demand management?\n•\tAvoid deterioration and enhance the ecological status of water bodies? \n•\tContribute toward achieving Water Framework Directive objectives?","Yes",3,0,1,"Direct","High","Long(20+yrs)","Localised","Permanent/Irreversible","Minor Negative","As outlined in the Local Plan, development at the site is required to include surface water management measures, particularly given its sloping topography. However, the site is located in close proximity to a water body and also sits in an area of flood zone 3. Development at the site is anticipated to increase impermeable surfaces, increasing surface runoff and exacerbating flood risk. There is also potential for surface runoff during construction to result in pollution of the nearby water body. Development should accord with flood risk mitigation measures outlined in Policy CL1. The application of SuDS (in line with Policy CL1) should be demonstrated to reduce the risk of run-off and surface water flooding.","Yes","Development should be in line with the NPPF and guidance from the Environment Agency. \nThe plan should require appropriate water management strategies, for example the inclusion of SuDS, within the site allocation's supporting text.","N/A"]
["SA13: Climate Change\nAdapt to the effects of climate change including flood risk, extreme weather and overheating, and strengthen climate resilience.","Will the policy or proposal:\n•\tMinimise flood risk and ensure new development provides sustainable urban drainage?\n•\tEnsure new development is designed to withstand future climate change (e.g. overheating and increased storm severity)?\n•\tIncrease and improve green and blue infrastructure to create a connected network across the city and within the wider area?\n•\tEnsure surface and groundwater water resources are used efficiently?\n•\tReduce energy consumption?\n•\tSupport the delivery of renewable and decentralised energy capacity (including small scale or community energy projects)?\n•\tSupport energy efficient design?","Yes",2,0,2,"Direct","Medium","Medium(10yrs)","Localised","Permenant/Irreversible","Minor Negative","The site is located within a flood zone 3 but within 50m of flood defences and the allocation policy outlines the need for an appropriate and acceptable surface water management plan to be in place for this site, in particular due to the sloping topography and the location of the Lees Brook at the northern end of the site. Implementation of surface water drainage measures may aid in reducing flood risk at the site, improving climate resilience. However, the flood defences will need to be maintained to ensure that the site in this area is resilient to climate change, thus a minor negative effect is recorded.","Yes","Development should look into incorporating renewable energy generation methods such as solar panels, and should incorporate design measures that will reduce effects of climate change, such as zonal heating systems, water saving initiatives and energy monitoring devices.","N/A"]
["SA14: Greenhouse Gases\nTo reduce the contribution towards the emission of greenhouse gases.","Will the policy or proposal:\n•\tReduce GHG emissions?\n•\tSupport the shift towards low carbon technologies and the usage of electric and ultralow emissions vehicles and appropriate infrastructure to support these?\n•\tProvide opportunities to access local services and facilities by low carbon public transport, walking or wheeling?\n•\tPromote a low carbon local economy? \n•\tReduce levels of embodied carbon?","No",null,null,null,"Direct","Medium","Long(20+yrs)","Localised","Permanent/Irreversible","Minor Negative","There are likely to be significant GHG emissions associated with the construction  from embodied carbon within building materials, as well as carbon emissions from construction traffic and construction plant. Building efficiency measures are anticipated to reduce energy use in operation. The development will promote sustainable travel modes, reducing car reliance and GHG emissions from transport. The application of Policy CL5 should be applied to minimise embodied carbon. However, a minor negative effect is recorded due to construction emissions.","Yes","Any form of construction and operation should be undertaken as sustainably as possible, making use of tools and processes, such as circular economy, waste hierarchy and should consider BREEAM and BREEAM Infrastructure.","N/A"]
["SA15: Transport and Accessibility\nTo reduce the number of journeys made by car, within and to and from the area and improve access to jobs, services and facilities.","Will the policy or proposal:\n•\tUtilise and enhance existing infrastructure?\n•\tHelp to meet local needs locally through low carbon travel options?\n•\tFacilitate safe walking and cycling?\n•\tFacilitate the use of public transport?\n•\tDeliver opportunities to relieve traffic congestion?\n•\tEncourage travel planning for businesses?\n•\tHelp to reduce the distances people have to travel on a regular basis for education, employment and services?\n•\tHelp to improve access to services and facilities for those living in rural or remote settlements, or experiencing other access constraints?\n•\tHelp to support homeworking by residents?","Yes",2,1,0,"Direct","Medium","Long(20+yrs)","Localised","Permanent/Irreversible","Significant Negative","The site is anticipated to have a well-connected cycle route, but does not have good access to bus stops or train stations. This may limit uptake of public transport at the site and increase reliance on private vehicles.","Yes","The development requirements should ensure that a bus service is provided.","N/A"]
["SA16: Geology and Soils\nTo minimise water and soil pollution and ensure protection of natural resources including greenfield land, soil, and minerals resources.","Will the policy or proposal:\n•\tUtilise previously developed land?\n•\tSeek to improve or remediate contaminated land or reuse previously developed land which has not been restored?\n•\tProtect soil quality and avoid soil pollution?\n•\tProtect Best and Most Versatile (BMV) Agricultural Land?\n•\tProtect Greenbelt/ Green Wedges land?\n•\tProtect sites safeguarded for mineral workings?","Yes",1,1,2,"Direct","High","Long(20+yrs)","Localised","Permanent/Irreversible","Significant Negative","The site is located on greenfield land that is currently utilised for agriculture. This land is of ALC grade 3 and 4. Development at the site will result in the loss of greenfield agricultural land.","Yes","Where possible, development should be located to avoid the loss of BMV agricultural land.","N/A"]
["SA17: Waste\nTo minimise the generation of waste and effectively manage waste that is created.","Will the policy or proposal:\n•\tEnhance opportunities for waste to be treated in line with circular economy principles (e.g. recycling, re-using, composting)?\n•\tProvide adequate waste separation facilities in new and existing developments in order to encourage more recycling?\n•\tEncourage the repurposing and refurbishing of buildings, instead of demolition?","Yes",0,0,1,"Indirect","High","Long(20+yrs)","Localised","Permanent/Irreversible","Minor Negative","Development should support the use of sustainably sourced/recycled materials in line with Policy GD1. This should help minimise waste from the development's construction phase. However, once in use, the development is likely to produce waste in operation which could have a greater impact than waste through construction. However, the Local Plan is unable to control the generation of waste beyond development of the site. It will only be able to ensure that developments are designed to ensure that users can separate waste facilitating them to follow the waste hierarchy. ","Yes","A Site Waste Management Plan should be prepared as part of the CEMP and OEMP. ","N/A"]

{"sheet":"HA3","index":8,"n_rows":26,"n_cols":16,"rows_kept":26,"cut":false,"hidden":false,"merged":[[7,0,7,1],[7,2,7,5],[7,6,7,15]]}
["Site Name"," East of Moorway Lane, Littleover"]
["Est Housing Yield/Employment Space",335]
["Site Area (ha)"]
["Site Description"]
["Greenfield/Brownfield","Greenfield"]
["Assumptions Made"]
[]
["SA Framework",null,"GIS Inputs",null,null,null,"SA  Assessment"]
["SA objective","Supporting Questions","GIS Data Available?","R","A","G","Direct/\nIndirect","Magnitude","Duration","Spatial Extent","Permanence/ Reversibility","Significance","Description of potential effects","Potential for cumulative effects? ","Mitigation","Enhancements"]
["SA1: Population and Equalities\nTo build inclusive communities by reducing social exclusion, reducing deprivation, promoting equity, equality and respecting diversity, improving local accessibility to healthcare, education, employment, retail facilities and recreational resources (including open spaces and sports facilities).  ","Will the policy or proposal:\n•\tHelp to reduce deprivation and the inequality gap?\n•\tEnsure all residents have equitable access to health services?\n•\tConsider the needs of an aging population?\n•\tEnsure new housing is well related located, close to a range of services such as shops, schools and employment opportunities?\n•\tImprove opportunities for active travel including walking and cycling?\n•\tEnsure everyone has access to high quality open space and recreation facilities?\n•\tProtect community facilities and improve access to important local services for the most deprived?","Yes",0,0,3,"Direct","High","Long(20+yrs)","Regional","Permanent/Irreversible","Significant Positive","The site is anticipated to provide 335 dwellings with a mix of housing types. In addition, there is anticipated to be investment in existing education and the provision of a day-to-day needs retail facility developed at the site. The site is also anticipated to improve transport links with existing communities, which will aid in providing access to facilities for residents.","Yes","N/A","N/A"]
["SA2: Human Health\nTo improve health and wellbeing and reduce health inequalities, improving quality of life for all.","Will the policy or proposal:\n•\tHelp to improve health and reduce health inequalities?\n•\tContribute to healthy lifestyles?\n•\tEncourage walking, cycling and a reduction in private car use?\n•\tHelp to ensure health services are provided alongside development?\n•\tProtect existing services?","Yes",4,0,1,"Direct","Medium","Long(20+yrs)","Localised","Permanent/Reversible","Significant Positive","Whilst the site is currently in an area of high health deprivation the development requirements include the provision of open space, a safe children's play area, improvements to walking and cycling routes, as well as public transport. This is anticipated to improve opportunities for physical activity at the site, and provide access to existing services.","Yes","N/A","N/A"]
["SA3: Economy\nTo deliver economic growth and support the creation of new and retention of existing businesses.","Will the policy or proposal:\n•\tSupport the growth of higher skilled economic sectors? \n•\tProvide new employment premises which meet identified local needs in the area? \n•\tImprove business infrastructure, such as broadband and provide attractive sites for modern businesses?\n•\tSupport the city’s retail sector, especially the city centre and other retail centres?","Yes",1,0,1,"Direct","High","Medium/Long","Borough-wide","Permanent/Reversible","Minor Positive","The site is located close to town centres, but further from primary shopping areas. Given that there will be 335 new dwellings developed, there is a likelihood for the nearby retail businesses in the nearby town centre to experience an increase in demand and footfall. The allocation policy also outlines that a local centre should be provided within the site to meet day to day shopping needs of the local area.","Yes","N/A","N/A"]
["SA4: Employment\nTo create greater employment opportunities, higher value jobs and access to training.","Will the policy or proposal:\n•\tIncrease job availability?\n•\tIncrease the quality and choice of local employment?\n•\tImprove access to employment centres?\n•\tMeet the skills needs and future demand for labour?","Yes",3,0,0,"Direct","Medium","Medium/Long","Localised","Permanent/Reversible","Minor Positive","The site is in an area of high income and employment deprivation. However, given that it is close to town centres, it is likely that there will be employment opportunities available to residents. There is also potential for improvements to public transport to enhance connectivity to local employment centres,  however this is likely to be determined by individual routes that are provided. Overall a minor positive is recorded.","Yes","N/A","N/A"]
["SA5: Crime and Safety\nTo reduce crime and the fear of crime for all residents inclusively, improving safety.","Will the policy or proposal:\n•\tHelp to create streets where people feel safe, particularly after dark?\n•\tMake a positive contribution to community cohesion?\n•\tSupport designing out crime principals? \n•\tReduce levels of crime derivation? \n•\tImprove road safety and reduce the number of people killed or seriously injured (KSI) on the roads, particularly children from deprived backgrounds? \n•\tCreate spaces where women and girls feel safe and included?","Yes",0,1,0,"Indirect","Low","Medium(10yrs)","Localised","Permanent/Irreversible","Minor Positive","The site is located within an area of medium crime deprivation (30-50% most deprived nationally). However, the proposed play area at the site is anticipated to be developed to ensure natural surveillance, which is anticipated to improve feelings of safety. It is assumed that development should incorporate designing out crime principles in line with Policy GD5.","Yes","New play space should be designed in line with guidance from Make Space for Girls, to aid in feelings of safety.","N/A"]
["SA6: Housing\nTo provide everybody with access to an affordable home which is resilient to the effects of climate change.","Will the policy or proposal:\n•\tSupport a range of housing types and sizes, including affordable housing units??\n•\tEnsure that there is an adequate supply of housing development land to meet local needs?\n•\tBe sustainably designed and resilient to the effects of climate change and designed to meet all needs, for example “Lifetime Homes” standards?","Yes",0,1,0,"Direct","High","Long(20+yrs)","Regional","Permanent/Irreversible","Significant Positive","The provision of 335 new homes will help towards meeting Derby's housing target. The provision of affordable housing should be in line with requirements of Policy H4 and Policy H2 will ensure a mix of housing types and tenures is delivered. ","Yes","N/A","N/A"]
["SA7: Leisure and Recreation\nTo provide better opportunities for people to participate in cultural, leisure and recreational activities.","Will the policy or proposal:\n•\tHelp to improve access to formal and informal recreation facilities?\n•\tProvide opportunities for engagement in a range of cultural activities?\n•\tCreate new allotments where there is a demand?","Yes",0,0,3,"Direct","Medium","Medium/Long","Localised","Permanent/Reversible","Significant Positive","The development requirements include the provision of additional public open space on the site and the site is close to existing open space. Additionally, the provision of a cycle route is anticipated to provide residents with access to facilities in Heatherton and Millennium Park as well as countryside spaces.","Yes","N/A","N/A"]
["SA8: Biodiversity and Natural Capital\nTo protect and improve biodiversity, geo-diversity, including protect and enhance favourable conditions on SSSI’s, SPAs, SACs and other wildlife sites and improve connectivity between, and access to, green spaces and functional habitats.","Will the policy or proposal:\n•\tConserve and enhance habitats in the LNRS?\n•\tConserve and enhance species diversity and in particular avoid harm and increase the ranges of protected species?\n•\tProvide opportunities for new habitat creation and lead to a net gain in biodiversity?\n•\tProtect geo-diversity?\n•\tImprove the ecological quality and character of open spaces?\n•\tMaintain and enhance woodland cover and management in appropriate areas (e.g. areas of ash dieback)?\n•\tMaintain or enhance tree cover?\n•\tProtect and promote effective management of SPAs and SACs in the LP area and its surroundings?\n•\tHelp to protect and enhance other designated sites e.g., SSSIs, Wildlife Sites, LNRs etc?\n•\tImprove climate change adaptation through provision of accessible green space or green and blue infrastructure?\n•\tPrevent the fragmentation of habitats, provide links between green spaces or help to deliver/support other ecological networks?\n•\tSupport the natural capital of the city?","Yes",0,1,1,"Direct","Medium","Long(20+yrs)","Localised","Permanent/Reversible","Minor Positive","The site is located within 800m of a local nature reserve. Whilst the impact on the LNR land itself may be unaffected, the development of the site could have a negative impact on the surrounding wildlife through noise pollution for instance. However, the proposed development includes open space provision that is anticipated to provide biodiversity improvements. Additionally, biodiversity enhancement is anticipated meet minimum standards of 10% for all developments, as set out in Policy EN10.","Yes","N/A","N/A"]
["SA9: Landscape and Townscape\nTo protect and enhance the character and appearance of the landscape and townscape, including landscape and townscape assets, as well as the area’s other natural assets and resources.","Will the policy or proposal:\n•\tProtect and enhance landscape and townscape quality, character and distinctiveness?\n•\tAvoid loss of, and damage to greenbelt / green wedge land?\n•\tMake use of previously used / brownfield land and buildings?\n•\tSafeguard individual landscape and townscape features such as hedgerows, ponds, public squares, etc?","Yes",1,0,1,"Direct","High","Long(20+yrs)","Localised","Permanent/Irreversible","Minor Negative","The site is located within a green wedge and on an area of greenfield land. The development at the site has potential to result in alteration of the visual landscape. The proposed development should be designed to be sensitive to existing landscape settings and aim to enhance the landscape and implement high quality design, in line with Policy GD1 and GD2. However this is likely to be determined by individual scheme design. Therefore, a minor negative effect is recorded.","Yes","Sensitive design should be considered for any new developments to ensure positive effects on local assets and landscapes.\nCare must be taken to ensure that high density development and tall buildings do not have a significant visual impact.","N/A"]
["SA10: Historic Environment\nTo conserve and enhance the historic environment, heritage assets (including known and unknown archaeological sites) and their settings and maintain and enhance access to cultural heritage for enjoyment and educational purposes.   ","Will the policy or proposal:\n•\tPreserve and enhance the character or appearance of conservation areas and their settings?\n•\tPreserve or enhance heritage assets and their settings?\n•\tPreserve or enhance archaeological features and their settings?\n•\tImprove the condition of heritage at risk? \n•\tRe-use/retain historic buildings or fabric?\n•\tProtect and conserve the Outstanding Universal Value of the DVMWHS?","Yes",0,0,7,"N/A","N/A","N/A","N/A","N/A","Neutral","The development of the site is not anticipated to have any potential effect on this objective. ","No","N/A","N/A"]
["SA11: Air, Noise and Light Pollution\nTo maintain good local air quality and to minimise noise and light pollution","Will the policy or proposal:\n•\tMaintain or improve local air quality?\n•\tEncourage the installation of electric vehicle charging points?\n•\tAvoid adverse impacts from noise?\n•\tMinimise light pollution?","Yes",0,1,1,"N/A","N/A","N/A","N/A","N/A","Neutral","The site is located in an area of high light pollution. There will be temporary negative effects on air quality and noise due to dust generation and emissions from construction. There are a number of existing residential receptors (houses) surrounding the site which would be negatively impacted during construction. However, the plan includes appropriate mitigation of noise disruption such as buffering through Policy EN22.","No","N/A","N/A"]
["SA12: Water Environment\nTo ensure sustainable management of water resources and to minimise the risk of flooding.","Will the policy or proposal: \n•\tMinimise contamination of watercourses and improve water quality in watercourses?\n•\tAvoid exacerbating flood risk for any source and be designed to be resilient to flood risk for its lifetime?\n•\tSupport the use of Sustainable Drainage Systems?\n•\tEncourage water efficiency and demand management?\n•\tAvoid deterioration and enhance the ecological status of water bodies? \n•\tContribute toward achieving Water Framework Directive objectives?","Yes",3,0,1,"Direct","High","Long(20+yrs)","Localised","Permanent/Irreversible","Minor Negative","As outlined in the Local Plan, development at the site is required to include a comprehensive surface management scheme and use nearby open space to provide drainage solutions. However, the site is located in close proximity to a water body and also sits in an area of flood zone 3. Development at the site is anticipated to increase impermeable surfaces, increasing surface runoff and exacerbating flood risk. There is also potential for surface runoff during construction to result in pollution of the nearby water body. Development should accord with flood risk mitigation measures outlined in Policy CL1. The application of SuDS (in line with Policy CL1) should be demonstrated to reduce the risk of run-off and surface water flooding. ","Yes","Development should be in line with the NPPF and guidance from the Environment Agency. ","N/A"]
["SA13: Climate Change\nAdapt to the effects of climate change including flood risk, extreme weather and overheating, and strengthen climate resilience.","Will the policy or proposal:\n•\tMinimise flood risk and ensure new development provides sustainable urban drainage?\n•\tEnsure new development is designed to withstand future climate change (e.g. overheating and increased storm severity)?\n•\tIncrease and improve green and blue infrastructure to create a connected network across the city and within the wider area?\n•\tEnsure surface and groundwater water resources are used efficiently?\n•\tReduce energy consumption?\n•\tSupport the delivery of renewable and decentralised energy capacity (including small scale or community energy projects)?\n•\tSupport energy efficient design?","Yes",3,0,1,"Direct","Low","Medium(10yrs)","Localised","Permanent/Irreversible","Minor Negative","The site is located within a flood zone 3 but within 50m of flood defences and the plan cited the need for an appropriate and acceptable surface water management plan to be in place for this site.  Implementation of surface water drainage measures may aid in reducing flood risk at the site, improving climate resilience. However, given that the site is located within an area of flood zone 3 and that flood defences will need to be maintained to ensure that the site in this area is resilient to climate change, a minor negative effect is recorded.","Yes","Development should look into incorporating renewable energy generation methods such as solar panels, and should incorporate design measures that will reduce effects of climate change, such as zonal heating systems, water saving initiatives and energy monitoring devices.","N/A"]
["SA14: Greenhouse Gases\nTo reduce the contribution towards the emission of greenhouse gases.","Will the policy or proposal:\n•\tReduce GHG emissions?\n•\tSupport the shift towards low carbon technologies and the usage of electric and ultralow emissions vehicles and appropriate infrastructure to support these?\n•\tProvide opportunities to access local services and facilities by low carbon public transport, walking or wheeling?\n•\tPromote a low carbon local economy? \n•\tReduce levels of embodied carbon?","No",null,null,null,"Direct","Medium","Long(20+yrs)","Localised","Permanent/Irreversible","Minor Negative","There are likely to be significant GHG emissions associated with the construction  from embodied carbon within building materials, as well as carbon emissions from construction traffic and construction plant. Building efficiency measures are anticipated to reduce energy use in operation. The development will promote sustainable travel modes, reducing car reliance and GHG emissions from transport. The application of Policy CL5 should be applied to minimise embodied carbon. However, a minor negative effect is recorded due to construction emissions.","Yes","Any form of construction and operation should be undertaken as sustainably as possible, making use of tools and processes, such as circular economy, waste hierarchy and should consider BREEAM and BREEAM Infrastructure.","N/A"]
["SA15: Transport and Accessibility\nTo reduce the number of journeys made by car, within and to and from the area and improve access to jobs, services and facilities.","Will the policy or proposal:\n•\tUtilise and enhance existing infrastructure?\n•\tHelp to meet local needs locally through low carbon travel options?\n•\tFacilitate safe walking and cycling?\n•\tFacilitate the use of public transport?\n•\tDeliver opportunities to relieve traffic congestion?\n•\tEncourage travel planning for businesses?\n•\tHelp to reduce the distances people have to travel on a regular basis for education, employment and services?\n•\tHelp to improve access to services and facilities for those living in rural or remote settlements, or experiencing other access constraints?\n•\tHelp to support homeworking by residents?","Yes",2,1,0,"Direct","Medium","Long(20+yrs)","Borough-wide","Permanent/Irreversible","Minor Positive","The site is anticipated to have a well-connected cycle route, and is nearby an existing bus route. The allocation policy outlines that public transport connections should be provided within the site itself and beyond, in particular to connect with existing paths at Heatherton and with Millennium Park and Heatherton Pond. The site is anticipated to provide a local centre on the site, reducing short journeys by car. The improvements to sustainable transport modes and accessibility at the site are anticipated to encourage a modal shift away from private vehicle use.","Yes","N/A","N/A"]
["SA16: Geology and Soils\nTo minimise water and soil pollution and ensure protection of natural resources including greenfield land, soil, and minerals resources.","Will the policy or proposal:\n•\tUtilise previously developed land?\n•\tSeek to improve or remediate contaminated land or reuse previously developed land which has not been restored?\n•\tProtect soil quality and avoid soil pollution?\n•\tProtect Best and Most Versatile (BMV) Agricultural Land?\n•\tProtect Greenbelt/ Green Wedges land?\n•\tProtect sites safeguarded for mineral workings?","Yes",1,1,2,"Direct","High","Long(20+yrs)","Localised","Permanent/Irreversible","Significant Negative","The site is located on greenfield land that is currently utilised for agriculture. This land is of ALC grade 3 and 4. Development at the site will result in the loss of greenfield agricultural land.","Yes","Where possible, development should be located to avoid the loss of BMV agricultural land.","N/A"]
["SA17: Waste\nTo minimise the generation of waste and effectively manage waste that is created.","Will the policy or proposal:\n•\tEnhance opportunities for waste to be treated in line with circular economy principles (e.g. recycling, re-using, composting)?\n•\tProvide adequate waste separation facilities in new and existing developments in order to encourage more recycling?\n•\tEncourage the repurposing and refurbishing of buildings, instead of demolition?","Yes",0,0,1,"Indirect","High","Long(20+yrs)","Localised","Permanent/Irreversible","Minor Negative","Development should support the use of sustainably sourced/recycled materials in line with Policy GD1. This should help minimise waste from the development's construction phase. However, once in use, the development is likely to produce waste in operation which could have a greater impact than waste through construction. However, the Local Plan is unable to control the generation of waste beyond development of the site. It will only be able to ensure that developments are designed to ensure that users can separate waste facilitating them to follow the waste hierarchy. ","Yes","A Site Waste Management Plan should be prepared as part of the CEMP and OEMP. ","N/A"]

{"sheet":"HA4","index":9,"n_rows":28,"n_cols":16,"rows_kept":28,"cut":false,"hidden":false,"merged":[[9,0,9,1],[9,2,9,5],[9,6,9,15]]}
["Site Name"," Royal Hill Road, Spondon"]
["Site Address"]
["Town/Locality"]
["Est Housing Yield/Employment Space",90]
["Site Area (ha)"]
["Site Description"]
["Greenfield/Brownfield","Greenfield"]
["Assumptions Made"]
[]
["SA Framework",null,"GIS Inputs",null,null,null,"SA  Assessment"]
["SA objective","Supporting Questions","GIS Data Available?","R","A","G","Direct/\nIndirect","Magnitude","Duration","Spatial Extent","Permanence/ Reversibility","Significance","Description of potential effects","Potential for cumulative effects? ","Mitigation","Enhancements"]
["SA1: Population and Equalities\nTo build inclusive communities by reducing social exclusion, reducing deprivation, promoting equity, equality and respecting diversity, improving local accessibility to healthcare, education, employment, retail facilities and recreational resources (including open spaces and sports facilities).  ","Will the policy or proposal:\n•\tHelp to reduce deprivation and the inequality gap?\n•\tEnsure all residents have equitable access to health services?\n•\tConsider the needs of an aging population?\n•\tEnsure new housing is well related located, close to a range of services such as shops, schools and employment opportunities?\n•\tImprove opportunities for active travel including walking and cycling?\n•\tEnsure everyone has access to high quality open space and recreation facilities?\n•\tProtect community facilities and improve access to important local services for the most deprived?","Yes",0,0,3,"Direct","High","Long(20+yrs)","Regional","Permanent/Irreversible","Minor Positive","The site is anticipated to provide 90 dwellings, including a mix of housing types. However the provision of affordable and adaptable homes is currently uncertain. In addition, there is anticipated to be investment in existing education and  towards improve transport links with existing communities, aiding in improving access to facilities for residents.","Yes","N/A","N/A"]
["SA2: Human Health\nTo improve health and wellbeing and reduce health inequalities, improving quality of life for all.","Will the policy or proposal:\n•\tHelp to improve health and reduce health inequalities?\n•\tContribute to healthy lifestyles?\n•\tEncourage walking, cycling and a reduction in private car use?\n•\tHelp to ensure health services are provided alongside development?\n•\tProtect existing services?","Yes",1,1,3,"Direct","Medium","Long(20+yrs)","Localised","Permanent/Reversible","Minor Positive","Whilst the site is currently in an area of high health deprivation. However, the site includes the provision of open space, improvements to walking routes, as well as contributions towards public transport. This is anticipated to improve opportunities for physical activity at the site, and provide access to existing services.","Yes","N/A","N/A"]
["SA3: Economy\nTo deliver economic growth and support the creation of new and retention of existing businesses.","Will the policy or proposal:\n•\tSupport the growth of higher skilled economic sectors? \n•\tProvide new employment premises which meet identified local needs in the area? \n•\tImprove business infrastructure, such as broadband and provide attractive sites for modern businesses?\n•\tSupport the city’s retail sector, especially the city centre and other retail centres?","Yes",1,0,1,"Direct","High","Medium/Long","Borough-wide","Permanent/Reversible","Minor Positive","The site is located close to town centres, but further from primary shopping areas. Given that there will be 90 new dwellings developed, there is a likelihood for the nearby retail businesses in the nearby town centre to experience an increase in demand and footfall. ","Yes","N/A","N/A"]
["SA4: Employment\nTo create greater employment opportunities, higher value jobs and access to training.","Will the policy or proposal:\n•\tIncrease job availability?\n•\tIncrease the quality and choice of local employment?\n•\tImprove access to employment centres?\n•\tMeet the skills needs and future demand for labour?","Yes",1,1,1,"Direct","Medium","Medium/Long","Localised","Permanent/Reversible","Minor Positive","Given that the development is planned to include the provision of public transport links, the distance to existing employment sites, there is potential for this to enhance access to employment. ","Yes","N/A","N/A"]
["SA5: Crime and Safety\nTo reduce crime and the fear of crime for all residents inclusively, improving safety.","Will the policy or proposal:\n•\tHelp to create streets where people feel safe, particularly after dark?\n•\tMake a positive contribution to community cohesion?\n•\tSupport designing out crime principals? \n•\tReduce levels of crime derivation? \n•\tImprove road safety and reduce the number of people killed or seriously injured (KSI) on the roads, particularly children from deprived backgrounds? \n•\tCreate spaces where women and girls feel safe and included?","Yes",0,1,0,"Indirect","Low","Short/Medium","Localised","Permanent/Reversible","Minor Positive","The site is located within an area of medium crime deprivation (30-50% most deprived nationally). Developing the land from its existing greenfield use has potential for alterations to feelings of safety in the area. This is likely to be determined by individual scheme design. There is limited detail on whether designing out crime principles will be applied as part of the development. However, it is assumed that development should incorporate designing out crime principles in line with Policy GD5","Yes","N/A","N/A"]
["SA6: Housing\nTo provide everybody with access to an affordable home which is resilient to the effects of climate change.","Will the policy or proposal:\n•\tSupport a range of housing types and sizes, including affordable housing units??\n•\tEnsure that there is an adequate supply of housing development land to meet local needs?\n•\tBe sustainably designed and resilient to the effects of climate change and designed to meet all needs, for example “Lifetime Homes” standards?","Yes",0,0,1,"Direct","High","Long(20+yrs)","Regional","Permanent/Irreversible","Minor Positive","The provision of 90 new homes will help towards meeting Derby's housing target. The provision of affordable housing should be in line with requirements of Policy H4 and Policy H2 will ensure a mix of housing types and tenures is delivered. ","Yes","N/A","N/A"]
["SA7: Leisure and Recreation\nTo provide better opportunities for people to participate in cultural, leisure and recreational activities.","Will the policy or proposal:\n•\tHelp to improve access to formal and informal recreation facilities?\n•\tProvide opportunities for engagement in a range of cultural activities?\n•\tCreate new allotments where there is a demand?","Yes",0,0,3,"Direct","Medium","Medium/Long","Localised","Permanent/Reversible","Minor Positive","The site includes the provision of public open space as well as the provision of transport and cycle/pedestrian routes connecting the site to informal recreation.","Yes","N/A","N/A"]
["SA8: Biodiversity and Natural Capital\nTo protect and improve biodiversity, geo-diversity, including protect and enhance favourable conditions on SSSI’s, SPAs, SACs and other wildlife sites and improve connectivity between, and access to, green spaces and functional habitats.","Will the policy or proposal:\n•\tConserve and enhance habitats in the LNRS?\n•\tConserve and enhance species diversity and in particular avoid harm and increase the ranges of protected species?\n•\tProvide opportunities for new habitat creation and lead to a net gain in biodiversity?\n•\tProtect geo-diversity?\n•\tImprove the ecological quality and character of open spaces?\n•\tMaintain and enhance woodland cover and management in appropriate areas (e.g. areas of ash dieback)?\n•\tMaintain or enhance tree cover?\n•\tProtect and promote effective management of SPAs and SACs in the LP area and its surroundings?\n•\tHelp to protect and enhance other designated sites e.g., SSSIs, Wildlife Sites, LNRs etc?\n•\tImprove climate change adaptation through provision of accessible green space or green and blue infrastructure?\n•\tPrevent the fragmentation of habitats, provide links between green spaces or help to deliver/support other ecological networks?\n•\tSupport the natural capital of the city?","Yes",0,1,1,"Direct","Medium","Long(20+yrs)","Localised","Permanent/Reversible","Minor Positive","The site is located within 800m of a local nature reserve. Whilst the impact on the LNR land itself may be unaffected, the development of the site could have a negative impact on the surrounding wildlife through noise pollution for instance. However, the proposed development includes open space provision that is anticipated to provide biodiversity improvements. Additionally, biodiversity enhancement is anticipated meet minimum standards of 10% for all developments, as set out in Policy EN10.","Yes","N/A","N/A"]
["SA9: Landscape and Townscape\nTo protect and enhance the character and appearance of the landscape and townscape, including landscape and townscape assets, as well as the area’s other natural assets and resources.","Will the policy or proposal:\n•\tProtect and enhance landscape and townscape quality, character and distinctiveness?\n•\tAvoid loss of, and damage to greenbelt / green wedge land?\n•\tMake use of previously used / brownfield land and buildings?\n•\tSafeguard individual landscape and townscape features such as hedgerows, ponds, public squares, etc?","Yes",1,0,1,"Direct","High","Long(20+yrs)","Localised","Permanent/Irreversible","Minor Negative","The site is located within a green wedge and on an area of greenfield land. The development at the site has potential to result in alteration of the visual landscape. The proposed development should be designed to be sensitive to existing landscape settings and aim to enhance the landscape and implement high quality design, in line with Policy GD1 and GD2. However this is likely to be determined by individual scheme design. Therefore, a minor negative effect is recorded.","Yes","Sensitive design should be considered for any new developments to ensure positive effects on local assets and landscapes.\nCare must be taken to ensure that high density development and tall buildings do not have a significant visual impact.","N/A"]
["SA10: Historic Environment\nTo conserve and enhance the historic environment, heritage assets (including known and unknown archaeological sites) and their settings and maintain and enhance access to cultural heritage for enjoyment and educational purposes.   ","Will the policy or proposal:\n•\tPreserve and enhance the character or appearance of conservation areas and their settings?\n•\tPreserve or enhance heritage assets and their settings?\n•\tPreserve or enhance archaeological features and their settings?\n•\tImprove the condition of heritage at risk? \n•\tRe-use/retain historic buildings or fabric?\n•\tProtect and conserve the Outstanding Universal Value of the DVMWHS?","Yes",0,1,6,"N/A","N/A","N/A","N/A","N/A","Neutral","The site is located within 250m of a listed building. Construction could disrupt the setting of the asset through noise and vibration, as well as changes to visual amenity. However, the implementation of high quality design may enhance the setting of this asset. Furthermore, development is anticipated to be undertaken in line with Policy EN11, ensuring efforts to preserve Derby's historic environment.","Yes","A lighting strategy should be prepared to minimise light spill onto heritage assets.","N/A"]
["SA11: Air, Noise and Light Pollution\nTo maintain good local air quality and to minimise noise and light pollution","Will the policy or proposal:\n•\tMaintain or improve local air quality?\n•\tEncourage the installation of electric vehicle charging points?\n•\tAvoid adverse impacts from noise?\n•\tMinimise light pollution?","Yes",1,0,1,"Indirect","Medium","Medium(10yrs)","Localised","Permanent/Reversible","Minor Positive","The site is not located within an AQMA, and is well located in terms of proximity to sustainable transport. There is also potential for improvement to active and public transport provision to improve air quality. However, there will be temporary negative effects on air quality and noise due to dust generation and emissions from construction. Overall a minor positive effect is recorded as long term sustainable transport options and reduction in private vehicle emissions are anticipated to offset the negative effects arising from construction.","Yes","A Dust Management Plan should be prepared as part of the Construction Environmental Management Plan (CEMP).","N/A"]
["SA12: Water Environment\nTo ensure sustainable management of water resources and to minimise the risk of flooding.","Will the policy or proposal: \n•\tMinimise contamination of watercourses and improve water quality in watercourses?\n•\tAvoid exacerbating flood risk for any source and be designed to be resilient to flood risk for its lifetime?\n•\tSupport the use of Sustainable Drainage Systems?\n•\tEncourage water efficiency and demand management?\n•\tAvoid deterioration and enhance the ecological status of water bodies? \n•\tContribute toward achieving Water Framework Directive objectives?","Yes",3,0,1,"Direct","High","Long(20+yrs)","Localised","Permanent/Irreversible","Minor Negative","As outlined in the Local Plan, development at the site is required to include a comprehensive surface water management scheme. However, the site is located in close proximity to a water body and also sits in an area of flood zone 3. Development at the site is anticipated to increase impermeable surfaces, increasing surface runoff and exacerbating flood risk. There is also potential for surface runoff during construction to result in pollution of the nearby water body. Development should accord with flood risk mitigation measures outlined in Policy CL1. The application of SuDS (in line with Policy CL1) should be demonstrated to reduce the risk of run-off and surface water flooding. ","Yes","Development should be in line with the NPPF and guidance from the Environment Agency. ","N/A"]
["SA13: Climate Change\nAdapt to the effects of climate change including flood risk, extreme weather and overheating, and strengthen climate resilience.","Will the policy or proposal:\n•\tMinimise flood risk and ensure new development provides sustainable urban drainage?\n•\tEnsure new development is designed to withstand future climate change (e.g. overheating and increased storm severity)?\n•\tIncrease and improve green and blue infrastructure to create a connected network across the city and within the wider area?\n•\tEnsure surface and groundwater water resources are used efficiently?\n•\tReduce energy consumption?\n•\tSupport the delivery of renewable and decentralised energy capacity (including small scale or community energy projects)?\n•\tSupport energy efficient design?","Yes",2,0,2,"Direct","Low","Medium(10yrs)","Localised","Temporary/Irreversible","Minor Negative","The site is located within a flood zone 3 but within 50m of flood defences and the plan cited the need for an appropriate and acceptable surface water management plan to be in place for this site. Implementation of surface water drainage measures may aid in reducing flood risk at the site, improving climate resilience. However, given that the site is located within an area of flood zone 3 and that flood defences will need to be maintained to ensure that the site in this area is resilient to climate change, a minor negative effect is recorded.","Yes","Development should look into incorporating renewable energy generation methods such as solar panels, and should incorporate design measures that will reduce effects of climate change, such as zonal heating systems, water saving initiatives and energy monitoring devices.","N/A"]
["SA14: Greenhouse Gases\nTo reduce the contribution towards the emission of greenhouse gases.","Will the policy or proposal:\n•\tReduce GHG emissions?\n•\tSupport the shift towards low carbon technologies and the usage of electric and ultralow emissions vehicles and appropriate infrastructure to support these?\n•\tProvide opportunities to access local services and facilities by low carbon public transport, walking or wheeling?\n•\tPromote a low carbon local economy? \n•\tReduce levels of embodied carbon?","No",null,null,null,"Direct","Medium","Long(20+yrs)","Localised","Permanent/Irreversible","Minor Negative","There are likely to be significant GHG emissions associated with the construction  from embodied carbon within building materials, as well as carbon emissions from construction traffic and construction plant. Building efficiency measures are anticipated to reduce energy use in operation. The development will promote sustainable travel modes, reducing car reliance and GHG emissions from transport. The application of Policy CL5 should be applied to minimise embodied carbon. However, a minor negative effect is recorded due to construction emissions.","Yes","Any form of construction and operation should be undertaken as sustainably as possible, making use of tools and processes, such as circular economy, waste hierarchy and should consider BREEAM and BREEAM Infrastructure.","N/A"]
["SA15: Transport and Accessibility\nTo reduce the number of journeys made by car, within and to and from the area and improve access to jobs, services and facilities.","Will the policy or proposal:\n•\tUtilise and enhance existing infrastructure?\n•\tHelp to meet local needs locally through low carbon travel options?\n•\tFacilitate safe walking and cycling?\n•\tFacilitate the use of public transport?\n•\tDeliver opportunities to relieve traffic congestion?\n•\tEncourage travel planning for businesses?\n•\tHelp to reduce the distances people have to travel on a regular basis for education, employment and services?\n•\tHelp to improve access to services and facilities for those living in rural or remote settlements, or experiencing other access constraints?\n•\tHelp to support homeworking by residents?","Yes",2,1,0,"Direct","Medium","Long(20+yrs)","Borough-wide","Permanent/Irreversible","Minor Positive","The site is anticipated to develop improved pedestrian connections. Financial contributions will also be made to public transport improvements. A minor positive is recorded given the plans considerations of transport and accessibility for residents. ","Yes","N/A","N/A"]
["SA16: Geology and Soils\nTo minimise water and soil pollution and ensure protection of natural resources including greenfield land, soil, and minerals resources.","Will the policy or proposal:\n•\tUtilise previously developed land?\n•\tSeek to improve or remediate contaminated land or reuse previously developed land which has not been restored?\n•\tProtect soil quality and avoid soil pollution?\n•\tProtect Best and Most Versatile (BMV) Agricultural Land?\n•\tProtect Greenbelt/ Green Wedges land?\n•\tProtect sites safeguarded for mineral workings?","Yes",1,1,2,"Direct","High","Long(20+yrs)","Localised","Permanent/Irreversible","Significant Negative","The site is located on greenfield land that is currently utilised for agriculture. This land is of ALC grade 3 and 4. Development at the site will result in the loss of greenfield agricultural land.","Yes","Where possible, development should be located to avoid the loss of BMV agricultural land.","N/A"]
["SA17: Waste\nTo minimise the generation of waste and effectively manage waste that is created.","Will the policy or proposal:\n•\tEnhance opportunities for waste to be treated in line with circular economy principles (e.g. recycling, re-using, composting)?\n•\tProvide adequate waste separation facilities in new and existing developments in order to encourage more recycling?\n•\tEncourage the repurposing and refurbishing of buildings, instead of demolition?","Yes",0,0,1,"Indirect","High","Long(20+yrs)","Localised","Permanent/Irreversible","Minor Negative","Development should support the use of sustainably sourced/recycled materials in line with Policy GD1. This should help minimise waste from the development's construction phase. However, once in use, the development is likely to produce waste in operation which could have a greater impact than waste through construction. However, the Local Plan is unable to control the generation of waste beyond development of the site. It will only be able to ensure that developments are designed to ensure that users can separate waste facilitating them to follow the waste hierarchy. ","Yes","A Site Waste Management Plan should be prepared as part of the CEMP and OEMP. ","N/A"]

{"sheet":"HA5","index":10,"n_rows":28,"n_cols":16,"rows_kept":28,"cut":false,"hidden":false,"merged":[[9,0,9,1],[9,2,9,5],[9,6,9,15]]}
["Site Name","The Hollow, Mickleover"]
["Site Address"]
["Town/Locality"]
["Est Housing Yield/Employment Space",150]
["Site Area (ha)"]
["Site Description"]
["Greenfield/Brownfield","Greenfield"]
["Assumptions Made"]
[]
["SA Framework",null,"GIS Inputs",null,null,null,"SA  Assessment"]
["SA objective","Supporting Questions","GIS Data Available?","R","A","G","Direct/\nIndirect","Magnitude","Duration","Spatial Extent","Permanence/ Reversibility","Significance","Description of potential effects","Potential for cumulative effects? ","Mitigation","Enhancements"]
["SA1: Population and Equalities\nTo build inclusive communities by reducing social exclusion, reducing deprivation, promoting equity, equality and respecting diversity, improving local accessibility to healthcare, education, employment, retail facilities and recreational resources (including open spaces and sports facilities).  ","Will the policy or proposal:\n•\tHelp to reduce deprivation and the inequality gap?\n•\tEnsure all residents have equitable access to health services?\n•\tConsider the needs of an aging population?\n•\tEnsure new housing is well related located, close to a range of services such as shops, schools and employment opportunities?\n•\tImprove opportunities for active travel including walking and cycling?\n•\tEnsure everyone has access to high quality open space and recreation facilities?\n•\tProtect community facilities and improve access to important local services for the most deprived?","Yes",0,0,3,"Direct","High","Long(20+yrs)","Regional","Permanent/Irreversible","Significant Positive","The site is anticipated to provide 150 dwellings. However the provision of affordable and adaptable homes is currently uncertain, although this is anticipated to include a mix of housing types. In addition, there is anticipated to be investment in existing education and the provision of a new school/schools for this cross-boundary community on the South Derbyshire part of the site. The site is also anticipated to improve transport links with existing communities in order to ensure adequate access to facilities for residents, through contributions to improvements. It is also expected that the South Derbyshire element of the location will provide infrastructure in the form a number of facilities to support the wider cross-boundary development, including a business park, schools, a local centre and parkland, which may provide improved access to these services for those at this site, within Derby.","Yes","N/A","N/A"]
["SA2: Human Health\nTo improve health and wellbeing and reduce health inequalities, improving quality of life for all.","Will the policy or proposal:\n•\tHelp to improve health and reduce health inequalities?\n•\tContribute to healthy lifestyles?\n•\tEncourage walking, cycling and a reduction in private car use?\n•\tHelp to ensure health services are provided alongside development?\n•\tProtect existing services?","Yes",2,1,2,"Direct","Medium","Long(20+yrs)","Localised","Permanent/Reversible","Minor Positive","Whilst the site is currently in an area of high health deprivation. However, the site includes the provision of open space, improvements to walking routes, as well as contributions towards public transport. This is anticipated to improve opportunities for physical activity at the site, and provide access to existing services.","Yes","N/A","N/A"]
["SA3: Economy\nTo deliver economic growth and support the creation of new and retention of existing businesses.","Will the policy or proposal:\n•\tSupport the growth of higher skilled economic sectors? \n•\tProvide new employment premises which meet identified local needs in the area? \n•\tImprove business infrastructure, such as broadband and provide attractive sites for modern businesses?\n•\tSupport the city’s retail sector, especially the city centre and other retail centres?","Yes",1,0,1,"Direct","High","Long(20+yrs)","Borough-wide","Permanent/Irreversible","Minor Positive","The site is located close to town centres, but further from primary shopping areas. Given that there will be 150 new dwellings developed, there is a likelihood for the nearby retail businesses in the nearby town centre to experience an increase in demand and footfall. The site is anticipated to be well located, close to the business park, schools, a local centre and parkland in neighbouring South Derbyshire, which could have employment opportunities for new residents.","Yes","N/A","N/A"]
["SA4: Employment\nTo create greater employment opportunities, higher value jobs and access to training.","Will the policy or proposal:\n•\tIncrease job availability?\n•\tIncrease the quality and choice of local employment?\n•\tImprove access to employment centres?\n•\tMeet the skills needs and future demand for labour?","Yes",1,1,1,"Direct","Medium","Long(20+yrs)","Borough-wide","Permanent/Reversible","Minor Positive","Given that the development is has potential to contribute to improving public transport links, access to employment may be improved. The site's connection with the proposed South Derbyshire site is also anticipated to link with a new business park, schools, and local centre. This may provide opportunity for employment for residents at this site.","Yes","N/A","N/A"]
["SA5: Crime and Safety\nTo reduce crime and the fear of crime for all residents inclusively, improving safety.","Will the policy or proposal:\n•\tHelp to create streets where people feel safe, particularly after dark?\n•\tMake a positive contribution to community cohesion?\n•\tSupport designing out crime principals? \n•\tReduce levels of crime derivation? \n•\tImprove road safety and reduce the number of people killed or seriously injured (KSI) on the roads, particularly children from deprived backgrounds? \n•\tCreate spaces where women and girls feel safe and included?","Yes",0,1,0,"Indirect","Low","Short/Medium","Localised","Permanent/Reversible","Minor Positive","The site is located within an area of medium crime deprivation (30-50% most deprived nationally). Developing the land from its existing greenfield use has potential for alterations to feelings of safety in the area. This is likely to be determined by individual scheme design. There is limited detail on whether designing out crime principles will be applied as part of the development. However, it is assumed that development should incorporate designing out crime principles in line with Policy GD5","Yes","N/A","N/A"]
["SA6: Housing\nTo provide everybody with access to an affordable home which is resilient to the effects of climate change.","Will the policy or proposal:\n•\tSupport a range of housing types and sizes, including affordable housing units??\n•\tEnsure that there is an adequate supply of housing development land to meet local needs?\n•\tBe sustainably designed and resilient to the effects of climate change and designed to meet all needs, for example “Lifetime Homes” standards?","Yes",0,1,0,"Direct","High","Long(20+yrs)","Regional","Permanent/Irreversible","Significant Positive","The provision of 150 new homes will help towards meeting Derby's housing target. The provision of affordable housing should be in line with requirements of Policy H4 and Policy H2 will ensure a mix of housing types and tenures is delivered. ","Yes","N/A","N/A"]
["SA7: Leisure and Recreation\nTo provide better opportunities for people to participate in cultural, leisure and recreational activities.","Will the policy or proposal:\n•\tHelp to improve access to formal and informal recreation facilities?\n•\tProvide opportunities for engagement in a range of cultural activities?\n•\tCreate new allotments where there is a demand?","Yes",1,0,2,"Direct","Medium","Medium/Long","Localised","Permanent/Reversible","Significant Positive","The site includes the provision of additional public open space on the site and is well located close to existing open space. Additionally, the provision of new community facilities on the South Derbyshire neighbouring site is anticipated to provide leisure and recreation facilities for the local population. ","Yes","N/A","N/A"]
["SA8: Biodiversity and Natural Capital\nTo protect and improve biodiversity, geo-diversity, including protect and enhance favourable conditions on SSSI’s, SPAs, SACs and other wildlife sites and improve connectivity between, and access to, green spaces and functional habitats.","Will the policy or proposal:\n•\tConserve and enhance habitats in the LNRS?\n•\tConserve and enhance species diversity and in particular avoid harm and increase the ranges of protected species?\n•\tProvide opportunities for new habitat creation and lead to a net gain in biodiversity?\n•\tProtect geo-diversity?\n•\tImprove the ecological quality and character of open spaces?\n•\tMaintain and enhance woodland cover and management in appropriate areas (e.g. areas of ash dieback)?\n•\tMaintain or enhance tree cover?\n•\tProtect and promote effective management of SPAs and SACs in the LP area and its surroundings?\n•\tHelp to protect and enhance other designated sites e.g., SSSIs, Wildlife Sites, LNRs etc?\n•\tImprove climate change adaptation through provision of accessible green space or green and blue infrastructure?\n•\tPrevent the fragmentation of habitats, provide links between green spaces or help to deliver/support other ecological networks?\n•\tSupport the natural capital of the city?","Yes",0,0,2,"Direct","Medium","Long(20+yrs)","Localised","Permanent/Reversible","Minor Positive","The site is located away from designated sites. There is potential for some adverse effects on small-scale habitats and species during construction. However, is anticipated that the site will result in improvements to green infrastructure and biodiversity, which may help to provide new small scale habitats. Additionally, biodiversity enhancement is anticipated meet minimum standards of 10% for all developments, as set out in Policy EN10.","Yes","N/A","N/A"]
["SA9: Landscape and Townscape\nTo protect and enhance the character and appearance of the landscape and townscape, including landscape and townscape assets, as well as the area’s other natural assets and resources.","Will the policy or proposal:\n•\tProtect and enhance landscape and townscape quality, character and distinctiveness?\n•\tAvoid loss of, and damage to greenbelt / green wedge land?\n•\tMake use of previously used / brownfield land and buildings?\n•\tSafeguard individual landscape and townscape features such as hedgerows, ponds, public squares, etc?","Yes",1,0,1,"Direct","High","Long(20+yrs)","Localised","Permanent/Irreversible","Minor Negative","The site is located within a green wedge and on an area of greenfield land. The development at the site has potential to result in alteration of the visual landscape. The proposed development should be designed to be sensitive to existing landscape settings and aim to enhance the landscape and implement high quality design, in line with Policy GD1 and GD2. However this is likely to be determined by individual scheme design. Therefore, a minor negative effect is recorded.","Yes","Sensitive design should be considered for any new developments to ensure positive effects on local assets and landscapes.\nCare must be taken to ensure that high density development and tall buildings do not have a significant visual impact.","N/A"]
["SA10: Historic Environment\nTo conserve and enhance the historic environment, heritage assets (including known and unknown archaeological sites) and their settings and maintain and enhance access to cultural heritage for enjoyment and educational purposes.   ","Will the policy or proposal:\n•\tPreserve and enhance the character or appearance of conservation areas and their settings?\n•\tPreserve or enhance heritage assets and their settings?\n•\tPreserve or enhance archaeological features and their settings?\n•\tImprove the condition of heritage at risk? \n•\tRe-use/retain historic buildings or fabric?\n•\tProtect and conserve the Outstanding Universal Value of the DVMWHS?","Yes",0,1,6,"Direct","Medium","Medium/Long","Localised","Temporary/Reversible","Minor Positive","The site is located within 250m of a listed building. Construction could disrupt the setting of the asset through noise and vibration, as well as changes to visual amenity. However, the implementation of high quality design may enhance the setting of this asset. Additionally, development is anticipated to be undertaken in line with Policy EN11, ensuring efforts to preserve Derby's historic environment.","Yes","A lighting strategy should be prepared to minimise light spill onto heritage assets.","N/A"]
["SA11: Air, Noise and Light Pollution\nTo maintain good local air quality and to minimise noise and light pollution","Will the policy or proposal:\n•\tMaintain or improve local air quality?\n•\tEncourage the installation of electric vehicle charging points?\n•\tAvoid adverse impacts from noise?\n•\tMinimise light pollution?","Yes",1,0,1,"Indirect","Medium","Medium(10yrs)","Localised","Permanent/Reversible","Minor Negative","The site is not well located in terms of proximity to sustainable transport, which may increase private vehicle use in the short term, prior to potential public transport improvements. There will be temporary negative effects on air quality and noise due to dust generation and emissions from construction.","Yes","A Dust Management Plan should be prepared as part of the Construction Environmental Management Plan (CEMP).","N/A"]
["SA12: Water Environment\nTo ensure sustainable management of water resources and to minimise the risk of flooding.","Will the policy or proposal: \n•\tMinimise contamination of watercourses and improve water quality in watercourses?\n•\tAvoid exacerbating flood risk for any source and be designed to be resilient to flood risk for its lifetime?\n•\tSupport the use of Sustainable Drainage Systems?\n•\tEncourage water efficiency and demand management?\n•\tAvoid deterioration and enhance the ecological status of water bodies? \n•\tContribute toward achieving Water Framework Directive objectives?","Yes",3,0,1,"Direct","High","Long(20+yrs)","Localised","Permanent/Irreversible","Minor Negative","As outlined in the Local Plan, development at the site is required to include a comprehensive surface water management scheme. However, the site is located in close proximity to a water body and also sits in an area of flood zone 3. Development at the site is anticipated to increase impermeable surfaces, increasing surface runoff and exacerbating flood risk. There is also potential for surface runoff during construction to result in pollution of the nearby water body. Development should accord with flood risk mitigation measures outlined in Policy CL1. The application of SuDS (in line with Policy CL1) should be demonstrated to reduce the risk of run-off and surface water flooding. ","Yes","Development should be in line with the NPPF and guidance from the Environment Agency. ","N/A"]
["SA13: Climate Change\nAdapt to the effects of climate change including flood risk, extreme weather and overheating, and strengthen climate resilience.","Will the policy or proposal:\n•\tMinimise flood risk and ensure new development provides sustainable urban drainage?\n•\tEnsure new development is designed to withstand future climate change (e.g. overheating and increased storm severity)?\n•\tIncrease and improve green and blue infrastructure to create a connected network across the city and within the wider area?\n•\tEnsure surface and groundwater water resources are used efficiently?\n•\tReduce energy consumption?\n•\tSupport the delivery of renewable and decentralised energy capacity (including small scale or community energy projects)?\n•\tSupport energy efficient design?","Yes",2,0,2,"Direct","High","Medium(10yrs)","Localised","Temporary/Irreversible","Minor Negative","The site is located within a flood zone 3 but within 50m of flood defences and the plan cited the need for an appropriate and acceptable surface water management plan to be in place for this site.  Implementation of surface water drainage measures may aid in reducing flood risk at the site, improving climate resilience. However, given that the site is located within an area of flood zone 3 and that flood defences will need to be maintained to ensure that the site in this area is resilient to climate change, a minor negative effect is recorded.","Yes","Development should look into incorporating renewable energy generation methods such as solar panels, and should incorporate design measures that will reduce effects of climate change, such as zonal heating systems, water saving initiatives and energy monitoring devices.","N/A"]
["SA14: Greenhouse Gases\nTo reduce the contribution towards the emission of greenhouse gases.","Will the policy or proposal:\n•\tReduce GHG emissions?\n•\tSupport the shift towards low carbon technologies and the usage of electric and ultralow emissions vehicles and appropriate infrastructure to support these?\n•\tProvide opportunities to access local services and facilities by low carbon public transport, walking or wheeling?\n•\tPromote a low carbon local economy? \n•\tReduce levels of embodied carbon?","No",null,null,null,"Direct","Medium","Long(20+yrs)","Localised","Permanent/Irreversible","Minor Negative","There are likely to be significant GHG emissions associated with the construction  from embodied carbon within building materials, as well as carbon emissions from construction traffic and construction plant. Building efficiency measures are anticipated to reduce energy use in operation. The development will promote sustainable travel modes, reducing car reliance and GHG emissions from transport. The application of Policy CL5 should be applied to minimise embodied carbon. However, a minor negative effect is recorded due to construction emissions.","Yes","Any form of construction and operation should be undertaken as sustainably as possible, making use of tools and processes, such as circular economy, waste hierarchy and should consider BREEAM and BREEAM Infrastructure.","N/A"]
["SA15: Transport and Accessibility\nTo reduce the number of journeys made by car, within and to and from the area and improve access to jobs, services and facilities.","Will the policy or proposal:\n•\tUtilise and enhance existing infrastructure?\n•\tHelp to meet local needs locally through low carbon travel options?\n•\tFacilitate safe walking and cycling?\n•\tFacilitate the use of public transport?\n•\tDeliver opportunities to relieve traffic congestion?\n•\tEncourage travel planning for businesses?\n•\tHelp to reduce the distances people have to travel on a regular basis for education, employment and services?\n•\tHelp to improve access to services and facilities for those living in rural or remote settlements, or experiencing other access constraints?\n•\tHelp to support homeworking by residents?","Yes",3,0,0,"N/A","N/A","N/A","N/A","N/A","Uncertain","Whilst current access to transport at the site is poor, the site is anticipated to improve pedestrian routes and make contributions to enhancements of public transport, in line with Policy T1. However, the nature of potential public transport improvements is currently unknown.","Yes","The development requirements should ensure that a bus service is provided.","N/A"]
["SA16: Geology and Soils\nTo minimise water and soil pollution and ensure protection of natural resources including greenfield land, soil, and minerals resources.","Will the policy or proposal:\n•\tUtilise previously developed land?\n•\tSeek to improve or remediate contaminated land or reuse previously developed land which has not been restored?\n•\tProtect soil quality and avoid soil pollution?\n•\tProtect Best and Most Versatile (BMV) Agricultural Land?\n•\tProtect Greenbelt/ Green Wedges land?\n•\tProtect sites safeguarded for mineral workings?","Yes",1,1,2,"Direct","High","Long(20+yrs)","Localised","Permanent/Irreversible","Significant Negative","The site is located on greenfield land that is currently utilised for agriculture. This land is of ALC grade 3 and 4. Development at the site will result in the loss of greenfield agricultural land.","Yes","Where possible, development should be located to avoid the loss of BMV agricultural land.","N/A"]
["SA17: Waste\nTo minimise the generation of waste and effectively manage waste that is created.","Will the policy or proposal:\n•\tEnhance opportunities for waste to be treated in line with circular economy principles (e.g. recycling, re-using, composting)?\n•\tProvide adequate waste separation facilities in new and existing developments in order to encourage more recycling?\n•\tEncourage the repurposing and refurbishing of buildings, instead of demolition?","Yes",0,0,1,"Indirect","High","Long(20+yrs)","Localised","Permanent/Irreversible","Minor Negative","Development should support the use of sustainably sourced/recycled materials in line with Policy GD1. This should help minimise waste from the development's construction phase. However, once in use, the development is likely to produce waste in operation which could have a greater impact than waste through construction. However, the Local Plan is unable to control the generation of waste beyond development of the site. It will only be able to ensure that developments are designed to ensure that users can separate waste facilitating them to follow the waste hierarchy. ","Yes","A Site Waste Management Plan should be prepared as part of the CEMP and OEMP. ","N/A"]

{"sheet":"HA6","index":11,"n_rows":28,"n_cols":16,"rows_kept":28,"cut":false,"hidden":false,"merged":[[9,0,9,1],[9,2,9,5],[9,6,9,15]]}
["Site Name","Former Manor/Kingsway Hospital"]
["Site Address"]
["Town/Locality"]
["Est Housing Yield/Employment Space",130]
["Site Area (ha)"]
["Site Description"]
["Greenfield/Brownfield","Brownfield"]
["Assumptions Made"]
[]
["SA Framework",null,"GIS Inputs",null,null,null,"SA  Assessment"]
["SA objective","Supporting Questions","GIS Data Available?","R","A","G","Direct/\nIndirect","Magnitude","Duration","Spatial Extent","Permanence/ Reversibility","Significance","Description of potential effects","Potential for cumulative effects? ","Mitigation","Enhancements"]
["SA1: Population and Equalities\nTo build inclusive communities by reducing social exclusion, reducing deprivation, promoting equity, equality and respecting diversity, improving local accessibility to healthcare, education, employment, retail facilities and recreational resources (including open spaces and sports facilities).  ","Will the policy or proposal:\n•\tHelp to reduce deprivation and the inequality gap?\n•\tEnsure all residents have equitable access to health services?\n•\tConsider the needs of an aging population?\n•\tEnsure new housing is well related located, close to a range of services such as shops, schools and employment opportunities?\n•\tImprove opportunities for active travel including walking and cycling?\n•\tEnsure everyone has access to high quality open space and recreation facilities?\n•\tProtect community facilities and improve access to important local services for the most deprived?","Yes",0,1,2,"Direct","High","Long(20+yrs)","Regional","Permanent/Irreversible","Significant Positive","The site is anticipated to provide a minimum of 130 new homes, however the provision of affordable and adaptable homes is currently uncertain. The site is neighbouring the adjacent Royal Derby Hospital, which supports the health of the community as well as possible employment provision to residents at the site. There are two adjacent retail parks supporting the day to day needs of residents.","Yes","N/A","N/A"]
["SA2: Human Health\nTo improve health and wellbeing and reduce health inequalities, improving quality of life for all.","Will the policy or proposal:\n•\tHelp to improve health and reduce health inequalities?\n•\tContribute to healthy lifestyles?\n•\tEncourage walking, cycling and a reduction in private car use?\n•\tHelp to ensure health services are provided alongside development?\n•\tProtect existing services?","Yes",2,0,3,"N/A","N/A","N/A","N/A","N/A","Uncertain","As housing is a key determinant of health, the delivery of this is likely to provide health benefits. The site does have good access to healthcare and open space; however, the site is located in an area of high health deprivation. It is not clear whether the current provision will meet the needs of the additional population.","Yes","Further assessment as part of scheme level design should be undertaken, to evaluate the provision of new facilities and ensure that supply is sufficient in supporting new communities.","N/A"]
["SA3: Economy\nTo deliver economic growth and support the creation of new and retention of existing businesses.","Will the policy or proposal:\n•\tSupport the growth of higher skilled economic sectors? \n•\tProvide new employment premises which meet identified local needs in the area? \n•\tImprove business infrastructure, such as broadband and provide attractive sites for modern businesses?\n•\tSupport the city’s retail sector, especially the city centre and other retail centres?","Yes",0,0,2,"Indirect","Low","Medium(10yrs)","Localised","Temporary/Reversible","Minor Positive","The site is located within 800m of the nearest town centre and primary shopping area. The proximity to these facilities will likely support the needs of residents as well as support the economy in this area by increasing footfall. Therefore a potential minor positive effect is recorded.","Yes","N/A","N/A"]
["SA4: Employment\nTo create greater employment opportunities, higher value jobs and access to training.","Will the policy or proposal:\n•\tIncrease job availability?\n•\tIncrease the quality and choice of local employment?\n•\tImprove access to employment centres?\n•\tMeet the skills needs and future demand for labour?","Yes",0,2,1,"Direct","High","Long(20+yrs)","Regional","Permanent/Irreversible","Minor Positive","The site is in an area of the 30-50% most income and employment deprived nationally. However, it is well located in relation to existing employment sites, which may provide employment opportunities.","Yes","N/A","N/A"]
["SA5: Crime and Safety\nTo reduce crime and the fear of crime for all residents inclusively, improving safety.","Will the policy or proposal:\n•\tHelp to create streets where people feel safe, particularly after dark?\n•\tMake a positive contribution to community cohesion?\n•\tSupport designing out crime principals? \n•\tReduce levels of crime derivation? \n•\tImprove road safety and reduce the number of people killed or seriously injured (KSI) on the roads, particularly children from deprived backgrounds? \n•\tCreate spaces where women and girls feel safe and included?","Yes",0,1,0,"Indirect","Low","Medium(10yrs)","Localised","Permanent/Irreversible","Minor Positive","The site is located within an area of medium crime deprivation (30-50% most deprived nationally). Developing the land from its existing park and ride facility use has potential for alterations to feelings of safety in the area. Additionally, the implementation of active frontages is likely to improve feelings of safety in the area. It is anticipated that development should incorporate designing out crime principles in line with Policy GD5.","Yes","N/A","N/A"]
["SA6: Housing\nTo provide everybody with access to an affordable home which is resilient to the effects of climate change.","Will the policy or proposal:\n•\tSupport a range of housing types and sizes, including affordable housing units??\n•\tEnsure that there is an adequate supply of housing development land to meet local needs?\n•\tBe sustainably designed and resilient to the effects of climate change and designed to meet all needs, for example “Lifetime Homes” standards?","Yes",0,0,1,"Direct","High","Long(20+yrs)","Regional","Permanent/Irreversible","Significant Positive","The provision of 130 new homes will help towards meeting Derby's housing target. The provision of affordable housing should be in line with requirements of Policy H4 and Policy H2 will ensure a mix of housing types and tenures is delivered. ","Yes","N/A","N/A"]
["SA7: Leisure and Recreation\nTo provide better opportunities for people to participate in cultural, leisure and recreational activities.","Will the policy or proposal:\n•\tHelp to improve access to formal and informal recreation facilities?\n•\tProvide opportunities for engagement in a range of cultural activities?\n•\tCreate new allotments where there is a demand?","Yes",0,0,3,"Direct","Medium","Medium/Long","Localised","Permanent/Reversible","Minor Positive","The site includes the maintenance of on-site open space, improving opportunities for informal recreation.","Yes","N/A","N/A"]
["SA8: Biodiversity and Natural Capital\nTo protect and improve biodiversity, geo-diversity, including protect and enhance favourable conditions on SSSI’s, SPAs, SACs and other wildlife sites and improve connectivity between, and access to, green spaces and functional habitats.","Will the policy or proposal:\n•\tConserve and enhance habitats in the LNRS?\n•\tConserve and enhance species diversity and in particular avoid harm and increase the ranges of protected species?\n•\tProvide opportunities for new habitat creation and lead to a net gain in biodiversity?\n•\tProtect geo-diversity?\n•\tImprove the ecological quality and character of open spaces?\n•\tMaintain and enhance woodland cover and management in appropriate areas (e.g. areas of ash dieback)?\n•\tMaintain or enhance tree cover?\n•\tProtect and promote effective management of SPAs and SACs in the LP area and its surroundings?\n•\tHelp to protect and enhance other designated sites e.g., SSSIs, Wildlife Sites, LNRs etc?\n•\tImprove climate change adaptation through provision of accessible green space or green and blue infrastructure?\n•\tPrevent the fragmentation of habitats, provide links between green spaces or help to deliver/support other ecological networks?\n•\tSupport the natural capital of the city?","Yes",0,1,1,"Direct","Medium","Long(20+yrs)","Localised","Permanent/Reversible","Minor Positive","The site is located within 800m of a local nature reserve. Whilst the impact on the LNR land itself may be unaffected, the development of the site could have a negative impact on the surrounding wildlife through construction activities, particularly exacerbating noise and air quality pollution. Including additional tree planting and green corridors at the site may contribute to small scale biodiversity enhancements at the site. Additionally, biodiversity enhancement is anticipated meet minimum standards of 10% for all developments, as set out in Policy EN10.","Yes","N/A","N/A"]
["SA9: Landscape and Townscape\nTo protect and enhance the character and appearance of the landscape and townscape, including landscape and townscape assets, as well as the area’s other natural assets and resources.","Will the policy or proposal:\n•\tProtect and enhance landscape and townscape quality, character and distinctiveness?\n•\tAvoid loss of, and damage to greenbelt / green wedge land?\n•\tMake use of previously used / brownfield land and buildings?\n•\tSafeguard individual landscape and townscape features such as hedgerows, ponds, public squares, etc?","Yes",0,0,2,"Direct","Medium","Long(20+yrs)","Localised","Permanent/Irreversible","Significant Positive","The site is located away from green belts and green wedges and is on brownfield land. Development of the existing park and ride facility is anticipated to result in enhancement of the local townscape setting, through high quality design and the implementation of green corridors.","Yes","N/A","N/A"]
["SA10: Historic Environment\nTo conserve and enhance the historic environment, heritage assets (including known and unknown archaeological sites) and their settings and maintain and enhance access to cultural heritage for enjoyment and educational purposes.   ","Will the policy or proposal:\n•\tPreserve and enhance the character or appearance of conservation areas and their settings?\n•\tPreserve or enhance heritage assets and their settings?\n•\tPreserve or enhance archaeological features and their settings?\n•\tImprove the condition of heritage at risk? \n•\tRe-use/retain historic buildings or fabric?\n•\tProtect and conserve the Outstanding Universal Value of the DVMWHS?","Yes",1,0,6,"Indirect","Medium","Long(20+yrs)","Localised","Permanent/Irreversible","Minor Positive","The site is located within 100m from a listed building. Construction could disrupt the setting of the asset through noise and vibration, as well as changes to visual amenity. However, the implementation of high quality design may enhance the setting of this asset. Additionally, development is anticipated to be undertaken in line with Policy EN11, ensuring efforts to preserve Derby's historic environment.","Yes","A lighting strategy should be prepared to minimise light spill onto heritage assets.","N/A"]
["SA11: Air, Noise and Light Pollution\nTo maintain good local air quality and to minimise noise and light pollution","Will the policy or proposal:\n•\tMaintain or improve local air quality?\n•\tEncourage the installation of electric vehicle charging points?\n•\tAvoid adverse impacts from noise?\n•\tMinimise light pollution?","Yes",2,0,0,"Direct","Medium","Short/Medium","Localised","Permanent/Reversible","Minor Negative","The site intersects with an AQMAs and is located within areas of high light pollution. Development at the site is likely to result in temporary negative effects on air quality and noise due to dust generation and emissions from construction. This is anticipated to temporarily worsen air quality within the AQMA.","Yes","A Dust Management Plan should be prepared as part of the Construction Environmental Management Plan (CEMP).","N/A"]
["SA12: Water Environment\nTo ensure sustainable management of water resources and to minimise the risk of flooding.","Will the policy or proposal: \n•\tMinimise contamination of watercourses and improve water quality in watercourses?\n•\tAvoid exacerbating flood risk for any source and be designed to be resilient to flood risk for its lifetime?\n•\tSupport the use of Sustainable Drainage Systems?\n•\tEncourage water efficiency and demand management?\n•\tAvoid deterioration and enhance the ecological status of water bodies? \n•\tContribute toward achieving Water Framework Directive objectives?","Yes",0,0,4,"N/A","N/A","N/A","N/A","N/A","Neutral","The development of the site is not anticipated to have any potential effect on this objective. ","No","N/A","N/A"]
["SA13: Climate Change\nAdapt to the effects of climate change including flood risk, extreme weather and overheating, and strengthen climate resilience.","Will the policy or proposal:\n•\tMinimise flood risk and ensure new development provides sustainable urban drainage?\n•\tEnsure new development is designed to withstand future climate change (e.g. overheating and increased storm severity)?\n•\tIncrease and improve green and blue infrastructure to create a connected network across the city and within the wider area?\n•\tEnsure surface and groundwater water resources are used efficiently?\n•\tReduce energy consumption?\n•\tSupport the delivery of renewable and decentralised energy capacity (including small scale or community energy projects)?\n•\tSupport energy efficient design?","Yes",0,0,4,"Direct","Low","Medium(10yrs)","Localised","Temporary/Irreversible","Minor Positive","The site is not located within a flood zone. However, climate resilience measures, including energy efficiency measures are currently unknown. The site includes green infrastructure provision, which is anticipated to improve climate resilience.","Yes","Development should look into incorporating renewable energy generation methods such as solar panels, and should incorporate design measures that will reduce effects of climate change, such as zonal heating systems, water saving initiatives and energy monitoring devices.","N/A"]
["SA14: Greenhouse Gases\nTo reduce the contribution towards the emission of greenhouse gases.","Will the policy or proposal:\n•\tReduce GHG emissions?\n•\tSupport the shift towards low carbon technologies and the usage of electric and ultralow emissions vehicles and appropriate infrastructure to support these?\n•\tProvide opportunities to access local services and facilities by low carbon public transport, walking or wheeling?\n•\tPromote a low carbon local economy? \n•\tReduce levels of embodied carbon?","No",null,null,null,"Direct","Medium","Long(20+yrs)","Localised","Permanent/Irreversible","Minor Negative","There are likely to be significant GHG emissions associated with the construction  from embodied carbon within building materials, as well as carbon emissions from construction traffic and construction plant. Building efficiency measures are anticipated to reduce energy use in operation. The development will promote sustainable travel modes, reducing car reliance and GHG emissions from transport. The application of Policy CL5 should be applied to minimise embodied carbon. However, a minor negative effect is recorded due to construction emissions.","Yes","Any form of construction and operation should be undertaken as sustainably as possible, making use of tools and processes, such as circular economy, waste hierarchy and should consider BREEAM and BREEAM Infrastructure.","N/A"]
["SA15: Transport and Accessibility\nTo reduce the number of journeys made by car, within and to and from the area and improve access to jobs, services and facilities.","Will the policy or proposal:\n•\tUtilise and enhance existing infrastructure?\n•\tHelp to meet local needs locally through low carbon travel options?\n•\tFacilitate safe walking and cycling?\n•\tFacilitate the use of public transport?\n•\tDeliver opportunities to relieve traffic congestion?\n•\tEncourage travel planning for businesses?\n•\tHelp to reduce the distances people have to travel on a regular basis for education, employment and services?\n•\tHelp to improve access to services and facilities for those living in rural or remote settlements, or experiencing other access constraints?\n•\tHelp to support homeworking by residents?","Yes",2,0,1,"Direct","Medium","Long(20+yrs)","Borough-wide","Permanent/Irreversible","Minor Positive","The site is well connected to the wider area, and has potential to improve connections, improving accessibility within the site and surrounding area.","Yes","N/A","N/A"]
["SA16: Geology and Soils\nTo minimise water and soil pollution and ensure protection of natural resources including greenfield land, soil, and minerals resources.","Will the policy or proposal:\n•\tUtilise previously developed land?\n•\tSeek to improve or remediate contaminated land or reuse previously developed land which has not been restored?\n•\tProtect soil quality and avoid soil pollution?\n•\tProtect Best and Most Versatile (BMV) Agricultural Land?\n•\tProtect Greenbelt/ Green Wedges land?\n•\tProtect sites safeguarded for mineral workings?","Yes",0,0,4,"Direct","Medium","Long(20+yrs)","Borough-wide","Permanent/Reversible","Significant Positive","The site is located on brownfield land. Development at this site will support the protection of agricultural land, therefore a potential significant positive effect is recorded. ","Yes","N/A","N/A"]
["SA17: Waste\nTo minimise the generation of waste and effectively manage waste that is created.","Will the policy or proposal:\n•\tEnhance opportunities for waste to be treated in line with circular economy principles (e.g. recycling, re-using, composting)?\n•\tProvide adequate waste separation facilities in new and existing developments in order to encourage more recycling?\n•\tEncourage the repurposing and refurbishing of buildings, instead of demolition?","Yes",0,0,1,"Indirect","High","Long(20+yrs)","Localised","Permanent/Irreversible","Minor Negative","Development should support the use of sustainably sourced/recycled materials in line with Policy GD1. This should help minimise waste from the development's construction phase. However, once in use, the development is likely to produce waste in operation which could have a greater impact than waste through construction. However, the Local Plan is unable to control the generation of waste beyond development of the site. It will only be able to ensure that developments are designed to ensure that users can separate waste facilitating them to follow the waste hierarchy. ","Yes","A Site Waste Management Plan should be prepared as part of the CEMP and OEMP. ","N/A"]

{"sheet":"HA7","index":12,"n_rows":28,"n_cols":16,"rows_kept":28,"cut":false,"hidden":false,"merged":[[9,0,9,1],[9,2,9,5],[9,6,9,15]]}
["Site Name","Stoney Lane, Spondon"]
["Site Address"]
["Town/Locality"]
["Est Housing Yield/Employment Space",400]
["Site Area (ha)"]
["Site Description"]
["Greenfield/Brownfield","Greenfield"]
["Assumptions Made"]
[]
["SA Framework",null,"GIS Inputs",null,null,null,"SA  Assessment"]
["SA objective","Supporting Questions","GIS Data Available?","R","A","G","Direct/\nIndirect","Magnitude","Duration","Spatial Extent","Permanence/ Reversibility","Significance","Description of potential effects","Potential for cumulative effects? ","Mitigation","Enhancements"]
["SA1: Population and Equalities\nTo build inclusive communities by reducing social exclusion, reducing deprivation, promoting equity, equality and respecting diversity, improving local accessibility to healthcare, education, employment, retail facilities and recreational resources (including open spaces and sports facilities).  ","Will the policy or proposal:\n•\tHelp to reduce deprivation and the inequality gap?\n•\tEnsure all residents have equitable access to health services?\n•\tConsider the needs of an aging population?\n•\tEnsure new housing is well related located, close to a range of services such as shops, schools and employment opportunities?\n•\tImprove opportunities for active travel including walking and cycling?\n•\tEnsure everyone has access to high quality open space and recreation facilities?\n•\tProtect community facilities and improve access to important local services for the most deprived?","Yes",0,1,2,"Direct","High","Long(20+yrs)","Regional","Permanent/Irreversible","Significant Positive","The site is anticipated to provide a minimum of 400 new homes, with a minimum of 40% being affordable housing which should help to reduce deprivation, as well as reducing the inequality gap. Financial contributions are planned for the provision of improved education infrastructure. ","Yes","N/A","N/A"]
["SA2: Human Health\nTo improve health and wellbeing and reduce health inequalities, improving quality of life for all.","Will the policy or proposal:\n•\tHelp to improve health and reduce health inequalities?\n•\tContribute to healthy lifestyles?\n•\tEncourage walking, cycling and a reduction in private car use?\n•\tHelp to ensure health services are provided alongside development?\n•\tProtect existing services?","Yes",2,0,3,"Direct","Medium","Long(20+yrs)","Localised","Permanent/Reversible","Minor Positive","As housing is a key determinant of health, the delivery of this is likely to provide health benefits. The site does have good access to healthcare and open space; however, the site is located in an area of high health deprivation. It is not clear whether the current provision will meet the needs of the additional population. The site includes additional open space, which is anticipated to improve opportunities for physical activity.","Yes","N/A","N/A"]
["SA3: Economy\nTo deliver economic growth and support the creation of new and retention of existing businesses.","Will the policy or proposal:\n•\tSupport the growth of higher skilled economic sectors? \n•\tProvide new employment premises which meet identified local needs in the area? \n•\tImprove business infrastructure, such as broadband and provide attractive sites for modern businesses?\n•\tSupport the city’s retail sector, especially the city centre and other retail centres?","Yes",1,0,1,"Indirect","Low","Medium(10yrs)","Localised","Temporary/Reversible","Minor Positive","The site is located close to town centres, but further from primary shopping areas. Given that there will be 400 new dwellings developed, there is a likelihood for the nearby retail businesses in the nearby town centre to experience a significant increase in demand and footfall. ","Yes","N/A","N/A"]
["SA4: Employment\nTo create greater employment opportunities, higher value jobs and access to training.","Will the policy or proposal:\n•\tIncrease job availability?\n•\tIncrease the quality and choice of local employment?\n•\tImprove access to employment centres?\n•\tMeet the skills needs and future demand for labour?","Yes",2,0,1,"Direct","Low","Medium(10yrs)","Localised","Temporary/Reversible","Minor Positive","The site is located close to existing area of employment and an existing town centre. The site is within an area of high deprivation for income and employment, however there are a number of employment opportunities within Derby City Centre and near to the site.","Yes","N/A","N/A"]
["SA5: Crime and Safety\nTo reduce crime and the fear of crime for all residents inclusively, improving safety.","Will the policy or proposal:\n•\tHelp to create streets where people feel safe, particularly after dark?\n•\tMake a positive contribution to community cohesion?\n•\tSupport designing out crime principals? \n•\tReduce levels of crime derivation? \n•\tImprove road safety and reduce the number of people killed or seriously injured (KSI) on the roads, particularly children from deprived backgrounds? \n•\tCreate spaces where women and girls feel safe and included?","Yes",0,1,0,"Indirect","Low","Short/Medium","Localised","Permanent/Reversible","Minor Positive","The site is located within an area of medium crime deprivation (30-50% most deprived nationally). There is limited detail on whether designing out crime principles will be applied as part of the development. However, it is assumed that development should incorporate designing out crime principles in line with Policy GD5. This is likely to be determined by individual scheme design. ","Yes","N/A","N/A"]
["SA6: Housing\nTo provide everybody with access to an affordable home which is resilient to the effects of climate change.","Will the policy or proposal:\n•\tSupport a range of housing types and sizes, including affordable housing units??\n•\tEnsure that there is an adequate supply of housing development land to meet local needs?\n•\tBe sustainably designed and resilient to the effects of climate change and designed to meet all needs, for example “Lifetime Homes” standards?","Yes",0,1,0,"Direct","High","Long(20+yrs)","Regional","Permanent/Irreversible","Significant Positive","The provision of 400 new homes will help towards meeting Derby's housing target. The provision of affordable housing should be in line with requirements of Policy H4 and Policy H2 will ensure a mix of housing types and tenures is delivered. ","Yes","N/A","N/A"]
["SA7: Leisure and Recreation\nTo provide better opportunities for people to participate in cultural, leisure and recreational activities.","Will the policy or proposal:\n•\tHelp to improve access to formal and informal recreation facilities?\n•\tProvide opportunities for engagement in a range of cultural activities?\n•\tCreate new allotments where there is a demand?","Yes",0,0,3,"Direct","Medium","Medium/Long","Localised","Permanent/Reversible","Minor Positive","The site includes the maintenance of on-site open space nearby as well as the provision of transport and cycle/pedestrian routes, providing opportunities for recreation.","Yes","N/A","N/A"]
["SA8: Biodiversity and Natural Capital\nTo protect and improve biodiversity, geo-diversity, including protect and enhance favourable conditions on SSSI’s, SPAs, SACs and other wildlife sites and improve connectivity between, and access to, green spaces and functional habitats.","Will the policy or proposal:\n•\tConserve and enhance habitats in the LNRS?\n•\tConserve and enhance species diversity and in particular avoid harm and increase the ranges of protected species?\n•\tProvide opportunities for new habitat creation and lead to a net gain in biodiversity?\n•\tProtect geo-diversity?\n•\tImprove the ecological quality and character of open spaces?\n•\tMaintain and enhance woodland cover and management in appropriate areas (e.g. areas of ash dieback)?\n•\tMaintain or enhance tree cover?\n•\tProtect and promote effective management of SPAs and SACs in the LP area and its surroundings?\n•\tHelp to protect and enhance other designated sites e.g., SSSIs, Wildlife Sites, LNRs etc?\n•\tImprove climate change adaptation through provision of accessible green space or green and blue infrastructure?\n•\tPrevent the fragmentation of habitats, provide links between green spaces or help to deliver/support other ecological networks?\n•\tSupport the natural capital of the city?","Yes",0,0,2,"Direct","Medium","Long(20+yrs)","Localised","Permanent/Reversible","Minor Positive","The site is located away from designated sites. There is potential for some adverse effects on small-scale habitats and species during construction. However, is anticipated that the site will result in improvements to green infrastructure and biodiversity, which may help to provide new small scale habitats. Additionally, biodiversity enhancement is anticipated meet minimum standards of 10% for all developments, as set out in Policy EN10.","Yes","N/A","N/A"]
["SA9: Landscape and Townscape\nTo protect and enhance the character and appearance of the landscape and townscape, including landscape and townscape assets, as well as the area’s other natural assets and resources.","Will the policy or proposal:\n•\tProtect and enhance landscape and townscape quality, character and distinctiveness?\n•\tAvoid loss of, and damage to greenbelt / green wedge land?\n•\tMake use of previously used / brownfield land and buildings?\n•\tSafeguard individual landscape and townscape features such as hedgerows, ponds, public squares, etc?","Yes",1,0,1,"Direct","High","Long(20+yrs)","Localised","Permanent/Irreversible","Minor Negative","This site is located within a Green Belt land. Therefore, development at this site may negatively alter the landscape character in this area.  The proposed development should be designed to be sensitive to existing landscape settings and aim to enhance the landscape and implement high quality design, in line with Policy GD1 and GD2. However this is likely to be determined by individual scheme design. Therefore, a minor negative effect is recorded.","Yes","Sensitive design should be considered for any new developments to ensure positive effects on local assets and landscapes.\nCare must be taken to ensure that high density development and tall buildings do not have a significant visual impact.","N/A"]
["SA10: Historic Environment\nTo conserve and enhance the historic environment, heritage assets (including known and unknown archaeological sites) and their settings and maintain and enhance access to cultural heritage for enjoyment and educational purposes.   ","Will the policy or proposal:\n•\tPreserve and enhance the character or appearance of conservation areas and their settings?\n•\tPreserve or enhance heritage assets and their settings?\n•\tPreserve or enhance archaeological features and their settings?\n•\tImprove the condition of heritage at risk? \n•\tRe-use/retain historic buildings or fabric?\n•\tProtect and conserve the Outstanding Universal Value of the DVMWHS?","Yes",0,0,7,"N/A","N/A","N/A","N/A","N/A","Neutral","The development of the site is not anticipated to have any potential effect on this objective. ","Yes","N/A","N/A"]
["SA11: Air, Noise and Light Pollution\nTo maintain good local air quality and to minimise noise and light pollution","Will the policy or proposal:\n•\tMaintain or improve local air quality?\n•\tEncourage the installation of electric vehicle charging points?\n•\tAvoid adverse impacts from noise?\n•\tMinimise light pollution?","Yes",1,0,1,"Indirect","Medium","Medium(10yrs)","Localised","Permanent/Reversible","Minor Positive","The site is not located within an AQMA, and includes additional sustainable travel links, which may reduce vehicle use and improve air quality. Additionally, the site includes a buffer/noise attenuation to the south to mitigate high levels of noise created by road traffic surrounding the site. There will be temporary negative effects on air quality and noise due to dust generation and emissions from construction. ","Yes","A Dust Management Plan should be prepared as part of the Construction Environmental Management Plan (CEMP).","N/A"]
["SA12: Water Environment\nTo ensure sustainable management of water resources and to minimise the risk of flooding.","Will the policy or proposal: \n•\tMinimise contamination of watercourses and improve water quality in watercourses?\n•\tAvoid exacerbating flood risk for any source and be designed to be resilient to flood risk for its lifetime?\n•\tSupport the use of Sustainable Drainage Systems?\n•\tEncourage water efficiency and demand management?\n•\tAvoid deterioration and enhance the ecological status of water bodies? \n•\tContribute toward achieving Water Framework Directive objectives?","Yes",3,0,1,"Direct","High","Long(20+yrs)","Localised","Permanent/Irreversible","Minor Negative","As outlined in the Local Plan, development at the site is required to include a comprehensive surface water drainage solution. However, the site is located in close proximity to a water body and also sits in an area of flood zone 3. Development at the site is anticipated to increase impermeable surfaces, increasing surface runoff and exacerbating flood risk. There is also potential for surface runoff during construction to result in pollution of the nearby water body. Development should accord with flood risk mitigation measures outlined in Policy CL1. The application of SuDS (in line with Policy CL1) should be demonstrated to reduce the risk of run-off and surface water flooding. ","Yes","N/A","N/A"]
["SA13: Climate Change\nAdapt to the effects of climate change including flood risk, extreme weather and overheating, and strengthen climate resilience.","Will the policy or proposal:\n•\tMinimise flood risk and ensure new development provides sustainable urban drainage?\n•\tEnsure new development is designed to withstand future climate change (e.g. overheating and increased storm severity)?\n•\tIncrease and improve green and blue infrastructure to create a connected network across the city and within the wider area?\n•\tEnsure surface and groundwater water resources are used efficiently?\n•\tReduce energy consumption?\n•\tSupport the delivery of renewable and decentralised energy capacity (including small scale or community energy projects)?\n•\tSupport energy efficient design?","Yes",2,0,2,"Direct","High","Medium(10yrs)","Localised","Temporary/Irreversible","Minor Negative","The site is located within a flood zone 3 but within 50m of flood defences and the plan cited the need for an appropriate and acceptable surface water management plan to be in place for this site.  Implementation of surface water drainage measures may aid in reducing flood risk at the site, improving climate resilience. However, given that the site is located within an area of flood zone 3 and that flood defences will need to be maintained to ensure that the site in this area is resilient to climate change, a minor negative effect is recorded.","Yes","Development should look into incorporating renewable energy generation methods such as solar panels, and should incorporate design measures that will reduce effects of climate change, such as zonal heating systems, water saving initiatives and energy monitoring devices.","N/A"]
["SA14: Greenhouse Gases\nTo reduce the contribution towards the emission of greenhouse gases.","Will the policy or proposal:\n•\tReduce GHG emissions?\n•\tSupport the shift towards low carbon technologies and the usage of electric and ultralow emissions vehicles and appropriate infrastructure to support these?\n•\tProvide opportunities to access local services and facilities by low carbon public transport, walking or wheeling?\n•\tPromote a low carbon local economy? \n•\tReduce levels of embodied carbon?","No",null,null,null,"Direct","Medium","Long(20+yrs)","Localised","Permanent/Irreversible","Minor Negative","There are likely to be significant GHG emissions associated with the construction  from embodied carbon within building materials, as well as carbon emissions from construction traffic and construction plant. Building efficiency measures are anticipated to reduce energy use in operation. The development will promote sustainable travel modes, reducing car reliance and GHG emissions from transport. The application of Policy CL5 should be applied to minimise embodied carbon. However, a minor negative effect is recorded due to construction emissions.","Yes","Any form of construction and operation should be undertaken as sustainably as possible, making use of tools and processes, such as circular economy, waste hierarchy and should consider BREEAM and BREEAM Infrastructure.","N/A"]
["SA15: Transport and Accessibility\nTo reduce the number of journeys made by car, within and to and from the area and improve access to jobs, services and facilities.","Will the policy or proposal:\n•\tUtilise and enhance existing infrastructure?\n•\tHelp to meet local needs locally through low carbon travel options?\n•\tFacilitate safe walking and cycling?\n•\tFacilitate the use of public transport?\n•\tDeliver opportunities to relieve traffic congestion?\n•\tEncourage travel planning for businesses?\n•\tHelp to reduce the distances people have to travel on a regular basis for education, employment and services?\n•\tHelp to improve access to services and facilities for those living in rural or remote settlements, or experiencing other access constraints?\n•\tHelp to support homeworking by residents?","Yes",2,0,1,"Direct","Medium","Long(20+yrs)","Borough-wide","Permanent/Irreversible","Minor Positive","The proposed development outlines the provision of cycle routes and highlights the need to consider opportunities for residents to access public transport options. It is anticipated that transport improvements should be improved in line with Policy T1.","Yes","N/A","N/A"]
["SA16: Geology and Soils\nTo minimise water and soil pollution and ensure protection of natural resources including greenfield land, soil, and minerals resources.","Will the policy or proposal:\n•\tUtilise previously developed land?\n•\tSeek to improve or remediate contaminated land or reuse previously developed land which has not been restored?\n•\tProtect soil quality and avoid soil pollution?\n•\tProtect Best and Most Versatile (BMV) Agricultural Land?\n•\tProtect Greenbelt/ Green Wedges land?\n•\tProtect sites safeguarded for mineral workings?","Yes",1,1,2,"Direct","High","Long(20+yrs)","Localised","Permanent/Irreversible","Significant Negative","The site is located on greenfield land that is currently utilised for agriculture. This land is of ALC grade 3 and 4. Development at the site will result in the loss of greenfield agricultural land.","Yes","Where possible, development should be located to avoid the loss of BMV agricultural land.","N/A"]
["SA17: Waste\nTo minimise the generation of waste and effectively manage waste that is created.","Will the policy or proposal:\n•\tEnhance opportunities for waste to be treated in line with circular economy principles (e.g. recycling, re-using, composting)?\n•\tProvide adequate waste separation facilities in new and existing developments in order to encourage more recycling?\n•\tEncourage the repurposing and refurbishing of buildings, instead of demolition?","Yes",0,0,1,"Indirect","High","Long(20+yrs)","Localised","Permanent/Irreversible","Minor Negative","Development should support the use of sustainably sourced/recycled materials in line with Policy GD1. This should help minimise waste from the development's construction phase. However, once in use, the development is likely to produce waste in operation which could have a greater impact than waste through construction. However, the Local Plan is unable to control the generation of waste beyond development of the site. It will only be able to ensure that developments are designed to ensure that users can separate waste facilitating them to follow the waste hierarchy. ","Yes","A Site Waste Management Plan should be prepared as part of the CEMP and OEMP. ","N/A"]

{"sheet":"HA8","index":13,"n_rows":28,"n_cols":16,"rows_kept":28,"cut":false,"hidden":false,"merged":[[9,0,9,1],[9,2,9,5],[9,6,9,15]]}
["Site Name","Former Police Station, Cotton Lane"]
["Site Address"]
["Town/Locality"]
["Est Housing Yield/Employment Space",100]
["Site Area (ha)"]
["Site Description"]
["Greenfield/Brownfield","Brownfield"]
["Assumptions Made"]
[]
["SA Framework",null,"GIS Inputs",null,null,null,"SA  Assessment"]
["SA objective","Supporting Questions","GIS Data Available?","R","A","G","Direct/\nIndirect","Magnitude","Duration","Spatial Extent","Permanence/ Reversibility","Significance","Description of potential effects","Potential for cumulative effects? ","Mitigation","Enhancements"]
["SA1: Population and Equalities\nTo build inclusive communities by reducing social exclusion, reducing deprivation, promoting equity, equality and respecting diversity, improving local accessibility to healthcare, education, employment, retail facilities and recreational resources (including open spaces and sports facilities).  ","Will the policy or proposal:\n•\tHelp to reduce deprivation and the inequality gap?\n•\tEnsure all residents have equitable access to health services?\n•\tConsider the needs of an aging population?\n•\tEnsure new housing is well related located, close to a range of services such as shops, schools and employment opportunities?\n•\tImprove opportunities for active travel including walking and cycling?\n•\tEnsure everyone has access to high quality open space and recreation facilities?\n•\tProtect community facilities and improve access to important local services for the most deprived?","Yes",1,1,1,"Direct","Medium","Medium(10yrs)","Localised","Temporary/Irreversible","Minor Positive","The site will provide a minimum of 100 new homes, however at this stage it is not known how many of these homes will be accessible or adaptable. Additionally, the site is located within the most deprived neighbourhoods, therefore affordability needs to be a key consideration. The site is not well located in terms of healthcare or retail facilities, but does have a range of recreational activities in close proximity, including games court, community centre and skate park.","Yes","N/A","N/A"]
["SA2: Human Health\nTo improve health and wellbeing and reduce health inequalities, improving quality of life for all.","Will the policy or proposal:\n•\tHelp to improve health and reduce health inequalities?\n•\tContribute to healthy lifestyles?\n•\tEncourage walking, cycling and a reduction in private car use?\n•\tHelp to ensure health services are provided alongside development?\n•\tProtect existing services?","Yes",4,0,1,"N/A","N/A","N/A","N/A","N/A","Minor Positive","As housing is a key determinant of health, the delivery of this is likely to provide health benefits. The site is not well located in terms of healthcare or retail facilities, but does have a range of recreational activities in close proximity, including games court, community centre and skate park. There may be opportunities for increased physical and mental wellbeing as a result of utilisation of these facilities.","Yes","N/A","N/A"]
["SA3: Economy\nTo deliver economic growth and support the creation of new and retention of existing businesses.","Will the policy or proposal:\n•\tSupport the growth of higher skilled economic sectors? \n•\tProvide new employment premises which meet identified local needs in the area? \n•\tImprove business infrastructure, such as broadband and provide attractive sites for modern businesses?\n•\tSupport the city’s retail sector, especially the city centre and other retail centres?","Yes",1,0,1,"Indirect","Medium","Medium(10yrs)","Localised","Temporary/Reversible","Minor Positive","The site is located within 800m of the nearest town centre. The proximity to the town centre will likely support the needs of residents as well as support the economy in this area by increasing footfall. ","Yes","N/A","N/A"]
["SA4: Employment\nTo create greater employment opportunities, higher value jobs and access to training.","Will the policy or proposal:\n•\tIncrease job availability?\n•\tIncrease the quality and choice of local employment?\n•\tImprove access to employment centres?\n•\tMeet the skills needs and future demand for labour?","Yes",2,0,1,"Direct","High","Medium(10yrs)","Localised","Temporary/Reversible","Minor Positive","The site is located within 800m from an existing area of employment and an existing town centre. The site is within an area of high deprivation for income and employment, however there are a number of employment opportunities within Derby City Centre and near to the site that may provide improved access to employment.","Yes","N/A","N/A"]
["SA5: Crime and Safety\nTo reduce crime and the fear of crime for all residents inclusively, improving safety.","Will the policy or proposal:\n•\tHelp to create streets where people feel safe, particularly after dark?\n•\tMake a positive contribution to community cohesion?\n•\tSupport designing out crime principals? \n•\tReduce levels of crime derivation? \n•\tImprove road safety and reduce the number of people killed or seriously injured (KSI) on the roads, particularly children from deprived backgrounds? \n•\tCreate spaces where women and girls feel safe and included?","Yes",1,0,0,"Direct","Medium","Long(20+yrs)","Localised","Permanent/Irreversible","Minor Positive","The site is in an area of high crime deprivation. The site is currently home to a vacant police station and 4/5 storey car park which has been subject to vandalism. Regeneration of the site is therefore anticipated to improve the crime rate at the site as well as feelings of safety. There is limited detail on whether designing out crime principles will be applied as part of the development. However, it is assumed that development should incorporate designing out crime principles in line with Policy GD5","Yes","N/A","N/A"]
["SA6: Housing\nTo provide everybody with access to an affordable home which is resilient to the effects of climate change.","Will the policy or proposal:\n•\tSupport a range of housing types and sizes, including affordable housing units??\n•\tEnsure that there is an adequate supply of housing development land to meet local needs?\n•\tBe sustainably designed and resilient to the effects of climate change and designed to meet all needs, for example “Lifetime Homes” standards?","Yes",0,1,0,"Direct","High","Long(20+yrs)","Regional","Permanent/Irreversible","Significant Positive","The provision of 100 new homes will help towards meeting Derby's housing target. The provision of affordable housing should be in line with requirements of Policy H4 and Policy H2 will ensure a mix of housing types and tenures is delivered. ","Yes","N/A","N/A"]
["SA7: Leisure and Recreation\nTo provide better opportunities for people to participate in cultural, leisure and recreational activities.","Will the policy or proposal:\n•\tHelp to improve access to formal and informal recreation facilities?\n•\tProvide opportunities for engagement in a range of cultural activities?\n•\tCreate new allotments where there is a demand?","Yes",0,0,3,"Direct","Medium","Long(20+yrs)","Localised","Permanent/Reversible","Significant Positive","The site is well located close to public open space, community centres and recreational facilities. The proximity of these recreational spaces is likely to have a positive impact on the opportunities for residents to participate in cultural and recreational activities.","Yes","N/A","N/A"]
["SA8: Biodiversity and Natural Capital\nTo protect and improve biodiversity, geo-diversity, including protect and enhance favourable conditions on SSSI’s, SPAs, SACs and other wildlife sites and improve connectivity between, and access to, green spaces and functional habitats.","Will the policy or proposal:\n•\tConserve and enhance habitats in the LNRS?\n•\tConserve and enhance species diversity and in particular avoid harm and increase the ranges of protected species?\n•\tProvide opportunities for new habitat creation and lead to a net gain in biodiversity?\n•\tProtect geo-diversity?\n•\tImprove the ecological quality and character of open spaces?\n•\tMaintain and enhance woodland cover and management in appropriate areas (e.g. areas of ash dieback)?\n•\tMaintain or enhance tree cover?\n•\tProtect and promote effective management of SPAs and SACs in the LP area and its surroundings?\n•\tHelp to protect and enhance other designated sites e.g., SSSIs, Wildlife Sites, LNRs etc?\n•\tImprove climate change adaptation through provision of accessible green space or green and blue infrastructure?\n•\tPrevent the fragmentation of habitats, provide links between green spaces or help to deliver/support other ecological networks?\n•\tSupport the natural capital of the city?","Yes",0,0,2,"Direct","Medium","Long(20+yrs)","Localised","Permanent/Reversible","Minor Positive","The site is located away from designated sites. There is potential for some adverse effects on small-scale habitats and species during construction. However, is anticipated that the site will result in improvements to green infrastructure and biodiversity, which may help to provide new small scale habitats. Additionally, biodiversity enhancement is anticipated meet minimum standards of 10% for all developments, as set out in Policy EN10.","Yes","N/A","N/A"]
["SA9: Landscape and Townscape\nTo protect and enhance the character and appearance of the landscape and townscape, including landscape and townscape assets, as well as the area’s other natural assets and resources.","Will the policy or proposal:\n•\tProtect and enhance landscape and townscape quality, character and distinctiveness?\n•\tAvoid loss of, and damage to greenbelt / green wedge land?\n•\tMake use of previously used / brownfield land and buildings?\n•\tSafeguard individual landscape and townscape features such as hedgerows, ponds, public squares, etc?","Yes",0,0,2,"Direct","Medium","Long(20+yrs)","Localised","Permanent/Irreversible","Significant Positive","The site is located away from green belts and green wedges and is on brownfield land. Development is likely to enhance the townscape setting surrounding the current vacant site.","Yes","N/A","N/A"]
["SA10: Historic Environment\nTo conserve and enhance the historic environment, heritage assets (including known and unknown archaeological sites) and their settings and maintain and enhance access to cultural heritage for enjoyment and educational purposes.   ","Will the policy or proposal:\n•\tPreserve and enhance the character or appearance of conservation areas and their settings?\n•\tPreserve or enhance heritage assets and their settings?\n•\tPreserve or enhance archaeological features and their settings?\n•\tImprove the condition of heritage at risk? \n•\tRe-use/retain historic buildings or fabric?\n•\tProtect and conserve the Outstanding Universal Value of the DVMWHS?","Yes",0,0,7,"N/A","N/A","N/A","N/A","N/A","Neutral","The development of the site is not anticipated to have any potential effect on this objective. ","No","N/A","N/A"]
["SA11: Air, Noise and Light Pollution\nTo maintain good local air quality and to minimise noise and light pollution","Will the policy or proposal:\n•\tMaintain or improve local air quality?\n•\tEncourage the installation of electric vehicle charging points?\n•\tAvoid adverse impacts from noise?\n•\tMinimise light pollution?","Yes",0,0,1,"Indirect","Medium","Medium(10yrs)","Localised","Permanent/Reversible","Minor Positive","The site is not located within an AQMA, and is well located in terms of proximity to sustainable transport. There will be temporary negative effects on air quality and noise due to dust generation and emissions from construction. Overall a minor positive effect is recorded as long term sustainable transport options and reduction in private vehicle emissions are anticipated to offset the negative effects arising from construction.","Yes","A Dust Management Plan should be prepared as part of the Construction Environmental Management Plan (CEMP).","N/A"]
["SA12: Water Environment\nTo ensure sustainable management of water resources and to minimise the risk of flooding.","Will the policy or proposal: \n•\tMinimise contamination of watercourses and improve water quality in watercourses?\n•\tAvoid exacerbating flood risk for any source and be designed to be resilient to flood risk for its lifetime?\n•\tSupport the use of Sustainable Drainage Systems?\n•\tEncourage water efficiency and demand management?\n•\tAvoid deterioration and enhance the ecological status of water bodies? \n•\tContribute toward achieving Water Framework Directive objectives?","Yes",3,0,1,"Direct","High","Long(20+yrs)","Localised","Permanent/Irreversible","Significant Negative","The site is located in close proximity to a water body and also sits in an area of flood zone 3. Development at the site is anticipated to increase impermeable surfaces, increasing surface runoff and exacerbating flood risk. There is also potential for surface runoff during construction to result in pollution of the nearby water body. Development should accord with flood risk mitigation measures outlined in Policy CL1. The application of SuDS (in line with Policy CL1) should be demonstrated to reduce the risk of run-off and surface water flooding. ","Yes","The plan should require appropriate water management strategies, for example the inclusion of SuDS, within the site allocation's supporting text.\nDevelopment should be in line with the NPPF and guidance from the Environment Agency.","N/A"]
["SA13: Climate Change\nAdapt to the effects of climate change including flood risk, extreme weather and overheating, and strengthen climate resilience.","Will the policy or proposal:\n•\tMinimise flood risk and ensure new development provides sustainable urban drainage?\n•\tEnsure new development is designed to withstand future climate change (e.g. overheating and increased storm severity)?\n•\tIncrease and improve green and blue infrastructure to create a connected network across the city and within the wider area?\n•\tEnsure surface and groundwater water resources are used efficiently?\n•\tReduce energy consumption?\n•\tSupport the delivery of renewable and decentralised energy capacity (including small scale or community energy projects)?\n•\tSupport energy efficient design?","Yes",2,0,2,"Direct","High","Medium(10yrs)","Localised","Temporary/Irreversible","Minor Negative","The site is located within a flood zone 3 but within 50m of flood defences and the plan cited the need for an appropriate and acceptable surface water management plan to be in place for this site.  Implementation of surface water drainage measures may aid in reducing flood risk at the site, improving climate resilience. However, given that the site is located within an area of flood zone 3 and that flood defences will need to be maintained to ensure that the site in this area is resilient to climate change, a minor negative effect is recorded.","Yes","Development should look into incorporating renewable energy generation methods such as solar panels, and should incorporate design measures that will reduce effects of climate change, such as zonal heating systems, water saving initiatives and energy monitoring devices.","N/A"]
["SA14: Greenhouse Gases\nTo reduce the contribution towards the emission of greenhouse gases.","Will the policy or proposal:\n•\tReduce GHG emissions?\n•\tSupport the shift towards low carbon technologies and the usage of electric and ultralow emissions vehicles and appropriate infrastructure to support these?\n•\tProvide opportunities to access local services and facilities by low carbon public transport, walking or wheeling?\n•\tPromote a low carbon local economy? \n•\tReduce levels of embodied carbon?","No",null,null,null,"Direct","Medium","Long(20+yrs)","Localised","Permanent/Irreversible","Minor Negative","There are likely to be significant GHG emissions associated with the construction  from embodied carbon within building materials, as well as carbon emissions from construction traffic and construction plant. Building efficiency measures are anticipated to reduce energy use in operation. The development will promote sustainable travel modes, reducing car reliance and GHG emissions from transport. The application of Policy CL5 should be applied to minimise embodied carbon. However, a minor negative effect is recorded due to construction emissions.","Yes","Any form of construction and operation should be undertaken as sustainably as possible, making use of tools and processes, such as circular economy, waste hierarchy and should consider BREEAM and BREEAM Infrastructure.","N/A"]
["SA15: Transport and Accessibility\nTo reduce the number of journeys made by car, within and to and from the area and improve access to jobs, services and facilities.","Will the policy or proposal:\n•\tUtilise and enhance existing infrastructure?\n•\tHelp to meet local needs locally through low carbon travel options?\n•\tFacilitate safe walking and cycling?\n•\tFacilitate the use of public transport?\n•\tDeliver opportunities to relieve traffic congestion?\n•\tEncourage travel planning for businesses?\n•\tHelp to reduce the distances people have to travel on a regular basis for education, employment and services?\n•\tHelp to improve access to services and facilities for those living in rural or remote settlements, or experiencing other access constraints?\n•\tHelp to support homeworking by residents?","Yes",1,0,2,"Direct","Low","Medium(10yrs)","Localised","Permanent/Irreversible","Minor Positive","The site is located within 800m from a railway station and 400m from a bus stop. It is not clear whether the site will be connected to the cycle network. However, given the proximity to existing public transport facilities, this may encourage public transport use when accessing the site.","Yes","N/A","N/A"]
["SA16: Geology and Soils\nTo minimise water and soil pollution and ensure protection of natural resources including greenfield land, soil, and minerals resources.","Will the policy or proposal:\n•\tUtilise previously developed land?\n•\tSeek to improve or remediate contaminated land or reuse previously developed land which has not been restored?\n•\tProtect soil quality and avoid soil pollution?\n•\tProtect Best and Most Versatile (BMV) Agricultural Land?\n•\tProtect Greenbelt/ Green Wedges land?\n•\tProtect sites safeguarded for mineral workings?","Yes",0,0,4,"Direct","Medium","Long(20+yrs)","Borough-wide","Permanent/Reversible","Significant Positive","The site is located on brownfield land. Development at this site will support the protection of greenfield land and reuse of previously developed land, therefore a potential significant positive effect is recorded. ","Yes","N/A","N/A"]
["SA17: Waste\nTo minimise the generation of waste and effectively manage waste that is created.","Will the policy or proposal:\n•\tEnhance opportunities for waste to be treated in line with circular economy principles (e.g. recycling, re-using, composting)?\n•\tProvide adequate waste separation facilities in new and existing developments in order to encourage more recycling?\n•\tEncourage the repurposing and refurbishing of buildings, instead of demolition?","Yes",0,0,1,"Indirect","High","Long(20+yrs)","Localised","Permanent/Irreversible","Minor Negative","Development should support the use of sustainably sourced/recycled materials in line with Policy GD1. This should help minimise waste from the development's construction phase. However, once in use, the development is likely to produce waste in operation which could have a greater impact than waste through construction. However, the Local Plan is unable to control the generation of waste beyond development of the site. It will only be able to ensure that developments are designed to ensure that users can separate waste facilitating them to follow the waste hierarchy. ","Yes","A Site Waste Management Plan should be prepared as part of the CEMP and OEMP. ","N/A"]

{"sheet":"HA9","index":14,"n_rows":28,"n_cols":16,"rows_kept":28,"cut":false,"hidden":false,"merged":[[9,0,9,1],[9,2,9,5],[9,6,9,15]]}
["Site Name","Bramblebrook House/Humbleton View, Littleover"]
["Site Address"]
["Town/Locality"]
["Est Housing Yield/Employment Space",90]
["Site Area (ha)"]
["Site Description"]
["Greenfield/Brownfield","Brownfield"]
["Assumptions Made"]
[]
["SA Framework",null,"GIS Inputs",null,null,null,"SA  Assessment"]
["SA objective","Supporting Questions","GIS Data Available?","R","A","G","Direct/\nIndirect","Magnitude","Duration","Spatial Extent","Permanence/ Reversibility","Significance","Description of potential effects","Potential for cumulative effects? ","Mitigation","Enhancements"]
["SA1: Population and Equalities\nTo build inclusive communities by reducing social exclusion, reducing deprivation, promoting equity, equality and respecting diversity, improving local accessibility to healthcare, education, employment, retail facilities and recreational resources (including open spaces and sports facilities).  ","Will the policy or proposal:\n•\tHelp to reduce deprivation and the inequality gap?\n•\tEnsure all residents have equitable access to health services?\n•\tConsider the needs of an aging population?\n•\tEnsure new housing is well related located, close to a range of services such as shops, schools and employment opportunities?\n•\tImprove opportunities for active travel including walking and cycling?\n•\tEnsure everyone has access to high quality open space and recreation facilities?\n•\tProtect community facilities and improve access to important local services for the most deprived?","Yes",0,0,3,"Direct","High","Long(20+yrs)","Regional","Permanent/Irreversible","Minor Positive","The site is anticipated to provide 90 rooms in an Extra Care facility for over 55 living. There is anticipated to be facilities on site to support the Extra Care community, however these have not been explicitly outlined. The site has good access to nearby roads and parking on site, making it accessible to ambulances and visitors. The care facility will likely support the level of access to healthcare for older residents, which will help support current and future populations.","Yes","N/A","N/A"]
["SA2: Human Health\nTo improve health and wellbeing and reduce health inequalities, improving quality of life for all.","Will the policy or proposal:\n•\tHelp to improve health and reduce health inequalities?\n•\tContribute to healthy lifestyles?\n•\tEncourage walking, cycling and a reduction in private car use?\n•\tHelp to ensure health services are provided alongside development?\n•\tProtect existing services?","Yes",1,0,4,"Direct","High","Long(20+yrs)","Regional","Permanent/Irreversible","Significant Positive","The site is well located close to existing areas of open space, including allotments which will likely support the physical and mental wellbeing of the over 55 living facility's residents. It is well located to healthcare services and anticipated to reduce health inequalities and produce new facilities which will improve physical and mental health and wellbeing, meeting the needs of all groups both now and in the future. The plan also outlines the need to incorporate amenities into the development to support a community feel at the facility.","Yes","N/A","N/A"]
["SA3: Economy\nTo deliver economic growth and support the creation of new and retention of existing businesses.","Will the policy or proposal:\n•\tSupport the growth of higher skilled economic sectors? \n•\tProvide new employment premises which meet identified local needs in the area? \n•\tImprove business infrastructure, such as broadband and provide attractive sites for modern businesses?\n•\tSupport the city’s retail sector, especially the city centre and other retail centres?","Yes",1,0,1,"Direct","Medium","Long(20+yrs)","Regional","Permanent/Irreversible","Minor Positive","The site is located within 800m of the nearest primary shopping areas, but over 800m away from the town centre, including district and neighbourhood centres. The proximity to shopping areas will likely help carers and visitors to support the needs of the development's residents. Nearby primary shopping areas may experience a rise in footfall from either residents, visitors or care-facility employees. Also, the Extra Care facility itself will provide new employment in a high skilled economic sector. It may also create new jobs through the amenities which are planned to be offered as part of supporting the facility's community feel. Therefore a minor positive effect is recorded.","Yes","N/A","N/A"]
["SA4: Employment\nTo create greater employment opportunities, higher value jobs and access to training.","Will the policy or proposal:\n•\tIncrease job availability?\n•\tIncrease the quality and choice of local employment?\n•\tImprove access to employment centres?\n•\tMeet the skills needs and future demand for labour?","Yes",1,0,2,"Direct","Medium","Long(20+yrs)","Localised","Permanent/Irreversible","Minor Positive","This development is planned to be an Extra Care facility, it is likely that the development itself will provide job opportunities to local residents and healthcare professionals within the region. Therefore, a minor positive effect has been recorded.","Yes","N/A","N/A"]
["SA5: Crime and Safety\nTo reduce crime and the fear of crime for all residents inclusively, improving safety.","Will the policy or proposal:\n•\tHelp to create streets where people feel safe, particularly after dark?\n•\tMake a positive contribution to community cohesion?\n•\tSupport designing out crime principals? \n•\tReduce levels of crime derivation? \n•\tImprove road safety and reduce the number of people killed or seriously injured (KSI) on the roads, particularly children from deprived backgrounds? \n•\tCreate spaces where women and girls feel safe and included?","Yes",0,0,1,"Indirect","Low","Short/Medium","Localised","Permanent/Reversible","Minor Positive","The site is currently located within an area of low crime deprivation.  There is limited detail on whether designing out crime principles will be applied as part of the development. However, it is assumed that development should incorporate designing out crime principles in line with Policy GD5.","Yes","N/A","N/A"]
["SA6: Housing\nTo provide everybody with access to an affordable home which is resilient to the effects of climate change.","Will the policy or proposal:\n•\tSupport a range of housing types and sizes, including affordable housing units??\n•\tEnsure that there is an adequate supply of housing development land to meet local needs?\n•\tBe sustainably designed and resilient to the effects of climate change and designed to meet all needs, for example “Lifetime Homes” standards?","Yes",0,0,1,"Direct","High","Long(20+yrs)","Regional","Permanent/Irreversible","Minor Positive","The provision of 90 new rooms for over 55s will help towards meeting Derby's housing target. It is currently uncertain what proportion of dwellings will provide publicly funded care, but it is assumed that they will be adaptable given the nature of the facility.","Yes","N/A","N/A"]
["SA7: Leisure and Recreation\nTo provide better opportunities for people to participate in cultural, leisure and recreational activities.","Will the policy or proposal:\n•\tHelp to improve access to formal and informal recreation facilities?\n•\tProvide opportunities for engagement in a range of cultural activities?\n•\tCreate new allotments where there is a demand?","Yes",0,0,3,"Direct","Medium","Long(20+yrs)","Localised","Permanent/Reversible","Significant Positive","The site is well located close to public open space, community centres and sports facilities. The proximity of these recreational spaces is likely to have a positive impact on the opportunities for residents to participate in wellbeing activities.","Yes","N/A","N/A"]
["SA8: Biodiversity and Natural Capital\nTo protect and improve biodiversity, geo-diversity, including protect and enhance favourable conditions on SSSI’s, SPAs, SACs and other wildlife sites and improve connectivity between, and access to, green spaces and functional habitats.","Will the policy or proposal:\n•\tConserve and enhance habitats in the LNRS?\n•\tConserve and enhance species diversity and in particular avoid harm and increase the ranges of protected species?\n•\tProvide opportunities for new habitat creation and lead to a net gain in biodiversity?\n•\tProtect geo-diversity?\n•\tImprove the ecological quality and character of open spaces?\n•\tMaintain and enhance woodland cover and management in appropriate areas (e.g. areas of ash dieback)?\n•\tMaintain or enhance tree cover?\n•\tProtect and promote effective management of SPAs and SACs in the LP area and its surroundings?\n•\tHelp to protect and enhance other designated sites e.g., SSSIs, Wildlife Sites, LNRs etc?\n•\tImprove climate change adaptation through provision of accessible green space or green and blue infrastructure?\n•\tPrevent the fragmentation of habitats, provide links between green spaces or help to deliver/support other ecological networks?\n•\tSupport the natural capital of the city?","Yes",0,1,1,"N/A","N/A","N/A","N/A","N/A","Neutral","The development of the site could have a negative impact on the surrounding wildlife through noise pollution for instance. Given that the site is currently located within an area of low noise pollution, the effects of construction could prove disruptive to local biodiversity. However, biodiversity enhancement is anticipated meet minimum standards of 10% for all developments, as set out in Policy EN10.","No","N/A","N/A"]
["SA9: Landscape and Townscape\nTo protect and enhance the character and appearance of the landscape and townscape, including landscape and townscape assets, as well as the area’s other natural assets and resources.","Will the policy or proposal:\n•\tProtect and enhance landscape and townscape quality, character and distinctiveness?\n•\tAvoid loss of, and damage to greenbelt / green wedge land?\n•\tMake use of previously used / brownfield land and buildings?\n•\tSafeguard individual landscape and townscape features such as hedgerows, ponds, public squares, etc?","Yes",0,0,2,"N/A","N/A","N/A","N/A","N/A","Neutral","The development of the site is not anticipated to have any potential effect on this objective. ","No","N/A","N/A"]
["SA10: Historic Environment\nTo conserve and enhance the historic environment, heritage assets (including known and unknown archaeological sites) and their settings and maintain and enhance access to cultural heritage for enjoyment and educational purposes.   ","Will the policy or proposal:\n•\tPreserve and enhance the character or appearance of conservation areas and their settings?\n•\tPreserve or enhance heritage assets and their settings?\n•\tPreserve or enhance archaeological features and their settings?\n•\tImprove the condition of heritage at risk? \n•\tRe-use/retain historic buildings or fabric?\n•\tProtect and conserve the Outstanding Universal Value of the DVMWHS?","Yes",0,1,6,"Indirect","Medium","Long(20+yrs)","Localised","Permanent/Irreversible","Minor Positive","The site is located within 250m of a listed building. Development of the site is unlikely to impact the listed building given there has already been a demolition of two former Council buildings. The listed building, depending on its function, may in fact provide cultural heritage/community activities to the residents of the new dwellings, creating a positive impact on access to heritage sites. Given the site is currently demolished, potential positives are recorded due to improving the setting of the asset through developing on unused brownfield land.","Yes","N/A","N/A"]
["SA11: Air, Noise and Light Pollution\nTo maintain good local air quality and to minimise noise and light pollution","Will the policy or proposal:\n•\tMaintain or improve local air quality?\n•\tEncourage the installation of electric vehicle charging points?\n•\tAvoid adverse impacts from noise?\n•\tMinimise light pollution?","Yes",1,0,1,"Indirect","Low","Short/Medium","Localised","Permanent/Reversible","Minor Negative","The site is not well located in terms of proximity to sustainable transport and is located in an area of high light pollution. There will be temporary negative effects on air quality and noise due to dust generation and emissions from construction. There are a number of existing residential receptors (houses) surrounding the site which would be negatively impacted during construction. However, the plan includes appropriate mitigation of noise disruption such as buffering, thus the negative effect is expected to be minor.","Yes","A Dust Management Plan should be prepared as part of the Construction Environmental Management Plan (CEMP).","N/A"]
["SA12: Water Environment\nTo ensure sustainable management of water resources and to minimise the risk of flooding.","Will the policy or proposal: \n•\tMinimise contamination of watercourses and improve water quality in watercourses?\n•\tAvoid exacerbating flood risk for any source and be designed to be resilient to flood risk for its lifetime?\n•\tSupport the use of Sustainable Drainage Systems?\n•\tEncourage water efficiency and demand management?\n•\tAvoid deterioration and enhance the ecological status of water bodies? \n•\tContribute toward achieving Water Framework Directive objectives?","Yes",0,0,4,"N/A","N/A","N/A","N/A","N/A","Neutral","The development of the site is not anticipated to have any potential effect on this objective. ","No","N/A","N/A"]
["SA13: Climate Change\nAdapt to the effects of climate change including flood risk, extreme weather and overheating, and strengthen climate resilience.","Will the policy or proposal:\n•\tMinimise flood risk and ensure new development provides sustainable urban drainage?\n•\tEnsure new development is designed to withstand future climate change (e.g. overheating and increased storm severity)?\n•\tIncrease and improve green and blue infrastructure to create a connected network across the city and within the wider area?\n•\tEnsure surface and groundwater water resources are used efficiently?\n•\tReduce energy consumption?\n•\tSupport the delivery of renewable and decentralised energy capacity (including small scale or community energy projects)?\n•\tSupport energy efficient design?","Yes",0,0,4,"N/A","N/A","N/A","N/A","N/A","Uncertain","Climate resilience measures, including drainage measures, energy efficiency measures, or green infrastructure provision are currently unknown. This is likely to be determined by individual scheme design.","Yes","Development should look into incorporating renewable energy generation methods such as solar panels, and should incorporate design measures that will reduce effects of climate change, such as zonal heating systems, water saving initiatives and energy monitoring devices.","N/A"]
["SA14: Greenhouse Gases\nTo reduce the contribution towards the emission of greenhouse gases.","Will the policy or proposal:\n•\tReduce GHG emissions?\n•\tSupport the shift towards low carbon technologies and the usage of electric and ultralow emissions vehicles and appropriate infrastructure to support these?\n•\tProvide opportunities to access local services and facilities by low carbon public transport, walking or wheeling?\n•\tPromote a low carbon local economy? \n•\tReduce levels of embodied carbon?","No",null,null,null,"Direct","Medium","Long(20+yrs)","Localised","Permanent/Irreversible","Minor Negative","There are likely to be significant GHG emissions associated with the construction  from embodied carbon within building materials, as well as carbon emissions from construction traffic and construction plant. Building efficiency measures are anticipated to reduce energy use in operation. The development will promote sustainable travel modes, reducing car reliance and GHG emissions from transport. The application of Policy CL5 should be applied to minimise embodied carbon. However, a minor negative effect is recorded due to construction emissions.","Yes","Any form of construction and operation should be undertaken as sustainably as possible, making use of tools and processes, such as circular economy, waste hierarchy and should consider BREEAM and BREEAM Infrastructure.","N/A"]
["SA15: Transport and Accessibility\nTo reduce the number of journeys made by car, within and to and from the area and improve access to jobs, services and facilities.","Will the policy or proposal:\n•\tUtilise and enhance existing infrastructure?\n•\tHelp to meet local needs locally through low carbon travel options?\n•\tFacilitate safe walking and cycling?\n•\tFacilitate the use of public transport?\n•\tDeliver opportunities to relieve traffic congestion?\n•\tEncourage travel planning for businesses?\n•\tHelp to reduce the distances people have to travel on a regular basis for education, employment and services?\n•\tHelp to improve access to services and facilities for those living in rural or remote settlements, or experiencing other access constraints?\n•\tHelp to support homeworking by residents?","Yes",2,0,1,"Direct","High","Long(20+yrs)","Localised","Permanent/Irreversible","Minor Negative","The site is located within 200m of the nearest bus stop, however it is over 800m from the closest train station, and more than 400m from the nearest cycle route. This could present a barrier for visitors and carers in sustainably travelling to the Extra Care facility. Also, the nature of the site means there is likely to be an increase in car travel as the most appropriate mode for Extra Care residents. This expectation is evidenced in the proposed development which highlights a need for parking facilities on site. However, it is anticipated that transport improvements should be improved in line with Policy T1.","Yes","N/A","N/A"]
["SA16: Geology and Soils\nTo minimise water and soil pollution and ensure protection of natural resources including greenfield land, soil, and minerals resources.","Will the policy or proposal:\n•\tUtilise previously developed land?\n•\tSeek to improve or remediate contaminated land or reuse previously developed land which has not been restored?\n•\tProtect soil quality and avoid soil pollution?\n•\tProtect Best and Most Versatile (BMV) Agricultural Land?\n•\tProtect Greenbelt/ Green Wedges land?\n•\tProtect sites safeguarded for mineral workings?","Yes",0,1,3,"Direct","Medium","Long(20+yrs)","Borough-wide","Permanent/Reversible","Significant Positive","The site is located on brownfield land. Development at this site will support the protection of agricultural land, therefore a potential significant positive effect is recorded. ","Yes","N/A","N/A"]
["SA17: Waste\nTo minimise the generation of waste and effectively manage waste that is created.","Will the policy or proposal:\n•\tEnhance opportunities for waste to be treated in line with circular economy principles (e.g. recycling, re-using, composting)?\n•\tProvide adequate waste separation facilities in new and existing developments in order to encourage more recycling?\n•\tEncourage the repurposing and refurbishing of buildings, instead of demolition?","Yes",0,0,1,"Indirect","High","Long(20+yrs)","Localised","Permanent/Irreversible","Minor Negative","Development should support the use of sustainably sourced/recycled materials in line with Policy GD1. This should help minimise waste from the development's construction phase. However, once in use, the development is likely to produce waste in operation which could have a greater impact than waste through construction. However, the Local Plan is unable to control the generation of waste beyond development of the site. It will only be able to ensure that developments are designed to ensure that users can separate waste facilitating them to follow the waste hierarchy. ","Yes","A Site Waste Management Plan should be prepared as part of the CEMP and OEMP. ","N/A"]

{"sheet":"HA10","index":15,"n_rows":28,"n_cols":16,"rows_kept":28,"cut":false,"hidden":false,"merged":[[9,0,9,1],[9,2,9,5],[9,6,9,15]]}
["Site Name","Elton Road Works, Osmaston"]
["Site Address"]
["Town/Locality"]
["Est Housing Yield/Employment Space","80 dwellings"]
["Site Area (ha)"]
["Site Description"]
["Greenfield/Brownfield","Brownfield"]
["Assumptions Made"]
[]
["SA Framework",null,"GIS Inputs",null,null,null,"SA  Assessment"]
["SA objective","Supporting Questions","GIS Data Available?","R","A","G","Direct/\nIndirect","Magnitude","Duration","Spatial Extent","Permanence/ Reversibility","Significance","Description of potential effects","Potential for cumulative effects? ","Mitigation","Enhancements"]
["SA1: Population and Equalities\nTo build inclusive communities by reducing social exclusion, reducing deprivation, promoting equity, equality and respecting diversity, improving local accessibility to healthcare, education, employment, retail facilities and recreational resources (including open spaces and sports facilities).  ","Will the policy or proposal:\n•\tHelp to reduce deprivation and the inequality gap?\n•\tEnsure all residents have equitable access to health services?\n•\tConsider the needs of an aging population?\n•\tEnsure new housing is well related located, close to a range of services such as shops, schools and employment opportunities?\n•\tImprove opportunities for active travel including walking and cycling?\n•\tEnsure everyone has access to high quality open space and recreation facilities?\n•\tProtect community facilities and improve access to important local services for the most deprived?","Yes",1,1,1,"Direct","Medium","Medium(10yrs)","Localised","Temporary/Reversible","Minor Positive","The site will provide 80 new homes, however at this stage it is not known how many of these homes will be accessible or adaptable. Additionally, the site is located within the most deprived neighbourhoods, therefore affordability needs to be a key consideration. The site has good access to community facilities including healthcare, shops, employment and schools, as well as open space. This may aid in reducing levels of inequalities by locating communities close to these facilities. Development at this site must consider how noise from the active railway to the rear of the site can be mitigated. Overall, a potential minor positive effect is recorded. ","Yes","N/A","N/A"]
["SA2: Human Health\nTo improve health and wellbeing and reduce health inequalities, improving quality of life for all.","Will the policy or proposal:\n•\tHelp to improve health and reduce health inequalities?\n•\tContribute to healthy lifestyles?\n•\tEncourage walking, cycling and a reduction in private car use?\n•\tHelp to ensure health services are provided alongside development?\n•\tProtect existing services?","Yes",2,0,3,"Direct","Medium","Medium(10yrs)","Localised","Temporary/Reversible","Minor Positive","The site is located within 800m from existing open space which should support physical health by providing opportunities for recreation. There are healthcare facilities within 800m from the site. The site has good access to facilities which support human heath, therefore a potential minor positive effect is recorded.","Yes","N/A","N/A"]
["SA3: Economy\nTo deliver economic growth and support the creation of new and retention of existing businesses.","Will the policy or proposal:\n•\tSupport the growth of higher skilled economic sectors? \n•\tProvide new employment premises which meet identified local needs in the area? \n•\tImprove business infrastructure, such as broadband and provide attractive sites for modern businesses?\n•\tSupport the city’s retail sector, especially the city centre and other retail centres?","Yes",0,0,2,"Indirect","Low","Medium(10yrs)","Localised","Temporary/Reversible","Minor Positive","The site is located within 800m of the nearest town centre and primary shopping area. The proximity to these facilities will likely support the needs of residents as well as support the economy in this area by increasing footfall. Therefore a potential minor positive effect is recorded.","Yes","N/A","N/A"]
["SA4: Employment\nTo create greater employment opportunities, higher value jobs and access to training.","Will the policy or proposal:\n•\tIncrease job availability?\n•\tIncrease the quality and choice of local employment?\n•\tImprove access to employment centres?\n•\tMeet the skills needs and future demand for labour?","Yes",1,0,2,"Direct","Low","Medium(10yrs)","Localised","Temporary/Reversible","Minor Positive","The site is located within 800m from an existing area of employment and an existing town centre. The site is within an area of high deprivation for income and employment, however there are a number of employment opportunities within Derby City Centre and near to the site. Overall, a potential minor positive effect is recorded. ","Yes","N/A","N/A"]
["SA5: Crime and Safety\nTo reduce crime and the fear of crime for all residents inclusively, improving safety.","Will the policy or proposal:\n•\tHelp to create streets where people feel safe, particularly after dark?\n•\tMake a positive contribution to community cohesion?\n•\tSupport designing out crime principals? \n•\tReduce levels of crime derivation? \n•\tImprove road safety and reduce the number of people killed or seriously injured (KSI) on the roads, particularly children from deprived backgrounds? \n•\tCreate spaces where women and girls feel safe and included?","Yes",1,0,0,"N/A","N/A","N/A","N/A","N/A","Uncertain","The site is currently located within an area of high crime deprivation.  There is limited detail on whether designing out crime principles will be applied as part of the development. However, it is assumed that development should incorporate designing out crime principles in line with Policy GD5.","Yes","N/A","N/A"]
["SA6: Housing\nTo provide everybody with access to an affordable home which is resilient to the effects of climate change.","Will the policy or proposal:\n•\tSupport a range of housing types and sizes, including affordable housing units??\n•\tEnsure that there is an adequate supply of housing development land to meet local needs?\n•\tBe sustainably designed and resilient to the effects of climate change and designed to meet all needs, for example “Lifetime Homes” standards?","Yes",0,1,0,"Direct","High","Long(20+yrs)","Regional","Permanent/Irreversible","Minor Positive","The provision of 20 new homes will help towards meeting Derby's housing target. The provision of affordable housing should be in line with requirements of Policy H4 and Policy H2 will ensure a mix of housing types and tenures is delivered. ","Yes","N/A","N/A"]
["SA7: Leisure and Recreation\nTo provide better opportunities for people to participate in cultural, leisure and recreational activities.","Will the policy or proposal:\n•\tHelp to improve access to formal and informal recreation facilities?\n•\tProvide opportunities for engagement in a range of cultural activities?\n•\tCreate new allotments where there is a demand?","Yes",0,0,3,"Direct","Medium","Long(20+yrs)","Localised","Permanent/Reversible","Significant Positive","The site is well located close to public open space, community centres and sports facilities. The proximity of these recreational spaces is likely to have a positive impact on the opportunities for residents to participate in wellbeing activities.","Yes","N/A","N/A"]
["SA8: Biodiversity and Natural Capital\nTo protect and improve biodiversity, geo-diversity, including protect and enhance favourable conditions on SSSI’s, SPAs, SACs and other wildlife sites and improve connectivity between, and access to, green spaces and functional habitats.","Will the policy or proposal:\n•\tConserve and enhance habitats in the LNRS?\n•\tConserve and enhance species diversity and in particular avoid harm and increase the ranges of protected species?\n•\tProvide opportunities for new habitat creation and lead to a net gain in biodiversity?\n•\tProtect geo-diversity?\n•\tImprove the ecological quality and character of open spaces?\n•\tMaintain and enhance woodland cover and management in appropriate areas (e.g. areas of ash dieback)?\n•\tMaintain or enhance tree cover?\n•\tProtect and promote effective management of SPAs and SACs in the LP area and its surroundings?\n•\tHelp to protect and enhance other designated sites e.g., SSSIs, Wildlife Sites, LNRs etc?\n•\tImprove climate change adaptation through provision of accessible green space or green and blue infrastructure?\n•\tPrevent the fragmentation of habitats, provide links between green spaces or help to deliver/support other ecological networks?\n•\tSupport the natural capital of the city?","Yes",0,0,2,"Direct","Medium","Long(20+yrs)","Localised","Permanent/Reversible","Minor Positive","The site is located away from designated sites. There is potential for some adverse effects on small-scale habitats and species during construction. However, is anticipated that the site will result in improvements to green infrastructure and biodiversity, which may help to provide new small scale habitats. Biodiversity enhancement is anticipated meet minimum standards of 10% for all developments, as set out in Policy EN10.","Yes","N/A","N/A"]
["SA9: Landscape and Townscape\nTo protect and enhance the character and appearance of the landscape and townscape, including landscape and townscape assets, as well as the area’s other natural assets and resources.","Will the policy or proposal:\n•\tProtect and enhance landscape and townscape quality, character and distinctiveness?\n•\tAvoid loss of, and damage to greenbelt / green wedge land?\n•\tMake use of previously used / brownfield land and buildings?\n•\tSafeguard individual landscape and townscape features such as hedgerows, ponds, public squares, etc?","Yes",0,0,2,"Direct","Medium","Long(20+yrs)","Localised","Permanent/Irreversible","Significant Positive","The site is located away from green belts and green wedges and is on brownfield land. Development is not likely to negatively impact the existing landscape and townscape, and, as the site is currently not being utilised for any purpose, a housing development which is well designed is likely to enhance the local landscape. Therefore, a potential significant negative effect is recorded.","Yes","N/A","N/A"]
["SA10: Historic Environment\nTo conserve and enhance the historic environment, heritage assets (including known and unknown archaeological sites) and their settings and maintain and enhance access to cultural heritage for enjoyment and educational purposes.   ","Will the policy or proposal:\n•\tPreserve and enhance the character or appearance of conservation areas and their settings?\n•\tPreserve or enhance heritage assets and their settings?\n•\tPreserve or enhance archaeological features and their settings?\n•\tImprove the condition of heritage at risk? \n•\tRe-use/retain historic buildings or fabric?\n•\tProtect and conserve the Outstanding Universal Value of the DVMWHS?","Yes",0,0,7,"N/A","N/A","N/A","N/A","N/A","Neutral","The development of the site is not anticipated to have any potential effect on this objective. ","No","N/A","N/A"]
["SA11: Air, Noise and Light Pollution\nTo maintain good local air quality and to minimise noise and light pollution","Will the policy or proposal:\n•\tMaintain or improve local air quality?\n•\tEncourage the installation of electric vehicle charging points?\n•\tAvoid adverse impacts from noise?\n•\tMinimise light pollution?","Yes",1,0,1,"Indirect","Medium","Medium(10yrs)","Localised","Permanent/Reversible","Minor Positive","The site is not located within an AQMA, however the site is located in an area of high light pollution. It is well located in terms of proximity to sustainable transport. There will be temporary negative effects on air quality and noise due to dust generation and emissions from construction. Overall a minor positive effect is recorded as long term sustainable transport options and reduction in private vehicle emissions are anticipated to offset the negative effects arising from construction.","Yes","A Dust Management Plan should be prepared as part of the Construction Environmental Management Plan (CEMP).","N/A"]
["SA12: Water Environment\nTo ensure sustainable management of water resources and to minimise the risk of flooding.","Will the policy or proposal: \n•\tMinimise contamination of watercourses and improve water quality in watercourses?\n•\tAvoid exacerbating flood risk for any source and be designed to be resilient to flood risk for its lifetime?\n•\tSupport the use of Sustainable Drainage Systems?\n•\tEncourage water efficiency and demand management?\n•\tAvoid deterioration and enhance the ecological status of water bodies? \n•\tContribute toward achieving Water Framework Directive objectives?","Yes",1,0,3,"Direct","High","Long(20+yrs)","Localised","Permanent/Reversible","Minor Negative","The site is located within Flood Zone 2, and is therefore vulnerable to flooding. Development at the site is anticipated to increase impermeable surfaces, increasing surface runoff and exacerbating flood risk. There is also potential for surface runoff during construction to result in pollution of the nearby water body. The application of SuDS (in line with Policy CL1) should be demonstrated to reduce the risk of run-off and surface water flooding.","Yes","N/A","N/A"]
["SA13: Climate Change\nAdapt to the effects of climate change including flood risk, extreme weather and overheating, and strengthen climate resilience.","Will the policy or proposal:\n•\tMinimise flood risk and ensure new development provides sustainable urban drainage?\n•\tEnsure new development is designed to withstand future climate change (e.g. overheating and increased storm severity)?\n•\tIncrease and improve green and blue infrastructure to create a connected network across the city and within the wider area?\n•\tEnsure surface and groundwater water resources are used efficiently?\n•\tReduce energy consumption?\n•\tSupport the delivery of renewable and decentralised energy capacity (including small scale or community energy projects)?\n•\tSupport energy efficient design?","Yes",1,0,3,"N/A","N/A","N/A","N/A","N/A","Uncertain","The site is located within Flood Zone 2, and is therefore vulnerable to flooding. Climate resilience measures, including drainage measures, energy efficiency measures, or green infrastructure provision are currently unknown. This is likely to be determined by individual scheme design.","Yes","Development should look into incorporating renewable energy generation methods such as solar panels, and should incorporate design measures that will reduce effects of climate change, such as zonal heating systems, water saving initiatives and energy monitoring devices.","N/A"]
["SA14: Greenhouse Gases\nTo reduce the contribution towards the emission of greenhouse gases.","Will the policy or proposal:\n•\tReduce GHG emissions?\n•\tSupport the shift towards low carbon technologies and the usage of electric and ultralow emissions vehicles and appropriate infrastructure to support these?\n•\tProvide opportunities to access local services and facilities by low carbon public transport, walking or wheeling?\n•\tPromote a low carbon local economy? \n•\tReduce levels of embodied carbon?","No",null,null,null,"Direct","Medium","Long(20+yrs)","Localised","Permanent/Irreversible","Minor Negative","There are likely to be significant GHG emissions associated with the construction  from embodied carbon within building materials, as well as carbon emissions from construction traffic and construction plant. Building efficiency measures are anticipated to reduce energy use in operation. The development will promote sustainable travel modes, reducing car reliance and GHG emissions from transport. The application of Policy CL5 should be applied to minimise embodied carbon. However, a minor negative effect is recorded due to construction emissions.","Yes","Any form of construction and operation should be undertaken as sustainably as possible, making use of tools and processes, such as circular economy, waste hierarchy and should consider BREEAM and BREEAM Infrastructure.","N/A"]
["SA15: Transport and Accessibility\nTo reduce the number of journeys made by car, within and to and from the area and improve access to jobs, services and facilities.","Will the policy or proposal:\n•\tUtilise and enhance existing infrastructure?\n•\tHelp to meet local needs locally through low carbon travel options?\n•\tFacilitate safe walking and cycling?\n•\tFacilitate the use of public transport?\n•\tDeliver opportunities to relieve traffic congestion?\n•\tEncourage travel planning for businesses?\n•\tHelp to reduce the distances people have to travel on a regular basis for education, employment and services?\n•\tHelp to improve access to services and facilities for those living in rural or remote settlements, or experiencing other access constraints?\n•\tHelp to support homeworking by residents?","Yes",1,0,2,"Direct","Low","Medium(10yrs)","Localised","Permanent/Irreversible","Minor Positive","The site is located within 800m from a railway station and 400m from a bus stop. The site is more than 400m from a cycle network. It is not clear whether the site will be connected to the cycle network. The site located within an area which is currently a mix of residential and employment uses which should support a reduction in the need for residents to travel to access services. Development at the site provides a good level of accessibility to public transport. Furthermore, it is anticipated that transport improvements should be improved in line with Policy T1.","Yes","N/A","N/A"]
["SA16: Geology and Soils\nTo minimise water and soil pollution and ensure protection of natural resources including greenfield land, soil, and minerals resources.","Will the policy or proposal:\n•\tUtilise previously developed land?\n•\tSeek to improve or remediate contaminated land or reuse previously developed land which has not been restored?\n•\tProtect soil quality and avoid soil pollution?\n•\tProtect Best and Most Versatile (BMV) Agricultural Land?\n•\tProtect Greenbelt/ Green Wedges land?\n•\tProtect sites safeguarded for mineral workings?","Yes",0,0,4,"Direct","Medium","Long(20+yrs)","Borough-wide","Permanent/Reversible","Significant Positive","The site is located on brownfield land. Development at this site will support the protection of greenfield land and reuse of previously developed land, therefore a potential significant positive effect is recorded. ","Yes","N/A","N/A"]
["SA17: Waste\nTo minimise the generation of waste and effectively manage waste that is created.","Will the policy or proposal:\n•\tEnhance opportunities for waste to be treated in line with circular economy principles (e.g. recycling, re-using, composting)?\n•\tProvide adequate waste separation facilities in new and existing developments in order to encourage more recycling?\n•\tEncourage the repurposing and refurbishing of buildings, instead of demolition?","Yes",0,0,1,"Indirect","High","Long(20+yrs)","Localised","Permanent/Irreversible","Minor Negative","Development should support the use of sustainably sourced/recycled materials in line with Policy GD1. This should help minimise waste from the development's construction phase. However, once in use, the development is likely to produce waste in operation which could have a greater impact than waste through construction. However, the Local Plan is unable to control the generation of waste beyond development of the site. It will only be able to ensure that developments are designed to ensure that users can separate waste facilitating them to follow the waste hierarchy. ","Yes","A Site Waste Management Plan should be prepared as part of the CEMP and OEMP. ","N/A"]

{"sheet":"HA11","index":16,"n_rows":28,"n_cols":16,"rows_kept":28,"cut":false,"hidden":false,"merged":[[9,0,9,1],[9,2,9,5],[9,6,9,15]]}
["Site Name","Former Shaftesbury Leisure Centre"]
["Site Address"]
["Town/Locality"]
["Est Housing Yield/Employment Space","20 dwellings "]
["Site Area (ha)"]
["Site Description"]
["Greenfield/Brownfield","Greenfield/ Brownfield"]
["Assumptions Made"]
[]
["SA Framework",null,"GIS Inputs",null,null,null,"SA  Assessment"]
["SA objective","Supporting Questions","GIS Data Available?","R","A","G","Direct/\nIndirect","Magnitude","Duration","Spatial Extent","Permanence/ Reversibility","Significance","Description of potential effects","Potential for cumulative effects? ","Mitigation","Enhancements"]
["SA1: Population and Equalities\nTo build inclusive communities by reducing social exclusion, reducing deprivation, promoting equity, equality and respecting diversity, improving local accessibility to healthcare, education, employment, retail facilities and recreational resources (including open spaces and sports facilities).  ","Will the policy or proposal:\n•\tHelp to reduce deprivation and the inequality gap?\n•\tEnsure all residents have equitable access to health services?\n•\tConsider the needs of an aging population?\n•\tEnsure new housing is well related located, close to a range of services such as shops, schools and employment opportunities?\n•\tImprove opportunities for active travel including walking and cycling?\n•\tEnsure everyone has access to high quality open space and recreation facilities?\n•\tProtect community facilities and improve access to important local services for the most deprived?","Yes",1,0,2,"Direct","Medium","Medium(10yrs)","Localised","Temporary/Reversible","Minor Positive","Development at this site will deliver a minimum of 20 new dwellings. Derby City Council will explore opportunities for qualitative improvements to the area of the site which is not proposed to be developed for residential uses. It is not known how many of the 20 homes will be accessible or adaptable. Additionally, the site is located within the most deprived neighbourhoods, therefore affordability needs to be a key consideration. The site has good access to community facilities including healthcare, shops, employment and schools, as well as open space. This may aid in reducing levels of inequalities by locating communities close to these facilities. ","Yes","N/A","N/A"]
["SA2: Human Health\nTo improve health and wellbeing and reduce health inequalities, improving quality of life for all.","Will the policy or proposal:\n•\tHelp to improve health and reduce health inequalities?\n•\tContribute to healthy lifestyles?\n•\tEncourage walking, cycling and a reduction in private car use?\n•\tHelp to ensure health services are provided alongside development?\n•\tProtect existing services?","Yes",2,0,3,"Direct","Medium","Medium(10yrs)","Localised","Temporary/Reversible","Minor Positive","The site is located within 800m of healthcare facilities and parks and open space. The site has good access to facilities which support human heath, providing opportunities for healthy lifestyles and access to services.","Yes","N/A","N/A"]
["SA3: Economy\nTo deliver economic growth and support the creation of new and retention of existing businesses.","Will the policy or proposal:\n•\tSupport the growth of higher skilled economic sectors? \n•\tProvide new employment premises which meet identified local needs in the area? \n•\tImprove business infrastructure, such as broadband and provide attractive sites for modern businesses?\n•\tSupport the city’s retail sector, especially the city centre and other retail centres?","Yes",1,0,1,"Indirect","Low","Medium(10yrs)","Localised","Temporary/Reversible","Minor Positive","The site is located within 800m of the nearest town centre. The proximity to the town centre will likely support the needs of residents as well as support the economy in this area by increasing footfall.","Yes","N/A","N/A"]
["SA4: Employment\nTo create greater employment opportunities, higher value jobs and access to training.","Will the policy or proposal:\n•\tIncrease job availability?\n•\tIncrease the quality and choice of local employment?\n•\tImprove access to employment centres?\n•\tMeet the skills needs and future demand for labour?","Yes",2,0,1,"Direct","Low","Medium(10yrs)","Localised","Temporary/Reversible","Minor Positive","The site is located within 800m from an existing area of employment and an existing town centre. The site is within an area of high deprivation for income and employment, however there are a number of employment opportunities within Derby City Centre and near to the site.","Yes","N/A","N/A"]
["SA5: Crime and Safety\nTo reduce crime and the fear of crime for all residents inclusively, improving safety.","Will the policy or proposal:\n•\tHelp to create streets where people feel safe, particularly after dark?\n•\tMake a positive contribution to community cohesion?\n•\tSupport designing out crime principals? \n•\tReduce levels of crime derivation? \n•\tImprove road safety and reduce the number of people killed or seriously injured (KSI) on the roads, particularly children from deprived backgrounds? \n•\tCreate spaces where women and girls feel safe and included?","Yes",1,0,0,"N/A","N/A","N/A","N/A","N/A","Uncertain","The site is currently located within an area of high crime deprivation.  There is limited detail on whether designing out crime principles will be applied as part of the development. However, it is assumed that development should incorporate designing out crime principles in line with Policy GD5.","Yes","N/A","N/A"]
["SA6: Housing\nTo provide everybody with access to an affordable home which is resilient to the effects of climate change.","Will the policy or proposal:\n•\tSupport a range of housing types and sizes, including affordable housing units??\n•\tEnsure that there is an adequate supply of housing development land to meet local needs?\n•\tBe sustainably designed and resilient to the effects of climate change and designed to meet all needs, for example “Lifetime Homes” standards?","Yes",1,0,0,"Direct","High","Long(20+yrs)","Regional","Permanent/Irreversible","Minor Positive","The provision of 20 new homes will help towards meeting Derby's housing target. The provision of affordable housing should be in line with requirements of Policy H4 and Policy H2 will ensure a mix of housing types and tenures is delivered. ","Yes","N/A","N/A"]
["SA7: Leisure and Recreation\nTo provide better opportunities for people to participate in cultural, leisure and recreational activities.","Will the policy or proposal:\n•\tHelp to improve access to formal and informal recreation facilities?\n•\tProvide opportunities for engagement in a range of cultural activities?\n•\tCreate new allotments where there is a demand?","Yes",0,0,3,"Direct","Medium","Long(20+yrs)","Localised","Permanent/Reversible","Significant Positive","The site is well located close to public open space, community centres and sports facilities. The proximity of these recreational spaces is likely to have a positive impact on the opportunities for residents to participate in leisure and recreation activities.","Yes","N/A","N/A"]
["SA8: Biodiversity and Natural Capital\nTo protect and improve biodiversity, geo-diversity, including protect and enhance favourable conditions on SSSI’s, SPAs, SACs and other wildlife sites and improve connectivity between, and access to, green spaces and functional habitats.","Will the policy or proposal:\n•\tConserve and enhance habitats in the LNRS?\n•\tConserve and enhance species diversity and in particular avoid harm and increase the ranges of protected species?\n•\tProvide opportunities for new habitat creation and lead to a net gain in biodiversity?\n•\tProtect geo-diversity?\n•\tImprove the ecological quality and character of open spaces?\n•\tMaintain and enhance woodland cover and management in appropriate areas (e.g. areas of ash dieback)?\n•\tMaintain or enhance tree cover?\n•\tProtect and promote effective management of SPAs and SACs in the LP area and its surroundings?\n•\tHelp to protect and enhance other designated sites e.g., SSSIs, Wildlife Sites, LNRs etc?\n•\tImprove climate change adaptation through provision of accessible green space or green and blue infrastructure?\n•\tPrevent the fragmentation of habitats, provide links between green spaces or help to deliver/support other ecological networks?\n•\tSupport the natural capital of the city?","Yes",0,0,2,"Direct","Medium","Long(20+yrs)","Localised","Permanent/Reversible","Minor Positive","The site is located on greenfield land, and there is potential for some adverse effects on small-scale habitats and species during construction. However, is anticipated that the site will aim to retain the trees at the site, or implement biodiversity net gain at the site, which may help to provide new small scale habitats. Biodiversity enhancement is anticipated meet minimum standards of 10% for all developments, as set out in Policy EN10.","Yes","N/A","N/A"]
["SA9: Landscape and Townscape\nTo protect and enhance the character and appearance of the landscape and townscape, including landscape and townscape assets, as well as the area’s other natural assets and resources.","Will the policy or proposal:\n•\tProtect and enhance landscape and townscape quality, character and distinctiveness?\n•\tAvoid loss of, and damage to greenbelt / green wedge land?\n•\tMake use of previously used / brownfield land and buildings?\n•\tSafeguard individual landscape and townscape features such as hedgerows, ponds, public squares, etc?","Yes",0,0,2,"Direct","Medium","Long(20+yrs)","Localised","Permanent/Irreversible","Significant Positive","The site is located away from green belts and green wedges and is on brownfield land. Development is not likely to negatively impact the existing landscape and townscape, and, as the site is currently not being utilised for any purpose, a housing development which is well designed is likely to enhance the local landscape.","Yes","N/A","N/A"]
["SA10: Historic Environment\nTo conserve and enhance the historic environment, heritage assets (including known and unknown archaeological sites) and their settings and maintain and enhance access to cultural heritage for enjoyment and educational purposes.   ","Will the policy or proposal:\n•\tPreserve and enhance the character or appearance of conservation areas and their settings?\n•\tPreserve or enhance heritage assets and their settings?\n•\tPreserve or enhance archaeological features and their settings?\n•\tImprove the condition of heritage at risk? \n•\tRe-use/retain historic buildings or fabric?\n•\tProtect and conserve the Outstanding Universal Value of the DVMWHS?","Yes",1,0,6,"Direct","Medium","Long(20+yrs)","Localised","Permanent/Irreversible","Minor Positive","The site is within 100m from a listed building. Development at the site may adversely impact the setting of the listed building particularly during construction. However, there is potential for enhancement to the setting of the asset through the redevelopment of the site. Additionally, development is anticipated to be undertaken in line with Policy EN11, ensuring efforts to preserve Derby's historic environment.","Yes","A lighting strategy should be prepared to minimise light spill onto heritage assets.","N/A"]
["SA11: Air, Noise and Light Pollution\nTo maintain good local air quality and to minimise noise and light pollution","Will the policy or proposal:\n•\tMaintain or improve local air quality?\n•\tEncourage the installation of electric vehicle charging points?\n•\tAvoid adverse impacts from noise?\n•\tMinimise light pollution?","Yes",1,0,1,"Indirect","Medium","Medium(10yrs)","Localised","Permanent/Reversible","Minor Positive","The site is not located within an AQMA, however is in an area of high light pollution. The site is well located in terms of proximity to sustainable transport, which may improve air quality. There will be temporary negative effects on air quality and noise due to dust generation and emissions from construction. Overall a minor positive effect is recorded as long term sustainable transport options and reduction in private vehicle emissions are anticipated to offset the negative effects arising from construction.","Yes","A Dust Management Plan should be prepared as part of the Construction Environmental Management Plan (CEMP).","N/A"]
["SA12: Water Environment\nTo ensure sustainable management of water resources and to minimise the risk of flooding.","Will the policy or proposal: \n•\tMinimise contamination of watercourses and improve water quality in watercourses?\n•\tAvoid exacerbating flood risk for any source and be designed to be resilient to flood risk for its lifetime?\n•\tSupport the use of Sustainable Drainage Systems?\n•\tEncourage water efficiency and demand management?\n•\tAvoid deterioration and enhance the ecological status of water bodies? \n•\tContribute toward achieving Water Framework Directive objectives?","Yes",1,0,3,"Direct","High","Long(20+yrs)","Localised","Permanent/Reversible","Minor Negative","The site is located within Flood Zone 2, and is therefore vulnerable to flooding. Development at the site is anticipated to increase impermeable surfaces, increasing surface runoff and exacerbating flood risk. There is also potential for surface runoff during construction to result in pollution of the nearby water body. The application of SuDS (in line with Policy CL1) should be demonstrated to reduce the risk of run-off and surface water flooding.","Yes","The plan should require appropriate water management strategies, for example the inclusion of SuDS, within the site allocation's supporting text.","N/A"]
["SA13: Climate Change\nAdapt to the effects of climate change including flood risk, extreme weather and overheating, and strengthen climate resilience.","Will the policy or proposal:\n•\tMinimise flood risk and ensure new development provides sustainable urban drainage?\n•\tEnsure new development is designed to withstand future climate change (e.g. overheating and increased storm severity)?\n•\tIncrease and improve green and blue infrastructure to create a connected network across the city and within the wider area?\n•\tEnsure surface and groundwater water resources are used efficiently?\n•\tReduce energy consumption?\n•\tSupport the delivery of renewable and decentralised energy capacity (including small scale or community energy projects)?\n•\tSupport energy efficient design?","Yes",1,0,3,"N/A","N/A","N/A","N/A","N/A","Uncertain","The site is located within Flood Zone 2, and is therefore vulnerable to flooding. Climate resilience measures, including drainage measures, energy efficiency measures, or green infrastructure provision are currently unknown. This is likely to be determined by individual scheme design.","Yes","Development should look into incorporating renewable energy generation methods such as solar panels, and should incorporate design measures that will reduce effects of climate change, such as zonal heating systems, water saving initiatives and energy monitoring devices.","N/A"]
["SA14: Greenhouse Gases\nTo reduce the contribution towards the emission of greenhouse gases.","Will the policy or proposal:\n•\tReduce GHG emissions?\n•\tSupport the shift towards low carbon technologies and the usage of electric and ultralow emissions vehicles and appropriate infrastructure to support these?\n•\tProvide opportunities to access local services and facilities by low carbon public transport, walking or wheeling?\n•\tPromote a low carbon local economy? \n•\tReduce levels of embodied carbon?","No",null,null,null,"Direct","Medium","Long(20+yrs)","Localised","Permanent/Irreversible","Minor Negative","There are likely to be significant GHG emissions associated with the construction  from embodied carbon within building materials, as well as carbon emissions from construction traffic and construction plant. Building efficiency measures are anticipated to reduce energy use in operation. The development will promote sustainable travel modes, reducing car reliance and GHG emissions from transport. The application of Policy CL5 should be applied to minimise embodied carbon. However, a minor negative effect is recorded due to construction emissions.","Yes","Any form of construction and operation should be undertaken as sustainably as possible, making use of tools and processes, such as circular economy, waste hierarchy and should consider BREEAM and BREEAM Infrastructure.","N/A"]
["SA15: Transport and Accessibility\nTo reduce the number of journeys made by car, within and to and from the area and improve access to jobs, services and facilities.","Will the policy or proposal:\n•\tUtilise and enhance existing infrastructure?\n•\tHelp to meet local needs locally through low carbon travel options?\n•\tFacilitate safe walking and cycling?\n•\tFacilitate the use of public transport?\n•\tDeliver opportunities to relieve traffic congestion?\n•\tEncourage travel planning for businesses?\n•\tHelp to reduce the distances people have to travel on a regular basis for education, employment and services?\n•\tHelp to improve access to services and facilities for those living in rural or remote settlements, or experiencing other access constraints?\n•\tHelp to support homeworking by residents?","Yes",1,0,2,"Direct","Low","Medium(10yrs)","Localised","Permanent/Irreversible","Minor Positive","The site is located within 800m from a railway station and 400m from a bus stop. The site is more than 400m from a cycle network. It is not clear whether the site will be connected to the cycle network. Development at the site provides a good level of accessibility to public transport.","Yes","N/A","N/A"]
["SA16: Geology and Soils\nTo minimise water and soil pollution and ensure protection of natural resources including greenfield land, soil, and minerals resources.","Will the policy or proposal:\n•\tUtilise previously developed land?\n•\tSeek to improve or remediate contaminated land or reuse previously developed land which has not been restored?\n•\tProtect soil quality and avoid soil pollution?\n•\tProtect Best and Most Versatile (BMV) Agricultural Land?\n•\tProtect Greenbelt/ Green Wedges land?\n•\tProtect sites safeguarded for mineral workings?","Yes",0,1,3,"Direct","Medium","Long(20+yrs)","Borough-wide","Permanent/Reversible","Minor Negative","The site is located on both brownfield and greenfield land. Development at this site will support the reuse of previously developed land, however will result in the loss of greenfield land.","Yes","N/A","N/A"]
["SA17: Waste\nTo minimise the generation of waste and effectively manage waste that is created.","Will the policy or proposal:\n•\tEnhance opportunities for waste to be treated in line with circular economy principles (e.g. recycling, re-using, composting)?\n•\tProvide adequate waste separation facilities in new and existing developments in order to encourage more recycling?\n•\tEncourage the repurposing and refurbishing of buildings, instead of demolition?","Yes",0,0,1,"Indirect","High","Long(20+yrs)","Localised","Permanent/Irreversible","Minor Negative","Development should support the use of sustainably sourced/recycled materials in line with Policy GD1. This should help minimise waste from the development's construction phase. However, once in use, the development is likely to produce waste in operation which could have a greater impact than waste through construction. However, the Local Plan is unable to control the generation of waste beyond development of the site. It will only be able to ensure that developments are designed to ensure that users can separate waste facilitating them to follow the waste hierarchy. ","Yes","A Site Waste Management Plan should be prepared as part of the CEMP and OEMP. ","N/A"]

{"sheet":"HA12","index":17,"n_rows":28,"n_cols":16,"rows_kept":28,"cut":false,"hidden":false,"merged":[[9,0,9,1],[9,2,9,5],[9,6,9,15]]}
["Site Name","North of Sinfin Moor Lane"]
["Site Address"]
["Town/Locality"]
["Est Housing Yield/Employment Space","40 homes"]
["Site Area (ha)"]
["Site Description"]
["Greenfield/Brownfield","Greenfield"]
["Assumptions Made"]
[]
["SA Framework",null,"GIS Inputs",null,null,null,"SA  Assessment"]
["SA objective","Supporting Questions","GIS Data Available?","R","A","G","Direct/\nIndirect","Magnitude","Duration","Spatial Extent","Permanence/ Reversibility","Significance","Description of potential effects","Potential for cumulative effects? ","Mitigation","Enhancements"]
["SA1: Population and Equalities\nTo build inclusive communities by reducing social exclusion, reducing deprivation, promoting equity, equality and respecting diversity, improving local accessibility to healthcare, education, employment, retail facilities and recreational resources (including open spaces and sports facilities).  ","Will the policy or proposal:\n•\tHelp to reduce deprivation and the inequality gap?\n•\tEnsure all residents have equitable access to health services?\n•\tConsider the needs of an aging population?\n•\tEnsure new housing is well related located, close to a range of services such as shops, schools and employment opportunities?\n•\tImprove opportunities for active travel including walking and cycling?\n•\tEnsure everyone has access to high quality open space and recreation facilities?\n•\tProtect community facilities and improve access to important local services for the most deprived?","Yes",0,1,2,"Direct","Low","Long(20+yrs)","Localised","Permanent/Irreversible","Minor Positive","The site is anticipated to provide 40 new homes, however the provision of affordable and adaptable homes is currently uncertain. The site has good access to existing community facilities, however it is currently unclear whether additional facilities will be proposed as part of this development.","Yes","N/A","N/A"]
["SA2: Human Health\nTo improve health and wellbeing and reduce health inequalities, improving quality of life for all.","Will the policy or proposal:\n•\tHelp to improve health and reduce health inequalities?\n•\tContribute to healthy lifestyles?\n•\tEncourage walking, cycling and a reduction in private car use?\n•\tHelp to ensure health services are provided alongside development?\n•\tProtect existing services?","Yes",2,1,2,"N/A","N/A","N/A","N/A","N/A","Uncertain","As housing is a key determinant of health, the delivery of this is likely to provide health benefits. The site does have good access to healthcare and open space; however, the site is located in an area of medium health deprivation. It is not clear whether the current provision will meet the needs of the additional population. There is limited information of the type of housing and the additional provisions the site may make e.g. public realm, employment, health facilities.","Yes","Further assessment as part of scheme level design should be undertaken, to evaluate the provision of facilities and ensure that supply is sufficient in supporting new communities.","N/A"]
["SA3: Economy\nTo deliver economic growth and support the creation of new and retention of existing businesses.","Will the policy or proposal:\n•\tSupport the growth of higher skilled economic sectors? \n•\tProvide new employment premises which meet identified local needs in the area? \n•\tImprove business infrastructure, such as broadband and provide attractive sites for modern businesses?\n•\tSupport the city’s retail sector, especially the city centre and other retail centres?","Yes",1,0,1,"Indirect","Low","Medium(10yrs)","Localised","Temporary/Reversible","Minor Positive","The site is located within 800m of the nearest town centre. The proximity to the town centre will likely support the needs of residents as well as support the economy in this area by increasing footfall.","Yes","N/A","N/A"]
["SA4: Employment\nTo create greater employment opportunities, higher value jobs and access to training.","Will the policy or proposal:\n•\tIncrease job availability?\n•\tIncrease the quality and choice of local employment?\n•\tImprove access to employment centres?\n•\tMeet the skills needs and future demand for labour?","Yes",1,0,2,"N/A","N/A","N/A","N/A","N/A","Neutral","The development of the site is not anticipated to have any potential effect on this objective. ","No","N/A","N/A"]
["SA5: Crime and Safety\nTo reduce crime and the fear of crime for all residents inclusively, improving safety.","Will the policy or proposal:\n•\tHelp to create streets where people feel safe, particularly after dark?\n•\tMake a positive contribution to community cohesion?\n•\tSupport designing out crime principals? \n•\tReduce levels of crime derivation? \n•\tImprove road safety and reduce the number of people killed or seriously injured (KSI) on the roads, particularly children from deprived backgrounds? \n•\tCreate spaces where women and girls feel safe and included?","Yes",0,0,1,"Indirect","Low","Short/Medium","Localised","Permanent/Reversible","Minor Positive","The site is currently located within an area of low crime deprivation.  There is limited detail on whether designing out crime principles will be applied as part of the development. However, it is assumed that development should incorporate designing out crime principles in line with Policy GD5.","Yes","N/A","N/A"]
["SA6: Housing\nTo provide everybody with access to an affordable home which is resilient to the effects of climate change.","Will the policy or proposal:\n•\tSupport a range of housing types and sizes, including affordable housing units??\n•\tEnsure that there is an adequate supply of housing development land to meet local needs?\n•\tBe sustainably designed and resilient to the effects of climate change and designed to meet all needs, for example “Lifetime Homes” standards?","Yes",0,1,0,"Direct","High","Long(20+yrs)","Regional","Permanent/Irreversible","Minor Positive","The provision of 40 new homes will help towards meeting Derby's housing target. The provision of affordable housing should be in line with requirements of Policy H4 and Policy H2 will ensure a mix of housing types and tenures is delivered. ","Yes","N/A","N/A"]
["SA7: Leisure and Recreation\nTo provide better opportunities for people to participate in cultural, leisure and recreational activities.","Will the policy or proposal:\n•\tHelp to improve access to formal and informal recreation facilities?\n•\tProvide opportunities for engagement in a range of cultural activities?\n•\tCreate new allotments where there is a demand?","Yes",1,0,2,"Direct","Medium","Medium/Long","Localised","Permanent/Reversible","Minor Positive","The site is well located close to public open space, but is not located close to any sports facilities. It is currently unclear whether the development at the site will provide additional opportunities for open space. However, the location of the site provides access to informal recreation facilities.","Yes","N/A","N/A"]
["SA8: Biodiversity and Natural Capital\nTo protect and improve biodiversity, geo-diversity, including protect and enhance favourable conditions on SSSI’s, SPAs, SACs and other wildlife sites and improve connectivity between, and access to, green spaces and functional habitats.","Will the policy or proposal:\n•\tConserve and enhance habitats in the LNRS?\n•\tConserve and enhance species diversity and in particular avoid harm and increase the ranges of protected species?\n•\tProvide opportunities for new habitat creation and lead to a net gain in biodiversity?\n•\tProtect geo-diversity?\n•\tImprove the ecological quality and character of open spaces?\n•\tMaintain and enhance woodland cover and management in appropriate areas (e.g. areas of ash dieback)?\n•\tMaintain or enhance tree cover?\n•\tProtect and promote effective management of SPAs and SACs in the LP area and its surroundings?\n•\tHelp to protect and enhance other designated sites e.g., SSSIs, Wildlife Sites, LNRs etc?\n•\tImprove climate change adaptation through provision of accessible green space or green and blue infrastructure?\n•\tPrevent the fragmentation of habitats, provide links between green spaces or help to deliver/support other ecological networks?\n•\tSupport the natural capital of the city?","Yes",0,0,2,"Direct","Medium","Long(20+yrs)","Localised","Permanent/Reversible","Minor Positive","The site is located away from designated sites. There is potential for some adverse effects on small-scale habitats and species during construction. However, is anticipated that the site will result in improvements to green infrastructure and biodiversity, which may help to provide new small scale habitats. Biodiversity enhancement is anticipated meet minimum standards of 10% for all developments, as set out in Policy EN10.","Yes","N/A","N/A"]
["SA9: Landscape and Townscape\nTo protect and enhance the character and appearance of the landscape and townscape, including landscape and townscape assets, as well as the area’s other natural assets and resources.","Will the policy or proposal:\n•\tProtect and enhance landscape and townscape quality, character and distinctiveness?\n•\tAvoid loss of, and damage to greenbelt / green wedge land?\n•\tMake use of previously used / brownfield land and buildings?\n•\tSafeguard individual landscape and townscape features such as hedgerows, ponds, public squares, etc?","Yes",0,0,2,"Direct","Medium","Long(20+yrs)","Localised","Permanent/Irreversible","Minor Positive","The site is located away from green belts and green wedges. However, it is located on an area of greenfield land. The development at the site has potential to result in alteration of the visual landscape. However, development at the site will consider the existing homes in the surrounding area and is therefore anticipated to enhance the landscape character.","Yes","N/A","N/A"]
["SA10: Historic Environment\nTo conserve and enhance the historic environment, heritage assets (including known and unknown archaeological sites) and their settings and maintain and enhance access to cultural heritage for enjoyment and educational purposes.   ","Will the policy or proposal:\n•\tPreserve and enhance the character or appearance of conservation areas and their settings?\n•\tPreserve or enhance heritage assets and their settings?\n•\tPreserve or enhance archaeological features and their settings?\n•\tImprove the condition of heritage at risk? \n•\tRe-use/retain historic buildings or fabric?\n•\tProtect and conserve the Outstanding Universal Value of the DVMWHS?","Yes",0,0,7,"N/A","N/A","N/A","N/A","N/A","Neutral","The development of the site is not anticipated to have any potential effect on this objective. ","No","N/A","N/A"]
["SA11: Air, Noise and Light Pollution\nTo maintain good local air quality and to minimise noise and light pollution","Will the policy or proposal:\n•\tMaintain or improve local air quality?\n•\tEncourage the installation of electric vehicle charging points?\n•\tAvoid adverse impacts from noise?\n•\tMinimise light pollution?","Yes",1,0,1,"Indirect","Low","Short/Medium","Localised","Permanent/Reversible","Minor Negative","The site is not well located in terms of proximity to sustainable transport and is located in an area of high light pollution. There will be temporary negative effects on air quality and noise due to dust generation and emissions from construction. There are a number of existing residential receptors surrounding the site which would be negatively impacted during construction. However, the development is anticipated to seek opportunities to identify and improve air quality and should not reduce air quality benefits, in line with Policy EN22.","Yes","A Dust Management Plan should be prepared as part of the Construction Environmental Management Plan (CEMP).","N/A"]
["SA12: Water Environment\nTo ensure sustainable management of water resources and to minimise the risk of flooding.","Will the policy or proposal: \n•\tMinimise contamination of watercourses and improve water quality in watercourses?\n•\tAvoid exacerbating flood risk for any source and be designed to be resilient to flood risk for its lifetime?\n•\tSupport the use of Sustainable Drainage Systems?\n•\tEncourage water efficiency and demand management?\n•\tAvoid deterioration and enhance the ecological status of water bodies? \n•\tContribute toward achieving Water Framework Directive objectives?","Yes",1,0,3,"Direct","High","Long(20+yrs)","Localised","Permanent/Irreversible","Minor Negative","The site is located in close proximity to a water body. There is also potential for surface runoff during construction to result in pollution of the nearby water body.  The application of SuDS (in line with Policy CL1) should be demonstrated to reduce the risk of run-off and surface water flooding. The plan outlines that development needs to appropriately consider the issues of land drainage.","Yes","The plan should require appropriate water management strategies, for example the inclusion of SuDS, within the site allocation's supporting text.","N/A"]
["SA13: Climate Change\nAdapt to the effects of climate change including flood risk, extreme weather and overheating, and strengthen climate resilience.","Will the policy or proposal:\n•\tMinimise flood risk and ensure new development provides sustainable urban drainage?\n•\tEnsure new development is designed to withstand future climate change (e.g. overheating and increased storm severity)?\n•\tIncrease and improve green and blue infrastructure to create a connected network across the city and within the wider area?\n•\tEnsure surface and groundwater water resources are used efficiently?\n•\tReduce energy consumption?\n•\tSupport the delivery of renewable and decentralised energy capacity (including small scale or community energy projects)?\n•\tSupport energy efficient design?","Yes",0,0,4,"N/A","N/A","N/A","N/A","N/A","Uncertain","The site is not located within a flood zone. However, climate resilience measures, including energy efficiency measures and green infrastructure are currently unknown. This is likely to be determined by individual scheme design.","Yes","Development should look into incorporating renewable energy generation methods such as solar panels, and should incorporate design measures that will reduce effects of climate change, such as zonal heating systems, water saving initiatives and energy monitoring devices.","N/A"]
["SA14: Greenhouse Gases\nTo reduce the contribution towards the emission of greenhouse gases.","Will the policy or proposal:\n•\tReduce GHG emissions?\n•\tSupport the shift towards low carbon technologies and the usage of electric and ultralow emissions vehicles and appropriate infrastructure to support these?\n•\tProvide opportunities to access local services and facilities by low carbon public transport, walking or wheeling?\n•\tPromote a low carbon local economy? \n•\tReduce levels of embodied carbon?","No",null,null,null,"Direct","Medium","Long(20+yrs)","Localised","Permanent/Irreversible","Minor Negative","There are likely to be significant GHG emissions associated with the construction  from embodied carbon within building materials, as well as carbon emissions from construction traffic and construction plant. Building efficiency measures are anticipated to reduce energy use in operation. The development will promote sustainable travel modes, reducing car reliance and GHG emissions from transport. The application of Policy CL5 should be applied to minimise embodied carbon. However, a minor negative effect is recorded due to construction emissions.","Yes","Any form of construction and operation should be undertaken as sustainably as possible, making use of tools and processes, such as circular economy, waste hierarchy and should consider BREEAM and BREEAM Infrastructure.","N/A"]
["SA15: Transport and Accessibility\nTo reduce the number of journeys made by car, within and to and from the area and improve access to jobs, services and facilities.","Will the policy or proposal:\n•\tUtilise and enhance existing infrastructure?\n•\tHelp to meet local needs locally through low carbon travel options?\n•\tFacilitate safe walking and cycling?\n•\tFacilitate the use of public transport?\n•\tDeliver opportunities to relieve traffic congestion?\n•\tEncourage travel planning for businesses?\n•\tHelp to reduce the distances people have to travel on a regular basis for education, employment and services?\n•\tHelp to improve access to services and facilities for those living in rural or remote settlements, or experiencing other access constraints?\n•\tHelp to support homeworking by residents?","Yes",1,1,1,"Direct","Medium","Long(20+yrs)","Localised","Permanent/Irreversible","Minor Negative","The site is accessible via the existing cycle network, but is not well accessed by bus stops or train stations. This may limit uptake of public transport at the site and increase reliance on private vehicles.","Yes","The development requirements should ensure that a bus service is provided.","N/A"]
["SA16: Geology and Soils\nTo minimise water and soil pollution and ensure protection of natural resources including greenfield land, soil, and minerals resources.","Will the policy or proposal:\n•\tUtilise previously developed land?\n•\tSeek to improve or remediate contaminated land or reuse previously developed land which has not been restored?\n•\tProtect soil quality and avoid soil pollution?\n•\tProtect Best and Most Versatile (BMV) Agricultural Land?\n•\tProtect Greenbelt/ Green Wedges land?\n•\tProtect sites safeguarded for mineral workings?","Yes",1,1,2,"Direct","High","Long(20+yrs)","Localised","Permanent/Irreversible","Significant Negative","The site is located on greenfield land that is currently utilised for agriculture. This land is of ALC grade 3 and 4. Development at the site will result in the loss of greenfield agricultural land.","Yes","Where possible, development should be located to avoid the loss of BMV agricultural land.","N/A"]
["SA17: Waste\nTo minimise the generation of waste and effectively manage waste that is created.","Will the policy or proposal:\n•\tEnhance opportunities for waste to be treated in line with circular economy principles (e.g. recycling, re-using, composting)?\n•\tProvide adequate waste separation facilities in new and existing developments in order to encourage more recycling?\n•\tEncourage the repurposing and refurbishing of buildings, instead of demolition?","Yes",0,0,1,"Indirect","High","Long(20+yrs)","Localised","Permanent/Irreversible","Minor Negative","Development should support the use of sustainably sourced/recycled materials in line with Policy GD1. This should help minimise waste from the development's construction phase. However, once in use, the development is likely to produce waste in operation which could have a greater impact than waste through construction. However, the Local Plan is unable to control the generation of waste beyond development of the site. It will only be able to ensure that developments are designed to ensure that users can separate waste facilitating them to follow the waste hierarchy. ","Yes","A Site Waste Management Plan should be prepared as part of the CEMP and OEMP. ","N/A"]

{"sheet":"HA13","index":18,"n_rows":28,"n_cols":16,"rows_kept":28,"cut":false,"hidden":false,"merged":[[9,0,9,1],[9,2,9,5],[9,6,9,15]]}
["Site Name","Bembridge Drive, Alvaston"]
["Site Address"]
["Town/Locality"]
["Est Housing Yield/Employment Space","30 dwellings"]
["Site Area (ha)"]
["Site Description"]
["Greenfield/Brownfield","Greenfield"]
["Assumptions Made"]
[]
["SA Framework",null,"GIS Inputs",null,null,null,"SA  Assessment"]
["SA objective","Supporting Questions","GIS Data Available?","R","A","G","Direct/\nIndirect","Magnitude","Duration","Spatial Extent","Permanence/ Reversibility","Significance","Description of potential effects","Potential for cumulative effects? ","Mitigation","Enhancements"]
["SA1: Population and Equalities\nTo build inclusive communities by reducing social exclusion, reducing deprivation, promoting equity, equality and respecting diversity, improving local accessibility to healthcare, education, employment, retail facilities and recreational resources (including open spaces and sports facilities).  ","Will the policy or proposal:\n•\tHelp to reduce deprivation and the inequality gap?\n•\tEnsure all residents have equitable access to health services?\n•\tConsider the needs of an aging population?\n•\tEnsure new housing is well related located, close to a range of services such as shops, schools and employment opportunities?\n•\tImprove opportunities for active travel including walking and cycling?\n•\tEnsure everyone has access to high quality open space and recreation facilities?\n•\tProtect community facilities and improve access to important local services for the most deprived?","Yes",1,1,1,"Direct","Low","Long(20+yrs)","Localised","Permanent/Irreversible","Minor Positive","The site is anticipated to provide 30 new homes, however the provision of affordable and adaptable homes is currently uncertain. The site is located in an area of high deprivation, therefore affordability should be a key consideration within development at this site. The site has good access to primary school facilities, and proposes retention of accessible open space at the front of the site, as well as the potential to replace the football pitch that may be lost at the site. This may aid in providing additional opportunities for open space and recreation for the local population.","Yes","N/A","N/A"]
["SA2: Human Health\nTo improve health and wellbeing and reduce health inequalities, improving quality of life for all.","Will the policy or proposal:\n•\tHelp to improve health and reduce health inequalities?\n•\tContribute to healthy lifestyles?\n•\tEncourage walking, cycling and a reduction in private car use?\n•\tHelp to ensure health services are provided alongside development?\n•\tProtect existing services?","Yes",2,0,3,"Direct","Medium","Long(20+yrs)","Localised","Permanent/Irreversible","Minor Positive","Development at the site is anticipated to result in a loss of the open space located in the recreation ground, including the loss of the football pitch. Whilst it is anticipated that the football pitch will be reprovisioned elsewhere, this is currently unclear. Loss of these open spaces may reduce physical activity and opportunities for socialisation in the area.\nHowever, the site will be linked to the wider area through active travel networks, and retain open space. Development of the site is anticipated to reduce health inequalities and provide opportunities to improve physical and mental health and wellbeing. Therefore a potential minor positive effect is recorded.","Yes","N/A","N/A"]
["SA3: Economy\nTo deliver economic growth and support the creation of new and retention of existing businesses.","Will the policy or proposal:\n•\tSupport the growth of higher skilled economic sectors? \n•\tProvide new employment premises which meet identified local needs in the area? \n•\tImprove business infrastructure, such as broadband and provide attractive sites for modern businesses?\n•\tSupport the city’s retail sector, especially the city centre and other retail centres?","Yes",1,0,1,"Indirect","Low","Medium(10yrs)","Localised","Temporary/Reversible","Minor Positive","The site is located within 800m of the nearest town centre. The proximity to the town centre will likely support the needs of residents as well as support the economy in this area by increasing footfall.","Yes","N/A","N/A"]
["SA4: Employment\nTo create greater employment opportunities, higher value jobs and access to training.","Will the policy or proposal:\n•\tIncrease job availability?\n•\tIncrease the quality and choice of local employment?\n•\tImprove access to employment centres?\n•\tMeet the skills needs and future demand for labour?","Yes",3,0,0,"Direct","Low","Long(20+yrs)","Localised","Permanent/Reversible","Minor Negative","The site is located within an area of high employment and income deprivation and is not in close proximity to employment areas. This may present barriers to accessing employment for new residents at the site.","Yes","N/A","N/A"]
["SA5: Crime and Safety\nTo reduce crime and the fear of crime for all residents inclusively, improving safety.","Will the policy or proposal:\n•\tHelp to create streets where people feel safe, particularly after dark?\n•\tMake a positive contribution to community cohesion?\n•\tSupport designing out crime principals? \n•\tReduce levels of crime derivation? \n•\tImprove road safety and reduce the number of people killed or seriously injured (KSI) on the roads, particularly children from deprived backgrounds? \n•\tCreate spaces where women and girls feel safe and included?","Yes",1,0,0,"N/A","N/A","N/A","N/A","N/A","Uncertain","The site is located within an area of high crime deprivation (10-20% most deprived nationally). Developing the land from its existing use has potential to alter feelings of safety in the area. This is likely to be determined by individual scheme design.  There is limited detail on whether designing out crime principles will be applied as part of the development. However, it is assumed that development should incorporate designing out crime principles in line with Policy GD5.","Yes","N/A","N/A"]
["SA6: Housing\nTo provide everybody with access to an affordable home which is resilient to the effects of climate change.","Will the policy or proposal:\n•\tSupport a range of housing types and sizes, including affordable housing units??\n•\tEnsure that there is an adequate supply of housing development land to meet local needs?\n•\tBe sustainably designed and resilient to the effects of climate change and designed to meet all needs, for example “Lifetime Homes” standards?","Yes",0,1,0,"Direct","High","Long(20+yrs)","Regional","Permanent/Irreversible","Minor Positive","The provision of 30 new homes will help towards meeting Derby's housing target. The provision of affordable housing should be in line with requirements of Policy H4 and Policy H2 will ensure a mix of housing types and tenures is delivered. ","Yes","N/A","N/A"]
["SA7: Leisure and Recreation\nTo provide better opportunities for people to participate in cultural, leisure and recreational activities.","Will the policy or proposal:\n•\tHelp to improve access to formal and informal recreation facilities?\n•\tProvide opportunities for engagement in a range of cultural activities?\n•\tCreate new allotments where there is a demand?","Yes",1,0,2,"Direct","Medium","Medium(10yrs)","Localised","Permanent/Irreversible","Minor Negative","Whilst the site is located in close proximity to open space, the existing open space at the site is anticipated to be lost through development. Whilst there is retention of a small amount of open space at the front of the site and potential for reprovisioning of the football pitch, the loss of the current open space is anticipated to reduce access to informal recreation opportunities.","Yes","N/A","N/A"]
["SA8: Biodiversity and Natural Capital\nTo protect and improve biodiversity, geo-diversity, including protect and enhance favourable conditions on SSSI’s, SPAs, SACs and other wildlife sites and improve connectivity between, and access to, green spaces and functional habitats.","Will the policy or proposal:\n•\tConserve and enhance habitats in the LNRS?\n•\tConserve and enhance species diversity and in particular avoid harm and increase the ranges of protected species?\n•\tProvide opportunities for new habitat creation and lead to a net gain in biodiversity?\n•\tProtect geo-diversity?\n•\tImprove the ecological quality and character of open spaces?\n•\tMaintain and enhance woodland cover and management in appropriate areas (e.g. areas of ash dieback)?\n•\tMaintain or enhance tree cover?\n•\tProtect and promote effective management of SPAs and SACs in the LP area and its surroundings?\n•\tHelp to protect and enhance other designated sites e.g., SSSIs, Wildlife Sites, LNRs etc?\n•\tImprove climate change adaptation through provision of accessible green space or green and blue infrastructure?\n•\tPrevent the fragmentation of habitats, provide links between green spaces or help to deliver/support other ecological networks?\n•\tSupport the natural capital of the city?","Yes",0,0,2,"Direct","Medium","Long(20+yrs)","Localised","Permanent/Reversible","Minor Positive","The site is located away from designated sites. There is potential for some adverse effects on small-scale habitats and species during construction. However, is anticipated that the site will result in improvements to green infrastructure and biodiversity, which may help to provide new small scale habitats. Biodiversity enhancement is anticipated meet minimum standards of 10% for all developments, as set out in Policy EN10.","Yes","N/A","N/A"]
["SA9: Landscape and Townscape\nTo protect and enhance the character and appearance of the landscape and townscape, including landscape and townscape assets, as well as the area’s other natural assets and resources.","Will the policy or proposal:\n•\tProtect and enhance landscape and townscape quality, character and distinctiveness?\n•\tAvoid loss of, and damage to greenbelt / green wedge land?\n•\tMake use of previously used / brownfield land and buildings?\n•\tSafeguard individual landscape and townscape features such as hedgerows, ponds, public squares, etc?","Yes",0,0,2,"Direct","Medium","Long(20+yrs)","Localised","Permanent/Irreversible","Minor Positive","Whilst the site is located away from green belt or green wedge land, development of the open space at the site is anticipated to result in alteration of the current landscape character. However, given the area is of low landscape value, high quality development at the site has potential to enhance the local landscape setting. Development is anticipated to be designed according to the sensitivities of existing landscape settings with the aim to enhance the landscape and implement high quality design, in line with Policy GD1 and GD2.","Yes","N/A","N/A"]
["SA10: Historic Environment\nTo conserve and enhance the historic environment, heritage assets (including known and unknown archaeological sites) and their settings and maintain and enhance access to cultural heritage for enjoyment and educational purposes.   ","Will the policy or proposal:\n•\tPreserve and enhance the character or appearance of conservation areas and their settings?\n•\tPreserve or enhance heritage assets and their settings?\n•\tPreserve or enhance archaeological features and their settings?\n•\tImprove the condition of heritage at risk? \n•\tRe-use/retain historic buildings or fabric?\n•\tProtect and conserve the Outstanding Universal Value of the DVMWHS?","Yes",0,0,7,"N/A","N/A","N/A","N/A","N/A","Neutral","The development of the site is not anticipated to have any potential effect on this objective. ","No","N/A","N/A"]
["SA11: Air, Noise and Light Pollution\nTo maintain good local air quality and to minimise noise and light pollution","Will the policy or proposal:\n•\tMaintain or improve local air quality?\n•\tEncourage the installation of electric vehicle charging points?\n•\tAvoid adverse impacts from noise?\n•\tMinimise light pollution?","Yes",1,0,1,"Indirect","Low","Short/Medium","Localised","Permanent/Reversible","Minor Positive","The site is not well located in terms of proximity to sustainable transport and is located in an area of high light pollution.  However, development at the site includes providing pedestrian and cycle connectivity to the existing area, which may encourage active travel uptake, particularly for shorter journeys. \nThere will be temporary negative effects on air quality and noise due to dust generation and emissions from construction. There are a number of existing residential receptors surrounding the site which would be negatively impacted during construction. However, overall a minor positive effect is recorded as long term sustainable transport options and reduction in private vehicle emissions are anticipated to offset the negative effects arising from construction. Additionally, the development is anticipated to seek opportunities to identify and improve air quality and should not reduce air quality benefits, in line with Policy EN22.","Yes","A Dust Management Plan should be prepared as part of the Construction Environmental Management Plan (CEMP).","N/A"]
["SA12: Water Environment\nTo ensure sustainable management of water resources and to minimise the risk of flooding.","Will the policy or proposal: \n•\tMinimise contamination of watercourses and improve water quality in watercourses?\n•\tAvoid exacerbating flood risk for any source and be designed to be resilient to flood risk for its lifetime?\n•\tSupport the use of Sustainable Drainage Systems?\n•\tEncourage water efficiency and demand management?\n•\tAvoid deterioration and enhance the ecological status of water bodies? \n•\tContribute toward achieving Water Framework Directive objectives?","Yes",0,0,4,"N/A","N/A","N/A","N/A","N/A","Neutral","The development of the site is not anticipated to have any potential effect on this objective. ","No","N/A","N/A"]
["SA13: Climate Change\nAdapt to the effects of climate change including flood risk, extreme weather and overheating, and strengthen climate resilience.","Will the policy or proposal:\n•\tMinimise flood risk and ensure new development provides sustainable urban drainage?\n•\tEnsure new development is designed to withstand future climate change (e.g. overheating and increased storm severity)?\n•\tIncrease and improve green and blue infrastructure to create a connected network across the city and within the wider area?\n•\tEnsure surface and groundwater water resources are used efficiently?\n•\tReduce energy consumption?\n•\tSupport the delivery of renewable and decentralised energy capacity (including small scale or community energy projects)?\n•\tSupport energy efficient design?","Yes",0,0,4,"N/A","N/A","N/A","N/A","N/A","Uncertain","The site is not located within a flood zone. However, climate resilience measures, including energy efficiency measures and green infrastructure are currently unknown. This is likely to be determined by individual scheme design.","Yes","Development should look into incorporating renewable energy generation methods such as solar panels, and should incorporate design measures that will reduce effects of climate change, such as zonal heating systems, water saving initiatives and energy monitoring devices.","N/A"]
["SA14: Greenhouse Gases\nTo reduce the contribution towards the emission of greenhouse gases.","Will the policy or proposal:\n•\tReduce GHG emissions?\n•\tSupport the shift towards low carbon technologies and the usage of electric and ultralow emissions vehicles and appropriate infrastructure to support these?\n•\tProvide opportunities to access local services and facilities by low carbon public transport, walking or wheeling?\n•\tPromote a low carbon local economy? \n•\tReduce levels of embodied carbon?","No",null,null,null,"Direct","Medium","Long(20+yrs)","Localised","Permanent/Irreversible","Minor Negative","There are likely to be significant GHG emissions associated with the construction  from embodied carbon within building materials, as well as carbon emissions from construction traffic and construction plant. Building efficiency measures are anticipated to reduce energy use in operation. The development will promote sustainable travel modes, reducing car reliance and GHG emissions from transport. The application of Policy CL5 should be applied to minimise embodied carbon. However, a minor negative effect is recorded due to construction emissions.","Yes","Any form of construction and operation should be undertaken as sustainably as possible, making use of tools and processes, such as circular economy, waste hierarchy and should consider BREEAM and BREEAM Infrastructure.","N/A"]
["SA15: Transport and Accessibility\nTo reduce the number of journeys made by car, within and to and from the area and improve access to jobs, services and facilities.","Will the policy or proposal:\n•\tUtilise and enhance existing infrastructure?\n•\tHelp to meet local needs locally through low carbon travel options?\n•\tFacilitate safe walking and cycling?\n•\tFacilitate the use of public transport?\n•\tDeliver opportunities to relieve traffic congestion?\n•\tEncourage travel planning for businesses?\n•\tHelp to reduce the distances people have to travel on a regular basis for education, employment and services?\n•\tHelp to improve access to services and facilities for those living in rural or remote settlements, or experiencing other access constraints?\n•\tHelp to support homeworking by residents?","Yes",2,0,1,"Direct","Medium","Long(20+yrs)","Localised","Permanent/Irreversible","Minor Positive","The site is accessible via the existing bus network. It is anticipated that the site will include the integration of active travel routes within the site and in the surrounding area. This is anticipated to encourage the use of sustainable transport modes, as well as improving accessibility to the surrounding area and services. ","Yes","N/A","N/A"]
["SA16: Geology and Soils\nTo minimise water and soil pollution and ensure protection of natural resources including greenfield land, soil, and minerals resources.","Will the policy or proposal:\n•\tUtilise previously developed land?\n•\tSeek to improve or remediate contaminated land or reuse previously developed land which has not been restored?\n•\tProtect soil quality and avoid soil pollution?\n•\tProtect Best and Most Versatile (BMV) Agricultural Land?\n•\tProtect Greenbelt/ Green Wedges land?\n•\tProtect sites safeguarded for mineral workings?","Yes",2,0,2,"Direct","High","Long(20+yrs)","Localised","Permanent/Irreversible","Minor Negative","The site is located on greenfield land. Development at the site is anticipated to result in greenfield land take.","Yes","N/A","N/A"]
["SA17: Waste\nTo minimise the generation of waste and effectively manage waste that is created.","Will the policy or proposal:\n•\tEnhance opportunities for waste to be treated in line with circular economy principles (e.g. recycling, re-using, composting)?\n•\tProvide adequate waste separation facilities in new and existing developments in order to encourage more recycling?\n•\tEncourage the repurposing and refurbishing of buildings, instead of demolition?","Yes",0,0,1,"Indirect","High","Long(20+yrs)","Localised","Permanent/Irreversible","Minor Negative","Development should support the use of sustainably sourced/recycled materials in line with Policy GD1. This should help minimise waste from the development's construction phase. However, once in use, the development is likely to produce waste in operation which could have a greater impact than waste through construction. However, the Local Plan is unable to control the generation of waste beyond development of the site. It will only be able to ensure that developments are designed to ensure that users can separate waste facilitating them to follow the waste hierarchy. ","Yes","A Site Waste Management Plan should be prepared as part of the CEMP and OEMP. ","N/A"]

{"sheet":"HA14","index":19,"n_rows":28,"n_cols":16,"rows_kept":28,"cut":false,"hidden":false,"merged":[[9,0,9,1],[9,2,9,5],[9,6,9,15]]}
["Site Name","Former Beaufort Business Centre"]
["Site Address"]
["Town/Locality","Chaddesden"]
["Est Housing Yield/Employment Space","30 dwellings"]
["Site Area (ha)"]
["Site Description"]
["Greenfield/Brownfield","Brownfield"]
["Assumptions Made"]
[]
["SA Framework",null,"GIS Inputs",null,null,null,"SA  Assessment"]
["SA objective","Supporting Questions","GIS Data Available?","R","A","G","Direct/\nIndirect","Magnitude","Duration","Spatial Extent","Permanence/ Reversibility","Significance","Description of potential effects","Potential for cumulative effects? ","Mitigation","Enhancements"]
["SA1: Population and Equalities\nTo build inclusive communities by reducing social exclusion, reducing deprivation, promoting equity, equality and respecting diversity, improving local accessibility to healthcare, education, employment, retail facilities and recreational resources (including open spaces and sports facilities).  ","Will the policy or proposal:\n•\tHelp to reduce deprivation and the inequality gap?\n•\tEnsure all residents have equitable access to health services?\n•\tConsider the needs of an aging population?\n•\tEnsure new housing is well related located, close to a range of services such as shops, schools and employment opportunities?\n•\tImprove opportunities for active travel including walking and cycling?\n•\tEnsure everyone has access to high quality open space and recreation facilities?\n•\tProtect community facilities and improve access to important local services for the most deprived?","Yes",1,1,1,"Direct","Medium","Medium(10yrs)","Localised","Temporary/Reversible","Minor Positive","The site will provide 30 new homes, however at this stage it is not known how many of these homes will be accessible or adaptable. Additionally, the site is located within the most deprived neighbourhoods, therefore affordability needs to be a key consideration. The site has good access to community facilities, including a nursing home, assisted living complex and nursery located immediately to the west and south of the site. There is also good access to services including healthcare, shops, employment and schools, as well as open space. This may aid in reducing levels of inequalities by locating communities close to these facilities.","Yes","N/A","N/A"]
["SA2: Human Health\nTo improve health and wellbeing and reduce health inequalities, improving quality of life for all.","Will the policy or proposal:\n•\tHelp to improve health and reduce health inequalities?\n•\tContribute to healthy lifestyles?\n•\tEncourage walking, cycling and a reduction in private car use?\n•\tHelp to ensure health services are provided alongside development?\n•\tProtect existing services?","Yes",2,0,3,"Direct","Medium","Medium(10yrs)","Localised","Temporary/Reversible","Minor Positive","The site is located within 800m from existing open space which should support physical health by providing opportunities for recreation. There are healthcare facilities and a children's centre within 800m from the site. The site has community uses immediately to the west and south including a nursing home, an assisted living complex and a nursery. The site has good access to facilities which support human heath, therefore a potential minor positive effect is recorded.","Yes","N/A","N/A"]
["SA3: Economy\nTo deliver economic growth and support the creation of new and retention of existing businesses.","Will the policy or proposal:\n•\tSupport the growth of higher skilled economic sectors? \n•\tProvide new employment premises which meet identified local needs in the area? \n•\tImprove business infrastructure, such as broadband and provide attractive sites for modern businesses?\n•\tSupport the city’s retail sector, especially the city centre and other retail centres?","Yes",1,0,2,"Indirect","Low","Medium(10yrs)","Localised","Temporary/Reversible","Minor Positive","The site is located within 800m of the nearest town centre. The proximity to the town centre will likely support the needs of residents as well as support the economy in this area by increasing footfall. Therefore a potential minor positive effect is recorded.","Yes","N/A","N/A"]
["SA4: Employment\nTo create greater employment opportunities, higher value jobs and access to training.","Will the policy or proposal:\n•\tIncrease job availability?\n•\tIncrease the quality and choice of local employment?\n•\tImprove access to employment centres?\n•\tMeet the skills needs and future demand for labour?","Yes",2,0,1,"Direct","Low","Medium(10yrs)","Localised","Temporary/Reversible","Minor Positive","The site is located within 800m from an existing area of employment and an existing town centre. The site is within an area of high deprivation for income and employment, however there are a number of employment opportunities within Derby City Centre and within Chaddeston itself which may aid in improving access to employment opportunities. Overall, a potential minor positive effect is recorded. ","Yes","N/A","N/A"]
["SA5: Crime and Safety\nTo reduce crime and the fear of crime for all residents inclusively, improving safety.","Will the policy or proposal:\n•\tHelp to create streets where people feel safe, particularly after dark?\n•\tMake a positive contribution to community cohesion?\n•\tSupport designing out crime principals? \n•\tReduce levels of crime derivation? \n•\tImprove road safety and reduce the number of people killed or seriously injured (KSI) on the roads, particularly children from deprived backgrounds? \n•\tCreate spaces where women and girls feel safe and included?","Yes",1,0,0,"N/A","N/A","N/A","N/A","N/A","Uncertain","The site is currently located within an area of high crime deprivation.  There is limited detail on whether designing out crime principles will be applied as part of the development. However, it is assumed that development should incorporate designing out crime principles in line with Policy GD5.","Yes","N/A","N/A"]
["SA6: Housing\nTo provide everybody with access to an affordable home which is resilient to the effects of climate change.","Will the policy or proposal:\n•\tSupport a range of housing types and sizes, including affordable housing units??\n•\tEnsure that there is an adequate supply of housing development land to meet local needs?\n•\tBe sustainably designed and resilient to the effects of climate change and designed to meet all needs, for example “Lifetime Homes” standards?","Yes",0,1,0,"Direct","High","Long(20+yrs)","Regional","Permanent/Irreversible","Minor Positive","The provision of 30 new homes will help towards meeting Derby's housing target. The provision of affordable housing should be in line with requirements of Policy H4 and Policy H2 will ensure a mix of housing types and tenures is delivered. ","Yes","N/A","N/A"]
["SA7: Leisure and Recreation\nTo provide better opportunities for people to participate in cultural, leisure and recreational activities.","Will the policy or proposal:\n•\tHelp to improve access to formal and informal recreation facilities?\n•\tProvide opportunities for engagement in a range of cultural activities?\n•\tCreate new allotments where there is a demand?","Yes",0,0,3,"Direct","Medium","Long(20+yrs)","Localised","Permanent/Reversible","Significant Positive","The site is well located close to public open space, community centres and sports facilities. The proximity of these recreational spaces is likely to have a positive impact on the opportunities for residents to participate in wellbeing activities.","Yes","N/A","N/A"]
["SA8: Biodiversity and Natural Capital\nTo protect and improve biodiversity, geo-diversity, including protect and enhance favourable conditions on SSSI’s, SPAs, SACs and other wildlife sites and improve connectivity between, and access to, green spaces and functional habitats.","Will the policy or proposal:\n•\tConserve and enhance habitats in the LNRS?\n•\tConserve and enhance species diversity and in particular avoid harm and increase the ranges of protected species?\n•\tProvide opportunities for new habitat creation and lead to a net gain in biodiversity?\n•\tProtect geo-diversity?\n•\tImprove the ecological quality and character of open spaces?\n•\tMaintain and enhance woodland cover and management in appropriate areas (e.g. areas of ash dieback)?\n•\tMaintain or enhance tree cover?\n•\tProtect and promote effective management of SPAs and SACs in the LP area and its surroundings?\n•\tHelp to protect and enhance other designated sites e.g., SSSIs, Wildlife Sites, LNRs etc?\n•\tImprove climate change adaptation through provision of accessible green space or green and blue infrastructure?\n•\tPrevent the fragmentation of habitats, provide links between green spaces or help to deliver/support other ecological networks?\n•\tSupport the natural capital of the city?","Yes",0,0,2,"Direct","Medium","Long(20+yrs)","Localised","Permanent/Irreversible","Minor Positive","The site is located away from designated sites. Whilst the site is brownfield, it is vegetated and therefore likely to be rich in biodiversity. Development is likely to result in the loss of biodiversity, however it is anticipated that the requirement for BNG will enhance biodiversity, either on or off site. ","Yes","N/A","N/A"]
["SA9: Landscape and Townscape\nTo protect and enhance the character and appearance of the landscape and townscape, including landscape and townscape assets, as well as the area’s other natural assets and resources.","Will the policy or proposal:\n•\tProtect and enhance landscape and townscape quality, character and distinctiveness?\n•\tAvoid loss of, and damage to greenbelt / green wedge land?\n•\tMake use of previously used / brownfield land and buildings?\n•\tSafeguard individual landscape and townscape features such as hedgerows, ponds, public squares, etc?","Yes",0,0,2,"Direct","Medium","Long(20+yrs)","Localised","Permenant/Irreversible","Significant Positive","The site is located away from green belts and green wedges and is on brownfield land. Development is not likely to negatively impact the existing landscape and townscape, and, as the site is currently not being utilised for any purpose, a housing development which is well designed is likely to enhance the local landscape. Therefore, a potential significant negative effect is recorded.","Yes","N/A","N/A"]
["SA10: Historic Environment\nTo conserve and enhance the historic environment, heritage assets (including known and unknown archaeological sites) and their settings and maintain and enhance access to cultural heritage for enjoyment and educational purposes.   ","Will the policy or proposal:\n•\tPreserve and enhance the character or appearance of conservation areas and their settings?\n•\tPreserve or enhance heritage assets and their settings?\n•\tPreserve or enhance archaeological features and their settings?\n•\tImprove the condition of heritage at risk? \n•\tRe-use/retain historic buildings or fabric?\n•\tProtect and conserve the Outstanding Universal Value of the DVMWHS?","Yes",0,0,7,"N/A","N/A","N/A","N/A","N/A","Neutral","The site is not located in close proximity to any heritage assets, therefore development at this site is not expected to have an effect on this objective, therefore a neutral effect is recorded. ","No","N/A","N/A"]
["SA11: Air, Noise and Light Pollution\nTo maintain good local air quality and to minimise noise and light pollution","Will the policy or proposal:\n•\tMaintain or improve local air quality?\n•\tEncourage the installation of electric vehicle charging points?\n•\tAvoid adverse impacts from noise?\n•\tMinimise light pollution?","Yes",1,0,1,"Indirect","Medium","Medium(10yrs)","Localised","Permanent/Reversible","Minor Negative","The site is not located within an AQMA, and within an area of high pollution. The site is not well located in terms of proximity to sustainable transport. There will be temporary negative effects on air quality and noise due to dust generation and emissions from construction. Overall a potential minor negative effect is recorded. However, the development is anticipated to seek opportunities to identify and improve air quality and should not reduce air quality benefits, in line with Policy EN22.","Yes","A Dust Management Plan should be prepared as part of the Construction Environmental Management Plan (CEMP). ","N/A"]
["SA12: Water Environment\nTo ensure sustainable management of water resources and to minimise the risk of flooding.","Will the policy or proposal: \n•\tMinimise contamination of watercourses and improve water quality in watercourses?\n•\tAvoid exacerbating flood risk for any source and be designed to be resilient to flood risk for its lifetime?\n•\tSupport the use of Sustainable Drainage Systems?\n•\tEncourage water efficiency and demand management?\n•\tAvoid deterioration and enhance the ecological status of water bodies? \n•\tContribute toward achieving Water Framework Directive objectives?","Yes",2,0,2,"N/A","N/A","N/A","N/A","N/A","Uncertain","The site is located in an area of flood zone 3. Development at the site is anticipated to increase impermeable surfaces, increasing surface runoff and exacerbating flood risk. However, it is anticipated that the delivery of the Our City Our River (OCOR) Programme is anticipated to reduce flood risk at the site. The exact risk to the site from flooding is currently unknown as a result of the ongoing OCOR project. An uncertain effect is therefore recorded.","Yes","The plan should require appropriate water management strategies, for example the inclusion of SuDS, within the site allocation's supporting text.\nDevelopment should be in line with the NPPF and guidance from the Environment Agency.","N/A"]
["SA13: Climate Change\nAdapt to the effects of climate change including flood risk, extreme weather and overheating, and strengthen climate resilience.","Will the policy or proposal:\n•\tMinimise flood risk and ensure new development provides sustainable urban drainage?\n•\tEnsure new development is designed to withstand future climate change (e.g. overheating and increased storm severity)?\n•\tIncrease and improve green and blue infrastructure to create a connected network across the city and within the wider area?\n•\tEnsure surface and groundwater water resources are used efficiently?\n•\tReduce energy consumption?\n•\tSupport the delivery of renewable and decentralised energy capacity (including small scale or community energy projects)?\n•\tSupport energy efficient design?","Yes",2,0,2,"N/A","N/A","N/A","N/A","N/A","Uncertain","The site is located within Flood Zone 3a, and is therefore vulnerable to flooding which is likely to be exacerbated as a result of climate change. There is potential for the site should be protected by the next phase of the OCOR programme. However, short term flood mitigation and energy efficiency measures are currently unknown. This is likely to be determined by individual scheme design.","Yes","Development should look into incorporating renewable energy generation methods such as solar panels, and should incorporate design measures that will reduce effects of climate change, such as zonal heating systems, water saving initiatives and energy monitoring devices.","N/A"]
["SA14: Greenhouse Gases\nTo reduce the contribution towards the emission of greenhouse gases.","Will the policy or proposal:\n•\tReduce GHG emissions?\n•\tSupport the shift towards low carbon technologies and the usage of electric and ultralow emissions vehicles and appropriate infrastructure to support these?\n•\tProvide opportunities to access local services and facilities by low carbon public transport, walking or wheeling?\n•\tPromote a low carbon local economy? \n•\tReduce levels of embodied carbon?","No",null,null,null,"Direct","Medium","Long(20+yrs)","Localised","Permanent/Irreversible","Minor Negative","There are likely to be significant GHG emissions associated with the construction  from embodied carbon within building materials, as well as carbon emissions from construction traffic and construction plant. Building efficiency measures are anticipated to reduce energy use in operation. The development will promote sustainable travel modes, reducing car reliance and GHG emissions from transport. The application of Policy CL5 should be applied to minimise embodied carbon. However, a minor negative effect is recorded due to construction emissions.","Yes","Any form of construction and operation should be undertaken as sustainably as possible, making use of tools and processes, such as circular economy, waste hierarchy and should consider BREEAM and BREEAM Infrastructure.","N/A"]
["SA15: Transport and Accessibility\nTo reduce the number of journeys made by car, within and to and from the area and improve access to jobs, services and facilities.","Will the policy or proposal:\n•\tUtilise and enhance existing infrastructure?\n•\tHelp to meet local needs locally through low carbon travel options?\n•\tFacilitate safe walking and cycling?\n•\tFacilitate the use of public transport?\n•\tDeliver opportunities to relieve traffic congestion?\n•\tEncourage travel planning for businesses?\n•\tHelp to reduce the distances people have to travel on a regular basis for education, employment and services?\n•\tHelp to improve access to services and facilities for those living in rural or remote settlements, or experiencing other access constraints?\n•\tHelp to support homeworking by residents?","Yes",2,0,1,"Direct","Medium","Medium(10yrs)","Borough-wide","Temporary/Reversible","Minor Negative","The site is more than 800m from the nearest railway station and more than 400m from a cycle network. The site is, however within 200m from a bus stop with a frequent service into Derby City Centre. As a result of lack of accessibility to a cycle network, and railway services, residents may be more inclined to use private vehicles, or they may be less able to access services. Therefore, a potential minor negative effect is recorded. ","Yes","N/A","N/A"]
["SA16: Geology and Soils\nTo minimise water and soil pollution and ensure protection of natural resources including greenfield land, soil, and minerals resources.","Will the policy or proposal:\n•\tUtilise previously developed land?\n•\tSeek to improve or remediate contaminated land or reuse previously developed land which has not been restored?\n•\tProtect soil quality and avoid soil pollution?\n•\tProtect Best and Most Versatile (BMV) Agricultural Land?\n•\tProtect Greenbelt/ Green Wedges land?\n•\tProtect sites safeguarded for mineral workings?","Yes",0,0,4,"Direct","Medium","Long(20+yrs)","Borough-wide","Permanent/Reversible","Significant Positive","The site is located on brownfield land. Development at this site will support the protection of greenfield land and reuse of previously developed land, therefore a potential significant positive effect is recorded. ","Yes","N/A","N/A"]
["SA17: Waste\nTo minimise the generation of waste and effectively manage waste that is created.","Will the policy or proposal:\n•\tEnhance opportunities for waste to be treated in line with circular economy principles (e.g. recycling, re-using, composting)?\n•\tProvide adequate waste separation facilities in new and existing developments in order to encourage more recycling?\n•\tEncourage the repurposing and refurbishing of buildings, instead of demolition?","Yes",0,0,1,"Indirect","High","Long(20+yrs)","Localised","Permanent/Irreversible","Minor Negative","Development should support the use of sustainably sourced/recycled materials in line with Policy GD1. This should help minimise waste from the development's construction phase. However, once in use, the development is likely to produce waste in operation which could have a greater impact than waste through construction. However, the Local Plan is unable to control the generation of waste beyond development of the site. It will only be able to ensure that developments are designed to ensure that users can separate waste facilitating them to follow the waste hierarchy. ","Yes","A Site Waste Management Plan should be prepared as part of the CEMP and OEMP. ","N/A"]

{"sheet":"HA15","index":20,"n_rows":28,"n_cols":16,"rows_kept":28,"cut":false,"hidden":false,"merged":[[9,0,9,1],[9,2,9,5],[9,6,9,15]]}
["Site Name","Kitchner Avenue/Browning Street"]
["Site Address"]
["Town/Locality"]
["Est Housing Yield/Employment Space","25 dwellings "]
["Site Area (ha)"]
["Site Description"]
["Greenfield/Brownfield","Greenfield"]
["Assumptions Made"]
[]
["SA Framework",null,"GIS Inputs",null,null,null,"SA  Assessment"]
["SA objective","Supporting Questions","GIS Data Available?","R","A","G","Direct/\nIndirect","Magnitude","Duration","Spatial Extent","Permanence/ Reversibility","Significance","Description of potential effects","Potential for cumulative effects? ","Mitigation","Enhancements"]
["SA1: Population and Equalities\nTo build inclusive communities by reducing social exclusion, reducing deprivation, promoting equity, equality and respecting diversity, improving local accessibility to healthcare, education, employment, retail facilities and recreational resources (including open spaces and sports facilities).  ","Will the policy or proposal:\n•\tHelp to reduce deprivation and the inequality gap?\n•\tEnsure all residents have equitable access to health services?\n•\tConsider the needs of an aging population?\n•\tEnsure new housing is well related located, close to a range of services such as shops, schools and employment opportunities?\n•\tImprove opportunities for active travel including walking and cycling?\n•\tEnsure everyone has access to high quality open space and recreation facilities?\n•\tProtect community facilities and improve access to important local services for the most deprived?","Yes",1,1,1,"Direct","Medium","Medium(10yrs)","Localised","Temporary/Reversible","Minor Positive","The site will provide 25 new homes, however at this stage it is not known how many of these homes will be accessible or adaptable. Additionally, the site is located within the most deprived neighbourhoods, therefore affordability needs to be a key consideration. The site has good access to community facilities including healthcare, shops, employment and schools, as well as open space. This may aid in reducing levels of inequalities by locating communities close to these facilities. Overall, a potential minor positive effect is recorded. ","Yes","N/A","N/A"]
["SA2: Human Health\nTo improve health and wellbeing and reduce health inequalities, improving quality of life for all.","Will the policy or proposal:\n•\tHelp to improve health and reduce health inequalities?\n•\tContribute to healthy lifestyles?\n•\tEncourage walking, cycling and a reduction in private car use?\n•\tHelp to ensure health services are provided alongside development?\n•\tProtect existing services?","Yes",1,0,4,"Direct","Medium","Medium(10yrs)","Localised","Temporary/Reversible","Minor Positive","The site is located within 800m from existing open space which should support physical health by providing opportunities for recreation. There are healthcare facilities and a children's centre within 800m from the site. To the north of the site is Village Medical Centre which includes an on-site pharmacy. The site has good access to facilities which support human heath, therefore a potential minor positive effect is recorded.","Yes","N/A","N/A"]
["SA3: Economy\nTo deliver economic growth and support the creation of new and retention of existing businesses.","Will the policy or proposal:\n•\tSupport the growth of higher skilled economic sectors? \n•\tProvide new employment premises which meet identified local needs in the area? \n•\tImprove business infrastructure, such as broadband and provide attractive sites for modern businesses?\n•\tSupport the city’s retail sector, especially the city centre and other retail centres?","Yes",0,0,2,"Indirect","Low","Medium(10yrs)","Localised","Temporary/Reversible","Minor Positive","The site is located within 800m of the nearest town centre and primary shopping area. The proximity to these facilities will likely support the needs of residents as well as support the economy in this area by increasing footfall. Therefore a potential minor positive effect is recorded.","Yes","N/A","N/A"]
["SA4: Employment\nTo create greater employment opportunities, higher value jobs and access to training.","Will the policy or proposal:\n•\tIncrease job availability?\n•\tIncrease the quality and choice of local employment?\n•\tImprove access to employment centres?\n•\tMeet the skills needs and future demand for labour?","Yes",2,0,1,"Direct","Low","Medium(10yrs)","Localised","Temporary/Reversible","Minor Positive","The site is located within 800m from an existing area of employment and an existing town centre. The site is within an area of high deprivation for income and employment, however there are a number of employment opportunities within Derby City Centre and near to the site. Overall, a potential minor positive effect is recorded. ","Yes","N/A","N/A"]
["SA5: Crime and Safety\nTo reduce crime and the fear of crime for all residents inclusively, improving safety.","Will the policy or proposal:\n•\tHelp to create streets where people feel safe, particularly after dark?\n•\tMake a positive contribution to community cohesion?\n•\tSupport designing out crime principals? \n•\tReduce levels of crime derivation? \n•\tImprove road safety and reduce the number of people killed or seriously injured (KSI) on the roads, particularly children from deprived backgrounds? \n•\tCreate spaces where women and girls feel safe and included?","Yes",1,0,0,"N/A","N/A","N/A","N/A","N/A","Uncertain","The site is currently located within an area of high crime deprivation.  There is limited detail on whether designing out crime principles will be applied as part of the development. However, it is assumed that development should incorporate designing out crime principles in line with Policy GD5.","Yes","N/A","N/A"]
["SA6: Housing\nTo provide everybody with access to an affordable home which is resilient to the effects of climate change.","Will the policy or proposal:\n•\tSupport a range of housing types and sizes, including affordable housing units??\n•\tEnsure that there is an adequate supply of housing development land to meet local needs?\n•\tBe sustainably designed and resilient to the effects of climate change and designed to meet all needs, for example “Lifetime Homes” standards?","Yes",0,1,0,"Direct","High","Long(20+yrs)","Regional","Permanent/Irreversible","Minor Positive","The provision of 25 new homes will help towards meeting Derby's housing target. The provision of affordable housing should be in line with requirements of Policy H4 and Policy H2 will ensure a mix of housing types and tenures is delivered. ","Yes","N/A","N/A"]
["SA7: Leisure and Recreation\nTo provide better opportunities for people to participate in cultural, leisure and recreational activities.","Will the policy or proposal:\n•\tHelp to improve access to formal and informal recreation facilities?\n•\tProvide opportunities for engagement in a range of cultural activities?\n•\tCreate new allotments where there is a demand?","Yes",0,0,3,"Direct","Medium","Long(20+yrs)","Localised","Permanent/Reversible","Significant Positive","The site is well located close to public open space, community centres and sports facilities. The proximity of these recreational spaces is likely to have a positive impact on the opportunities for residents to participate in wellbeing activities.","Yes","N/A","N/A"]
["SA8: Biodiversity and Natural Capital\nTo protect and improve biodiversity, geo-diversity, including protect and enhance favourable conditions on SSSI’s, SPAs, SACs and other wildlife sites and improve connectivity between, and access to, green spaces and functional habitats.","Will the policy or proposal:\n•\tConserve and enhance habitats in the LNRS?\n•\tConserve and enhance species diversity and in particular avoid harm and increase the ranges of protected species?\n•\tProvide opportunities for new habitat creation and lead to a net gain in biodiversity?\n•\tProtect geo-diversity?\n•\tImprove the ecological quality and character of open spaces?\n•\tMaintain and enhance woodland cover and management in appropriate areas (e.g. areas of ash dieback)?\n•\tMaintain or enhance tree cover?\n•\tProtect and promote effective management of SPAs and SACs in the LP area and its surroundings?\n•\tHelp to protect and enhance other designated sites e.g., SSSIs, Wildlife Sites, LNRs etc?\n•\tImprove climate change adaptation through provision of accessible green space or green and blue infrastructure?\n•\tPrevent the fragmentation of habitats, provide links between green spaces or help to deliver/support other ecological networks?\n•\tSupport the natural capital of the city?","Yes",0,1,1,"Direct","Medium","Long(20+yrs)","Localised","Permanent/Reversible","Minor Positive","The site is located away from designated sites. There is potential for some adverse effects on small-scale habitats and species during construction. However, is anticipated that the site will result in improvements to green infrastructure and biodiversity, which may help to provide new small scale habitats. Biodiversity enhancement is anticipated meet minimum standards of 10% for all developments, as set out in Policy EN10.","Yes","N/A","N/A"]
["SA9: Landscape and Townscape\nTo protect and enhance the character and appearance of the landscape and townscape, including landscape and townscape assets, as well as the area’s other natural assets and resources.","Will the policy or proposal:\n•\tProtect and enhance landscape and townscape quality, character and distinctiveness?\n•\tAvoid loss of, and damage to greenbelt / green wedge land?\n•\tMake use of previously used / brownfield land and buildings?\n•\tSafeguard individual landscape and townscape features such as hedgerows, ponds, public squares, etc?","Yes",0,0,2,"Direct","Medium","Long(20+yrs)","Localised","Permanent/Irreversible","Significant Positive","The site is located away from green belts and green wedges and is on brownfield land. Development is not likely to negatively impact the existing landscape and townscape, and, as the site is currently not being utilised for any purpose, a housing development which is well designed is likely to enhance the local landscape. Therefore, a potential significant negative effect is recorded.","Yes","N/A","N/A"]
["SA10: Historic Environment\nTo conserve and enhance the historic environment, heritage assets (including known and unknown archaeological sites) and their settings and maintain and enhance access to cultural heritage for enjoyment and educational purposes.   ","Will the policy or proposal:\n•\tPreserve and enhance the character or appearance of conservation areas and their settings?\n•\tPreserve or enhance heritage assets and their settings?\n•\tPreserve or enhance archaeological features and their settings?\n•\tImprove the condition of heritage at risk? \n•\tRe-use/retain historic buildings or fabric?\n•\tProtect and conserve the Outstanding Universal Value of the DVMWHS?","Yes",0,1,6,"Direct","Medium","Medium/Long","Localised","Temporary/Reversible","Minor Positive","The site is located within 250m of a listed building. Construction could disrupt the setting of the asset through noise and vibration, as well as changes to visual amenity. However, the implementation of high quality design may enhance the setting of this asset. Additionally, development is anticipated to be undertaken in line with Policy EN11, ensuring efforts to preserve Derby's historic environment.","Yes","A lighting strategy should be prepared to minimise light spill onto heritage assets.","N/A"]
["SA11: Air, Noise and Light Pollution\nTo maintain good local air quality and to minimise noise and light pollution","Will the policy or proposal:\n•\tMaintain or improve local air quality?\n•\tEncourage the installation of electric vehicle charging points?\n•\tAvoid adverse impacts from noise?\n•\tMinimise light pollution?","Yes",1,0,1,"Indirect","Medium","Medium(10yrs)","Localised","Permanent/Reversible","Minor Negative","The site is not located within an AQMA, however the site is not well located in terms of proximity to sustainable transport, which may exacerbate air pollution by increasing private var reliance, and is in an area of high light pollution. There will be temporary negative effects on air quality and noise due to dust generation and emissions from construction.","Yes","A Dust Management Plan should be prepared as part of the Construction Environmental Management Plan (CEMP). ","N/A"]
["SA12: Water Environment\nTo ensure sustainable management of water resources and to minimise the risk of flooding.","Will the policy or proposal: \n•\tMinimise contamination of watercourses and improve water quality in watercourses?\n•\tAvoid exacerbating flood risk for any source and be designed to be resilient to flood risk for its lifetime?\n•\tSupport the use of Sustainable Drainage Systems?\n•\tEncourage water efficiency and demand management?\n•\tAvoid deterioration and enhance the ecological status of water bodies? \n•\tContribute toward achieving Water Framework Directive objectives?","Yes",0,0,4,"N/A","N/A","N/A","N/A","N/A","Neutral","The development of the site is not anticipated to have any potential effect on this objective. ","Yes","N/A","N/A"]
["SA13: Climate Change\nAdapt to the effects of climate change including flood risk, extreme weather and overheating, and strengthen climate resilience.","Will the policy or proposal:\n•\tMinimise flood risk and ensure new development provides sustainable urban drainage?\n•\tEnsure new development is designed to withstand future climate change (e.g. overheating and increased storm severity)?\n•\tIncrease and improve green and blue infrastructure to create a connected network across the city and within the wider area?\n•\tEnsure surface and groundwater water resources are used efficiently?\n•\tReduce energy consumption?\n•\tSupport the delivery of renewable and decentralised energy capacity (including small scale or community energy projects)?\n•\tSupport energy efficient design?","Yes",0,0,4,"N/A","N/A","N/A","N/A","N/A","Uncertain","The site is not located within a flood zone. However, climate resilience measures, including energy efficiency measures and green infrastructure are currently unknown. This is likely to be determined by individual scheme design.","Yes","Development should look into incorporating renewable energy generation methods such as solar panels, and should incorporate design measures that will reduce effects of climate change, such as zonal heating systems, water saving initiatives and energy monitoring devices.","N/A"]
["SA14: Greenhouse Gases\nTo reduce the contribution towards the emission of greenhouse gases.","Will the policy or proposal:\n•\tReduce GHG emissions?\n•\tSupport the shift towards low carbon technologies and the usage of electric and ultralow emissions vehicles and appropriate infrastructure to support these?\n•\tProvide opportunities to access local services and facilities by low carbon public transport, walking or wheeling?\n•\tPromote a low carbon local economy? \n•\tReduce levels of embodied carbon?","No",null,null,null,"Direct","Medium","Long(20+yrs)","Localised","Permanent/Irreversible","Minor Negative","There are likely to be significant GHG emissions associated with the construction  from embodied carbon within building materials, as well as carbon emissions from construction traffic and construction plant. Building efficiency measures are anticipated to reduce energy use in operation. The development will promote sustainable travel modes, reducing car reliance and GHG emissions from transport. The application of Policy CL5 should be applied to minimise embodied carbon. However, a minor negative effect is recorded due to construction emissions.","Yes","Any form of construction and operation should be undertaken as sustainably as possible, making use of tools and processes, such as circular economy, waste hierarchy and should consider BREEAM and BREEAM Infrastructure.","N/A"]
["SA15: Transport and Accessibility\nTo reduce the number of journeys made by car, within and to and from the area and improve access to jobs, services and facilities.","Will the policy or proposal:\n•\tUtilise and enhance existing infrastructure?\n•\tHelp to meet local needs locally through low carbon travel options?\n•\tFacilitate safe walking and cycling?\n•\tFacilitate the use of public transport?\n•\tDeliver opportunities to relieve traffic congestion?\n•\tEncourage travel planning for businesses?\n•\tHelp to reduce the distances people have to travel on a regular basis for education, employment and services?\n•\tHelp to improve access to services and facilities for those living in rural or remote settlements, or experiencing other access constraints?\n•\tHelp to support homeworking by residents?","Yes",2,0,1,"Direct","Medium","Medium(10yrs)","Borough-wide","Temporary/Reversible","Minor Negative","The site is more than 800m from the nearest railway station and more than 400m from a cycle network. The site is, however within 200m from a bus stop with a frequent service into Derby City Centre. As a result of lack of accessibility to a cycle network, and railway services, residents may be more inclined to use private vehicles, or they may be less able to access services. ","Yes","N/A","N/A"]
["SA16: Geology and Soils\nTo minimise water and soil pollution and ensure protection of natural resources including greenfield land, soil, and minerals resources.","Will the policy or proposal:\n•\tUtilise previously developed land?\n•\tSeek to improve or remediate contaminated land or reuse previously developed land which has not been restored?\n•\tProtect soil quality and avoid soil pollution?\n•\tProtect Best and Most Versatile (BMV) Agricultural Land?\n•\tProtect Greenbelt/ Green Wedges land?\n•\tProtect sites safeguarded for mineral workings?","Yes",1,0,3,"Direct","Medium","Long(20+yrs)","Borough-wide","Permanent/Reversible","Significant Positive","The site is located on brownfield land. Development at this site will support the protection of greenfield land and reuse of previously developed land, therefore a potential significant positive effect is recorded. ","Yes","N/A","N/A"]
["SA17: Waste\nTo minimise the generation of waste and effectively manage waste that is created.","Will the policy or proposal:\n•\tEnhance opportunities for waste to be treated in line with circular economy principles (e.g. recycling, re-using, composting)?\n•\tProvide adequate waste separation facilities in new and existing developments in order to encourage more recycling?\n•\tEncourage the repurposing and refurbishing of buildings, instead of demolition?","Yes",0,0,1,"Indirect","High","Long(20+yrs)","Localised","Permanent/Irreversible","Minor Negative","Development should support the use of sustainably sourced/recycled materials in line with Policy GD1. This should help minimise waste from the development's construction phase. However, once in use, the development is likely to produce waste in operation which could have a greater impact than waste through construction. However, the Local Plan is unable to control the generation of waste beyond development of the site. It will only be able to ensure that developments are designed to ensure that users can separate waste facilitating them to follow the waste hierarchy. ","Yes","A Site Waste Management Plan should be prepared as part of the CEMP and OEMP. ","N/A"]

{"sheet":"HA16","index":21,"n_rows":28,"n_cols":16,"rows_kept":28,"cut":false,"hidden":false,"merged":[[9,0,9,1],[9,2,9,5],[9,6,9,15]]}
["Site Name","Former Ivy School House"]
["Site Address"]
["Town/Locality"]
["Est Housing Yield/Employment Space","25 dwellings"]
["Site Area (ha)"]
["Site Description"]
["Greenfield/Brownfield","Brownfield "]
["Assumptions Made"]
[]
["SA Framework",null,"GIS Inputs",null,null,null,"SA  Assessment"]
["SA objective","Supporting Questions","GIS Data Available?","R","A","G","Direct/\nIndirect","Magnitude","Duration","Spatial Extent","Permanence/ Reversibility","Significance","Description of potential effects","Potential for cumulative effects? ","Mitigation","Enhancements"]
["SA1: Population and Equalities\nTo build inclusive communities by reducing social exclusion, reducing deprivation, promoting equity, equality and respecting diversity, improving local accessibility to healthcare, education, employment, retail facilities and recreational resources (including open spaces and sports facilities).  ","Will the policy or proposal:\n•\tHelp to reduce deprivation and the inequality gap?\n•\tEnsure all residents have equitable access to health services?\n•\tConsider the needs of an aging population?\n•\tEnsure new housing is well related located, close to a range of services such as shops, schools and employment opportunities?\n•\tImprove opportunities for active travel including walking and cycling?\n•\tEnsure everyone has access to high quality open space and recreation facilities?\n•\tProtect community facilities and improve access to important local services for the most deprived?","Yes",1,0,2,"Direct","Medium","Medium(10yrs)","Localised","Temporary/Reversible","Minor Positive","Development at this site will deliver a minimum of 25 new dwellings. It is not known how many of the 20 homes will be accessible or adaptable. Additionally, the site is located within the most deprived neighbourhoods, therefore affordability needs to be a key consideration. The site has good access to community facilities including healthcare, shops, employment and schools, as well as open space. This may aid in reducing levels of inequalities by locating communities close to these facilities. ","Yes","N/A","N/A"]
["SA2: Human Health\nTo improve health and wellbeing and reduce health inequalities, improving quality of life for all.","Will the policy or proposal:\n•\tHelp to improve health and reduce health inequalities?\n•\tContribute to healthy lifestyles?\n•\tEncourage walking, cycling and a reduction in private car use?\n•\tHelp to ensure health services are provided alongside development?\n•\tProtect existing services?","Yes",3,0,2,"Direct","Medium","Medium(10yrs)","Localised","Temporary/Reversible","Minor Positive","The site is located within 800m of healthcare facilities and parks and open space. The site has good access to facilities which support human heath, therefore a potential minor positive effect is recorded.","Yes","N/A","N/A"]
["SA3: Economy\nTo deliver economic growth and support the creation of new and retention of existing businesses.","Will the policy or proposal:\n•\tSupport the growth of higher skilled economic sectors? \n•\tProvide new employment premises which meet identified local needs in the area? \n•\tImprove business infrastructure, such as broadband and provide attractive sites for modern businesses?\n•\tSupport the city’s retail sector, especially the city centre and other retail centres?","Yes",1,0,1,"Indirect","Low","Medium(10yrs)","Localised","Temporary/Reversible","Minor Positive","The site is located within 800m of the nearest town centre. The proximity to the town centre will likely support the needs of residents as well as support the economy in this area by increasing footfall. Therefore a potential minor positive effect is recorded.","Yes","N/A","N/A"]
["SA4: Employment\nTo create greater employment opportunities, higher value jobs and access to training.","Will the policy or proposal:\n•\tIncrease job availability?\n•\tIncrease the quality and choice of local employment?\n•\tImprove access to employment centres?\n•\tMeet the skills needs and future demand for labour?","Yes",2,0,1,"Direct","Low","Medium(10yrs)","Localised","Temporary/Reversible","Minor Positive","The site is located within 800m from an existing area of employment and an existing town centre. The site is within an area of high deprivation for income and employment, however there are a number of employment opportunities within Derby City Centre and near to the site. The Council have identified that proximity to existing employment uses to the north will be a consideration and may require new pedestrian/cycle access. Overall, a potential minor positive effect is recorded. ","Yes","N/A","N/A"]
["SA5: Crime and Safety\nTo reduce crime and the fear of crime for all residents inclusively, improving safety.","Will the policy or proposal:\n•\tHelp to create streets where people feel safe, particularly after dark?\n•\tMake a positive contribution to community cohesion?\n•\tSupport designing out crime principals? \n•\tReduce levels of crime derivation? \n•\tImprove road safety and reduce the number of people killed or seriously injured (KSI) on the roads, particularly children from deprived backgrounds? \n•\tCreate spaces where women and girls feel safe and included?","Yes",1,0,0,"N/A","N/A","N/A","N/A","N/A","Uncertain","The site is currently located within an area of high crime deprivation.  There is limited detail on whether designing out crime principles will be applied as part of the development. However, it is assumed that development should incorporate designing out crime principles in line with Policy GD5.","Yes","N/A","N/A"]
["SA6: Housing\nTo provide everybody with access to an affordable home which is resilient to the effects of climate change.","Will the policy or proposal:\n•\tSupport a range of housing types and sizes, including affordable housing units??\n•\tEnsure that there is an adequate supply of housing development land to meet local needs?\n•\tBe sustainably designed and resilient to the effects of climate change and designed to meet all needs, for example “Lifetime Homes” standards?","Yes",1,0,0,"Direct","High","Long(20+yrs)","Regional","Permanent/Irreversible","Minor Positive","The provision of 25 new homes will help towards meeting Derby's housing target. The provision of affordable housing should be in line with requirements of Policy H4 and Policy H2 will ensure a mix of housing types and tenures is delivered. ","Yes","N/A","N/A"]
["SA7: Leisure and Recreation\nTo provide better opportunities for people to participate in cultural, leisure and recreational activities.","Will the policy or proposal:\n•\tHelp to improve access to formal and informal recreation facilities?\n•\tProvide opportunities for engagement in a range of cultural activities?\n•\tCreate new allotments where there is a demand?","Yes",0,0,3,"Direct","Medium","Long(20+yrs)","Localised","Permanent/Reversible","Significant Positive","The site is well located close to public open space, community centres and sports facilities. The proximity of these recreational spaces is likely to have a positive impact on the opportunities for residents to participate in wellbeing activities.","Yes","N/A","N/A"]
["SA8: Biodiversity and Natural Capital\nTo protect and improve biodiversity, geo-diversity, including protect and enhance favourable conditions on SSSI’s, SPAs, SACs and other wildlife sites and improve connectivity between, and access to, green spaces and functional habitats.","Will the policy or proposal:\n•\tConserve and enhance habitats in the LNRS?\n•\tConserve and enhance species diversity and in particular avoid harm and increase the ranges of protected species?\n•\tProvide opportunities for new habitat creation and lead to a net gain in biodiversity?\n•\tProtect geo-diversity?\n•\tImprove the ecological quality and character of open spaces?\n•\tMaintain and enhance woodland cover and management in appropriate areas (e.g. areas of ash dieback)?\n•\tMaintain or enhance tree cover?\n•\tProtect and promote effective management of SPAs and SACs in the LP area and its surroundings?\n•\tHelp to protect and enhance other designated sites e.g., SSSIs, Wildlife Sites, LNRs etc?\n•\tImprove climate change adaptation through provision of accessible green space or green and blue infrastructure?\n•\tPrevent the fragmentation of habitats, provide links between green spaces or help to deliver/support other ecological networks?\n•\tSupport the natural capital of the city?","Yes",0,0,2,"Direct","Medium","Long(20+yrs)","Localised","Permanent/Irreversible","Minor Positive","The site is located away from designated sites. Whilst the site is brownfield, it is vegetated and therefore likely to be rich in biodiversity. Development is likely to result in the loss of biodiversity, however it is anticipated that the requirement for BNG will enhance biodiversity, either on or off site. ","Yes","N/A","N/A"]
["SA9: Landscape and Townscape\nTo protect and enhance the character and appearance of the landscape and townscape, including landscape and townscape assets, as well as the area’s other natural assets and resources.","Will the policy or proposal:\n•\tProtect and enhance landscape and townscape quality, character and distinctiveness?\n•\tAvoid loss of, and damage to greenbelt / green wedge land?\n•\tMake use of previously used / brownfield land and buildings?\n•\tSafeguard individual landscape and townscape features such as hedgerows, ponds, public squares, etc?","Yes",0,0,2,"Direct","Medium","Long(20+yrs)","Localised","Permanent/Irreversible","Significant Positive","The site is located away from green belts and green wedges and is on brownfield land. Development is not likely to negatively impact the existing landscape and townscape, and, as the site is currently not being utilised for any purpose, a housing development which is well designed is likely to enhance the local landscape.","Yes","N/A","N/A"]
["SA10: Historic Environment\nTo conserve and enhance the historic environment, heritage assets (including known and unknown archaeological sites) and their settings and maintain and enhance access to cultural heritage for enjoyment and educational purposes.   ","Will the policy or proposal:\n•\tPreserve and enhance the character or appearance of conservation areas and their settings?\n•\tPreserve or enhance heritage assets and their settings?\n•\tPreserve or enhance archaeological features and their settings?\n•\tImprove the condition of heritage at risk? \n•\tRe-use/retain historic buildings or fabric?\n•\tProtect and conserve the Outstanding Universal Value of the DVMWHS?","Yes",1,0,6,"Direct","Medium","Long(20+yrs)","Localised","Permanent/Irreversible","Minor Positive","The site is within 100m from a listed building. Development at the site may adversely impact the setting of the listed building. However, the implementation of high quality design may enhance the setting of this asset. Additionally, development is anticipated to be undertaken in line with Policy EN11, ensuring efforts to preserve Derby's historic environment.","Yes","A lighting strategy should be prepared to minimise light spill onto heritage assets.","N/A"]
["SA11: Air, Noise and Light Pollution\nTo maintain good local air quality and to minimise noise and light pollution","Will the policy or proposal:\n•\tMaintain or improve local air quality?\n•\tEncourage the installation of electric vehicle charging points?\n•\tAvoid adverse impacts from noise?\n•\tMinimise light pollution?","Yes",1,0,1,"Indirect","Medium","Medium(10yrs)","Localised","Permanent/Reversible","Minor Positive","The site is not located within an AQMA, however is within an area of high light pollution. The site is well located in terms of proximity to sustainable transport. There will be temporary negative effects on air quality and noise due to dust generation and emissions from construction. However, overall a minor positive effect is recorded as long term sustainable transport options and reduction in private vehicle emissions are anticipated to offset the negative effects arising from construction. Additionally, the development is anticipated to seek opportunities to identify and improve air quality and should not reduce air quality benefits, in line with Policy EN22.","Yes","A Dust Management Plan should be prepared as part of the Construction Environmental Management Plan (CEMP).","N/A"]
["SA12: Water Environment\nTo ensure sustainable management of water resources and to minimise the risk of flooding.","Will the policy or proposal: \n•\tMinimise contamination of watercourses and improve water quality in watercourses?\n•\tAvoid exacerbating flood risk for any source and be designed to be resilient to flood risk for its lifetime?\n•\tSupport the use of Sustainable Drainage Systems?\n•\tEncourage water efficiency and demand management?\n•\tAvoid deterioration and enhance the ecological status of water bodies? \n•\tContribute toward achieving Water Framework Directive objectives?","Yes",2,0,2,"Direct","High","Long(20+yrs)","Localised","Permanent/Irreversible","Minor Negative","The site is located in close proximity to a water body. There is also potential for surface runoff during construction to result in pollution of the nearby water body. The application of SuDS (in line with Policy CL1) should be demonstrated to reduce the risk of run-off and surface water flooding.","Yes","N/A","N/A"]
["SA13: Climate Change\nAdapt to the effects of climate change including flood risk, extreme weather and overheating, and strengthen climate resilience.","Will the policy or proposal:\n•\tMinimise flood risk and ensure new development provides sustainable urban drainage?\n•\tEnsure new development is designed to withstand future climate change (e.g. overheating and increased storm severity)?\n•\tIncrease and improve green and blue infrastructure to create a connected network across the city and within the wider area?\n•\tEnsure surface and groundwater water resources are used efficiently?\n•\tReduce energy consumption?\n•\tSupport the delivery of renewable and decentralised energy capacity (including small scale or community energy projects)?\n•\tSupport energy efficient design?","Yes",2,0,2,"N/A","N/A","N/A","N/A","N/A","Uncertain","The site is not located within a flood zone. However, climate resilience measures, including energy efficiency measures and green infrastructure are currently unknown. This is likely to be determined by individual scheme design.","Yes","Development should look into incorporating renewable energy generation methods such as solar panels, and should incorporate design measures that will reduce effects of climate change, such as zonal heating systems, water saving initiatives and energy monitoring devices.","N/A"]
["SA14: Greenhouse Gases\nTo reduce the contribution towards the emission of greenhouse gases.","Will the policy or proposal:\n•\tReduce GHG emissions?\n•\tSupport the shift towards low carbon technologies and the usage of electric and ultralow emissions vehicles and appropriate infrastructure to support these?\n•\tProvide opportunities to access local services and facilities by low carbon public transport, walking or wheeling?\n•\tPromote a low carbon local economy? \n•\tReduce levels of embodied carbon?","No",null,null,null,"Direct","Medium","Long(20+yrs)","Localised","Permanent/Irreversible","Minor Negative","There are likely to be significant GHG emissions associated with the construction  from embodied carbon within building materials, as well as carbon emissions from construction traffic and construction plant. Building efficiency measures are anticipated to reduce energy use in operation. The development will promote sustainable travel modes, reducing car reliance and GHG emissions from transport. The application of Policy CL5 should be applied to minimise embodied carbon. However, a minor negative effect is recorded due to construction emissions.","Yes","Any form of construction and operation should be undertaken as sustainably as possible, making use of tools and processes, such as circular economy, waste hierarchy and should consider BREEAM and BREEAM Infrastructure.","N/A"]
["SA15: Transport and Accessibility\nTo reduce the number of journeys made by car, within and to and from the area and improve access to jobs, services and facilities.","Will the policy or proposal:\n•\tUtilise and enhance existing infrastructure?\n•\tHelp to meet local needs locally through low carbon travel options?\n•\tFacilitate safe walking and cycling?\n•\tFacilitate the use of public transport?\n•\tDeliver opportunities to relieve traffic congestion?\n•\tEncourage travel planning for businesses?\n•\tHelp to reduce the distances people have to travel on a regular basis for education, employment and services?\n•\tHelp to improve access to services and facilities for those living in rural or remote settlements, or experiencing other access constraints?\n•\tHelp to support homeworking by residents?","Yes",1,0,2,"Direct","Low","Medium(10yrs)","Localised","Permanent/Irreversible","Minor Positive","The site is located within 800m from a railway station and 400m from a bus stop. The site is more than 400m from a cycle network. It is not clear whether the site will be connected to the cycle network. Development at the site provides a good level of accessibility to public transport, therefore a potential minor positive effect is recorded ","Yes","N/A","N/A"]
["SA16: Geology and Soils\nTo minimise water and soil pollution and ensure protection of natural resources including greenfield land, soil, and minerals resources.","Will the policy or proposal:\n•\tUtilise previously developed land?\n•\tSeek to improve or remediate contaminated land or reuse previously developed land which has not been restored?\n•\tProtect soil quality and avoid soil pollution?\n•\tProtect Best and Most Versatile (BMV) Agricultural Land?\n•\tProtect Greenbelt/ Green Wedges land?\n•\tProtect sites safeguarded for mineral workings?","Yes",0,0,4,"Direct","Medium","Long(20+yrs)","Borough-wide","Permanent/Reversible","Significant Positive","The site is located on brownfield land. Development at this site will support the protection of greenfield land and reuse of previously developed land, therefore a potential significant positive effect is recorded. ","Yes","N/A","N/A"]
["SA17: Waste\nTo minimise the generation of waste and effectively manage waste that is created.","Will the policy or proposal:\n•\tEnhance opportunities for waste to be treated in line with circular economy principles (e.g. recycling, re-using, composting)?\n•\tProvide adequate waste separation facilities in new and existing developments in order to encourage more recycling?\n•\tEncourage the repurposing and refurbishing of buildings, instead of demolition?","Yes",0,0,1,"Indirect","High","Long(20+yrs)","Localised","Permanent/Irreversible","Minor Negative","Development should support the use of sustainably sourced/recycled materials in line with Policy GD1. This should help minimise waste from the development's construction phase. However, once in use, the development is likely to produce waste in operation which could have a greater impact than waste through construction. However, the Local Plan is unable to control the generation of waste beyond development of the site. It will only be able to ensure that developments are designed to ensure that users can separate waste facilitating them to follow the waste hierarchy. ","Yes","A Site Waste Management Plan should be prepared as part of the CEMP and OEMP. ","N/A"]

{"sheet":"HA17","index":22,"n_rows":28,"n_cols":16,"rows_kept":28,"cut":false,"hidden":false,"merged":[[9,0,9,1],[9,2,9,5],[9,6,9,15]]}
["Site Name","Gypsy and Traveller Site Allocation"]
["Site Address"]
["Town/Locality"]
["Est Housing Yield/Employment Space","17 permanent caravan pitches"]
["Site Area (ha)"]
["Site Description","Greenfield"]
["Greenfield/Brownfield","Greenfield"]
["Assumptions Made"]
[]
["SA Framework",null,"GIS Inputs",null,null,null,"SA  Assessment"]
["SA objective","Supporting Questions","GIS Data Available?","R","A","G","Direct/\nIndirect","Magnitude","Duration","Spatial Extent","Permanence/ Reversibility","Significance","Description of potential effects","Potential for cumulative effects? ","Mitigation","Enhancements"]
["SA1: Population and Equalities\nTo build inclusive communities by reducing social exclusion, reducing deprivation, promoting equity, equality and respecting diversity, improving local accessibility to healthcare, education, employment, retail facilities and recreational resources (including open spaces and sports facilities).  ","Will the policy or proposal:\n•\tHelp to reduce deprivation and the inequality gap?\n•\tEnsure all residents have equitable access to health services?\n•\tConsider the needs of an aging population?\n•\tEnsure new housing is well related located, close to a range of services such as shops, schools and employment opportunities?\n•\tImprove opportunities for active travel including walking and cycling?\n•\tEnsure everyone has access to high quality open space and recreation facilities?\n•\tProtect community facilities and improve access to important local services for the most deprived?","Yes",0,1,2,"Direct","Medium","Medium(10yrs)","Localised","Permanent/Reversible","Minor Positive","The site will create an additional 17 pitches for the Gypsey and Traveller community which is necessary in ensuring all members of the communities housing needs are met. In addition, the site is in close proximity to primary and secondary schools, and a number of other facilities such as a children's centre, and parks and open spaces. The site is not well located in terms of access to healthcare facilities. Development at the site will lead to the loss of existing open space which may negatively impact the wellbeing of existing residents. However, given the proximity to education facilities and recreational spaces, a minor positive effect is recorded.","Yes","N/A","N/A"]
["SA2: Human Health\nTo improve health and wellbeing and reduce health inequalities, improving quality of life for all.","Will the policy or proposal:\n•\tHelp to improve health and reduce health inequalities?\n•\tContribute to healthy lifestyles?\n•\tEncourage walking, cycling and a reduction in private car use?\n•\tHelp to ensure health services are provided alongside development?\n•\tProtect existing services?","Yes",2,0,3,"Direct","Medium","Medium(10yrs)","Localised","Permanent/Reversible","Minor Negative","The site is more than 800m from any healthcare facilities, however it is within 400m from existing open space. Development at this site will lead to the loss of existing open space, however it is possible that development would lead to enhancements of the remaining open space, although this is not guaranteed. The site does not have good access to services and spaces which support health and wellbeing, therefore a potential minor negative effect is recorded.","Yes","N/A","N/A"]
["SA3: Economy\nTo deliver economic growth and support the creation of new and retention of existing businesses.","Will the policy or proposal:\n•\tSupport the growth of higher skilled economic sectors? \n•\tProvide new employment premises which meet identified local needs in the area? \n•\tImprove business infrastructure, such as broadband and provide attractive sites for modern businesses?\n•\tSupport the city’s retail sector, especially the city centre and other retail centres?","Yes",1,0,1,"Indirect","Low","Medium(10yrs)","Localised","Temporary/Reversible","Minor Positive","The site is located within 800m of the nearest town centre. The proximity to the town centre will likely support the needs of residents as well as support the economy in this area by increasing footfall. Therefore a potential minor positive effect is recorded.","Yes","N/A","N/A"]
["SA4: Employment\nTo create greater employment opportunities, higher value jobs and access to training.","Will the policy or proposal:\n•\tIncrease job availability?\n•\tIncrease the quality and choice of local employment?\n•\tImprove access to employment centres?\n•\tMeet the skills needs and future demand for labour?","Yes",2,0,1,"Direct","Low","Medium(10yrs)","Localised","Temporary/Reversible","Minor Positive","The site is located within 800m from an existing area of employment and an existing town centre. The site is within an area of high deprivation for income and employment, however there are a number of employment opportunities within Derby City Centre and near to the site. Overall, a potential minor positive effect is recorded. ","Yes","N/A","N/A"]
["SA5: Crime and Safety\nTo reduce crime and the fear of crime for all residents inclusively, improving safety.","Will the policy or proposal:\n•\tHelp to create streets where people feel safe, particularly after dark?\n•\tMake a positive contribution to community cohesion?\n•\tSupport designing out crime principals? \n•\tReduce levels of crime derivation? \n•\tImprove road safety and reduce the number of people killed or seriously injured (KSI) on the roads, particularly children from deprived backgrounds? \n•\tCreate spaces where women and girls feel safe and included?","Yes",1,0,0,"N/A","N/A","N/A","N/A","N/A","Uncertain","The site is currently located within an area of high crime deprivation.  There is limited detail on whether designing out crime principles will be applied as part of the development. However, it is assumed that development should incorporate designing out crime principles in line with Policy GD5.","Yes","N/A","N/A"]
["SA6: Housing\nTo provide everybody with access to an affordable home which is resilient to the effects of climate change.","Will the policy or proposal:\n•\tSupport a range of housing types and sizes, including affordable housing units??\n•\tEnsure that there is an adequate supply of housing development land to meet local needs?\n•\tBe sustainably designed and resilient to the effects of climate change and designed to meet all needs, for example “Lifetime Homes” standards?","Yes",0,1,0,"Direct","Medium","Long(20+yrs)","Localised","Permanent/Reversible","Significant Positive","The Plan allocates a site specifically for permanent gypsy and traveller accommodation on Council owned land. The site will provide for permanent caravan living by members of the community who are culturally transient in nature but require a permanent living location. The criteria set out the policy requirements will be applied to any application. Development at this site will support the Council's requirement to provide accommodation for this group, therefore a potential significant positive effect is recorded.  ","Yes","N/A","N/A"]
["SA7: Leisure and Recreation\nTo provide better opportunities for people to participate in cultural, leisure and recreational activities.","Will the policy or proposal:\n•\tHelp to improve access to formal and informal recreation facilities?\n•\tProvide opportunities for engagement in a range of cultural activities?\n•\tCreate new allotments where there is a demand?","Yes",0,0,3,"Direct","Low","Long(20+yrs)","Localised","Permanent/Irreversible","Minor Negative","The site is well located close to public open space, community centres and sports facilities. The proximity of these recreational spaces is likely to have a positive impact on the opportunities for residents to participate in wellbeing activities. Development will lead to the loss of existing open space, however the remainder of the site beyond the fenced off Gypsy and Traveller accommodation should remain as accessible public open space and be improved where possible with further planting. As a result of the loss of open space, a potential minor negative effect is recorded. ","Yes","N/A","N/A"]
["SA8: Biodiversity and Natural Capital\nTo protect and improve biodiversity, geo-diversity, including protect and enhance favourable conditions on SSSI’s, SPAs, SACs and other wildlife sites and improve connectivity between, and access to, green spaces and functional habitats.","Will the policy or proposal:\n•\tConserve and enhance habitats in the LNRS?\n•\tConserve and enhance species diversity and in particular avoid harm and increase the ranges of protected species?\n•\tProvide opportunities for new habitat creation and lead to a net gain in biodiversity?\n•\tProtect geo-diversity?\n•\tImprove the ecological quality and character of open spaces?\n•\tMaintain and enhance woodland cover and management in appropriate areas (e.g. areas of ash dieback)?\n•\tMaintain or enhance tree cover?\n•\tProtect and promote effective management of SPAs and SACs in the LP area and its surroundings?\n•\tHelp to protect and enhance other designated sites e.g., SSSIs, Wildlife Sites, LNRs etc?\n•\tImprove climate change adaptation through provision of accessible green space or green and blue infrastructure?\n•\tPrevent the fragmentation of habitats, provide links between green spaces or help to deliver/support other ecological networks?\n•\tSupport the natural capital of the city?","Yes",0,1,1,"Direct","Medium","Long(20+yrs)","Localised","Permanent/Irreversible","Minor Positive","The site is located in close proximity to a local nature reserve but is not near to any other designated sites. Development will result in the loss in a small area of greenfield land. It is anticipated that development will be required to provide BNG which should enhance biodiversity on site.  Biodiversity enhancement is anticipated meet minimum standards of 10% for all developments, as set out in Policy EN10. A potential minor positive effect is recorded. ","Yes","N/A","N/A"]
["SA9: Landscape and Townscape\nTo protect and enhance the character and appearance of the landscape and townscape, including landscape and townscape assets, as well as the area’s other natural assets and resources.","Will the policy or proposal:\n•\tProtect and enhance landscape and townscape quality, character and distinctiveness?\n•\tAvoid loss of, and damage to greenbelt / green wedge land?\n•\tMake use of previously used / brownfield land and buildings?\n•\tSafeguard individual landscape and townscape features such as hedgerows, ponds, public squares, etc?","Yes",0,0,2,"Direct","Medium","Medium(10yrs)","Localised","Permanent/Reversible","Minor Negative","The site is located away from green belts and green wedges, however it is on greenfield land. The development of the site will include appropriate fencing and planting to form an enclosed site for the traveller community with communal spaces and small-scale ancillary buildings for storage purposes. Development will result in the loss of some open space, however mitigation measures should mean that the impact to landscape and townscape is nominal, in line with Policy GD1 and GD2. A minor negative effect is recorded due to the loss of greenfield land. ","Yes","Sensitive design should be considered for any new developments to ensure positive effects on local assets and landscapes.\nCare must be taken to ensure that high density development and tall buildings do not have a significant visual impact.","N/A"]
["SA10: Historic Environment\nTo conserve and enhance the historic environment, heritage assets (including known and unknown archaeological sites) and their settings and maintain and enhance access to cultural heritage for enjoyment and educational purposes.   ","Will the policy or proposal:\n•\tPreserve and enhance the character or appearance of conservation areas and their settings?\n•\tPreserve or enhance heritage assets and their settings?\n•\tPreserve or enhance archaeological features and their settings?\n•\tImprove the condition of heritage at risk? \n•\tRe-use/retain historic buildings or fabric?\n•\tProtect and conserve the Outstanding Universal Value of the DVMWHS?","Yes",1,0,6,"Direct","Medium","Long(20+yrs)","Localised","Permanent/Irreversible","Minor Negative","The site is within 100m from a listed building. Development at the site may adversely impact the setting of the listed building, therefore a potential minor negative effect is recorded. However, development is anticipated to be undertaken in line with Policy EN11, ensuring efforts to preserve Derby's historic environment.","Yes","A lighting strategy should be prepared to minimise light spill onto heritage assets.","N/A"]
["SA11: Air, Noise and Light Pollution\nTo maintain good local air quality and to minimise noise and light pollution","Will the policy or proposal:\n•\tMaintain or improve local air quality?\n•\tEncourage the installation of electric vehicle charging points?\n•\tAvoid adverse impacts from noise?\n•\tMinimise light pollution?","Yes",1,0,1,"Indirect","Medium","Medium(10yrs)","Localised","Permanent/Reversible","Minor Negative","The site is not located within an AQMA, however the site is not well located in terms of proximity to sustainable transport and is within an area of high light pollution. There will be temporary negative effects on air quality and noise due to dust generation and emissions from construction. However, the development is anticipated to seek opportunities to identify and improve air quality and should not reduce air quality benefits, in line with Policy EN22.","Yes","A Dust Management Plan should be prepared as part of the Construction Environmental Management Plan (CEMP).","N/A"]
["SA12: Water Environment\nTo ensure sustainable management of water resources and to minimise the risk of flooding.","Will the policy or proposal: \n•\tMinimise contamination of watercourses and improve water quality in watercourses?\n•\tAvoid exacerbating flood risk for any source and be designed to be resilient to flood risk for its lifetime?\n•\tSupport the use of Sustainable Drainage Systems?\n•\tEncourage water efficiency and demand management?\n•\tAvoid deterioration and enhance the ecological status of water bodies? \n•\tContribute toward achieving Water Framework Directive objectives?","Yes",0,1,3,"N/A","N/A","N/A","N/A","N/A","Neutral","The development of the site is not anticipated to have any potential effect on this objective. ","Yes","N/A","N/A"]
["SA13: Climate Change\nAdapt to the effects of climate change including flood risk, extreme weather and overheating, and strengthen climate resilience.","Will the policy or proposal:\n•\tMinimise flood risk and ensure new development provides sustainable urban drainage?\n•\tEnsure new development is designed to withstand future climate change (e.g. overheating and increased storm severity)?\n•\tIncrease and improve green and blue infrastructure to create a connected network across the city and within the wider area?\n•\tEnsure surface and groundwater water resources are used efficiently?\n•\tReduce energy consumption?\n•\tSupport the delivery of renewable and decentralised energy capacity (including small scale or community energy projects)?\n•\tSupport energy efficient design?","Yes",0,0,4,"N/A","N/A","N/A","N/A","N/A","Uncertain","The site is not located within a flood zone. However, climate resilience measures, including energy efficiency measures and green infrastructure are currently unknown. This is likely to be determined by individual scheme design. An uncertain effect is therefore recorded.","Yes","Development should look into incorporating renewable energy generation methods such as solar panels, and should incorporate design measures that will reduce effects of climate change, such as zonal heating systems, water saving initiatives and energy monitoring devices.","N/A"]
["SA14: Greenhouse Gases\nTo reduce the contribution towards the emission of greenhouse gases.","Will the policy or proposal:\n•\tReduce GHG emissions?\n•\tSupport the shift towards low carbon technologies and the usage of electric and ultralow emissions vehicles and appropriate infrastructure to support these?\n•\tProvide opportunities to access local services and facilities by low carbon public transport, walking or wheeling?\n•\tPromote a low carbon local economy? \n•\tReduce levels of embodied carbon?","No",null,null,null,"Direct","Medium","Long(20+yrs)","Localised","Permanent/Irreversible","Minor Negative","There are likely to be significant GHG emissions associated with the construction  from embodied carbon within building materials, as well as carbon emissions from construction traffic and construction plant. Building efficiency measures are anticipated to reduce energy use in operation. The development will promote sustainable travel modes, reducing car reliance and GHG emissions from transport. The application of Policy CL5 should be applied to minimise embodied carbon. However, a minor negative effect is recorded due to construction emissions.","Yes","Any form of construction and operation should be undertaken as sustainably as possible, making use of tools and processes, such as circular economy, waste hierarchy and should consider BREEAM and BREEAM Infrastructure.","N/A"]
["SA15: Transport and Accessibility\nTo reduce the number of journeys made by car, within and to and from the area and improve access to jobs, services and facilities.","Will the policy or proposal:\n•\tUtilise and enhance existing infrastructure?\n•\tHelp to meet local needs locally through low carbon travel options?\n•\tFacilitate safe walking and cycling?\n•\tFacilitate the use of public transport?\n•\tDeliver opportunities to relieve traffic congestion?\n•\tEncourage travel planning for businesses?\n•\tHelp to reduce the distances people have to travel on a regular basis for education, employment and services?\n•\tHelp to improve access to services and facilities for those living in rural or remote settlements, or experiencing other access constraints?\n•\tHelp to support homeworking by residents?","Yes",1,1,1,"Direct","Medium","Medium(10yrs)","Borough-wide","Temporary/Reversible","Minor Negative","The site is not located in close proximity to a railway station and is within 400m from the cycle network. The site is well located in terms of bus travel. As a result of lack of accessibility to a cycle network, and railway services, residents may be more inclined to use private vehicles, or they may be less able to access services. Therefore, a potential minor negative effect is recorded. ","Yes","N/A","N/A"]
["SA16: Geology and Soils\nTo minimise water and soil pollution and ensure protection of natural resources including greenfield land, soil, and minerals resources.","Will the policy or proposal:\n•\tUtilise previously developed land?\n•\tSeek to improve or remediate contaminated land or reuse previously developed land which has not been restored?\n•\tProtect soil quality and avoid soil pollution?\n•\tProtect Best and Most Versatile (BMV) Agricultural Land?\n•\tProtect Greenbelt/ Green Wedges land?\n•\tProtect sites safeguarded for mineral workings?","Yes",1,0,3,"Direct","Low","Long(20+yrs)","Borough-wide","Permanent/Irreversible","Minor Negative","The site is located on both greenfield and brownfield land. Development at this site will result in the loss of greenfield land. Further detailed consideration will be had to ensure that any potential land contamination is properly mitigated as part of the planning application process.","Yes","N/A","N/A"]
["SA17: Waste\nTo minimise the generation of waste and effectively manage waste that is created.","Will the policy or proposal:\n•\tEnhance opportunities for waste to be treated in line with circular economy principles (e.g. recycling, re-using, composting)?\n•\tProvide adequate waste separation facilities in new and existing developments in order to encourage more recycling?\n•\tEncourage the repurposing and refurbishing of buildings, instead of demolition?","Yes",0,0,1,"Indirect","High","Long(20+yrs)","Localised","Permanent/Irreversible","Minor Negative","Development should support the use of sustainably sourced/recycled materials in line with Policy GD1. This should help minimise waste from the development's construction phase. However, once in use, the development is likely to produce waste in operation which could have a greater impact than waste through construction. However, the Local Plan is unable to control the generation of waste beyond development of the site. It will only be able to ensure that developments are designed to ensure that users can separate waste facilitating them to follow the waste hierarchy. ","Yes","A Site Waste Management Plan should be prepared as part of the CEMP and OEMP. ","N/A"]

{"sheet":"CC4","index":23,"n_rows":28,"n_cols":16,"rows_kept":28,"cut":false,"hidden":false,"merged":[[9,0,9,1],[9,2,9,5],[9,6,9,15]]}
["Site Name","Residential Led, Mixed Use Site Allocations"]
["Site Address"]
["Town/Locality","Derby "]
["Est Housing Yield/Employment Space","Friar Gate Goods Yard: 276 homes\nFull Street Police Station: 195 homes\nNorthern Gateway: 200 homes\nBradshaw Way: 400 homes\nThe Eagle Quarter: 400 homes\nAbbey Street Car Park: 50 homes\nBabington Lane Car Park: 200 homes\nRemaining Land at Becketwell: 150 homes\nTotal homes: 1871"]
["Site Area (ha)"]
["Site Description"]
["Greenfield/Brownfield"]
["Assumptions Made"]
[]
["SA Framework",null,"GIS Inputs",null,null,null,"SA  Assessment"]
["SA objective","Supporting Questions","GIS Data Available?","R","A","G","Direct/\nIndirect","Magnitude","Duration","Spatial Extent","Permanence/ Reversibility","Significance","Description of potential effects","Potential for cumulative effects? ","Mitigation","Enhancements"]
["SA1: Population and Equalities\nTo build inclusive communities by reducing social exclusion, reducing deprivation, promoting equity, equality and respecting diversity, improving local accessibility to healthcare, education, employment, retail facilities and recreational resources (including open spaces and sports facilities).  ","Will the policy or proposal:\n•\tHelp to reduce deprivation and the inequality gap?\n•\tEnsure all residents have equitable access to health services?\n•\tConsider the needs of an aging population?\n•\tEnsure new housing is well related located, close to a range of services such as shops, schools and employment opportunities?\n•\tImprove opportunities for active travel including walking and cycling?\n•\tEnsure everyone has access to high quality open space and recreation facilities?\n•\tProtect community facilities and improve access to important local services for the most deprived?","Yes",1,1,1,"Direct","Medium","Medium(10yrs)","Localised","Temporary/Reversible","Significant Positive","Residential development as a result of this allocation will result in 1871 additional homes being delivered across the City. At this stage it is not known how many of these homes will be accessible or adaptable. Additionally, all of the component sites are located within the most deprived neighbourhoods, therefore affordability needs to be a key consideration. The component sites all have good access to community facilities including healthcare, shops, employment and schools, as well as open space. This should aid in reducing levels of inequalities by locating communities close to these facilities.","Yes","N/A","N/A"]
["SA2: Human Health\nTo improve health and wellbeing and reduce health inequalities, improving quality of life for all.","Will the policy or proposal:\n•\tHelp to improve health and reduce health inequalities?\n•\tContribute to healthy lifestyles?\n•\tEncourage walking, cycling and a reduction in private car use?\n•\tHelp to ensure health services are provided alongside development?\n•\tProtect existing services?","Yes",3,0,2,"Direct","Medium","Medium(10yrs)","Localised","Temporary/Reversible","Significant Positive","The sites are all located within 800m from healthcare facilities. Half of the sites are located in close proximity to a children's centre.  All of the sites are within 800m from parks and open space.  The sites have good access to facilities which support human health.","Yes","N/A","N/A"]
["SA3: Economy\nTo deliver economic growth and support the creation of new and retention of existing businesses.","Will the policy or proposal:\n•\tSupport the growth of higher skilled economic sectors? \n•\tProvide new employment premises which meet identified local needs in the area? \n•\tImprove business infrastructure, such as broadband and provide attractive sites for modern businesses?\n•\tSupport the city’s retail sector, especially the city centre and other retail centres?","Yes",1,0,1,"Direct","Medium","Medium(10yrs)","Localised","Temporary/Reversible","Significant Positive","No sites listed are within close proximity to primary shopping areas, however all sites are close to town centres. Additional housing in these locations should increase footfall in town centres which should support the economy. In addition, Development at Northern Gateway and Becketwell may include other uses such as offices and food and drink, leisure and education. Development at these sites should support the economy of Derby, therefore a potential significant positive effect is recorded.","Yes","N/A","N/A"]
["SA4: Employment\nTo create greater employment opportunities, higher value jobs and access to training.","Will the policy or proposal:\n•\tIncrease job availability?\n•\tIncrease the quality and choice of local employment?\n•\tImprove access to employment centres?\n•\tMeet the skills needs and future demand for labour?","Yes",2,0,1,"Direct","Medium","Medium(10yrs)","Localised","Temporary/Reversible","Significant Positive","The sites are located in close proximity to town centres and areas of employment. If sites are not located in Derby City Centre, they are already served with a frequent bus service. They are well located in relation to the railway station which has frequent services to nearby cities which provides additional employment opportunities.  In addition, development at Northern Gateway and Becketwell may include other uses such as offices and food and drink, leisure and education which may provide additional employment opportunities near to the sites. Overall, a potential significant positive effect is recorded.\n","Yes","N/A","N/A"]
["SA5: Crime and Safety\nTo reduce crime and the fear of crime for all residents inclusively, improving safety.","Will the policy or proposal:\n•\tHelp to create streets where people feel safe, particularly after dark?\n•\tMake a positive contribution to community cohesion?\n•\tSupport designing out crime principals? \n•\tReduce levels of crime derivation? \n•\tImprove road safety and reduce the number of people killed or seriously injured (KSI) on the roads, particularly children from deprived backgrounds? \n•\tCreate spaces where women and girls feel safe and included?","Yes",1,0,0,"Indirect","Low","Short/Medium","Localised","Permanent/Reversible","Minor Positive"," The site is currently located within an area of high crime deprivation. However, development at Cathedral Green and Babbington Lane Car Park are expected to help to animate the streetscape and open space which may support the reduction in crime. The effect is currently uncertain, however.  There is limited detail on whether designing out crime principles will be applied as part of the development. However, it is assumed that development should incorporate designing out crime principles in line with Policy GD5","Yes","N/A","N/A"]
["SA6: Housing\nTo provide everybody with access to an affordable home which is resilient to the effects of climate change.","Will the policy or proposal:\n•\tSupport a range of housing types and sizes, including affordable housing units??\n•\tEnsure that there is an adequate supply of housing development land to meet local needs?\n•\tBe sustainably designed and resilient to the effects of climate change and designed to meet all needs, for example “Lifetime Homes” standards?","Yes",1,0,0,"Direct","High","Long(20+yrs)","Regional","Permanent/Irreversible","Significant Positive","The provision of 1871 new homes will help towards meeting Derby's housing target. The provision of affordable housing should be in line with requirements of Policy H4 and Policy H2 will ensure a mix of housing types and tenures is delivered. ","Yes","N/A","N/A"]
["SA7: Leisure and Recreation\nTo provide better opportunities for people to participate in cultural, leisure and recreational activities.","Will the policy or proposal:\n•\tHelp to improve access to formal and informal recreation facilities?\n•\tProvide opportunities for engagement in a range of cultural activities?\n•\tCreate new allotments where there is a demand?","Yes",0,0,3,"Direct","Medium","Long(20+yrs)","Borough-wide","Permanent/Reversible","Significant Positive","All sites are located in close proximity to parks and open space, community centres and sports facilities. In addition, development at Northern Gateway and Becketwell should provide new leisure facilities. Overall, a potential significant positive effect is recorded.","Yes","N/A","N/A"]
["SA8: Biodiversity and Natural Capital\nTo protect and improve biodiversity, geo-diversity, including protect and enhance favourable conditions on SSSI’s, SPAs, SACs and other wildlife sites and improve connectivity between, and access to, green spaces and functional habitats.","Will the policy or proposal:\n•\tConserve and enhance habitats in the LNRS?\n•\tConserve and enhance species diversity and in particular avoid harm and increase the ranges of protected species?\n•\tProvide opportunities for new habitat creation and lead to a net gain in biodiversity?\n•\tProtect geo-diversity?\n•\tImprove the ecological quality and character of open spaces?\n•\tMaintain and enhance woodland cover and management in appropriate areas (e.g. areas of ash dieback)?\n•\tMaintain or enhance tree cover?\n•\tProtect and promote effective management of SPAs and SACs in the LP area and its surroundings?\n•\tHelp to protect and enhance other designated sites e.g., SSSIs, Wildlife Sites, LNRs etc?\n•\tImprove climate change adaptation through provision of accessible green space or green and blue infrastructure?\n•\tPrevent the fragmentation of habitats, provide links between green spaces or help to deliver/support other ecological networks?\n•\tSupport the natural capital of the city?","Yes",0,0,2,"Direct","Medium","Long(20+yrs)","Localised","Permenant/Reversible","Minor Positive","The sites are located away from designated sites. Whilst the sites are brownfield, many sites may be vegetated and therefore likely to be rich in biodiversity. All development could result in disturbance of habitats it is anticipated that the requirement for BNG will enhance biodiversity. Biodiversity enhancement should meet minimum standards of 10% for all developments, as set out in Policy EN10. A potential minor positive effect is therefore recorded. ","Yes","N/A","N/A"]
["SA9: Landscape and Townscape\nTo protect and enhance the character and appearance of the landscape and townscape, including landscape and townscape assets, as well as the area’s other natural assets and resources.","Will the policy or proposal:\n•\tProtect and enhance landscape and townscape quality, character and distinctiveness?\n•\tAvoid loss of, and damage to greenbelt / green wedge land?\n•\tMake use of previously used / brownfield land and buildings?\n•\tSafeguard individual landscape and townscape features such as hedgerows, ponds, public squares, etc?","Yes",0,0,2,"Direct","Medium","Long(20+yrs)","Localised","Permenant/Irreversible","Uncertain","The sites are located away from green belts and green wedges and on brownfield land. Development at Bradshaw Way will lead to the increase in height of the building which may impact the existing townscape.  At the Eagle Quarter, there is the opportunity for a tall building to help terminate views along the Morledge. At Abbey Street Car Parks, the western car park has potential for a tall building, fronting the inner ring road. The development of these sites may impact the existing townscape and landscape, particularly if tall buildings are proposed. However, the regeneration of these sites is anticipated to enhance the street scene, creating a more vibrant townscape. Development should be designed to be sensitive to existing landscape settings and aim to enhance the landscape and implement high quality design, in line with Policy GD1 and GD2. Policy CC6 should be applied to ensure appropriate development of tall buildings. The effect will be determined by scheme design and therefore an uncertain effect is identified.","Yes","Sensitive design should be considered for any new developments to ensure positive effects on local assets and landscapes.\nCare must be taken to ensure that high density development and tall buildings do not have a significant visual impact.","N/A"]
["SA10: Historic Environment\nTo conserve and enhance the historic environment, heritage assets (including known and unknown archaeological sites) and their settings and maintain and enhance access to cultural heritage for enjoyment and educational purposes.   ","Will the policy or proposal:\n•\tPreserve and enhance the character or appearance of conservation areas and their settings?\n•\tPreserve or enhance heritage assets and their settings?\n•\tPreserve or enhance archaeological features and their settings?\n•\tImprove the condition of heritage at risk? \n•\tRe-use/retain historic buildings or fabric?\n•\tProtect and conserve the Outstanding Universal Value of the DVMWHS?","Yes",4,1,2,"Direct","Medium","Long(20+yrs)","Borough-wide","Permanent/Irreversible","Uncertain","Many of the sites are located in close proximity to heritage assets, therefore development may impact the assets or their settings. The Bonded Warehouse is a listed asset, however the proposal provides opportunities for complementary uses that would help to secure a viable use for the listed asset. Development at Northern Gateway should lead to the preservation and enhancement of heritage assets. Appropriate consideration given to the potential for archaeological remains must be included at this site, as well as at Becketwell. Development at these sites may impact the historic environment, including the setting of assets, however development of certain sites will provide viable uses for listed assets. Additionally, development is anticipated to be undertaken in line with Policy EN11, ensuring efforts to preserve Derby's historic environment.","Yes","A lighting strategy should be prepared to minimise light spill onto heritage assets.","N/A"]
["SA11: Air, Noise and Light Pollution\nTo maintain good local air quality and to minimise noise and light pollution","Will the policy or proposal:\n•\tMaintain or improve local air quality?\n•\tEncourage the installation of electric vehicle charging points?\n•\tAvoid adverse impacts from noise?\n•\tMinimise light pollution?","Yes",2,0,0,"Direct","Medium","Long(20+yrs)","Localised","Permanent/Irreversible","Minor Positive","Many of the sites are located within an AQMA which indicates that air quality is a risk. The sites are also located in areas of high noise and light pollution. Development at these sites may increase both air and noise pollution, particularly during construction. However, the location of the sites provides good accessibility via sustainable transport modes, which may reduce air pollution in the long term. Overall a minor positive effect is recorded as long term sustainable transport options and reduction in private vehicle emissions are anticipated to offset the negative effects arising from construction. Additionally, the development is anticipated to seek opportunities to identify and improve air quality and should not reduce air quality benefits, in line with Policy EN22.","Yes","A Dust Management Plan should be prepared as part of the Construction Environmental Management Plan (CEMP).","N/A"]
["SA12: Water Environment\nTo ensure sustainable management of water resources and to minimise the risk of flooding.","Will the policy or proposal: \n•\tMinimise contamination of watercourses and improve water quality in watercourses?\n•\tAvoid exacerbating flood risk for any source and be designed to be resilient to flood risk for its lifetime?\n•\tSupport the use of Sustainable Drainage Systems?\n•\tEncourage water efficiency and demand management?\n•\tAvoid deterioration and enhance the ecological status of water bodies? \n•\tContribute toward achieving Water Framework Directive objectives?","Yes",3,0,1,"Direct","Medium","Long(20+yrs)","Localised","Permanent/Irreversible","Minor Negative","Many of the sites are located within Flood Zones 2. Development at these sites may be at risk of flooding, particularly in future as a result of climate change. All sites are within 16m of a waterbody which may exacerbate the risk of flooding. Development should accord with flood risk mitigation measures outlined in Policy CL1. The application of SuDS (in line with Policy CL1) should be demonstrated to reduce the risk of run-off and surface water flooding.","Yes","N/A","N/A"]
["SA13: Climate Change\nAdapt to the effects of climate change including flood risk, extreme weather and overheating, and strengthen climate resilience.","Will the policy or proposal:\n•\tMinimise flood risk and ensure new development provides sustainable urban drainage?\n•\tEnsure new development is designed to withstand future climate change (e.g. overheating and increased storm severity)?\n•\tIncrease and improve green and blue infrastructure to create a connected network across the city and within the wider area?\n•\tEnsure surface and groundwater water resources are used efficiently?\n•\tReduce energy consumption?\n•\tSupport the delivery of renewable and decentralised energy capacity (including small scale or community energy projects)?\n•\tSupport energy efficient design?","Yes",3,0,1,"N/A","N/A","N/A","N/A","N/A","Uncertain","Many of the sites are located within Flood Zones 2. Development at these sites may be at risk of flooding, particularly in future as a result of climate change.  Climate resilience measures, including energy efficiency measures and flood mitigation measures are currently unknown. This is likely to be determined by individual scheme design.","Yes","Development should look into incorporating renewable energy generation methods such as solar panels, and should incorporate design measures that will reduce effects of climate change, such as zonal heating systems, water saving initiatives and energy monitoring devices.","N/A"]
["SA14: Greenhouse Gases\nTo reduce the contribution towards the emission of greenhouse gases.","Will the policy or proposal:\n•\tReduce GHG emissions?\n•\tSupport the shift towards low carbon technologies and the usage of electric and ultralow emissions vehicles and appropriate infrastructure to support these?\n•\tProvide opportunities to access local services and facilities by low carbon public transport, walking or wheeling?\n•\tPromote a low carbon local economy? \n•\tReduce levels of embodied carbon?","No",null,null,null,"Direct","Medium","Long(20+yrs)","Localised","Permenant/Irreversible","Minor Negative","There are likely to be significant GHG emissions associated with the construction  from embodied carbon within building materials, as well as carbon emissions from construction traffic and construction plant. Building efficiency measures are anticipated to reduce energy use in operation. The development will promote sustainable travel modes, reducing car reliance and GHG emissions from transport. The application of Policy CL5 should be applied to minimise embodied carbon. However, a minor negative effect is recorded due to construction emissions.","Yes","Any form of construction and operation should be undertaken as sustainably as possible, making use of tools and processes, such as circular economy, waste hierarchy and should consider BREEAM and BREEAM Infrastructure.","N/A"]
["SA15: Transport and Accessibility\nTo reduce the number of journeys made by car, within and to and from the area and improve access to jobs, services and facilities.","Will the policy or proposal:\n•\tUtilise and enhance existing infrastructure?\n•\tHelp to meet local needs locally through low carbon travel options?\n•\tFacilitate safe walking and cycling?\n•\tFacilitate the use of public transport?\n•\tDeliver opportunities to relieve traffic congestion?\n•\tEncourage travel planning for businesses?\n•\tHelp to reduce the distances people have to travel on a regular basis for education, employment and services?\n•\tHelp to improve access to services and facilities for those living in rural or remote settlements, or experiencing other access constraints?\n•\tHelp to support homeworking by residents?","Yes",1,0,2,"Direct","Low","Medium(10yrs)","Localised","Permanent/Reversible","Minor Positive","All but one of the sites are located more than 800m from a railway station, however all sites are within 400m from a bus stop. The majority of the sites have good to moderate access to cycle networks. The site has good access to the railway station but does not have a good level of accessibility to the cycle network. Development will include the Northern Gateway which is a  new multi-modal hub. This may be delivered as a replacement for Chapel Street MSCP. In addition, at Bradshaw Way, there are opportunities to enhance connectivity within the  Nightingale Quarter and Castleward through ‘taming’ of the inner ring road in this location. At Abbey Street Car Parks, development could include the provision of a new multi-modal hub to serve the west side of the City Centre. Overall, development at these sites should improve transport and accessibility within the City.","Yes","N/A","N/A"]
["SA16: Geology and Soils\nTo minimise water and soil pollution and ensure protection of natural resources including greenfield land, soil, and minerals resources.","Will the policy or proposal:\n•\tUtilise previously developed land?\n•\tSeek to improve or remediate contaminated land or reuse previously developed land which has not been restored?\n•\tProtect soil quality and avoid soil pollution?\n•\tProtect Best and Most Versatile (BMV) Agricultural Land?\n•\tProtect Greenbelt/ Green Wedges land?\n•\tProtect sites safeguarded for mineral workings?","Yes",0,0,4,"Direct","Medium","Long(20+yrs)","Borough-wide","Permanent/Reversible","Significant Positive","All of these sites are located on brownfield land, the development of which be an efficient use of land in the city and therefore a potential significant positive effect is recorded. ","Yes","N/A","N/A"]
["SA17: Waste\nTo minimise the generation of waste and effectively manage waste that is created.","Will the policy or proposal:\n•\tEnhance opportunities for waste to be treated in line with circular economy principles (e.g. recycling, re-using, composting)?\n•\tProvide adequate waste separation facilities in new and existing developments in order to encourage more recycling?\n•\tEncourage the repurposing and refurbishing of buildings, instead of demolition?","Yes",0,0,1,"Indirect","High","Long(20+yrs)","Localised","Permanent/Irreversible","Minor Negative","Development should support the use of sustainably sourced/recycled materials in line with Policy GD1. This should help minimise waste from the development's construction phase. However, once in use, the development is likely to produce waste in operation which could have a greater impact than waste through construction. However, the Local Plan is unable to control the generation of waste beyond development of the site. It will only be able to ensure that developments are designed to ensure that users can separate waste facilitating them to follow the waste hierarchy. ","Yes","A Site Waste Management Plan should be prepared as part of the CEMP and OEMP. ","N/A"]

{"sheet":"CC5","index":24,"n_rows":28,"n_cols":16,"rows_kept":28,"cut":false,"hidden":false,"merged":[[9,0,9,1],[9,2,9,5],[9,6,9,15]]}
["Site Name","Non-Residential Regeneration Opportunities"]
["Site Address","The Market Place\nDerby Museum, Art Gallery and former Central Library\nUniversity of Derby City Centre Hub (Also, CC13)"]
["Town/Locality"]
["Est Housing Yield/Employment Space","Non-residential mixed use development"]
["Site Area (ha)"]
["Site Description"]
["Greenfield/Brownfield","Brownfield"]
["Assumptions Made"]
[]
["SA Framework",null,"GIS Inputs",null,null,null,"SA  Assessment"]
["SA objective","Supporting Questions","GIS Data Available?","R","A","G","Direct/\nIndirect","Magnitude","Duration","Spatial Extent","Permanence/ Reversibility","Significance","Description of potential effects","Potential for cumulative effects? ","Mitigation","Enhancements"]
["SA1: Population and Equalities\nTo build inclusive communities by reducing social exclusion, reducing deprivation, promoting equity, equality and respecting diversity, improving local accessibility to healthcare, education, employment, retail facilities and recreational resources (including open spaces and sports facilities).  ","Will the policy or proposal:\n•\tHelp to reduce deprivation and the inequality gap?\n•\tEnsure all residents have equitable access to health services?\n•\tConsider the needs of an aging population?\n•\tEnsure new housing is well related located, close to a range of services such as shops, schools and employment opportunities?\n•\tImprove opportunities for active travel including walking and cycling?\n•\tEnsure everyone has access to high quality open space and recreation facilities?\n•\tProtect community facilities and improve access to important local services for the most deprived?","Yes",1,0,2,"Direct","High","Long(20+yrs)","Regional","Permanent/Irreversible","Significant Positive","The regeneration of these areas is anticipated to provide a mix of uses, including leisure uses, office uses, and education uses. The location of these sites within the city centre is anticipated to allow good access to these new facilities and will likely reduce levels of inequalities, as well as providing new facilities which will help support current and future populations.","Yes","N/A","N/A"]
["SA2: Human Health\nTo improve health and wellbeing and reduce health inequalities, improving quality of life for all.","Will the policy or proposal:\n•\tHelp to improve health and reduce health inequalities?\n•\tContribute to healthy lifestyles?\n•\tEncourage walking, cycling and a reduction in private car use?\n•\tHelp to ensure health services are provided alongside development?\n•\tProtect existing services?","Yes",2,0,3,"Direct","High","Long(20+yrs)","Regional","Permanent/Irreversible","Significant Positive","The site includes new learning, community and leisure opportunities. Development of these sites is anticipated to reduce health inequalities and produce new facilities, as well as opportunities for interaction, which will improve physical and mental health and wellbeing, meeting the needs of all groups both now and in the future.","Yes","N/A","N/A"]
["SA3: Economy\nTo deliver economic growth and support the creation of new and retention of existing businesses.","Will the policy or proposal:\n•\tSupport the growth of higher skilled economic sectors? \n•\tProvide new employment premises which meet identified local needs in the area? \n•\tImprove business infrastructure, such as broadband and provide attractive sites for modern businesses?\n•\tSupport the city’s retail sector, especially the city centre and other retail centres?","Yes",1,0,1,"Direct","Medium","Long(20+yrs)","Regional","Permanent/Irreversible","Significant Positive","The redevelopment of these sites is anticipated to result in increased investment within Derby, providing a range of uses, including cultural, business and services. The development of these sites is anticipated to provide additional business space and encourage a diversity of sectors within Derby's city centre, including high skilled sectors.","Yes","N/A","N/A"]
["SA4: Employment\nTo create greater employment opportunities, higher value jobs and access to training.","Will the policy or proposal:\n•\tIncrease job availability?\n•\tIncrease the quality and choice of local employment?\n•\tImprove access to employment centres?\n•\tMeet the skills needs and future demand for labour?","Yes",2,0,1,"Direct","Medium","Long(20+yrs)","Localised","Permanent/Irreversible","Significant Positive","The development of these sites is anticipated to result in additional employment opportunities within the local area across a range of sectors. There are also opportunities for learning studios within the Derby Museum re-development, which may enhance the skills of the local population.","Yes","N/A","N/A"]
["SA5: Crime and Safety\nTo reduce crime and the fear of crime for all residents inclusively, improving safety.","Will the policy or proposal:\n•\tHelp to create streets where people feel safe, particularly after dark?\n•\tMake a positive contribution to community cohesion?\n•\tSupport designing out crime principals? \n•\tReduce levels of crime derivation? \n•\tImprove road safety and reduce the number of people killed or seriously injured (KSI) on the roads, particularly children from deprived backgrounds? \n•\tCreate spaces where women and girls feel safe and included?","Yes",1,0,0,"Indirect","Medium","Medium(10yrs)","Localised","Permanent/Reversible","Minor Positive","The regeneration of these sites have potential to improve feelings of safety in these areas, particularly given their current uses as an un-utilised assembly room and multistorey car park, as well as the derby museum which does not contribute to feelings of safety. Regenerating these assets is anticipated to include improvements to active and ground floor uses as well as improving the public realm, that will improve feelings of safety and discourage crime. There is limited detail on whether designing out crime principles will be applied as part of the development. However, it is assumed that development should incorporate designing out crime principles in line with Policy GD5.","Yes","N/A","N/A"]
["SA6: Housing\nTo provide everybody with access to an affordable home which is resilient to the effects of climate change.","Will the policy or proposal:\n•\tSupport a range of housing types and sizes, including affordable housing units??\n•\tEnsure that there is an adequate supply of housing development land to meet local needs?\n•\tBe sustainably designed and resilient to the effects of climate change and designed to meet all needs, for example “Lifetime Homes” standards?","Yes",1,0,0,"N/A","N/A","N/A","N/A","N/A","Neutral","The development of the site is not anticipated to have any potential effect on this objective. ","No","N/A","N/A"]
["SA7: Leisure and Recreation\nTo provide better opportunities for people to participate in cultural, leisure and recreational activities.","Will the policy or proposal:\n•\tHelp to improve access to formal and informal recreation facilities?\n•\tProvide opportunities for engagement in a range of cultural activities?\n•\tCreate new allotments where there is a demand?","Yes",0,0,3,"Direct","Medium","Medium/Long","Localised","Permanent/Reversible","Significant Positive","The site includes the provision of additional leisure and recreation facilities, including food and drink, and cultural opportunities. The provision of these new community facilities is anticipated to provide improved opportunities for leisure and recreation for the local population both now and in the future. ","Yes","N/A","N/A"]
["SA8: Biodiversity and Natural Capital\nTo protect and improve biodiversity, geo-diversity, including protect and enhance favourable conditions on SSSI’s, SPAs, SACs and other wildlife sites and improve connectivity between, and access to, green spaces and functional habitats.","Will the policy or proposal:\n•\tConserve and enhance habitats in the LNRS?\n•\tConserve and enhance species diversity and in particular avoid harm and increase the ranges of protected species?\n•\tProvide opportunities for new habitat creation and lead to a net gain in biodiversity?\n•\tProtect geo-diversity?\n•\tImprove the ecological quality and character of open spaces?\n•\tMaintain and enhance woodland cover and management in appropriate areas (e.g. areas of ash dieback)?\n•\tMaintain or enhance tree cover?\n•\tProtect and promote effective management of SPAs and SACs in the LP area and its surroundings?\n•\tHelp to protect and enhance other designated sites e.g., SSSIs, Wildlife Sites, LNRs etc?\n•\tImprove climate change adaptation through provision of accessible green space or green and blue infrastructure?\n•\tPrevent the fragmentation of habitats, provide links between green spaces or help to deliver/support other ecological networks?\n•\tSupport the natural capital of the city?","Yes",0,0,2,"N/A","N/A","N/A","N/A","N/A","Neutral","The development of the site is not anticipated to have any potential effect on this objective. ","No","N/A","N/A"]
["SA9: Landscape and Townscape\nTo protect and enhance the character and appearance of the landscape and townscape, including landscape and townscape assets, as well as the area’s other natural assets and resources.","Will the policy or proposal:\n•\tProtect and enhance landscape and townscape quality, character and distinctiveness?\n•\tAvoid loss of, and damage to greenbelt / green wedge land?\n•\tMake use of previously used / brownfield land and buildings?\n•\tSafeguard individual landscape and townscape features such as hedgerows, ponds, public squares, etc?","Yes",0,0,2,"Direct","High","Long(20+yrs)","Localised","Permanent/Irreversible","Significant Positive","The site is located away from green belt and green wedge land and includes the redevelopment of current buildings at the sites. The development is anticipated to result in improvements to the public realm and enhancement of linkages between buildings and the streetscape, enhancing the current townscape. ","Yes","N/A","N/A"]
["SA10: Historic Environment\nTo conserve and enhance the historic environment, heritage assets (including known and unknown archaeological sites) and their settings and maintain and enhance access to cultural heritage for enjoyment and educational purposes.   ","Will the policy or proposal:\n•\tPreserve and enhance the character or appearance of conservation areas and their settings?\n•\tPreserve or enhance heritage assets and their settings?\n•\tPreserve or enhance archaeological features and their settings?\n•\tImprove the condition of heritage at risk? \n•\tRe-use/retain historic buildings or fabric?\n•\tProtect and conserve the Outstanding Universal Value of the DVMWHS?","Yes",2,0,3,"Direct","High","Long(20+yrs)","Localised","Permanent/Irreversible","Minor Positive","The redevelopment of these sites intersects with listed buildings and a conservation area. These assets may be temporarily affected during construction, particularly due to alterations to access and disturbance to settings during construction. \nHowever, redevelopment at the site is anticipated to result in enhancements to the setting of these assets in the long term. There is potential that these assets may also be protected and enhanced within development. Therefore a minor positive effect is recorded. Additionally, development is anticipated to be undertaken in line with Policy EN11, ensuring efforts to preserve Derby's historic environment.","Yes","A lighting strategy should be prepared to minimise light spill onto heritage assets.","N/A"]
["SA11: Air, Noise and Light Pollution\nTo maintain good local air quality and to minimise noise and light pollution","Will the policy or proposal:\n•\tMaintain or improve local air quality?\n•\tEncourage the installation of electric vehicle charging points?\n•\tAvoid adverse impacts from noise?\n•\tMinimise light pollution?","Yes",2,0,0,"Direct","Low","Short(<5yrs)","Localised","Temporary/Reversible","Minor Negative","These sites intersect with AQMAs and are located within areas of high light pollution. Development at these sites is likely to result in temporary negative effects on air quality and noise due to dust generation and emissions from construction. This is anticipated to temporarily worsen air quality within the AQMA. However, the development is anticipated to seek opportunities to identify and improve air quality and should not reduce air quality benefits, in line with Policy EN22.","Yes","A Dust Management Plan should be prepared as part of the Construction Environmental Management Plan (CEMP).","N/A"]
["SA12: Water Environment\nTo ensure sustainable management of water resources and to minimise the risk of flooding.","Will the policy or proposal: \n•\tMinimise contamination of watercourses and improve water quality in watercourses?\n•\tAvoid exacerbating flood risk for any source and be designed to be resilient to flood risk for its lifetime?\n•\tSupport the use of Sustainable Drainage Systems?\n•\tEncourage water efficiency and demand management?\n•\tAvoid deterioration and enhance the ecological status of water bodies? \n•\tContribute toward achieving Water Framework Directive objectives?","Yes",3,0,1,"Direct","High","Long(20+yrs)","Localised","Permanent/Irreversible","Significant Negative","The site is located in close proximity to a water body and also sits in an area of flood zone 3. Development at the site is anticipated to increase impermeable surfaces, increasing surface runoff and exacerbating flood risk. There is also potential for surface runoff during construction to result in pollution of the nearby water body. Development should accord with flood risk mitigation measures outlined in Policy CL1. The application of SuDS (in line with Policy CL1) should be demonstrated to reduce the risk of run-off and surface water flooding. ","Yes","The sequential test should be undertaken in order to allocate this site. The plan should require appropriate water management strategies, for example the inclusion of SuDS, within the site allocation's supporting text.","N/A"]
["SA13: Climate Change\nAdapt to the effects of climate change including flood risk, extreme weather and overheating, and strengthen climate resilience.","Will the policy or proposal:\n•\tMinimise flood risk and ensure new development provides sustainable urban drainage?\n•\tEnsure new development is designed to withstand future climate change (e.g. overheating and increased storm severity)?\n•\tIncrease and improve green and blue infrastructure to create a connected network across the city and within the wider area?\n•\tEnsure surface and groundwater water resources are used efficiently?\n•\tReduce energy consumption?\n•\tSupport the delivery of renewable and decentralised energy capacity (including small scale or community energy projects)?\n•\tSupport energy efficient design?","Yes",2,0,2,"Direct","High","Medium(10yrs)","Localised","Temporary/Irreversible","Minor Negative","The site is located within a flood zone 3 but within 50m of flood defences and the plan cited the need for an appropriate and acceptable surface water management plan to be in place for this site.  Implementation of surface water drainage measures may aid in reducing flood risk at the site, improving climate resilience. However, given that the site is located within an area of flood zone 3 and that flood defences will need to be maintained to ensure that the site in this area is resilient to climate change, a minor negative effect is recorded.","Yes","Development should look into incorporating renewable energy generation methods such as solar panels, and should incorporate design measures that will reduce effects of climate change, such as zonal heating systems, water saving initiatives and energy monitoring devices.","N/A"]
["SA14: Greenhouse Gases\nTo reduce the contribution towards the emission of greenhouse gases.","Will the policy or proposal:\n•\tReduce GHG emissions?\n•\tSupport the shift towards low carbon technologies and the usage of electric and ultralow emissions vehicles and appropriate infrastructure to support these?\n•\tProvide opportunities to access local services and facilities by low carbon public transport, walking or wheeling?\n•\tPromote a low carbon local economy? \n•\tReduce levels of embodied carbon?","No",null,null,null,"Direct","Medium","Long(20+yrs)","Localised","Permanent/Irreversible","Minor Negative","There are likely to be significant GHG emissions associated with the construction  from embodied carbon within building materials, as well as carbon emissions from construction traffic and construction plant. Building efficiency measures are anticipated to reduce energy use in operation. The development will promote sustainable travel modes, reducing car reliance and GHG emissions from transport. The application of Policy CL5 should be applied to minimise embodied carbon. However, a minor negative effect is recorded due to construction emissions.","Yes","Any form of construction and operation should be undertaken as sustainably as possible, making use of tools and processes, such as circular economy, waste hierarchy and should consider BREEAM and BREEAM Infrastructure.","N/A"]
["SA15: Transport and Accessibility\nTo reduce the number of journeys made by car, within and to and from the area and improve access to jobs, services and facilities.","Will the policy or proposal:\n•\tUtilise and enhance existing infrastructure?\n•\tHelp to meet local needs locally through low carbon travel options?\n•\tFacilitate safe walking and cycling?\n•\tFacilitate the use of public transport?\n•\tDeliver opportunities to relieve traffic congestion?\n•\tEncourage travel planning for businesses?\n•\tHelp to reduce the distances people have to travel on a regular basis for education, employment and services?\n•\tHelp to improve access to services and facilities for those living in rural or remote settlements, or experiencing other access constraints?\n•\tHelp to support homeworking by residents?","Yes",1,0,2,"Direct","Medium","Long(20+yrs)","Localised","Permanent/Irreversible","Minor Positive","The site is accessible via the existing active travel and bus network. It is anticipated that the site redevelop the car park within The Market Place. Removing this car parking may further encourage the use of sustainable transport modes when accessing this area of the city centre.","Yes","N/A","N/A"]
["SA16: Geology and Soils\nTo minimise water and soil pollution and ensure protection of natural resources including greenfield land, soil, and minerals resources.","Will the policy or proposal:\n•\tUtilise previously developed land?\n•\tSeek to improve or remediate contaminated land or reuse previously developed land which has not been restored?\n•\tProtect soil quality and avoid soil pollution?\n•\tProtect Best and Most Versatile (BMV) Agricultural Land?\n•\tProtect Greenbelt/ Green Wedges land?\n•\tProtect sites safeguarded for mineral workings?","Yes",0,1,3,"Direct","High","Long(20+yrs)","Localised","Permanent/Irreversible","Significant Positive","The site is located on brownfield land and encourages the use of previously developed buildings, which further protects greenfield land across Derby. ","Yes","N/A","N/A"]
["SA17: Waste\nTo minimise the generation of waste and effectively manage waste that is created.","Will the policy or proposal:\n•\tEnhance opportunities for waste to be treated in line with circular economy principles (e.g. recycling, re-using, composting)?\n•\tProvide adequate waste separation facilities in new and existing developments in order to encourage more recycling?\n•\tEncourage the repurposing and refurbishing of buildings, instead of demolition?","Yes",0,0,1,"Direct","Medium","Long(20+yrs)","Localised","Permanent/Irreversible","Minor Positive","Development of the site has potential to result in the generation of a significant amount of waste during construction. However, this site is located on brownfield land and Policy  CC5 encourages the redevelopment of existing buildings on the site. The utilisation of existing buildings on the site should reduce the amount of demolition waste arising as a result of the development.","Yes","N/A","A Site Waste Management Plan should be prepared as part of the CEMP and OEMP."]

{"sheet":"CC12","index":25,"n_rows":28,"n_cols":16,"rows_kept":28,"cut":false,"hidden":false,"merged":[[9,0,9,1],[9,2,9,5],[9,6,9,15]]}
["Site Name","Derby Riverside"]
["Site Address"]
["Town/Locality"]
["Est Housing Yield/Employment Space","600 dwellings"]
["Site Area (ha)"]
["Site Description"]
["Greenfield/Brownfield"]
["Assumptions Made"]
[]
["SA Framework",null,"GIS Inputs",null,null,null,"SA  Assessment"]
["SA objective","Supporting Questions","GIS Data Available?","R","A","G","Direct/\nIndirect","Magnitude","Duration","Spatial Extent","Permanence/ Reversibility","Significance","Description of potential effects","Potential for cumulative effects? ","Mitigation","Enhancements"]
["SA1: Population and Equalities\nTo build inclusive communities by reducing social exclusion, reducing deprivation, promoting equity, equality and respecting diversity, improving local accessibility to healthcare, education, employment, retail facilities and recreational resources (including open spaces and sports facilities).  ","Will the policy or proposal:\n•\tHelp to reduce deprivation and the inequality gap?\n•\tEnsure all residents have equitable access to health services?\n•\tConsider the needs of an aging population?\n•\tEnsure new housing is well related located, close to a range of services such as shops, schools and employment opportunities?\n•\tImprove opportunities for active travel including walking and cycling?\n•\tEnsure everyone has access to high quality open space and recreation facilities?\n•\tProtect community facilities and improve access to important local services for the most deprived?","Yes",1,0,2,"Direct","Medium","Medium/Long","Localised","Permanent/Reversible","Significant Positive","Development will result in the delivery of a minimum of 600 high quality new homes within the plan period, as part of a longer-term vision for the delivery of circa 1,500 homes.  Additionally, all of the component sites are located in close proximity to primary and secondary schools as well as healthcare facilities and retail facilities. These component sites will be of a mix of types and tenures which should support the needs of different residents. Development will also include the provision of a new Primary School to serve the City Centre. Where appropriate, it will make financial contributions to additional primary and secondary school capacity. Where appropriate, development will make provision for the incorporation or relocation of existing uses, including existing residential uses. Overall, a potential significant positive effect is recorded.","Yes","N/A","N/A"]
["SA2: Human Health\nTo improve health and wellbeing and reduce health inequalities, improving quality of life for all.","Will the policy or proposal:\n•\tHelp to improve health and reduce health inequalities?\n•\tContribute to healthy lifestyles?\n•\tEncourage walking, cycling and a reduction in private car use?\n•\tHelp to ensure health services are provided alongside development?\n•\tProtect existing services?","Yes",2,0,3,"Direct","Medium","Medium/Long","Localised","Permanent/Reversible","Significant Positive","The site is located near to healthcare facilities, a children's centre and public open space. Development will also include the creation of new and improved pedestrian and active travel links to the Primary Shopping Area. Development proposals must reference how they will create a satisfactory living environment, taking account of noise and air quality issues associated with the Inner Ring Road. Development at this site supports this objective, therefore a potential significant positive effect is recorded.","Yes","N/A","N/A"]
["SA3: Economy\nTo deliver economic growth and support the creation of new and retention of existing businesses.","Will the policy or proposal:\n•\tSupport the growth of higher skilled economic sectors? \n•\tProvide new employment premises which meet identified local needs in the area? \n•\tImprove business infrastructure, such as broadband and provide attractive sites for modern businesses?\n•\tSupport the city’s retail sector, especially the city centre and other retail centres?","Yes",1,0,1,"Direct","High","Long(20+yrs)","Localised","Permanent/Reversible","Significant Positive","The site is located within the city centre, therefore development at this site is expected to increase footfall and therefore support economic growth. Development will include the provision of active ground floor uses to animate and activate the riverside. Development must not  detract from the vitality and viability of the wider City Centre, particularly the Primary Shopping Area and Central Activity Area through the creation of E use class floorspace that will directly compete. Overall, development should support the growth of Derby's economy, therefore a potential significant positive effect is recorded. ","Yes","N/A","N/A"]
["SA4: Employment\nTo create greater employment opportunities, higher value jobs and access to training.","Will the policy or proposal:\n•\tIncrease job availability?\n•\tIncrease the quality and choice of local employment?\n•\tImprove access to employment centres?\n•\tMeet the skills needs and future demand for labour?","Yes",2,0,1,"Direct","High","Long(20+yrs)","Localised","Permanent/Reversible","Significant Positive","The site is located within the city centre and has good access to a range of employment types. There is also very good access to public transport from the site which offers further opportunities to access employment. A potential significant positive effect is recorded. ","Yes","N/A","N/A"]
["SA5: Crime and Safety\nTo reduce crime and the fear of crime for all residents inclusively, improving safety.","Will the policy or proposal:\n•\tHelp to create streets where people feel safe, particularly after dark?\n•\tMake a positive contribution to community cohesion?\n•\tSupport designing out crime principals? \n•\tReduce levels of crime derivation? \n•\tImprove road safety and reduce the number of people killed or seriously injured (KSI) on the roads, particularly children from deprived backgrounds? \n•\tCreate spaces where women and girls feel safe and included?","Yes",1,0,0,"Indirect","Medium","Medium(10yrs)","Localised","Permanent/Reversible","Minor Positive"," The site is currently located within an area of high crime deprivation. However development is expected to animate and activate the riverside which should support the reduction in crime and fear of crime. Whilst exact measures of designing out crime are unknown, it is anticipated that the proposed improvements will improve feelings of safety and discourage crime. It is assumed that development should incorporate designing out crime principles in line with Policy GD5.","Yes","N/A","N/A"]
["SA6: Housing\nTo provide everybody with access to an affordable home which is resilient to the effects of climate change.","Will the policy or proposal:\n•\tSupport a range of housing types and sizes, including affordable housing units??\n•\tEnsure that there is an adequate supply of housing development land to meet local needs?\n•\tBe sustainably designed and resilient to the effects of climate change and designed to meet all needs, for example “Lifetime Homes” standards?","Yes",1,0,0,"Direct","High","Long(20+yrs)","Localised","Permanent/Irreversible","Significant Positive","Development at this site will result in the delivery of a minimum of 600 high quality new homes within the plan period, as part of a longer-term vision for the delivery of circa 1,500 homes. This will help towards meeting Derby's housing target. The provision of affordable housing should be in line with requirements of Policy H4 and Policy H2 will ensure a mix of housing types and tenures is delivered. ","Yes","N/A","N/A"]
["SA7: Leisure and Recreation\nTo provide better opportunities for people to participate in cultural, leisure and recreational activities.","Will the policy or proposal:\n•\tHelp to improve access to formal and informal recreation facilities?\n•\tProvide opportunities for engagement in a range of cultural activities?\n•\tCreate new allotments where there is a demand?","Yes",0,0,3,"Direct","Medium","Medium(10yrs)","Localised","Permanent/Reversible","Significant Positive","The site is within close proximity to public open space, community centres and sports facilities. Development at this site provides the opportunity to create new green spaces along the riverside as part of the floor conveyance corridor which may be used for recreation. Overall, the site is well located in terms of existing facilities and is expected to create new areas of open space for recreation therefore a potential significant positive effect is recorded.","Yes","N/A","N/A"]
["SA8: Biodiversity and Natural Capital\nTo protect and improve biodiversity, geo-diversity, including protect and enhance favourable conditions on SSSI’s, SPAs, SACs and other wildlife sites and improve connectivity between, and access to, green spaces and functional habitats.","Will the policy or proposal:\n•\tConserve and enhance habitats in the LNRS?\n•\tConserve and enhance species diversity and in particular avoid harm and increase the ranges of protected species?\n•\tProvide opportunities for new habitat creation and lead to a net gain in biodiversity?\n•\tProtect geo-diversity?\n•\tImprove the ecological quality and character of open spaces?\n•\tMaintain and enhance woodland cover and management in appropriate areas (e.g. areas of ash dieback)?\n•\tMaintain or enhance tree cover?\n•\tProtect and promote effective management of SPAs and SACs in the LP area and its surroundings?\n•\tHelp to protect and enhance other designated sites e.g., SSSIs, Wildlife Sites, LNRs etc?\n•\tImprove climate change adaptation through provision of accessible green space or green and blue infrastructure?\n•\tPrevent the fragmentation of habitats, provide links between green spaces or help to deliver/support other ecological networks?\n•\tSupport the natural capital of the city?","Yes",0,0,2,"Direct","Medium","Long(20+yrs)","Localised","Permanent/Irreversible","Significant Positive","The site is not near to any designated sites. Development is expect to make a significant contribution to the greening of the City Centre, through landscaping, and tree planting as part of the development of building plots, including trough the provision of amenity green space, but also enhancements to public realm. It should also have regard to the nature conservation and landscape value of the River Derwent, including its role as a Wildlife Corridor. Through development, there is also the opportunity to create new green spaces along the riverside as part of the floor conveyance corridor. Biodiversity enhancement should meet minimum standards of 10% for all developments, as set out in Policy EN10. Development at this site should result in enhancements to biodiversity in and around the site, therefore a potential significant positive effect is recorded. ","Yes","N/A","N/A"]
["SA9: Landscape and Townscape\nTo protect and enhance the character and appearance of the landscape and townscape, including landscape and townscape assets, as well as the area’s other natural assets and resources.","Will the policy or proposal:\n•\tProtect and enhance landscape and townscape quality, character and distinctiveness?\n•\tAvoid loss of, and damage to greenbelt / green wedge land?\n•\tMake use of previously used / brownfield land and buildings?\n•\tSafeguard individual landscape and townscape features such as hedgerows, ponds, public squares, etc?","Yes",0,0,2,"Direct","Medium","Long(20+yrs)","Localised","Permanent/Irreversible","Significant Positive","The site is located away from green belts and green wedges and is on brownfield land. Development at this site must be of the highest architectural and urban design quality. It must also provide enhancements to the public realm network, in line with the principles set out in the Council’s draft City Centre Design Guide and emerging Public Realm Strategy. It should also include the creation of new public spaces and enhanced public realm, shaped by buildings. Development is not likely to negatively impact the existing landscape and townscape, and, as the site is currently not being utilised, a housing development which is well designed is likely to enhance the local landscape. Therefore, a potential significant positive effect is recorded. ","Yes","N/A","N/A"]
["SA10: Historic Environment\nTo conserve and enhance the historic environment, heritage assets (including known and unknown archaeological sites) and their settings and maintain and enhance access to cultural heritage for enjoyment and educational purposes.   ","Will the policy or proposal:\n•\tPreserve and enhance the character or appearance of conservation areas and their settings?\n•\tPreserve or enhance heritage assets and their settings?\n•\tPreserve or enhance archaeological features and their settings?\n•\tImprove the condition of heritage at risk? \n•\tRe-use/retain historic buildings or fabric?\n•\tProtect and conserve the Outstanding Universal Value of the DVMWHS?","Yes",5,0,2,"Direct","Medium","Long(20+yrs)","Borough-wide","Permanent/Irreversible","Uncertain","The site is located within 100m from a listed building and a scheduled monument and within a World Heritage Site buffer zone, an Archaeological Alert Area, and a Conservation Area. Where possible, listed buildings and other buildings of historic interest should be positively integrated into proposals. It is not currently clear whether development at this site will be designed in a way that will mean that they will not negatively impact the nearby heritage assets. However, development is anticipated to be undertaken in line with Policy EN11, ensuring efforts to preserve Derby's historic environment.","Yes","A lighting strategy should be prepared to minimising spill onto heritage assets.\n","N/A"]
["SA11: Air, Noise and Light Pollution\nTo maintain good local air quality and to minimise noise and light pollution","Will the policy or proposal:\n•\tMaintain or improve local air quality?\n•\tEncourage the installation of electric vehicle charging points?\n•\tAvoid adverse impacts from noise?\n•\tMinimise light pollution?","Yes",1,0,0,"Direct","Medium","Long(20+yrs)","Localised","Permanent/Reversible","Minor Negative","The site is located within an area of high light and noise pollution and is within an AQMA. Residential proposals must take account of noise and air quality issues associated with the Inner Ring Road. Overall, development at this site is likely to exacerbate noise, light and air pollution issues, particularly during construction. Overall, a potential minor negative effect is recorded. However, the development is anticipated to seek opportunities to identify and improve air quality and should not reduce air quality benefits, in line with Policy EN22.","Yes","A Dust Management Plan should be prepared as part of the Construction Environmental Management Plan (CEMP).","N/A"]
["SA12: Water Environment\nTo ensure sustainable management of water resources and to minimise the risk of flooding.","Will the policy or proposal: \n•\tMinimise contamination of watercourses and improve water quality in watercourses?\n•\tAvoid exacerbating flood risk for any source and be designed to be resilient to flood risk for its lifetime?\n•\tSupport the use of Sustainable Drainage Systems?\n•\tEncourage water efficiency and demand management?\n•\tAvoid deterioration and enhance the ecological status of water bodies? \n•\tContribute toward achieving Water Framework Directive objectives?","Yes",4,0,0,"N/A","N/A","N/A","N/A","N/A","Uncertain","The site is located next to the River Derwent and is partially within flood zone 2. Development is required to provide safe access and egress arrangements in the event of the flood defences being breached. It will also contribute to the successful implementation of OCOR, providing new and improved flood defences and flood conveyance corridor. Development at this site, particularly during construction may pose a contamination risk to the river. The exact risk to the site from flooding is currently unknown as a result of the ongoing OCOR project. An uncertain effect is therefore recorded.\nDevelopment should accord with flood risk mitigation measures outlined in Policy CL1. The application of SuDS (in line with Policy CL1) should be demonstrated to reduce the risk of run-off and surface water flooding.","Yes","Development should be in line with the NPPF and guidance from the Environment Agency.","N/A"]
["SA13: Climate Change\nAdapt to the effects of climate change including flood risk, extreme weather and overheating, and strengthen climate resilience.","Will the policy or proposal:\n•\tMinimise flood risk and ensure new development provides sustainable urban drainage?\n•\tEnsure new development is designed to withstand future climate change (e.g. overheating and increased storm severity)?\n•\tIncrease and improve green and blue infrastructure to create a connected network across the city and within the wider area?\n•\tEnsure surface and groundwater water resources are used efficiently?\n•\tReduce energy consumption?\n•\tSupport the delivery of renewable and decentralised energy capacity (including small scale or community energy projects)?\n•\tSupport energy efficient design?","Yes",4,0,0,"Direct","Medium","Long(20+yrs)","Borough-wide","Permanent/Irreversible","Uncertain","The site lies partially within Flood Zone 2, however as the OCOR project is still ongoing, the precise risk of this site is currently unknown. Development at this will provide development of a scale that optimises the potential of the area as a sustainable location, well related to public transport interchanges. In addition, green infrastructure will be provided as a result of development. Whilst this development make some positive contributions to this objective, the uncertainty surrounding flood risk means that an uncertain effect is recorded. ","Yes","Development should look into incorporating renewable energy generation methods such as solar panels, and should incorporate design measures that will reduce effects of climate change, such as zonal heating systems, water saving initiatives and energy monitoring devices.","N/A"]
["SA14: Greenhouse Gases\nTo reduce the contribution towards the emission of greenhouse gases.","Will the policy or proposal:\n•\tReduce GHG emissions?\n•\tSupport the shift towards low carbon technologies and the usage of electric and ultralow emissions vehicles and appropriate infrastructure to support these?\n•\tProvide opportunities to access local services and facilities by low carbon public transport, walking or wheeling?\n•\tPromote a low carbon local economy? \n•\tReduce levels of embodied carbon?","No",null,null,null,"Direct","Medium","Long(20+yrs)","Localised","Permanent/Irreversible","Minor Negative","There are likely to be significant GHG emissions associated with the construction  from embodied carbon within building materials, as well as carbon emissions from construction traffic and construction plant. Building efficiency measures are anticipated to reduce energy use in operation. The development will promote sustainable travel modes, reducing car reliance and GHG emissions from transport. The application of Policy CL5 should be applied to minimise embodied carbon. However, a minor negative effect is recorded due to construction emissions.","Yes","Any form of construction and operation should be undertaken as sustainably as possible, making use of tools and processes, such as circular economy, waste hierarchy and should consider BREEAM and BREEAM Infrastructure.","N/A"]
["SA15: Transport and Accessibility\nTo reduce the number of journeys made by car, within and to and from the area and improve access to jobs, services and facilities.","Will the policy or proposal:\n•\tUtilise and enhance existing infrastructure?\n•\tHelp to meet local needs locally through low carbon travel options?\n•\tFacilitate safe walking and cycling?\n•\tFacilitate the use of public transport?\n•\tDeliver opportunities to relieve traffic congestion?\n•\tEncourage travel planning for businesses?\n•\tHelp to reduce the distances people have to travel on a regular basis for education, employment and services?\n•\tHelp to improve access to services and facilities for those living in rural or remote settlements, or experiencing other access constraints?\n•\tHelp to support homeworking by residents?","Yes",0,0,3,"Direct","High","Long(20+yrs)","Localised","Permanent/Irreversible","Significant Positive","The site is located in close proximity to Derby Bus Station, an existing cycle network and the Railway Station. Development will include the creation of new and improved pedestrian and active travel links to the Primary Shopping Area (PSA). it will also address the severance and negative placemaking impacts associated with the proximity and design of the Inner Ring Road, including Darwin Loop, significantly improving access to Bass’ Recreation Ground, North Castleward and the railway station. Sustainable access to and from this site is very good, therefore a potential significant positive effect is recorded.","Yes","N/A","N/A"]
["SA16: Geology and Soils\nTo minimise water and soil pollution and ensure protection of natural resources including greenfield land, soil, and minerals resources.","Will the policy or proposal:\n•\tUtilise previously developed land?\n•\tSeek to improve or remediate contaminated land or reuse previously developed land which has not been restored?\n•\tProtect soil quality and avoid soil pollution?\n•\tProtect Best and Most Versatile (BMV) Agricultural Land?\n•\tProtect Greenbelt/ Green Wedges land?\n•\tProtect sites safeguarded for mineral workings?","Yes",0,0,4,"Direct","High","Long(20+yrs)","Localised","Permanent/Irreversible","Significant Positive","The site is located on brownfield land and encourages the use of previously developed buildings, which further protects greenfield land across Derby. ","Yes","N/A","N/A"]
["SA17: Waste\nTo minimise the generation of waste and effectively manage waste that is created.","Will the policy or proposal:\n•\tEnhance opportunities for waste to be treated in line with circular economy principles (e.g. recycling, re-using, composting)?\n•\tProvide adequate waste separation facilities in new and existing developments in order to encourage more recycling?\n•\tEncourage the repurposing and refurbishing of buildings, instead of demolition?","Yes",0,0,1,"Indirect","High","Long(20+yrs)","Localised","Permanent/Irreversible","Minor Negative","Development should support the use of sustainably sourced/recycled materials in line with Policy GD1. This should help minimise waste from the development's construction phase. However, once in use, the development is likely to produce waste in operation which could have a greater impact than waste through construction. However, the Local Plan is unable to control the generation of waste beyond development of the site. It will only be able to ensure that developments are designed to ensure that users can separate waste facilitating them to follow the waste hierarchy. ","Yes","A Site Waste Management Plan should be prepared as part of the CEMP and OEMP. ","N/A"]

{"sheet":"CC13","index":26,"n_rows":28,"n_cols":16,"rows_kept":28,"cut":false,"hidden":false,"merged":[[9,0,9,1],[9,2,9,5],[9,6,9,15]]}
["Site Name","University of Derby, City Centre Hub"]
["Site Address","Markeaton Street/Britannia Mill/Agard Street/Markeaton Brook/Bridge Street"]
["Town/Locality"]
["Est Housing Yield/Employment Space","Development of a new centrally located campus"]
["Site Area (ha)"]
["Site Description"]
["Greenfield/Brownfield","Brownfield"]
["Assumptions Made"]
[]
["SA Framework",null,"GIS Inputs",null,null,null,"SA  Assessment"]
["SA objective","Supporting Questions","GIS Data Available?","R","A","G","Direct/\nIndirect","Magnitude","Duration","Spatial Extent","Permanence/ Reversibility","Significance","Description of potential effects","Potential for cumulative effects? ","Mitigation","Enhancements"]
["SA1: Population and Equalities\nTo build inclusive communities by reducing social exclusion, reducing deprivation, promoting equity, equality and respecting diversity, improving local accessibility to healthcare, education, employment, retail facilities and recreational resources (including open spaces and sports facilities).  ","Will the policy or proposal:\n•\tHelp to reduce deprivation and the inequality gap?\n•\tEnsure all residents have equitable access to health services?\n•\tConsider the needs of an aging population?\n•\tEnsure new housing is well related located, close to a range of services such as shops, schools and employment opportunities?\n•\tImprove opportunities for active travel including walking and cycling?\n•\tEnsure everyone has access to high quality open space and recreation facilities?\n•\tProtect community facilities and improve access to important local services for the most deprived?","Yes",0,1,2,"Direct","High","Long(20+yrs)","Regional","Permanent/Irreversible","Significant Positive","The development of the city centre university hub is anticipated to provide education uses, with some additional office use. The location of these component sites within the city centre is anticipated to allow good access to existing facilities, and will be improved through the development of active travel connections. The development of the component sites is anticipated to provide education for current and future young people.","Yes","N/A","N/A"]
["SA2: Human Health\nTo improve health and wellbeing and reduce health inequalities, improving quality of life for all.","Will the policy or proposal:\n•\tHelp to improve health and reduce health inequalities?\n•\tContribute to healthy lifestyles?\n•\tEncourage walking, cycling and a reduction in private car use?\n•\tHelp to ensure health services are provided alongside development?\n•\tProtect existing services?","Yes",1,0,4,"Direct","High","Long(20+yrs)","Regional","Permanent/Irreversible","Minor Positive","The site includes new learning opportunities and active travel connections, as well as linking to wider services. Development of the site is anticipated to reduce health inequalities by providing access to services and areas that promote opportunities for interaction, which will improve physical and mental health and wellbeing.","Yes","N/A","N/A"]
["SA3: Economy\nTo deliver economic growth and support the creation of new and retention of existing businesses.","Will the policy or proposal:\n•\tSupport the growth of higher skilled economic sectors? \n•\tProvide new employment premises which meet identified local needs in the area? \n•\tImprove business infrastructure, such as broadband and provide attractive sites for modern businesses?\n•\tSupport the city’s retail sector, especially the city centre and other retail centres?","Yes",1,0,1,"Direct","Medium","Long(20+yrs)","Regional","Permanent/Irreversible","Significant Positive","The development of this site is anticipated to result in increased investment within Derby, providing a hub for investment. The development of the university is anticipated to provide office space, and opportunities for high skilled employment opportunities, encouraging the growth of high skilled sectors. ","Yes","N/A","N/A"]
["SA4: Employment\nTo create greater employment opportunities, higher value jobs and access to training.","Will the policy or proposal:\n•\tIncrease job availability?\n•\tIncrease the quality and choice of local employment?\n•\tImprove access to employment centres?\n•\tMeet the skills needs and future demand for labour?","Yes",0,2,1,"Direct","Medium","Long(20+yrs)","National","Permanent/Irreversible","Significant Positive","The development of these sites is anticipated to result in additional employment opportunities at the university hub, the majority of which are anticipated to be high skill roles. Expansion of the university also provides improved opportunities for higher education qualifications, aiding in improving skills amongst the population.","Yes","N/A","N/A"]
["SA5: Crime and Safety\nTo reduce crime and the fear of crime for all residents inclusively, improving safety.","Will the policy or proposal:\n•\tHelp to create streets where people feel safe, particularly after dark?\n•\tMake a positive contribution to community cohesion?\n•\tSupport designing out crime principals? \n•\tReduce levels of crime derivation? \n•\tImprove road safety and reduce the number of people killed or seriously injured (KSI) on the roads, particularly children from deprived backgrounds? \n•\tCreate spaces where women and girls feel safe and included?","Yes",1,0,0,"Indirect","Medium","Medium(10yrs)","Localised","Permanent/Reversible","Minor Positive","The development of the site has potential to improve feelings of safety, The proposed development includes measures to improve the public realm, as well as utilising high quality design that creates a safe environment for all users. Whilst exact measures of designing out crime are unknown, it is anticipated that the proposed improvements will improve feelings of safety and discourage crime. It is assumed that development should incorporate designing out crime principles in line with Policy GD5.","Yes","N/A","N/A"]
["SA6: Housing\nTo provide everybody with access to an affordable home which is resilient to the effects of climate change.","Will the policy or proposal:\n•\tSupport a range of housing types and sizes, including affordable housing units??\n•\tEnsure that there is an adequate supply of housing development land to meet local needs?\n•\tBe sustainably designed and resilient to the effects of climate change and designed to meet all needs, for example “Lifetime Homes” standards?","Yes",0,1,0,"N/A","N/A","N/A","N/A","N/A","Uncertain","The site proposes strong linkages to existing student accommodation. However, it is unclear if the campus development will include any additional student accommodation. This is likely to be determined by individual scheme design.","Yes","N/A","N/A"]
["SA7: Leisure and Recreation\nTo provide better opportunities for people to participate in cultural, leisure and recreational activities.","Will the policy or proposal:\n•\tHelp to improve access to formal and informal recreation facilities?\n•\tProvide opportunities for engagement in a range of cultural activities?\n•\tCreate new allotments where there is a demand?","Yes",0,0,3,"Direct","Medium","Medium/Long","Localised","Permanent/Reversible","Minor Positive","Whilst it is currently unclear if the development of the site will include recreational facilities as part of the university hub, the development proposes integration with existing facilities located around Markeaton Street and Kedleston Road, as well as connectivity to the local shopping area. This is anticipated to improve access to leisure facilities.","Yes","N/A","N/A"]
["SA8: Biodiversity and Natural Capital\nTo protect and improve biodiversity, geo-diversity, including protect and enhance favourable conditions on SSSI’s, SPAs, SACs and other wildlife sites and improve connectivity between, and access to, green spaces and functional habitats.","Will the policy or proposal:\n•\tConserve and enhance habitats in the LNRS?\n•\tConserve and enhance species diversity and in particular avoid harm and increase the ranges of protected species?\n•\tProvide opportunities for new habitat creation and lead to a net gain in biodiversity?\n•\tProtect geo-diversity?\n•\tImprove the ecological quality and character of open spaces?\n•\tMaintain and enhance woodland cover and management in appropriate areas (e.g. areas of ash dieback)?\n•\tMaintain or enhance tree cover?\n•\tProtect and promote effective management of SPAs and SACs in the LP area and its surroundings?\n•\tHelp to protect and enhance other designated sites e.g., SSSIs, Wildlife Sites, LNRs etc?\n•\tImprove climate change adaptation through provision of accessible green space or green and blue infrastructure?\n•\tPrevent the fragmentation of habitats, provide links between green spaces or help to deliver/support other ecological networks?\n•\tSupport the natural capital of the city?","Yes",0,0,2,"Direct","Medium","Long(20+yrs)","Localised","Permanent/Irreversible","Minor Positive","The site is located away from designated sites. There is potential for some adverse effects on small-scale habitats and species during construction, particularly those surrounding and within Markeaton Brook. However, it is anticipated that the site will result in improvements to green infrastructure and biodiversity, which may help to provide new small scale habitats. Biodiversity enhancement should meet minimum standards of 10% for all developments, as set out in Policy EN10. The proposed development is also anticipated to consider the nature conservation value of Markeaton Brook, resulting in potential positive effects on species and habitats in this area in the long term.","Yes","N/A","N/A"]
["SA9: Landscape and Townscape\nTo protect and enhance the character and appearance of the landscape and townscape, including landscape and townscape assets, as well as the area’s other natural assets and resources.","Will the policy or proposal:\n•\tProtect and enhance landscape and townscape quality, character and distinctiveness?\n•\tAvoid loss of, and damage to greenbelt / green wedge land?\n•\tMake use of previously used / brownfield land and buildings?\n•\tSafeguard individual landscape and townscape features such as hedgerows, ponds, public squares, etc?","Yes",0,0,2,"Direct","High","Long(20+yrs)","Localised","Permanent/Irreversible","Significant Positive","The site protects greenbelt and green wedge land, as it is located on brownfield land that has been previously developed. Development is anticipated to include high quality design, and includes high quality landscaping, resulting in improvements to the public realm. The proposed development also includes the provision of amenity green space, which is anticipated to further diversify the townscape setting.","Yes","N/A","N/A"]
["SA10: Historic Environment\nTo conserve and enhance the historic environment, heritage assets (including known and unknown archaeological sites) and their settings and maintain and enhance access to cultural heritage for enjoyment and educational purposes.   ","Will the policy or proposal:\n•\tPreserve and enhance the character or appearance of conservation areas and their settings?\n•\tPreserve or enhance heritage assets and their settings?\n•\tPreserve or enhance archaeological features and their settings?\n•\tImprove the condition of heritage at risk? \n•\tRe-use/retain historic buildings or fabric?\n•\tProtect and conserve the Outstanding Universal Value of the DVMWHS?","Yes",3,1,3,"Direct","Medium","Long(20+yrs)","Borough-wide","Permanent/Irreversible","Uncertain","The site intersects with listed buildings, an archaeological alert area, and a conservation area. These assets may be temporarily affected during construction, particularly due to alterations to access and disturbance to settings during construction. There is also potential for development at the site to disturb buried archaeology, particularly during excavation works. \nHowever, redevelopment at the site is anticipated to result in enhancements to the setting of these assets in the long term. The proposed development is anticipated to be of high quality design and considers the setting of the historic environment, including the conservation area, and requires the development to minimise harm. There is potential that these assets may also be protected and enhanced within development. Development is anticipated to be undertaken in line with Policy EN11, ensuring efforts to preserve Derby's historic environment.","Yes","A lighting strategy should be prepared to minimise light spill onto heritage assets.","N/A"]
["SA11: Air, Noise and Light Pollution\nTo maintain good local air quality and to minimise noise and light pollution","Will the policy or proposal:\n•\tMaintain or improve local air quality?\n•\tEncourage the installation of electric vehicle charging points?\n•\tAvoid adverse impacts from noise?\n•\tMinimise light pollution?","Yes",2,0,0,"Direct","Medium","Long(20+yrs)","Localised","Permanent/Reversible","Minor Positive","These sites intersect with AQMAs and are located within areas of high light pollution. Development at these sites is likely to result in temporary negative effects on air quality and noise due to dust generation and emissions from construction. This is anticipated to temporarily worsen air quality within the AQMA.\nHowever, the development and integration of active travel networks within the site are anticipated to encourage a modal shift away from private vehicle use, which is in turn is anticipated to improve air quality within the AQMA. Overall a minor positive effect is recorded as long term sustainable transport options and reduction in private vehicle emissions are anticipated to offset the negative effects arising from construction. Additionally, the development is anticipated to seek opportunities to identify and improve air quality and should not reduce air quality benefits, in line with Policy EN22.","Yes","A Dust Management Plan should be prepared as part of the Construction Environmental Management Plan (CEMP).","N/A"]
["SA12: Water Environment\nTo ensure sustainable management of water resources and to minimise the risk of flooding.","Will the policy or proposal: \n•\tMinimise contamination of watercourses and improve water quality in watercourses?\n•\tAvoid exacerbating flood risk for any source and be designed to be resilient to flood risk for its lifetime?\n•\tSupport the use of Sustainable Drainage Systems?\n•\tEncourage water efficiency and demand management?\n•\tAvoid deterioration and enhance the ecological status of water bodies? \n•\tContribute toward achieving Water Framework Directive objectives?","Yes",3,0,1,"Direct","High","Long(20+yrs)","Localised","Permanent/Irreversible","Significant Negative","The site is located in close proximity to a water body and also sits in an area of flood zone 3. Development at the site is anticipated to increase impermeable surfaces, increasing surface runoff and exacerbating flood risk. There is also potential for surface runoff during construction to result in pollution of the nearby water body. Development should accord with flood risk mitigation measures outlined in Policy CL1. The application of SuDS (in line with Policy CL1) should be demonstrated to reduce the risk of run-off and surface water flooding. ","Yes","The plan should require appropriate water management strategies, for example the inclusion of SuDS, within the site allocation's supporting text.\nDevelopment should be in line with the NPPF and guidance from the Environment Agency. ","N/A"]
["SA13: Climate Change\nAdapt to the effects of climate change including flood risk, extreme weather and overheating, and strengthen climate resilience.","Will the policy or proposal:\n•\tMinimise flood risk and ensure new development provides sustainable urban drainage?\n•\tEnsure new development is designed to withstand future climate change (e.g. overheating and increased storm severity)?\n•\tIncrease and improve green and blue infrastructure to create a connected network across the city and within the wider area?\n•\tEnsure surface and groundwater water resources are used efficiently?\n•\tReduce energy consumption?\n•\tSupport the delivery of renewable and decentralised energy capacity (including small scale or community energy projects)?\n•\tSupport energy efficient design?","Yes",2,0,2,"Direct","High","Medium(10yrs)","Localised","Temporary/Irreversible","Minor Negative","The site is located within a flood zone 3 but within 50m of flood defences and the plan cited the need for an appropriate and acceptable surface water management plan to be in place for this site.  Implementation of surface water drainage measures may aid in reducing flood risk at the site, improving climate resilience. However, given that the site is located within an area of flood zone 3 and that flood defences will need to be maintained to ensure that the site in this area is resilient to climate change, a minor negative effect is recorded.","Yes","Development should look into incorporating renewable energy generation methods such as solar panels, and should incorporate design measures that will reduce effects of climate change, such as zonal heating systems, water saving initiatives and energy monitoring devices.","N/A"]
["SA14: Greenhouse Gases\nTo reduce the contribution towards the emission of greenhouse gases.","Will the policy or proposal:\n•\tReduce GHG emissions?\n•\tSupport the shift towards low carbon technologies and the usage of electric and ultralow emissions vehicles and appropriate infrastructure to support these?\n•\tProvide opportunities to access local services and facilities by low carbon public transport, walking or wheeling?\n•\tPromote a low carbon local economy? \n•\tReduce levels of embodied carbon?","No",null,null,null,"Direct","Medium","Long(20+yrs)","Localised","Permanent/Irreversible","Minor Negative","There are likely to be significant GHG emissions associated with the construction  from embodied carbon within building materials, as well as carbon emissions from construction traffic and construction plant. Building efficiency measures are anticipated to reduce energy use in operation. The development will promote sustainable travel modes, reducing car reliance and GHG emissions from transport. The application of Policy CL5 should be applied to minimise embodied carbon. However, a minor negative effect is recorded due to construction emissions.","Yes","Any form of construction and operation should be undertaken as sustainably as possible, making use of tools and processes, such as circular economy, waste hierarchy and should consider BREEAM and BREEAM Infrastructure.","N/A"]
["SA15: Transport and Accessibility\nTo reduce the number of journeys made by car, within and to and from the area and improve access to jobs, services and facilities.","Will the policy or proposal:\n•\tUtilise and enhance existing infrastructure?\n•\tHelp to meet local needs locally through low carbon travel options?\n•\tFacilitate safe walking and cycling?\n•\tFacilitate the use of public transport?\n•\tDeliver opportunities to relieve traffic congestion?\n•\tEncourage travel planning for businesses?\n•\tHelp to reduce the distances people have to travel on a regular basis for education, employment and services?\n•\tHelp to improve access to services and facilities for those living in rural or remote settlements, or experiencing other access constraints?\n•\tHelp to support homeworking by residents?","Yes",1,0,2,"Direct","Medium","Long(20+yrs)","Localised","Permanent/Irreversible","Significant Positive","The site is accessible via the existing active travel and bus network. The proposed development also includes the promotion of active travel, and the potential for development of a mobility hub. There is also proposed to be an active travel corridor linking the City Centre campus and facilities, utilising Markeaton Brook. This is anticipated to further encourage sustainable transport modes when accessing the site.","Yes","N/A","N/A"]
["SA16: Geology and Soils\nTo minimise water and soil pollution and ensure protection of natural resources including greenfield land, soil, and minerals resources.","Will the policy or proposal:\n•\tUtilise previously developed land?\n•\tSeek to improve or remediate contaminated land or reuse previously developed land which has not been restored?\n•\tProtect soil quality and avoid soil pollution?\n•\tProtect Best and Most Versatile (BMV) Agricultural Land?\n•\tProtect Greenbelt/ Green Wedges land?\n•\tProtect sites safeguarded for mineral workings?","Yes",0,1,3,"Direct","High","Long(20+yrs)","Localised","Permanent/Irreversible","Significant Positive","The site is located on brownfield land and encourages the use of previously developed buildings, which further protects greenfield land across Derby. ","Yes","N/A","N/A"]
["SA17: Waste\nTo minimise the generation of waste and effectively manage waste that is created.","Will the policy or proposal:\n•\tEnhance opportunities for waste to be treated in line with circular economy principles (e.g. recycling, re-using, composting)?\n•\tProvide adequate waste separation facilities in new and existing developments in order to encourage more recycling?\n•\tEncourage the repurposing and refurbishing of buildings, instead of demolition?","Yes",0,0,1,"Indirect","High","Long(20+yrs)","Localised","Permanent/Irreversible","Minor Positive","Development should support the use of sustainably sourced/recycled materials in line with Policy GD1. This should help minimise waste from the development's construction phase. However, once in use, the development is likely to produce waste in operation which could have a greater impact than waste through construction. However, the Local Plan is unable to control the generation of waste beyond development of the site. It will only be able to ensure that developments are designed to ensure that users can separate waste facilitating them to follow the waste hierarchy. ","Yes","N/A","A Site Waste Management Plan should be prepared as part of the CEMP and OEMP. "]

{"sheet":"CC14","index":27,"n_rows":28,"n_cols":16,"rows_kept":28,"cut":false,"hidden":false,"merged":[[9,0,9,1],[9,2,9,5],[9,6,9,15]]}
["Site Name","Railway Station Quarter"]
["Site Address"]
["Town/Locality"]
["Est Housing Yield/Employment Space","500 dwellings"]
["Site Area (ha)"]
["Site Description"]
["Greenfield/Brownfield","Brownfield"]
["Assumptions Made"]
[]
["SA Framework",null,"GIS Inputs",null,null,null,"SA  Assessment"]
["SA objective","Supporting Questions","GIS Data Available?","R","A","G","Direct/\nIndirect","Magnitude","Duration","Spatial Extent","Permanence/ Reversibility","Significance","Description of potential effects","Potential for cumulative effects? ","Mitigation","Enhancements"]
["SA1: Population and Equalities\nTo build inclusive communities by reducing social exclusion, reducing deprivation, promoting equity, equality and respecting diversity, improving local accessibility to healthcare, education, employment, retail facilities and recreational resources (including open spaces and sports facilities).  ","Will the policy or proposal:\n•\tHelp to reduce deprivation and the inequality gap?\n•\tEnsure all residents have equitable access to health services?\n•\tConsider the needs of an aging population?\n•\tEnsure new housing is well related located, close to a range of services such as shops, schools and employment opportunities?\n•\tImprove opportunities for active travel including walking and cycling?\n•\tEnsure everyone has access to high quality open space and recreation facilities?\n•\tProtect community facilities and improve access to important local services for the most deprived?","Yes",1,0,2,"Direct","Medium","Long(20+yrs)","Localised","Permanent/Reversible","Minor Positive","These component sites are located within close proximity to schools, healthcare facilities and retail facilities. Development will result in an additional 500 homes in the City, as part of a longer-term vision for the delivery of circa 1,500 homes. Development will include the provision of employment space, an urban interchange. Development may include financial contributions to additional primary and secondary school capacity. Additionally, all of the component sites have good access to community facilities including healthcare, shops, employment and schools, as well as open space. This may aid in reducing levels of inequalities by locating communities close to these facilities.  Overall, a potential minor positive effect is recorded. ","Yes","N/A","N/A"]
["SA2: Human Health\nTo improve health and wellbeing and reduce health inequalities, improving quality of life for all.","Will the policy or proposal:\n•\tHelp to improve health and reduce health inequalities?\n•\tContribute to healthy lifestyles?\n•\tEncourage walking, cycling and a reduction in private car use?\n•\tHelp to ensure health services are provided alongside development?\n•\tProtect existing services?","Yes",3,0,2,"Direct","Medium","Long(20+yrs)","Localised","Permanent/Reversible","Minor Positive","The site is located within close proximity to healthcare facilities, schools and public open space. Development at the site is expected to create a safe and welcoming place to live and work, which should support wellbeing. The site has good access to facilities which support human heath, therefore a potential minor positive effect is recorded.","Yes","N/A","N/A"]
["SA3: Economy\nTo deliver economic growth and support the creation of new and retention of existing businesses.","Will the policy or proposal:\n•\tSupport the growth of higher skilled economic sectors? \n•\tProvide new employment premises which meet identified local needs in the area? \n•\tImprove business infrastructure, such as broadband and provide attractive sites for modern businesses?\n•\tSupport the city’s retail sector, especially the city centre and other retail centres?","Yes",1,0,1,"Direct","Medium","Long(20+yrs)","Localised","Permanent/Reversible","Significant Positive","The site is located within the City Centre where there are a number of retail facilities and employment opportunities. In addition, the Railway Station Quarter will be transformed into a new urban district and will include the creation of a new urban interchange which provides opportunities to introduce new, small scale commercial uses and the creation of new workspace for rail related industries. This should support an increase in employment opportunities. Overall, a potential significant positive effect is recorded.","Yes","N/A","N/A"]
["SA4: Employment\nTo create greater employment opportunities, higher value jobs and access to training.","Will the policy or proposal:\n•\tIncrease job availability?\n•\tIncrease the quality and choice of local employment?\n•\tImprove access to employment centres?\n•\tMeet the skills needs and future demand for labour?","Yes",2,0,1,"Direct","Medium","Long(20+yrs)","Localised","Permanent/Reversible","Significant Positive","The site is located within the City Centre where there are a number of retail facilities and employment opportunities. Development of this site will increase the number of homes in the City by 500 which should increase footfall in the City. In addition, the Railway Station Quarter will be transformed into a new urban district. It will include the creation of a new urban interchange which provides opportunities to introduce new, small scale commercial uses (E use class. It will also include the creation of new workspace for rail related industries. Development must not detract from the vitality and viability of the wider City Centre, particularly the Primary Shopping Area and Central Activity Area through the creation of E use class floorspace that will directly compete. Overall, development at this site supports the growth of Derby's economy, therefore a potential significant positive effect is recorded.","Yes","N/A","N/A"]
["SA5: Crime and Safety\nTo reduce crime and the fear of crime for all residents inclusively, improving safety.","Will the policy or proposal:\n•\tHelp to create streets where people feel safe, particularly after dark?\n•\tMake a positive contribution to community cohesion?\n•\tSupport designing out crime principals? \n•\tReduce levels of crime derivation? \n•\tImprove road safety and reduce the number of people killed or seriously injured (KSI) on the roads, particularly children from deprived backgrounds? \n•\tCreate spaces where women and girls feel safe and included?","Yes",1,0,0,"Indirect","Medium","Medium(10yrs)","Localised","Permanent/Reversible","Minor Positive","The development of the site has potential to improve feelings of safety, The proposed development includes measures to improve the public realm, as well as utilising high quality design that creates a safe environment for all users. Whilst exact measures of designing out crime are unknown, it is anticipated that the proposed improvements will improve feelings of safety and discourage crime. It is assumed that development should incorporate designing out crime principles in line with Policy GD5.","Yes","N/A","N/A"]
["SA6: Housing\nTo provide everybody with access to an affordable home which is resilient to the effects of climate change.","Will the policy or proposal:\n•\tSupport a range of housing types and sizes, including affordable housing units??\n•\tEnsure that there is an adequate supply of housing development land to meet local needs?\n•\tBe sustainably designed and resilient to the effects of climate change and designed to meet all needs, for example “Lifetime Homes” standards?","Yes",1,0,0,"Direct","High","Long(20+yrs)","Localised","Permanent/Irreversible","Significant Positive","Development will lead to the delivery of a minimum of 500 high quality new homes within the plan period, as part of a longer-term vision for the delivery of circa 1,500 homes. This will help towards meeting Derby's housing target. The provision of affordable housing should be in line with requirements of Policy H4 and Policy H2 will ensure a mix of housing types and tenures is delivered. ","Yes","N/A","N/A"]
["SA7: Leisure and Recreation\nTo provide better opportunities for people to participate in cultural, leisure and recreational activities.","Will the policy or proposal:\n•\tHelp to improve access to formal and informal recreation facilities?\n•\tProvide opportunities for engagement in a range of cultural activities?\n•\tCreate new allotments where there is a demand?","Yes",0,0,3,"Direct","High","Long(20+yrs)","Localised","Permanent/Reversible","Significant Positive","The site has good access to public open space and leisure facilities and community centres. Development will make a significant contribution to the greening of the City Centre, through landscaping, and tree planting as part of the development of building plots, including through the provision of amenity green space, but also enhancements to public realm. ","Yes","N/A","N/A"]
["SA8: Biodiversity and Natural Capital\nTo protect and improve biodiversity, geo-diversity, including protect and enhance favourable conditions on SSSI’s, SPAs, SACs and other wildlife sites and improve connectivity between, and access to, green spaces and functional habitats.","Will the policy or proposal:\n•\tConserve and enhance habitats in the LNRS?\n•\tConserve and enhance species diversity and in particular avoid harm and increase the ranges of protected species?\n•\tProvide opportunities for new habitat creation and lead to a net gain in biodiversity?\n•\tProtect geo-diversity?\n•\tImprove the ecological quality and character of open spaces?\n•\tMaintain and enhance woodland cover and management in appropriate areas (e.g. areas of ash dieback)?\n•\tMaintain or enhance tree cover?\n•\tProtect and promote effective management of SPAs and SACs in the LP area and its surroundings?\n•\tHelp to protect and enhance other designated sites e.g., SSSIs, Wildlife Sites, LNRs etc?\n•\tImprove climate change adaptation through provision of accessible green space or green and blue infrastructure?\n•\tPrevent the fragmentation of habitats, provide links between green spaces or help to deliver/support other ecological networks?\n•\tSupport the natural capital of the city?","Yes",0,0,2,"Indirect","Medium","Medium(10yrs)","Localised","Permanent/Reversible","Minor Positive","The site is not located near to any designated sites and is located on brownfield land. Development at this site should make a significant contribution to the greening of the City Centre, through landscaping, and tree planting as part of the development of building plots, including trough the provision of amenity green space, but also enhancements to public realm. It is expected that BNG will be required, should any biodiversity be lost as a result of development. Biodiversity enhancement should meet minimum standards of 10% for all developments, as set out in Policy EN10. Overall, development should support and enhance biodiversity in the area, therefore a potential minor positive effect is recorded.","Yes","N/A","N/A"]
["SA9: Landscape and Townscape\nTo protect and enhance the character and appearance of the landscape and townscape, including landscape and townscape assets, as well as the area’s other natural assets and resources.","Will the policy or proposal:\n•\tProtect and enhance landscape and townscape quality, character and distinctiveness?\n•\tAvoid loss of, and damage to greenbelt / green wedge land?\n•\tMake use of previously used / brownfield land and buildings?\n•\tSafeguard individual landscape and townscape features such as hedgerows, ponds, public squares, etc?","Yes",0,0,2,"Indirect","Medium","Medium(10yrs)","Localised","Permanent/Reversible","Significant Positive","The site is located away from green belts and green wedges and is on brownfield land. Development should ensure the highest standards of architectural and urban design. Proposals must safeguard key townscape features, including the creation of a new public square fronting Railway Terrace and improvements to the public realm along Midland Road and routes to Castleward Boulevard. Selective redevelopment and infill along London Road should enhance the overall townscape quality. Where taller buildings are proposed, they must be fully justified in terms of visual impact. Landscaping and tree planting should be incorporated to strengthen the green infrastructure and improve the setting of streets and public spaces. Overall, development should enhance the existing townscape, therefore a potential significant positive effect is recorded.","Yes","N/A","N/A"]
["SA10: Historic Environment\nTo conserve and enhance the historic environment, heritage assets (including known and unknown archaeological sites) and their settings and maintain and enhance access to cultural heritage for enjoyment and educational purposes.   ","Will the policy or proposal:\n•\tPreserve and enhance the character or appearance of conservation areas and their settings?\n•\tPreserve or enhance heritage assets and their settings?\n•\tPreserve or enhance archaeological features and their settings?\n•\tImprove the condition of heritage at risk? \n•\tRe-use/retain historic buildings or fabric?\n•\tProtect and conserve the Outstanding Universal Value of the DVMWHS?","Yes",2,0,5,"Indirect","High","Long(20+yrs)","Borough-wide","Permanent/Irreversible","Minor Positive","The site is located within 100m from a listed building and is within a conservation area. The site provides an opportunity for heritage-led placemaking, using the historic environment to drive regeneration and create a distinctive residential community. Development must respect the Railway Conservation Area and the setting of historic buildings, ensuring the highest design quality and appropriate scale. Taller buildings should only be permitted where fully justified in terms of visual and heritage impact. Proposals should minimise harm to heritage assets, safeguard archaeological remains, and reuse historic fabric where possible. Enhancements to the station building and creation of a new public square will improve the setting of heritage assets and access to cultural heritage. Additionally, development is anticipated to be undertaken in line with Policy EN11, ensuring efforts to preserve Derby's historic environment. Overall, sufficient mitigation is included to ensure the protection of heritage assets, and development should result in the enhancement of some assets, therefore a potential minor positive effect is recorded. ","Yes","A lighting strategy should be prepared to minimise light spill onto heritage assets.","N/A"]
["SA11: Air, Noise and Light Pollution\nTo maintain good local air quality and to minimise noise and light pollution","Will the policy or proposal:\n•\tMaintain or improve local air quality?\n•\tEncourage the installation of electric vehicle charging points?\n•\tAvoid adverse impacts from noise?\n•\tMinimise light pollution?","Yes",2,0,0,"Direct","Medium","Long(20+yrs)","Localised","Permanent/Reversible","Minor Negative","The site is located within an AQMA and is within an area of high noise and light pollution. Overall, development at this site is likely to exacerbate noise, light and air pollution issues, particularly during construction. Therefore, a potential minor negative effect is recorded. However, the development is anticipated to seek opportunities to identify and improve air quality and should not reduce air quality benefits, in line with Policy EN22.","Yes","A Dust Management Plan should be prepared as part of the Construction Environmental Management Plan (CEMP). ","N/A"]
["SA12: Water Environment\nTo ensure sustainable management of water resources and to minimise the risk of flooding.","Will the policy or proposal: \n•\tMinimise contamination of watercourses and improve water quality in watercourses?\n•\tAvoid exacerbating flood risk for any source and be designed to be resilient to flood risk for its lifetime?\n•\tSupport the use of Sustainable Drainage Systems?\n•\tEncourage water efficiency and demand management?\n•\tAvoid deterioration and enhance the ecological status of water bodies? \n•\tContribute toward achieving Water Framework Directive objectives?","Yes",2,1,1,"Direct","High","Long(20+yrs)","Localised","Permanent/Irreversible","Significant Negative","The site is located in close proximity to a water body and also sits in an area of flood zone 3. Development at the site is anticipated to increase impermeable surfaces, increasing surface runoff and exacerbating flood risk. There is also potential for surface runoff during construction to result in pollution of the nearby water body. Development should accord with flood risk mitigation measures outlined in Policy CL1. The application of SuDS (in line with Policy CL1) should be demonstrated to reduce the risk of run-off and surface water flooding. ","Yes","The plan should require appropriate water management strategies, for example the inclusion of SuDS, within the site allocation's supporting text.","N/A"]
["SA13: Climate Change\nAdapt to the effects of climate change including flood risk, extreme weather and overheating, and strengthen climate resilience.","Will the policy or proposal:\n•\tMinimise flood risk and ensure new development provides sustainable urban drainage?\n•\tEnsure new development is designed to withstand future climate change (e.g. overheating and increased storm severity)?\n•\tIncrease and improve green and blue infrastructure to create a connected network across the city and within the wider area?\n•\tEnsure surface and groundwater water resources are used efficiently?\n•\tReduce energy consumption?\n•\tSupport the delivery of renewable and decentralised energy capacity (including small scale or community energy projects)?\n•\tSupport energy efficient design?","Yes",2,1,1,"Direct","High","Medium(10yrs)","Localised","Temporary/Irreversible","Minor Negative","The site is located within a flood zone 3 but within 50m of flood defences and the plan outlines the need for an appropriate and acceptable surface water management plan to be developed at this site.  Implementation of surface water drainage measures may aid in reducing flood risk at the site, improving climate resilience. However, given that the site is located within an area of flood zone 3 and that flood defences will need to be maintained to ensure that the site in this area is resilient to climate change, a minor negative effect is recorded.","Yes","Development should look into incorporating renewable energy generation methods such as solar panels, and should incorporate design measures that will reduce effects of climate change, such as zonal heating systems, water saving initiatives and energy monitoring devices.","N/A"]
["SA14: Greenhouse Gases\nTo reduce the contribution towards the emission of greenhouse gases.","Will the policy or proposal:\n•\tReduce GHG emissions?\n•\tSupport the shift towards low carbon technologies and the usage of electric and ultralow emissions vehicles and appropriate infrastructure to support these?\n•\tProvide opportunities to access local services and facilities by low carbon public transport, walking or wheeling?\n•\tPromote a low carbon local economy? \n•\tReduce levels of embodied carbon?","No",null,null,null,"Direct","Medium","Long(20+yrs)","Localised","Permanent/Irreversible","Minor Positive","The proposal supports the reduction of greenhouse gas emissions by locating development in the city centre, enabling access to sustainable transport modes and reducing reliance on private car use. It includes the rationalisation of surface-level car parking and provision of a multi-modal hub, alongside infrastructure for electric and ultra-low emission vehicles. Development will not result in a net increase in public parking spaces and must demonstrate exemplary sustainability credentials. While there are likely to be GHG emissions during construction, including embodied carbon in materials and emissions from construction traffic and plant, the long-term design approach aims to minimise operational emissions and promote low-carbon transport choices. The application of Policy CL5 should be applied to minimise embodied carbon.","Yes","N/A","N/A"]
["SA15: Transport and Accessibility\nTo reduce the number of journeys made by car, within and to and from the area and improve access to jobs, services and facilities.","Will the policy or proposal:\n•\tUtilise and enhance existing infrastructure?\n•\tHelp to meet local needs locally through low carbon travel options?\n•\tFacilitate safe walking and cycling?\n•\tFacilitate the use of public transport?\n•\tDeliver opportunities to relieve traffic congestion?\n•\tEncourage travel planning for businesses?\n•\tHelp to reduce the distances people have to travel on a regular basis for education, employment and services?\n•\tHelp to improve access to services and facilities for those living in rural or remote settlements, or experiencing other access constraints?\n•\tHelp to support homeworking by residents?","Yes",0,0,3,"Direct","Medium","Medium/Long","Localised","Permanent/Reversible","Significant Positive","The site is very well located being in close proximity to the railway station, bus stops and a cycle network. Development will significantly improve transport and accessibility by creating a strategic gateway at the Railway Station Quarter, offering strong onward connections to the City Centre and beyond. Key measures include the rationalisation of surface-level car parking and delivery of a high-quality multi-modal hub on Pride Park, enhancing public transport facilities and reducing reliance on private cars. Improvements to the station building, a new public square fronting Railway Terrace, and better east–west permeability will strengthen links between Pride Park, Castleward Boulevard, and the wider City Centre. Development will be located in a sustainable, well-connected area, optimising access to jobs, services, and facilities while supporting low-carbon travel options.","Yes","N/A","N/A"]
["SA16: Geology and Soils\nTo minimise water and soil pollution and ensure protection of natural resources including greenfield land, soil, and minerals resources.","Will the policy or proposal:\n•\tUtilise previously developed land?\n•\tSeek to improve or remediate contaminated land or reuse previously developed land which has not been restored?\n•\tProtect soil quality and avoid soil pollution?\n•\tProtect Best and Most Versatile (BMV) Agricultural Land?\n•\tProtect Greenbelt/ Green Wedges land?\n•\tProtect sites safeguarded for mineral workings?","Yes",1,0,3,"Direct","High","Long(20+yrs)","Localised","Permanent/Irreversible","Minor Negative","The site is located on brownfield land and encourages the use of previously developed buildings, which further protects greenfield land across Derby.  However, the site is within source protection zone 1. Therefore, there is potential for contamination of this during construction works.","Yes","N/A","N/A"]
["SA17: Waste\nTo minimise the generation of waste and effectively manage waste that is created.","Will the policy or proposal:\n•\tEnhance opportunities for waste to be treated in line with circular economy principles (e.g. recycling, re-using, composting)?\n•\tProvide adequate waste separation facilities in new and existing developments in order to encourage more recycling?\n•\tEncourage the repurposing and refurbishing of buildings, instead of demolition?","Yes",0,0,1,"Indirect","High","Long(20+yrs)","Localised","Permanent/Irreversible","Minor Negative","Development should support the use of sustainably sourced/recycled materials in line with Policy GD1. This should help minimise waste from the development's construction phase. However, once in use, the development is likely to produce waste in operation which could have a greater impact than waste through construction. However, the Local Plan is unable to control the generation of waste beyond development of the site. It will only be able to ensure that developments are designed to ensure that users can separate waste facilitating them to follow the waste hierarchy. ","Yes","A Site Waste Management Plan should be prepared as part of the CEMP and OEMP. ","N/A"]

{"sheet":"CC15","index":28,"n_rows":28,"n_cols":16,"rows_kept":28,"cut":false,"hidden":false,"merged":[[9,0,9,1],[9,2,9,5],[9,6,9,15]]}
["Site Name","North Castleward"]
["Site Address"]
["Town/Locality"]
["Est Housing Yield/Employment Space","400 dwellings "]
["Site Area (ha)"]
["Site Description"]
["Greenfield/Brownfield","Brownfield"]
["Assumptions Made"]
[]
["SA Framework",null,"GIS Inputs",null,null,null,"SA  Assessment"]
["SA objective","Supporting Questions","GIS Data Available?","R","A","G","Direct/\nIndirect","Magnitude","Duration","Spatial Extent","Permanence/ Reversibility","Significance","Description of potential effects","Potential for cumulative effects? ","Mitigation","Enhancements"]
["SA1: Population and Equalities\nTo build inclusive communities by reducing social exclusion, reducing deprivation, promoting equity, equality and respecting diversity, improving local accessibility to healthcare, education, employment, retail facilities and recreational resources (including open spaces and sports facilities).  ","Will the policy or proposal:\n•\tHelp to reduce deprivation and the inequality gap?\n•\tEnsure all residents have equitable access to health services?\n•\tConsider the needs of an aging population?\n•\tEnsure new housing is well related located, close to a range of services such as shops, schools and employment opportunities?\n•\tImprove opportunities for active travel including walking and cycling?\n•\tEnsure everyone has access to high quality open space and recreation facilities?\n•\tProtect community facilities and improve access to important local services for the most deprived?","Yes",1,0,2,"Direct","Medium","Long(20+yrs)","Localised","Permanent/Reversible","Minor Positive","All of the component sites are located within close proximity to schools, healthcare facilities and retail facilities. Development will result in an additional 400 homes in the City. Development may include financial contributions to additional primary and secondary school capacity. Additionally, all of the component sites have good access to community facilities including healthcare, shops, employment and schools, as well as open space. This may aid in reducing levels of inequalities by locating communities close to these facilities.  Overall, a potential minor positive effect is recorded. ","Yes","N/A","N/A"]
["SA2: Human Health\nTo improve health and wellbeing and reduce health inequalities, improving quality of life for all.","Will the policy or proposal:\n•\tHelp to improve health and reduce health inequalities?\n•\tContribute to healthy lifestyles?\n•\tEncourage walking, cycling and a reduction in private car use?\n•\tHelp to ensure health services are provided alongside development?\n•\tProtect existing services?","Yes",3,0,2,"Direct","Medium","Long(20+yrs)","Localised","Permanent/Reversible","Minor Positive","The site is located within close proximity to healthcare facilities, schools and public open space. Development at the site is expected to include the creation of new and improved pedestrian and active travel links from Castleward to Bass’ Recreation Ground, which should support active travel which supports health and wellbeing. The site has good access to facilities which support human heath, therefore a potential minor positive effect is recorded.","Yes","N/A","N/A"]
["SA3: Economy\nTo deliver economic growth and support the creation of new and retention of existing businesses.","Will the policy or proposal:\n•\tSupport the growth of higher skilled economic sectors? \n•\tProvide new employment premises which meet identified local needs in the area? \n•\tImprove business infrastructure, such as broadband and provide attractive sites for modern businesses?\n•\tSupport the city’s retail sector, especially the city centre and other retail centres?","Yes",1,0,1,"Direct","Medium","Long(20+yrs)","Localised","Permanent/Reversible","Significant Positive","The site is located within the City Centre where there are a number of retail facilities and employment opportunities. In addition, development will include the provision of provision of active ground floor uses to animate and activate key streets, which may also improve employment opportunities. Development must also not detract from the vitality and viability of the wider City Centre, particularly the Primary Shopping Area (PSA) and Central Activity Area (CAA) through the creation of E use class floorspace that will directly compete. Overall, a potential significant positive effect is recorded.","Yes","N/A","N/A"]
["SA4: Employment\nTo create greater employment opportunities, higher value jobs and access to training.","Will the policy or proposal:\n•\tIncrease job availability?\n•\tIncrease the quality and choice of local employment?\n•\tImprove access to employment centres?\n•\tMeet the skills needs and future demand for labour?","Yes",2,0,1,"Direct","Medium","Long(20+yrs)","Localised","Permanent/Reversible","Significant Positive","The site is located within the city centre and has good access to a range of employment types. There is also very good access to public transport from the site which offers further opportunities to access employment. Development will include the provision of active ground floor uses to animate and activate key streets and must not detract from the vitality and viability of the wider City Centre, particularly the Primary Shopping Area (PSA) and Central Activity Area (CAA) through the creation of E use class floorspace that will directly compete. A potential significant positive effect is recorded. ","Yes","N/A","N/A"]
["SA5: Crime and Safety\nTo reduce crime and the fear of crime for all residents inclusively, improving safety.","Will the policy or proposal:\n•\tHelp to create streets where people feel safe, particularly after dark?\n•\tMake a positive contribution to community cohesion?\n•\tSupport designing out crime principals? \n•\tReduce levels of crime derivation? \n•\tImprove road safety and reduce the number of people killed or seriously injured (KSI) on the roads, particularly children from deprived backgrounds? \n•\tCreate spaces where women and girls feel safe and included?","Yes",1,0,0,"Direct","Low","Medium(10yrs)","Localised","Permanent/Irreversible","Minor Positive"," The site is currently located within an area of high crime deprivation. However, development is expected to animate and activate the riverside which should support the reduction in crime and fear of crime. There is limited detail on whether designing out crime principles will be applied as part of the development. However, it is assumed that development should incorporate designing out crime principles in line with Policy GD5.","Yes","N/A","N/A"]
["SA6: Housing\nTo provide everybody with access to an affordable home which is resilient to the effects of climate change.","Will the policy or proposal:\n•\tSupport a range of housing types and sizes, including affordable housing units??\n•\tEnsure that there is an adequate supply of housing development land to meet local needs?\n•\tBe sustainably designed and resilient to the effects of climate change and designed to meet all needs, for example “Lifetime Homes” standards?","Yes",0,1,0,"Direct","High","Long(20+yrs)","Localised","Permanent/Irreversible","Significant Positive","Development will lead to the delivery of a minimum of 400 new homes within the plan period. The development will be high-density and mixed use. This will help towards meeting Derby's housing target. The provision of affordable housing should be in line with requirements of Policy H4 and Policy H2 will ensure a mix of housing types and tenures is delivered. ","Yes","N/A","N/A"]
["SA7: Leisure and Recreation\nTo provide better opportunities for people to participate in cultural, leisure and recreational activities.","Will the policy or proposal:\n•\tHelp to improve access to formal and informal recreation facilities?\n•\tProvide opportunities for engagement in a range of cultural activities?\n•\tCreate new allotments where there is a demand?","Yes",0,0,3,"Direct","High","Long(20+yrs)","Localised","Permanent/Reversible","Significant Positive","The site has good access to public open space and leisure facilities and community centres. Development will make a significant contribution to the greening of the City Centre, through landscaping, and tree planting as part of the development of building plots, including through the provision of amenity green space. it will also improve pedestrian access to Bass; Recreation Ground from Castleward.","Yes","N/A","N/A"]
["SA8: Biodiversity and Natural Capital\nTo protect and improve biodiversity, geo-diversity, including protect and enhance favourable conditions on SSSI’s, SPAs, SACs and other wildlife sites and improve connectivity between, and access to, green spaces and functional habitats.","Will the policy or proposal:\n•\tConserve and enhance habitats in the LNRS?\n•\tConserve and enhance species diversity and in particular avoid harm and increase the ranges of protected species?\n•\tProvide opportunities for new habitat creation and lead to a net gain in biodiversity?\n•\tProtect geo-diversity?\n•\tImprove the ecological quality and character of open spaces?\n•\tMaintain and enhance woodland cover and management in appropriate areas (e.g. areas of ash dieback)?\n•\tMaintain or enhance tree cover?\n•\tProtect and promote effective management of SPAs and SACs in the LP area and its surroundings?\n•\tHelp to protect and enhance other designated sites e.g., SSSIs, Wildlife Sites, LNRs etc?\n•\tImprove climate change adaptation through provision of accessible green space or green and blue infrastructure?\n•\tPrevent the fragmentation of habitats, provide links between green spaces or help to deliver/support other ecological networks?\n•\tSupport the natural capital of the city?","Yes",0,0,2,"Indirect","Medium","Medium(10yrs)","Localised","Permanent/Reversible","Minor Positive","The site is not located near to any designated sites and is located on brownfield land. Development at this site should make a significant contribution to the greening of the City Centre, through landscaping, and tree planting as part of the development of building plots, including trough the provision of amenity green space, but also enhancements to public realm. It is expected that BNG will be required, should any biodiversity be lost as a result of development. Biodiversity enhancement should meet minimum standards of 10% for all developments, as set out in Policy EN10. Overall, development should support and enhance biodiversity in the area, therefore a potential minor positive effect is recorded.","Yes","N/A","N/A"]
["SA9: Landscape and Townscape\nTo protect and enhance the character and appearance of the landscape and townscape, including landscape and townscape assets, as well as the area’s other natural assets and resources.","Will the policy or proposal:\n•\tProtect and enhance landscape and townscape quality, character and distinctiveness?\n•\tAvoid loss of, and damage to greenbelt / green wedge land?\n•\tMake use of previously used / brownfield land and buildings?\n•\tSafeguard individual landscape and townscape features such as hedgerows, ponds, public squares, etc?","Yes",0,0,2,"Direct","Medium","Long(20+yrs)","Localised","Temporary/Irreversible","Significant Positive","The site is located away from green belts and green wedges and is on brownfield land. Development will include the creation of new public spaces and enhanced public realm, as well as the delivery of a landmark building on the Traffic Street frontage. New development within the area should be of the highest architectural and urban design quality and make a significant contribution to the greening of the City Centre, through landscaping, and tree planting as part of the development of building plots, including through the provision of amenity green space, but also enhancements to public realm. Overall, development at this site should enhance the existing landscape and townscape of the City, therefore a potential significant positive effect is recorded. ","Yes","N/A","N/A"]
["SA10: Historic Environment\nTo conserve and enhance the historic environment, heritage assets (including known and unknown archaeological sites) and their settings and maintain and enhance access to cultural heritage for enjoyment and educational purposes.   ","Will the policy or proposal:\n•\tPreserve and enhance the character or appearance of conservation areas and their settings?\n•\tPreserve or enhance heritage assets and their settings?\n•\tPreserve or enhance archaeological features and their settings?\n•\tImprove the condition of heritage at risk? \n•\tRe-use/retain historic buildings or fabric?\n•\tProtect and conserve the Outstanding Universal Value of the DVMWHS?","Yes",0,1,6,"Direct","Medium","Long(20+yrs)","Borough-wide","Permanent/Irreversible","Uncertain","The site is located within close proximity of listed buildings. There is potential that development may result in harm to the setting of these assets. However, development is anticipated to be undertaken in line with Policy EN11, ensuring efforts to preserve Derby's historic environment. This may result in protection and enhancement of these assets and their settings. ","Yes","A lighting strategy should be prepared to minimise light spill onto heritage assets.\nDevelopment should be undertaken in line with Policy EN11.","N/A"]
["SA11: Air, Noise and Light Pollution\nTo maintain good local air quality and to minimise noise and light pollution","Will the policy or proposal:\n•\tMaintain or improve local air quality?\n•\tEncourage the installation of electric vehicle charging points?\n•\tAvoid adverse impacts from noise?\n•\tMinimise light pollution?","Yes",2,0,0,"Direct","Medium","Long(20+yrs)","Localised","Permanent/Reversible","Minor Negative","The site is located within an AQMA and is within an area of high noise and light pollution. Overall, development at this site is likely to exacerbate noise, light and air pollution issues, particularly during construction. Therefore, a potential minor negative effect is recorded. However, the development is anticipated to seek opportunities to identify and improve air quality and should not reduce air quality benefits, in line with Policy EN22.","Yes","A Dust Management Plan should be prepared as part of the Construction Environmental Management Plan (CEMP). The application of Policy EN22 should also be applied.","N/A"]
["SA12: Water Environment\nTo ensure sustainable management of water resources and to minimise the risk of flooding.","Will the policy or proposal: \n•\tMinimise contamination of watercourses and improve water quality in watercourses?\n•\tAvoid exacerbating flood risk for any source and be designed to be resilient to flood risk for its lifetime?\n•\tSupport the use of Sustainable Drainage Systems?\n•\tEncourage water efficiency and demand management?\n•\tAvoid deterioration and enhance the ecological status of water bodies? \n•\tContribute toward achieving Water Framework Directive objectives?","Yes",1,0,0,"Direct","High","Long(20+yrs)","Localised","Permanent/Irreversible","Significant Negative","The site is located in close proximity to a water body and also sits in an area of flood zone 3. Development at the site is anticipated to increase impermeable surfaces, increasing surface runoff and exacerbating flood risk. There is also potential for surface runoff during construction to result in pollution of the nearby water body. Development should accord with flood risk mitigation measures outlined in Policy CL1. The application of SuDS (in line with Policy CL1) should be demonstrated to reduce the risk of run-off and surface water flooding. ","Yes","The plan should require appropriate water management strategies, for example the inclusion of SuDS, within the site allocation's supporting text.\nDevelopment should be in line with the NPPF and guidance from the Environment Agency. ","N/A"]
["SA13: Climate Change\nAdapt to the effects of climate change including flood risk, extreme weather and overheating, and strengthen climate resilience.","Will the policy or proposal:\n•\tMinimise flood risk and ensure new development provides sustainable urban drainage?\n•\tEnsure new development is designed to withstand future climate change (e.g. overheating and increased storm severity)?\n•\tIncrease and improve green and blue infrastructure to create a connected network across the city and within the wider area?\n•\tEnsure surface and groundwater water resources are used efficiently?\n•\tReduce energy consumption?\n•\tSupport the delivery of renewable and decentralised energy capacity (including small scale or community energy projects)?\n•\tSupport energy efficient design?","Yes",3,0,1,"Direct","High","Medium(10yrs)","Localised","Temporary/Irreversible","Minor Negative","The site is located within a flood zone 3 but within 50m of flood defences and the plan cited the need for an appropriate and acceptable surface water management plan to be in place for this site.  Implementation of surface water drainage measures may aid in reducing flood risk at the site, improving climate resilience. However, given that the site is located within an area of flood zone 3 and that flood defences will need to be maintained to ensure that the site in this area is resilient to climate change, a minor negative effect is recorded.","Yes","Development should look into incorporating renewable energy generation methods such as solar panels, and should incorporate design measures that will reduce effects of climate change, such as zonal heating systems, water saving initiatives and energy monitoring devices.","N/A"]
["SA14: Greenhouse Gases\nTo reduce the contribution towards the emission of greenhouse gases.","Will the policy or proposal:\n•\tReduce GHG emissions?\n•\tSupport the shift towards low carbon technologies and the usage of electric and ultralow emissions vehicles and appropriate infrastructure to support these?\n•\tProvide opportunities to access local services and facilities by low carbon public transport, walking or wheeling?\n•\tPromote a low carbon local economy? \n•\tReduce levels of embodied carbon?","No",null,null,null,"Direct","Medium","Long(20+yrs)","Localised","Temporary/Irreversible","Minor Positive","Development at this site is expected to be of a scale that optimises the potential of the area as a sustainable location, well related to public transport interchanges. It must also demonstrate exemplary sustainability credentials, as a vanguard for development close to public transport hubs. Development will result in the loss of car parking spaces which supports transition towards more sustainable modes of transport. There are likely to be significant GHG emissions associated with the construction phase from embodied carbon within building materials, as well as carbon emissions from construction traffic and construction plant. The application of Policy CL5 should be applied to minimise embodied carbon.","Yes","N/A","N/A"]
["SA15: Transport and Accessibility\nTo reduce the number of journeys made by car, within and to and from the area and improve access to jobs, services and facilities.","Will the policy or proposal:\n•\tUtilise and enhance existing infrastructure?\n•\tHelp to meet local needs locally through low carbon travel options?\n•\tFacilitate safe walking and cycling?\n•\tFacilitate the use of public transport?\n•\tDeliver opportunities to relieve traffic congestion?\n•\tEncourage travel planning for businesses?\n•\tHelp to reduce the distances people have to travel on a regular basis for education, employment and services?\n•\tHelp to improve access to services and facilities for those living in rural or remote settlements, or experiencing other access constraints?\n•\tHelp to support homeworking by residents?","Yes",0,0,3,"Direct","Medium","Long(20+yrs)","Localised","Temporary/Irreversible","Significant Positive","The site is within close proximity to a railway station, bus stop and cycle network. Development will include the creation of new and improved pedestrian and active travel links from Castleward Boulevard to the planned Eagle Quarter, as well as to Bass’ Recreation Ground. Sustainable access to and from this site is very good, therefore a potential significant positive effect is recorded.","Yes","N/A","N/A"]
["SA16: Geology and Soils\nTo minimise water and soil pollution and ensure protection of natural resources including greenfield land, soil, and minerals resources.","Will the policy or proposal:\n•\tUtilise previously developed land?\n•\tSeek to improve or remediate contaminated land or reuse previously developed land which has not been restored?\n•\tProtect soil quality and avoid soil pollution?\n•\tProtect Best and Most Versatile (BMV) Agricultural Land?\n•\tProtect Greenbelt/ Green Wedges land?\n•\tProtect sites safeguarded for mineral workings?","Yes",0,0,4,"Direct","Medium","Long(20+yrs)","Localised","Permanent/Irreversible","Significant Positive","The site is located on brownfield land and encourages the use of previously developed buildings, which further protects greenfield land across Derby. ","Yes","N/A","N/A"]
["SA17: Waste\nTo minimise the generation of waste and effectively manage waste that is created.","Will the policy or proposal:\n•\tEnhance opportunities for waste to be treated in line with circular economy principles (e.g. recycling, re-using, composting)?\n•\tProvide adequate waste separation facilities in new and existing developments in order to encourage more recycling?\n•\tEncourage the repurposing and refurbishing of buildings, instead of demolition?","Yes",0,0,1,"Indirect","High","Long(20+yrs)","Localised","Permanent/Irreversible","Minor Negative","Development should support the use of sustainably sourced/recycled materials in line with Policy GD1. This should help minimise waste from the development's construction phase. However, once in use, the development is likely to produce waste in operation which could have a greater impact than waste through construction. However, the Local Plan is unable to control the generation of waste beyond development of the site. It will only be able to ensure that developments are designed to ensure that users can separate waste facilitating them to follow the waste hierarchy. ","Yes","A Site Waste Management Plan should be prepared as part of the CEMP and OEMP. ","N/A"]

{"sheet":"E5","index":29,"n_rows":28,"n_cols":16,"rows_kept":28,"cut":false,"hidden":false,"merged":[[9,0,9,1],[9,2,9,5],[9,6,9,15]]}
["Site Name","Land South of Wilmore Road (Infinity Park)"]
["Site Address"]
["Town/Locality"]
["Est Housing Yield/Employment Space","Advanced manufacturing and logistics business park, B2 and B8 uses, office space (E(g)(i)) and research and development (E(g)(ii))"]
["Site Area (ha)","88.7ha"]
["Site Description"]
["Greenfield/Brownfield","Greenfield and Brownfield"]
["Assumptions Made"]
[]
["SA Framework",null,"GIS Inputs",null,null,null,"SA  Assessment"]
["SA objective","Supporting Questions","GIS Data Available?","R","A","G","Direct/\nIndirect","Magnitude","Duration","Spatial Extent","Permanence/ Reversibility","Significance","Description of potential effects","Potential for cumulative effects? ","Mitigation","Enhancements"]
["SA1: Population and Equalities\nTo build inclusive communities by reducing social exclusion, reducing deprivation, promoting equity, equality and respecting diversity, improving local accessibility to healthcare, education, employment, retail facilities and recreational resources (including open spaces and sports facilities).  ","Will the policy or proposal:\n•\tHelp to reduce deprivation and the inequality gap?\n•\tEnsure all residents have equitable access to health services?\n•\tConsider the needs of an aging population?\n•\tEnsure new housing is well related located, close to a range of services such as shops, schools and employment opportunities?\n•\tImprove opportunities for active travel including walking and cycling?\n•\tEnsure everyone has access to high quality open space and recreation facilities?\n•\tProtect community facilities and improve access to important local services for the most deprived?","Yes",1,0,2,"Direct","Medium","Long(20+yrs)","Borough-wide","Permanent/Irreversible","Minor Positive","The development includes the provision of employment opportunities across a range of sectors. The site also supports the development of active travel provision, providing improved access for all social groups to employment opportunities.","Yes","N/A","N/A"]
["SA2: Human Health\nTo improve health and wellbeing and reduce health inequalities, improving quality of life for all.","Will the policy or proposal:\n•\tHelp to improve health and reduce health inequalities?\n•\tContribute to healthy lifestyles?\n•\tEncourage walking, cycling and a reduction in private car use?\n•\tHelp to ensure health services are provided alongside development?\n•\tProtect existing services?","Yes",3,0,2,"Direct","Medium","Long(20+yrs)","Borough-wide","Permanent/Irreversible","Significant Positive","Access to employment is a key determinant of health. This development provides improved access to employment opportunities across a range of sectors, improving wellbeing. The site also requires active travel provision to be implemented within the site, improving physical health.","Yes","N/A","N/A"]
["SA3: Economy\nTo deliver economic growth and support the creation of new and retention of existing businesses.","Will the policy or proposal:\n•\tSupport the growth of higher skilled economic sectors? \n•\tProvide new employment premises which meet identified local needs in the area? \n•\tImprove business infrastructure, such as broadband and provide attractive sites for modern businesses?\n•\tSupport the city’s retail sector, especially the city centre and other retail centres?","Yes",1,0,1,"Direct","High","Long(20+yrs)","Borough-wide","Permanent/Irreversible","Significant Positive","The development includes the provision of employment opportunities across a range of sectors, including high skilled sectors. The diversity of economic sectors at the site is likely to encourage investment into the area and improve business infrastructure within the area.","Yes","N/A","N/A"]
["SA4: Employment\nTo create greater employment opportunities, higher value jobs and access to training.","Will the policy or proposal:\n•\tIncrease job availability?\n•\tIncrease the quality and choice of local employment?\n•\tImprove access to employment centres?\n•\tMeet the skills needs and future demand for labour?","Yes",2,0,1,"Direct","High","Long(20+yrs)","Borough-wide","Permanent/Irreversible","Significant Positive","The development will provide a wide range of employment uses, across skilled sectors, and provides a new business park, which is anticipated to become an employment hub. This is anticipated to increase job availability for all groups.","Yes","N/A","N/A"]
["SA5: Crime and Safety\nTo reduce crime and the fear of crime for all residents inclusively, improving safety.","Will the policy or proposal:\n•\tHelp to create streets where people feel safe, particularly after dark?\n•\tMake a positive contribution to community cohesion?\n•\tSupport designing out crime principals? \n•\tReduce levels of crime derivation? \n•\tImprove road safety and reduce the number of people killed or seriously injured (KSI) on the roads, particularly children from deprived backgrounds? \n•\tCreate spaces where women and girls feel safe and included?","Yes",1,0,0,"Indirect","Medium","Medium(10yrs)","Localised","Permanent/Irreversible","Minor Positive","The site is located within the most deprived neighbourhoods from a crime perspective. There is limited detail on whether designing out crime principles will be applied as part of the development. However, it is assumed that development should incorporate designing out crime principles in line with Policy GD5. There is potential that this may result in improvements to feelings of safety in the area.","Yes","N/A","N/A"]
["SA6: Housing\nTo provide everybody with access to an affordable home which is resilient to the effects of climate change.","Will the policy or proposal:\n•\tSupport a range of housing types and sizes, including affordable housing units??\n•\tEnsure that there is an adequate supply of housing development land to meet local needs?\n•\tBe sustainably designed and resilient to the effects of climate change and designed to meet all needs, for example “Lifetime Homes” standards?","Yes",0,1,0,"N/A","N/A","N/A","N/A","N/A","Neutral","The development of the site is not anticipated to have any potential effect on this objective. ","No","N/A","N/A"]
["SA7: Leisure and Recreation\nTo provide better opportunities for people to participate in cultural, leisure and recreational activities.","Will the policy or proposal:\n•\tHelp to improve access to formal and informal recreation facilities?\n•\tProvide opportunities for engagement in a range of cultural activities?\n•\tCreate new allotments where there is a demand?","Yes",0,0,3,"N/A","N/A","N/A","N/A","N/A","Neutral","The development of the site is not anticipated to have any potential effect on this objective. ","No","N/A","N/A"]
["SA8: Biodiversity and Natural Capital\nTo protect and improve biodiversity, geo-diversity, including protect and enhance favourable conditions on SSSI’s, SPAs, SACs and other wildlife sites and improve connectivity between, and access to, green spaces and functional habitats.","Will the policy or proposal:\n•\tConserve and enhance habitats in the LNRS?\n•\tConserve and enhance species diversity and in particular avoid harm and increase the ranges of protected species?\n•\tProvide opportunities for new habitat creation and lead to a net gain in biodiversity?\n•\tProtect geo-diversity?\n•\tImprove the ecological quality and character of open spaces?\n•\tMaintain and enhance woodland cover and management in appropriate areas (e.g. areas of ash dieback)?\n•\tMaintain or enhance tree cover?\n•\tProtect and promote effective management of SPAs and SACs in the LP area and its surroundings?\n•\tHelp to protect and enhance other designated sites e.g., SSSIs, Wildlife Sites, LNRs etc?\n•\tImprove climate change adaptation through provision of accessible green space or green and blue infrastructure?\n•\tPrevent the fragmentation of habitats, provide links between green spaces or help to deliver/support other ecological networks?\n•\tSupport the natural capital of the city?","Yes",1,0,1,"Direct","Medium","Long(20+yrs)","Localised","Permanent/Reversible","Minor Positive","The site is located within 100m of an LNR. There is potential for negative effects upon biodiversity as a result of construction activity at the site. However, development at the site is required to contribute to enhancing biodiversity resources within the site as biodiversity enhancement should meet minimum standards of 10% for all developments, as set out in Policy EN10.","Yes","N/A","N/A"]
["SA9: Landscape and Townscape\nTo protect and enhance the character and appearance of the landscape and townscape, including landscape and townscape assets, as well as the area’s other natural assets and resources.","Will the policy or proposal:\n•\tProtect and enhance landscape and townscape quality, character and distinctiveness?\n•\tAvoid loss of, and damage to greenbelt / green wedge land?\n•\tMake use of previously used / brownfield land and buildings?\n•\tSafeguard individual landscape and townscape features such as hedgerows, ponds, public squares, etc?","Yes",1,0,1,"N/A","N/A","N/A","N/A","N/A","Uncertain","The site is located within an area of green wedge. Therefore, development at this site may negatively alter the landscape character in this area. However, development at the site is required to include high quality design and landscaping, which is anticipated to develop a high quality urban environment. Development should be designed to be sensitive to existing landscape settings and aim to enhance the landscape and implement high quality design, in line with Policy GD1 and GD2. Policy CC6 should be applied to ensure appropriate development of tall buildings. However, the impact is dependent of individual design. Therefore, an uncertain effect is recorded.","Yes","Sensitive design should be considered for any new developments to ensure positive effects on local assets and landscapes.\nCare must be taken to ensure that high density development and tall buildings do not have a significant visual impact.","N/A"]
["SA10: Historic Environment\nTo conserve and enhance the historic environment, heritage assets (including known and unknown archaeological sites) and their settings and maintain and enhance access to cultural heritage for enjoyment and educational purposes.   ","Will the policy or proposal:\n•\tPreserve and enhance the character or appearance of conservation areas and their settings?\n•\tPreserve or enhance heritage assets and their settings?\n•\tPreserve or enhance archaeological features and their settings?\n•\tImprove the condition of heritage at risk? \n•\tRe-use/retain historic buildings or fabric?\n•\tProtect and conserve the Outstanding Universal Value of the DVMWHS?","Yes",0,0,7,"N/A","N/A","N/A","N/A","N/A","Neutral","The development of the site is not anticipated to have any potential effect on this objective. ","No","N/A","N/A"]
["SA11: Air, Noise and Light Pollution\nTo maintain good local air quality and to minimise noise and light pollution","Will the policy or proposal:\n•\tMaintain or improve local air quality?\n•\tEncourage the installation of electric vehicle charging points?\n•\tAvoid adverse impacts from noise?\n•\tMinimise light pollution?","Yes",1,0,1,"N/A","N/A","N/A","N/A","N/A","Neutral","Air quality is generally good at the site and there are links to bus stops in close proximity. It is also proposed that the site will include active travel provision, encouraging a modal shift away from private vehicle use. There are likely to be temporary negative effects on air quality due to dust generation and emissions from construction but these should be controllable via standard construction management techniques as required by Policy EN22.","Yes","A Dust Management Plan should be prepared as part of the Construction Environmental Management Plan (CEMP).","N/A"]
["SA12: Water Environment\nTo ensure sustainable management of water resources and to minimise the risk of flooding.","Will the policy or proposal: \n•\tMinimise contamination of watercourses and improve water quality in watercourses?\n•\tAvoid exacerbating flood risk for any source and be designed to be resilient to flood risk for its lifetime?\n•\tSupport the use of Sustainable Drainage Systems?\n•\tEncourage water efficiency and demand management?\n•\tAvoid deterioration and enhance the ecological status of water bodies? \n•\tContribute toward achieving Water Framework Directive objectives?","Yes",4,0,0,"Direct","High","Long(20+yrs)","Localised","Permanent/Irreversible","Minor Negative","As outlined in the Local Plan, development at the site is required to include comprehensive flood alleviation measures, including surface water drainage, to satisfactorily mitigate flood risk. However, the site is located in close proximity to a water body and also sits in an area of flood zone 3. Development at the site is anticipated to increase impermeable surfaces, increasing surface runoff and exacerbating flood risk. There is also potential for surface runoff during construction to result in pollution of the nearby water body. Development should accord with flood risk mitigation measures outlined in Policy CL1. The application of SuDS (in line with Policy CL1) should be demonstrated to reduce the risk of run-off and surface water flooding. ","Yes","Development should be in line with the NPPF and guidance from the Environment Agency. ","N/A"]
["SA13: Climate Change\nAdapt to the effects of climate change including flood risk, extreme weather and overheating, and strengthen climate resilience.","Will the policy or proposal:\n•\tMinimise flood risk and ensure new development provides sustainable urban drainage?\n•\tEnsure new development is designed to withstand future climate change (e.g. overheating and increased storm severity)?\n•\tIncrease and improve green and blue infrastructure to create a connected network across the city and within the wider area?\n•\tEnsure surface and groundwater water resources are used efficiently?\n•\tReduce energy consumption?\n•\tSupport the delivery of renewable and decentralised energy capacity (including small scale or community energy projects)?\n•\tSupport energy efficient design?","Yes",3,0,1,"Direct","Medium","Long(20+yrs)","Localised","Permanent/Irreversible","Minor Positive","There site is located within close proximity to existing flood defences, as well as requiring the implementation of flood mitigation measures. This is anticipated to reduce the risk of flooding at the site, particularly if exacerbated by climate change. ","Yes","Development should look into incorporating renewable energy generation methods such as solar panels, and should incorporate design measures that will reduce effects of climate change, such as zonal heating systems, water saving initiatives and energy monitoring devices.","N/A"]
["SA14: Greenhouse Gases\nTo reduce the contribution towards the emission of greenhouse gases.","Will the policy or proposal:\n•\tReduce GHG emissions?\n•\tSupport the shift towards low carbon technologies and the usage of electric and ultralow emissions vehicles and appropriate infrastructure to support these?\n•\tProvide opportunities to access local services and facilities by low carbon public transport, walking or wheeling?\n•\tPromote a low carbon local economy? \n•\tReduce levels of embodied carbon?","No",null,null,null,"Direct","Medium","Long(20+yrs)","Localised","Permanent/Irreversible","Minor Negative","There are likely to be significant GHG emissions associated with the construction  from embodied carbon within building materials, as well as carbon emissions from construction traffic and construction plant. Building efficiency measures are anticipated to reduce energy use in operation. The development will promote sustainable travel modes, reducing car reliance and GHG emissions from transport. The application of Policy CL5 should be applied to minimise embodied carbon. However, a minor negative effect is recorded due to construction emissions.","Yes","Any form of construction and operation should be undertaken as sustainably as possible, making use of tools and processes, such as circular economy, waste hierarchy and should consider BREEAM and BREEAM Infrastructure.","N/A"]
["SA15: Transport and Accessibility\nTo reduce the number of journeys made by car, within and to and from the area and improve access to jobs, services and facilities.","Will the policy or proposal:\n•\tUtilise and enhance existing infrastructure?\n•\tHelp to meet local needs locally through low carbon travel options?\n•\tFacilitate safe walking and cycling?\n•\tFacilitate the use of public transport?\n•\tDeliver opportunities to relieve traffic congestion?\n•\tEncourage travel planning for businesses?\n•\tHelp to reduce the distances people have to travel on a regular basis for education, employment and services?\n•\tHelp to improve access to services and facilities for those living in rural or remote settlements, or experiencing other access constraints?\n•\tHelp to support homeworking by residents?","Yes",2,0,1,"Direct","Medium","Long(20+yrs)","Localised","Permanent/Irreversible","Minor Positive","The site is accessible via the existing bus network. The development should include the provision of an improved active travel infrastructure in line with Policy T1. This is anticipated to encourage the use of sustainable transport modes, as well as improving accessibility to the surrounding area and services. ","Yes","N/A","N/A"]
["SA16: Geology and Soils\nTo minimise water and soil pollution and ensure protection of natural resources including greenfield land, soil, and minerals resources.","Will the policy or proposal:\n•\tUtilise previously developed land?\n•\tSeek to improve or remediate contaminated land or reuse previously developed land which has not been restored?\n•\tProtect soil quality and avoid soil pollution?\n•\tProtect Best and Most Versatile (BMV) Agricultural Land?\n•\tProtect Greenbelt/ Green Wedges land?\n•\tProtect sites safeguarded for mineral workings?","Yes",0,3,1,"Direct","High","Long(20+yrs)","Localised","Permanent/Irreversible","Significant Negative","The site is located on greenfield land that is currently utilised for agriculture. This land is of ALC grade 3 and 4. Development at the site will result in the loss of greenfield agricultural land.","Yes","Where possible, development should be located to avoid the loss of BMV agricultural land.","N/A"]
["SA17: Waste\nTo minimise the generation of waste and effectively manage waste that is created.","Will the policy or proposal:\n•\tEnhance opportunities for waste to be treated in line with circular economy principles (e.g. recycling, re-using, composting)?\n•\tProvide adequate waste separation facilities in new and existing developments in order to encourage more recycling?\n•\tEncourage the repurposing and refurbishing of buildings, instead of demolition?","Yes",0,0,0,"Indirect","High","Long(20+yrs)","Localised","Permanent/Irreversible","Minor Negative","Development should support the use of sustainably sourced/recycled materials in line with Policy GD1. This should help minimise waste from the development's construction phase. However, once in use, the development is likely to produce waste in operation which could have a greater impact than waste through construction. However, the Local Plan is unable to control the generation of waste beyond development of the site. It will only be able to ensure that developments are designed to ensure that users can separate waste facilitating them to follow the waste hierarchy. ","Yes","A Site Waste Management Plan should be prepared as part of the CEMP and OEMP. ","N/A"]

{"sheet":"E6","index":30,"n_rows":28,"n_cols":16,"rows_kept":28,"cut":false,"hidden":false,"merged":[[9,0,9,1],[9,2,9,5],[9,6,9,15]]}
["Site Name","SmartParc, Spondon"]
["Site Address"]
["Town/Locality"]
["Est Housing Yield/Employment Space","Research, production, distribution, training and education related to the food and drink industry\nContinued support of new manufacturing (B2), storage and distribution (B8) uses and other ancillary uses where justified. Potential for new office development."]
["Site Area (ha)","51.7ha"]
["Site Description"]
["Greenfield/Brownfield","Brownfield"]
["Assumptions Made"]
[]
["SA Framework",null,"GIS Inputs",null,null,null,"SA  Assessment"]
["SA objective","Supporting Questions","GIS Data Available?","R","A","G","Direct/\nIndirect","Magnitude","Duration","Spatial Extent","Permanence/ Reversibility","Significance","Description of potential effects","Potential for cumulative effects? ","Mitigation","Enhancements"]
["SA1: Population and Equalities\nTo build inclusive communities by reducing social exclusion, reducing deprivation, promoting equity, equality and respecting diversity, improving local accessibility to healthcare, education, employment, retail facilities and recreational resources (including open spaces and sports facilities).  ","Will the policy or proposal:\n•\tHelp to reduce deprivation and the inequality gap?\n•\tEnsure all residents have equitable access to health services?\n•\tConsider the needs of an aging population?\n•\tEnsure new housing is well related located, close to a range of services such as shops, schools and employment opportunities?\n•\tImprove opportunities for active travel including walking and cycling?\n•\tEnsure everyone has access to high quality open space and recreation facilities?\n•\tProtect community facilities and improve access to important local services for the most deprived?","Yes",0,2,1,"Direct","Medium","Long(20+yrs)","Borough-wide","Permanent/Irreversible","Minor Positive","The site includes the development of employment opportunities across a range of sectors, including training and education in the food and drink industry. This may improve training opportunities for the local population.","Yes","N/A","N/A"]
["SA2: Human Health\nTo improve health and wellbeing and reduce health inequalities, improving quality of life for all.","Will the policy or proposal:\n•\tHelp to improve health and reduce health inequalities?\n•\tContribute to healthy lifestyles?\n•\tEncourage walking, cycling and a reduction in private car use?\n•\tHelp to ensure health services are provided alongside development?\n•\tProtect existing services?","Yes",2,0,3,"Direct","Medium","Long(20+yrs)","Borough-wide","Permanent/Irreversible","Minor Positive","Access to employment is a key determinant of health. This site provides improved access to employment opportunities across a range of sectors, including providing training opportunities which is anticipated to improve wellbeing.","Yes","N/A","N/A"]
["SA3: Economy\nTo deliver economic growth and support the creation of new and retention of existing businesses.","Will the policy or proposal:\n•\tSupport the growth of higher skilled economic sectors? \n•\tProvide new employment premises which meet identified local needs in the area? \n•\tImprove business infrastructure, such as broadband and provide attractive sites for modern businesses?\n•\tSupport the city’s retail sector, especially the city centre and other retail centres?","Yes",0,0,2,"Direct","High","Long(20+yrs)","Borough-wide","Permanent/Irreversible","Significant Positive","The site includes the development of employment opportunities across a range of sectors, including high skilled sectors. The diversity of economic sectors at the site is likely to encourage investment into the area and improve business infrastructure within the area.","Yes","N/A","N/A"]
["SA4: Employment\nTo create greater employment opportunities, higher value jobs and access to training.","Will the policy or proposal:\n•\tIncrease job availability?\n•\tIncrease the quality and choice of local employment?\n•\tImprove access to employment centres?\n•\tMeet the skills needs and future demand for labour?","Yes",0,2,1,"Direct","High","Long(20+yrs)","Borough-wide","Permanent/Irreversible","Significant Positive","The site provides a wide range of employment uses, across skilled sectors, and provides a new business park, which is anticipated to become an employment hub. This is anticipated to increase job availability for all groups.","Yes","N/A","N/A"]
["SA5: Crime and Safety\nTo reduce crime and the fear of crime for all residents inclusively, improving safety.","Will the policy or proposal:\n•\tHelp to create streets where people feel safe, particularly after dark?\n•\tMake a positive contribution to community cohesion?\n•\tSupport designing out crime principals? \n•\tReduce levels of crime derivation? \n•\tImprove road safety and reduce the number of people killed or seriously injured (KSI) on the roads, particularly children from deprived backgrounds? \n•\tCreate spaces where women and girls feel safe and included?","Yes",0,1,0,"N/A","N/A","N/A","N/A","N/A","Minor Positive","The site is located within an area of medium deprivation from a crime perspective. There is limited detail on whether designing out crime principles will be applied as part of the development. However, it is assumed that development should incorporate designing out crime principles in line with Policy GD5. There is potential that this may result in improvements to feelings of safety in the area.","Yes","N/A","N/A"]
["SA6: Housing\nTo provide everybody with access to an affordable home which is resilient to the effects of climate change.","Will the policy or proposal:\n•\tSupport a range of housing types and sizes, including affordable housing units??\n•\tEnsure that there is an adequate supply of housing development land to meet local needs?\n•\tBe sustainably designed and resilient to the effects of climate change and designed to meet all needs, for example “Lifetime Homes” standards?","Yes",0,0,1,"N/A","N/A","N/A","N/A","N/A","Neutral","The development of the site is not anticipated to have any potential effect on this objective. ","No","N/A","N/A"]
["SA7: Leisure and Recreation\nTo provide better opportunities for people to participate in cultural, leisure and recreational activities.","Will the policy or proposal:\n•\tHelp to improve access to formal and informal recreation facilities?\n•\tProvide opportunities for engagement in a range of cultural activities?\n•\tCreate new allotments where there is a demand?","Yes",0,0,3,"N/A","N/A","N/A","N/A","N/A","Neutral","The development of the site is not anticipated to have any potential effect on this objective. ","No","N/A","N/A"]
["SA8: Biodiversity and Natural Capital\nTo protect and improve biodiversity, geo-diversity, including protect and enhance favourable conditions on SSSI’s, SPAs, SACs and other wildlife sites and improve connectivity between, and access to, green spaces and functional habitats.","Will the policy or proposal:\n•\tConserve and enhance habitats in the LNRS?\n•\tConserve and enhance species diversity and in particular avoid harm and increase the ranges of protected species?\n•\tProvide opportunities for new habitat creation and lead to a net gain in biodiversity?\n•\tProtect geo-diversity?\n•\tImprove the ecological quality and character of open spaces?\n•\tMaintain and enhance woodland cover and management in appropriate areas (e.g. areas of ash dieback)?\n•\tMaintain or enhance tree cover?\n•\tProtect and promote effective management of SPAs and SACs in the LP area and its surroundings?\n•\tHelp to protect and enhance other designated sites e.g., SSSIs, Wildlife Sites, LNRs etc?\n•\tImprove climate change adaptation through provision of accessible green space or green and blue infrastructure?\n•\tPrevent the fragmentation of habitats, provide links between green spaces or help to deliver/support other ecological networks?\n•\tSupport the natural capital of the city?","Yes",0,1,1,"Direct","Medium","Long(20+yrs)","Localised","Permanent/Reversible","Minor Positive","The site is located within 800m of an LNR. There is potential for negative effects upon biodiversity as a result of construction activity at the site. However, development at the site is required to contribute to enhancing biodiversity resources within the site as biodiversity enhancement should meet minimum standards of 10% for all developments, as set out in Policy EN10.","Yes","N/A","N/A"]
["SA9: Landscape and Townscape\nTo protect and enhance the character and appearance of the landscape and townscape, including landscape and townscape assets, as well as the area’s other natural assets and resources.","Will the policy or proposal:\n•\tProtect and enhance landscape and townscape quality, character and distinctiveness?\n•\tAvoid loss of, and damage to greenbelt / green wedge land?\n•\tMake use of previously used / brownfield land and buildings?\n•\tSafeguard individual landscape and townscape features such as hedgerows, ponds, public squares, etc?","Yes",0,0,2,"Direct","Medium","Short/Medium","Localised","Permanent/Irreversible","Minor Positive","The site is located on an area of brownfield land that is currently vacant. The development of the site is anticipated to improve the townscape of the current site.","Yes","N/A","N/A"]
["SA10: Historic Environment\nTo conserve and enhance the historic environment, heritage assets (including known and unknown archaeological sites) and their settings and maintain and enhance access to cultural heritage for enjoyment and educational purposes.   ","Will the policy or proposal:\n•\tPreserve and enhance the character or appearance of conservation areas and their settings?\n•\tPreserve or enhance heritage assets and their settings?\n•\tPreserve or enhance archaeological features and their settings?\n•\tImprove the condition of heritage at risk? \n•\tRe-use/retain historic buildings or fabric?\n•\tProtect and conserve the Outstanding Universal Value of the DVMWHS?","Yes",0,0,7,"N/A","N/A","N/A","N/A","N/A","Neutral","The development of the site is not anticipated to have any potential effect on this objective. ","No","N/A","N/A"]
["SA11: Air, Noise and Light Pollution\nTo maintain good local air quality and to minimise noise and light pollution","Will the policy or proposal:\n•\tMaintain or improve local air quality?\n•\tEncourage the installation of electric vehicle charging points?\n•\tAvoid adverse impacts from noise?\n•\tMinimise light pollution?","Yes",1,0,1,"N/A","N/A","N/A","N/A","N/A","Neutral","Air quality is generally good at the site and there are links to public transport modes in close proximity. There is potential for this to encourage a modal shift away from private vehicle use. There are likely to be temporary negative effects on air quality due to dust generation and emissions from construction but these should be controllable via standard construction management techniques as required by Policy EN22.","Yes","A Dust Management Plan should be prepared as part of the Construction Environmental Management Plan (CEMP). ","N/A"]
["SA12: Water Environment\nTo ensure sustainable management of water resources and to minimise the risk of flooding.","Will the policy or proposal: \n•\tMinimise contamination of watercourses and improve water quality in watercourses?\n•\tAvoid exacerbating flood risk for any source and be designed to be resilient to flood risk for its lifetime?\n•\tSupport the use of Sustainable Drainage Systems?\n•\tEncourage water efficiency and demand management?\n•\tAvoid deterioration and enhance the ecological status of water bodies? \n•\tContribute toward achieving Water Framework Directive objectives?","Yes",4,0,0,"Direct","High","Long(20+yrs)","Localised","Permanent/Irreversible","Significant Negative","The site is located in close proximity to a water body and also sits in an area of flood zone 3. Development at the site is anticipated to increase impermeable surfaces, increasing surface runoff and exacerbating flood risk. There is also potential for surface runoff during construction to result in pollution of the nearby water body. Development should accord with flood risk mitigation measures outlined in Policy CL1. The application of SuDS (in line with Policy CL1) should be demonstrated to reduce the risk of run-off and surface water flooding. ","Yes","Development should be in line with the NPPF and guidance from the Environment Agency. \nThe plan should require appropriate water management strategies, for example the inclusion of SuDS, within the site allocation's supporting text.","N/A"]
["SA13: Climate Change\nAdapt to the effects of climate change including flood risk, extreme weather and overheating, and strengthen climate resilience.","Will the policy or proposal:\n•\tMinimise flood risk and ensure new development provides sustainable urban drainage?\n•\tEnsure new development is designed to withstand future climate change (e.g. overheating and increased storm severity)?\n•\tIncrease and improve green and blue infrastructure to create a connected network across the city and within the wider area?\n•\tEnsure surface and groundwater water resources are used efficiently?\n•\tReduce energy consumption?\n•\tSupport the delivery of renewable and decentralised energy capacity (including small scale or community energy projects)?\n•\tSupport energy efficient design?","Yes",4,0,0,"N/A","N/A","N/A","N/A","N/A","Uncertain","There site is located within an area of flood zone 3 and there are no current flood defences at the site. It is currently unclear whether any flood risk mitigation measures will be included within development.\nHowever, the site will support energy generation, including decentralised green energy production, improving energy capacity, although this is likely to be determined by individual proposals that may come forward.","Yes","Development should look into incorporating renewable energy generation methods such as solar panels, and should incorporate design measures that will reduce effects of climate change, such as zonal heating systems, water saving initiatives and energy monitoring devices.","N/A"]
["SA14: Greenhouse Gases\nTo reduce the contribution towards the emission of greenhouse gases.","Will the policy or proposal:\n•\tReduce GHG emissions?\n•\tSupport the shift towards low carbon technologies and the usage of electric and ultralow emissions vehicles and appropriate infrastructure to support these?\n•\tProvide opportunities to access local services and facilities by low carbon public transport, walking or wheeling?\n•\tPromote a low carbon local economy? \n•\tReduce levels of embodied carbon?","No",null,null,null,"Direct","Medium","Long(20+yrs)","Localised","Permanent/Irreversible","Minor Negative","There are likely to be significant GHG emissions associated with the construction  from embodied carbon within building materials, as well as carbon emissions from construction traffic and construction plant. Building efficiency measures are anticipated to reduce energy use in operation. The development will promote sustainable travel modes, reducing car reliance and GHG emissions from transport. The application of Policy CL5 should be applied to minimise embodied carbon. However, a minor negative effect is recorded due to construction emissions.","Yes","Any form of construction and operation should be undertaken as sustainably as possible, making use of tools and processes, such as circular economy, waste hierarchy and should consider BREEAM and BREEAM Infrastructure.","N/A"]
["SA15: Transport and Accessibility\nTo reduce the number of journeys made by car, within and to and from the area and improve access to jobs, services and facilities.","Will the policy or proposal:\n•\tUtilise and enhance existing infrastructure?\n•\tHelp to meet local needs locally through low carbon travel options?\n•\tFacilitate safe walking and cycling?\n•\tFacilitate the use of public transport?\n•\tDeliver opportunities to relieve traffic congestion?\n•\tEncourage travel planning for businesses?\n•\tHelp to reduce the distances people have to travel on a regular basis for education, employment and services?\n•\tHelp to improve access to services and facilities for those living in rural or remote settlements, or experiencing other access constraints?\n•\tHelp to support homeworking by residents?","Yes",0,1,2,"Direct","Medium","Long(20+yrs)","Localised","Permanent/Irreversible","Minor Positive","The site is accessible via the existing bus network, as well as being located within 800m of a train station. This is anticipated to encourage the use of sustainable transport modes when accessing the site.","Yes","N/A","N/A"]
["SA16: Geology and Soils\nTo minimise water and soil pollution and ensure protection of natural resources including greenfield land, soil, and minerals resources.","Will the policy or proposal:\n•\tUtilise previously developed land?\n•\tSeek to improve or remediate contaminated land or reuse previously developed land which has not been restored?\n•\tProtect soil quality and avoid soil pollution?\n•\tProtect Best and Most Versatile (BMV) Agricultural Land?\n•\tProtect Greenbelt/ Green Wedges land?\n•\tProtect sites safeguarded for mineral workings?","Yes",0,1,3,"Direct","High","Long(20+yrs)","Localised","Permanent/Irreversible","Minor Positive","The site is located on brownfield land, but within SPZ 2 and 3. Development at the site is anticipated to encourage the re-use of previously developed land and protect green spaces within the city.","Yes","N/A","N/A"]
["SA17: Waste\nTo minimise the generation of waste and effectively manage waste that is created.","Will the policy or proposal:\n•\tEnhance opportunities for waste to be treated in line with circular economy principles (e.g. recycling, re-using, composting)?\n•\tProvide adequate waste separation facilities in new and existing developments in order to encourage more recycling?\n•\tEncourage the repurposing and refurbishing of buildings, instead of demolition?","Yes",0,0,1,"Indirect","High","Long(20+yrs)","Localised","Permanent/Irreversible","Minor Negative","Development should support the use of sustainably sourced/recycled materials in line with Policy GD1. This should help minimise waste from the development's construction phase. However, once in use, the development is likely to produce waste in operation which could have a greater impact than waste through construction. However, the Local Plan is unable to control the generation of waste beyond development of the site. It will only be able to ensure that developments are designed to ensure that users can separate waste facilitating them to follow the waste hierarchy. ","Yes","A Site Waste Management Plan should be prepared as part of the CEMP and OEMP. ","N/A"]

{"sheet":"E7","index":31,"n_rows":28,"n_cols":16,"rows_kept":28,"cut":false,"hidden":false,"merged":[[9,0,9,1],[9,2,9,5],[9,6,9,15]]}
["Site Name","Indurent Park"]
["Site Address"]
["Town/Locality"]
["Est Housing Yield/Employment Space","Manufacturing (B2) and storage and distribution (B8), potential for new office development."]
["Site Area (ha)","20.9ha"]
["Site Description"]
["Greenfield/Brownfield","Brownfield"]
["Assumptions Made"]
[]
["SA Framework",null,"GIS Inputs",null,null,null,"SA  Assessment"]
["SA objective","Supporting Questions","GIS Data Available?","R","A","G","Direct/\nIndirect","Magnitude","Duration","Spatial Extent","Permanence/ Reversibility","Significance","Description of potential effects","Potential for cumulative effects? ","Mitigation","Enhancements"]
["SA1: Population and Equalities\nTo build inclusive communities by reducing social exclusion, reducing deprivation, promoting equity, equality and respecting diversity, improving local accessibility to healthcare, education, employment, retail facilities and recreational resources (including open spaces and sports facilities).  ","Will the policy or proposal:\n•\tHelp to reduce deprivation and the inequality gap?\n•\tEnsure all residents have equitable access to health services?\n•\tConsider the needs of an aging population?\n•\tEnsure new housing is well related located, close to a range of services such as shops, schools and employment opportunities?\n•\tImprove opportunities for active travel including walking and cycling?\n•\tEnsure everyone has access to high quality open space and recreation facilities?\n•\tProtect community facilities and improve access to important local services for the most deprived?","Yes",1,0,2,"Direct","Medium","Long(20+yrs)","Borough-wide","Permanent/Irreversible","Minor Positive","The site includes the development of employment opportunities across a range of sectors. This may improve employment opportunities for the local population.","Yes","N/A","N/A"]
["SA2: Human Health\nTo improve health and wellbeing and reduce health inequalities, improving quality of life for all.","Will the policy or proposal:\n•\tHelp to improve health and reduce health inequalities?\n•\tContribute to healthy lifestyles?\n•\tEncourage walking, cycling and a reduction in private car use?\n•\tHelp to ensure health services are provided alongside development?\n•\tProtect existing services?","Yes",2,0,3,"Direct","Medium","Long(20+yrs)","Borough-wide","Permanent/Irreversible","Minor Positive","Access to employment is a key determinant of health. This site provides improved access to employment opportunities across a range of sectors, which is anticipated to improve wellbeing.","Yes","N/A","N/A"]
["SA3: Economy\nTo deliver economic growth and support the creation of new and retention of existing businesses.","Will the policy or proposal:\n•\tSupport the growth of higher skilled economic sectors? \n•\tProvide new employment premises which meet identified local needs in the area? \n•\tImprove business infrastructure, such as broadband and provide attractive sites for modern businesses?\n•\tSupport the city’s retail sector, especially the city centre and other retail centres?","Yes",0,0,2,"Direct","High","Long(20+yrs)","Borough-wide","Permanent/Irreversible","Significant Positive","The site includes the development of employment opportunities across manufacturing and storage and distribution sectors. The redevelopment at the site is likely to encourage investment into the area and improve business infrastructure within the area.","Yes","N/A","N/A"]
["SA4: Employment\nTo create greater employment opportunities, higher value jobs and access to training.","Will the policy or proposal:\n•\tIncrease job availability?\n•\tIncrease the quality and choice of local employment?\n•\tImprove access to employment centres?\n•\tMeet the skills needs and future demand for labour?","Yes",2,0,1,"Direct","High","Long(20+yrs)","Borough-wide","Permanent/Irreversible","Minor Positive","The site provides employment opportunities in storage and distribution and manufacturing sectors.  This is anticipated to increase job availability in these sectors.","Yes","N/A","N/A"]
["SA5: Crime and Safety\nTo reduce crime and the fear of crime for all residents inclusively, improving safety.","Will the policy or proposal:\n•\tHelp to create streets where people feel safe, particularly after dark?\n•\tMake a positive contribution to community cohesion?\n•\tSupport designing out crime principals? \n•\tReduce levels of crime derivation? \n•\tImprove road safety and reduce the number of people killed or seriously injured (KSI) on the roads, particularly children from deprived backgrounds? \n•\tCreate spaces where women and girls feel safe and included?","Yes",0,1,0,"N/A","N/A","N/A","N/A","N/A","Minor Positive","The site is located within an area of medium deprivation from a crime perspective. There is limited detail on whether designing out crime principles will be applied as part of the development. However, it is assumed that development should incorporate designing out crime principles in line with Policy GD5. There is potential that this may result in improvements to feelings of safety in the area.","Yes","N/A","N/A"]
["SA6: Housing\nTo provide everybody with access to an affordable home which is resilient to the effects of climate change.","Will the policy or proposal:\n•\tSupport a range of housing types and sizes, including affordable housing units??\n•\tEnsure that there is an adequate supply of housing development land to meet local needs?\n•\tBe sustainably designed and resilient to the effects of climate change and designed to meet all needs, for example “Lifetime Homes” standards?","Yes",0,0,1,"N/A","N/A","N/A","N/A","N/A","Neutral","The development of the site is not anticipated to have any potential effect on this objective. ","No","N/A","N/A"]
["SA7: Leisure and Recreation\nTo provide better opportunities for people to participate in cultural, leisure and recreational activities.","Will the policy or proposal:\n•\tHelp to improve access to formal and informal recreation facilities?\n•\tProvide opportunities for engagement in a range of cultural activities?\n•\tCreate new allotments where there is a demand?","Yes",0,0,3,"N/A","N/A","N/A","N/A","N/A","Neutral","The development of the site is not anticipated to have any potential effect on this objective. ","No","N/A","N/A"]
["SA8: Biodiversity and Natural Capital\nTo protect and improve biodiversity, geo-diversity, including protect and enhance favourable conditions on SSSI’s, SPAs, SACs and other wildlife sites and improve connectivity between, and access to, green spaces and functional habitats.","Will the policy or proposal:\n•\tConserve and enhance habitats in the LNRS?\n•\tConserve and enhance species diversity and in particular avoid harm and increase the ranges of protected species?\n•\tProvide opportunities for new habitat creation and lead to a net gain in biodiversity?\n•\tProtect geo-diversity?\n•\tImprove the ecological quality and character of open spaces?\n•\tMaintain and enhance woodland cover and management in appropriate areas (e.g. areas of ash dieback)?\n•\tMaintain or enhance tree cover?\n•\tProtect and promote effective management of SPAs and SACs in the LP area and its surroundings?\n•\tHelp to protect and enhance other designated sites e.g., SSSIs, Wildlife Sites, LNRs etc?\n•\tImprove climate change adaptation through provision of accessible green space or green and blue infrastructure?\n•\tPrevent the fragmentation of habitats, provide links between green spaces or help to deliver/support other ecological networks?\n•\tSupport the natural capital of the city?","Yes",0,1,1,"Direct","Medium","Long(20+yrs)","Localised","Permanent/Reversible","Minor Positive","The site is located within 800m of an LNR. There is potential for negative effects upon biodiversity as a result of construction activity at the site. However, development at the site is required to contribute to enhancing biodiversity resources within the site as biodiversity enhancement should meet minimum standards of 10% for all developments, as set out in Policy EN10.","Yes","N/A","N/A"]
["SA9: Landscape and Townscape\nTo protect and enhance the character and appearance of the landscape and townscape, including landscape and townscape assets, as well as the area’s other natural assets and resources.","Will the policy or proposal:\n•\tProtect and enhance landscape and townscape quality, character and distinctiveness?\n•\tAvoid loss of, and damage to greenbelt / green wedge land?\n•\tMake use of previously used / brownfield land and buildings?\n•\tSafeguard individual landscape and townscape features such as hedgerows, ponds, public squares, etc?","Yes",0,0,2,"Direct","Medium","Short/Medium","Localised","Permanent/Irreversible","Minor Positive","The site is located on an area of brownfield land that is currently vacant. The development of the site is anticipated to improve the townscape of the current site.","Yes","N/A","N/A"]
["SA10: Historic Environment\nTo conserve and enhance the historic environment, heritage assets (including known and unknown archaeological sites) and their settings and maintain and enhance access to cultural heritage for enjoyment and educational purposes.   ","Will the policy or proposal:\n•\tPreserve and enhance the character or appearance of conservation areas and their settings?\n•\tPreserve or enhance heritage assets and their settings?\n•\tPreserve or enhance archaeological features and their settings?\n•\tImprove the condition of heritage at risk? \n•\tRe-use/retain historic buildings or fabric?\n•\tProtect and conserve the Outstanding Universal Value of the DVMWHS?","Yes",0,0,7,"N/A","N/A","N/A","N/A","N/A","Neutral","The development of the site is not anticipated to have any potential effect on this objective. ","No","N/A","N/A"]
["SA11: Air, Noise and Light Pollution\nTo maintain good local air quality and to minimise noise and light pollution","Will the policy or proposal:\n•\tMaintain or improve local air quality?\n•\tEncourage the installation of electric vehicle charging points?\n•\tAvoid adverse impacts from noise?\n•\tMinimise light pollution?","Yes",1,0,1,"N/A","N/A","N/A","N/A","N/A","Neutral","Air quality is generally good at the site and there are links to bus and cycle networks in close proximity. There is potential for this to encourage a modal shift away from private vehicle use. However, there are likely to be temporary negative effects on air quality due to dust generation and emissions from construction. The development is anticipated to seek opportunities to identify and improve air quality and should not reduce air quality benefits, in line with Policy EN22.","Yes","A Dust Management Plan should be prepared as part of the Construction Environmental Management Plan (CEMP). ","N/A"]
["SA12: Water Environment\nTo ensure sustainable management of water resources and to minimise the risk of flooding.","Will the policy or proposal: \n•\tMinimise contamination of watercourses and improve water quality in watercourses?\n•\tAvoid exacerbating flood risk for any source and be designed to be resilient to flood risk for its lifetime?\n•\tSupport the use of Sustainable Drainage Systems?\n•\tEncourage water efficiency and demand management?\n•\tAvoid deterioration and enhance the ecological status of water bodies? \n•\tContribute toward achieving Water Framework Directive objectives?","Yes",3,0,1,"Direct","High","Long(20+yrs)","Localised","Permanent/Irreversible","Significant Negative","The site is located in close proximity to a water body and also sits in an area of flood zone 3. Development at the site is anticipated to increase impermeable surfaces, increasing surface runoff and exacerbating flood risk. There is also potential for surface runoff during construction to result in pollution of the nearby water body. Development should accord with flood risk mitigation measures outlined in Policy CL1. The application of SuDS (in line with Policy CL1) should be demonstrated to reduce the risk of run-off and surface water flooding. ","Yes","Development should be in line with the NPPF and guidance from the Environment Agency.  The plan should require appropriate water management strategies, for example the inclusion of SuDS, within the site allocation's supporting text.","N/A"]
["SA13: Climate Change\nAdapt to the effects of climate change including flood risk, extreme weather and overheating, and strengthen climate resilience.","Will the policy or proposal:\n•\tMinimise flood risk and ensure new development provides sustainable urban drainage?\n•\tEnsure new development is designed to withstand future climate change (e.g. overheating and increased storm severity)?\n•\tIncrease and improve green and blue infrastructure to create a connected network across the city and within the wider area?\n•\tEnsure surface and groundwater water resources are used efficiently?\n•\tReduce energy consumption?\n•\tSupport the delivery of renewable and decentralised energy capacity (including small scale or community energy projects)?\n•\tSupport energy efficient design?","Yes",2,1,1,"N/A","N/A","N/A","N/A","N/A","Uncertain","There site is located within an area of flood zone 3 and there are no flood defences in close proximity. It is currently unclear whether any flood risk mitigation measures will be included within development.","Yes","Development should look into incorporating renewable energy generation methods such as solar panels, and should incorporate design measures that will reduce effects of climate change, such as zonal heating systems, water saving initiatives and energy monitoring devices.","N/A"]
["SA14: Greenhouse Gases\nTo reduce the contribution towards the emission of greenhouse gases.","Will the policy or proposal:\n•\tReduce GHG emissions?\n•\tSupport the shift towards low carbon technologies and the usage of electric and ultralow emissions vehicles and appropriate infrastructure to support these?\n•\tProvide opportunities to access local services and facilities by low carbon public transport, walking or wheeling?\n•\tPromote a low carbon local economy? \n•\tReduce levels of embodied carbon?","No",null,null,null,"Direct","Medium","Long(20+yrs)","Localised","Permanent/Irreversible","Minor Negative","There are likely to be significant GHG emissions associated with the construction  from embodied carbon within building materials, as well as carbon emissions from construction traffic and construction plant. Building efficiency measures are anticipated to reduce energy use in operation. The development will promote sustainable travel modes, reducing car reliance and GHG emissions from transport. The application of Policy CL5 should be applied to minimise embodied carbon. However, a minor negative effect is recorded due to construction emissions.","Yes","Any form of construction and operation should be undertaken as sustainably as possible, making use of tools and processes, such as circular economy, waste hierarchy and should consider BREEAM and BREEAM Infrastructure.","N/A"]
["SA15: Transport and Accessibility\nTo reduce the number of journeys made by car, within and to and from the area and improve access to jobs, services and facilities.","Will the policy or proposal:\n•\tUtilise and enhance existing infrastructure?\n•\tHelp to meet local needs locally through low carbon travel options?\n•\tFacilitate safe walking and cycling?\n•\tFacilitate the use of public transport?\n•\tDeliver opportunities to relieve traffic congestion?\n•\tEncourage travel planning for businesses?\n•\tHelp to reduce the distances people have to travel on a regular basis for education, employment and services?\n•\tHelp to improve access to services and facilities for those living in rural or remote settlements, or experiencing other access constraints?\n•\tHelp to support homeworking by residents?","Yes",1,0,2,"Direct","Medium","Long(20+yrs)","Localised","Permanent/Irreversible","Minor Positive","The site is accessible via the existing bus network and cycle network. This is anticipated to encourage the use of sustainable transport modes when accessing the site.","Yes","N/A","N/A"]
["SA16: Geology and Soils\nTo minimise water and soil pollution and ensure protection of natural resources including greenfield land, soil, and minerals resources.","Will the policy or proposal:\n•\tUtilise previously developed land?\n•\tSeek to improve or remediate contaminated land or reuse previously developed land which has not been restored?\n•\tProtect soil quality and avoid soil pollution?\n•\tProtect Best and Most Versatile (BMV) Agricultural Land?\n•\tProtect Greenbelt/ Green Wedges land?\n•\tProtect sites safeguarded for mineral workings?","Yes",0,2,2,"Direct","High","Long(20+yrs)","Localised","Permanent/Irreversible","Minor Positive","The site is located on brownfield land, but within SPZ 2 and 3. Development at the site is anticipated to encourage the re-use of previously developed land and protect green spaces within the city.","Yes","N/A","N/A"]
["SA17: Waste\nTo minimise the generation of waste and effectively manage waste that is created.","Will the policy or proposal:\n•\tEnhance opportunities for waste to be treated in line with circular economy principles (e.g. recycling, re-using, composting)?\n•\tProvide adequate waste separation facilities in new and existing developments in order to encourage more recycling?\n•\tEncourage the repurposing and refurbishing of buildings, instead of demolition?","Yes",0,0,1,"Indirect","High","Long(20+yrs)","Localised","Permanent/Irreversible","Minor Negative","Development should support the use of sustainably sourced/recycled materials in line with Policy GD1. This should help minimise waste from the development's construction phase. However, once in use, the development is likely to produce waste in operation which could have a greater impact than waste through construction. However, the Local Plan is unable to control the generation of waste beyond development of the site. It will only be able to ensure that developments are designed to ensure that users can separate waste facilitating them to follow the waste hierarchy. ","Yes","A Site Waste Management Plan should be prepared as part of the CEMP and OEMP. ","N/A"]